Workbook

Sheet X
B2: Первая игра: | C2: =MIN(Baza[Hand Date]) -> 2019-11-01 | E2: Прибыль: | F2: =SUM(D[Profit]) -> 150.34 | H2: количество турниров | I2: =COUNT(Baza[Number])+SUM(Baza[Re-entry]) -> 554 | K2: Дней плюсовых: | L2: =COUNT(IF(D[Profit]>0,D[Profit])) -> 4
B3: Последняя игра: | C3: =MAX(Baza[Hand Date]) -> 2019-11-04 | E3: Прибыль / месяц: | F3: =SUM(o[h]) -> 51.66666667 | H3: Ср. игры / месяц: | I3: СРЗНАЧ(Meset[G]) | K3: Дней минусовых: | L3: =COUNT(IF(D[Profit]<0,D[Profit])) -> 1
E4: Прибыль / неделя: | F4: СРЗНАЧ(M[Profit]) | H4: Ср. игры / неделя: | I4: СРЗНАЧ(M[G]) | K4: месяцев плюсовых: | L4: СЧЁТ(ЕСЛИ('C:\Users\delle\Desktop\poker1.xlsm'!Meset[Profit]>0;'C:\Users\delle\Desktop\poker1.xlsm'!Meset[Profit]))
B5: Активные дни: | C5: =L2+L3 -> 5 | E5: Прибыль / день: | F5: =F2/C5 -> 30.068 | H5: Ср. игры / день: | I5: =AVERAGE(D[G]) -> 17.87096774 | K5: месяцев минусовых: | L5: СЧЁТ(ЕСЛИ('C:\Users\delle\Desktop\poker1.xlsm'!Meset[Profit]<0;'C:\Users\delle\Desktop\poker1.xlsm'!Meset[Profit]))
B6: Неактивные дни: | C6: =IF(C3=C2,0,(C3-C2+1)-C5) -> -1 | E6: Прибыль / час: | F6: =F2/C10 -> 2.909806452 | H6: Макс. игр / день: | I6: =MAX(D[G]) -> 174 | K6: недель плюсовых: | L6: СЧЁТ(ЕСЛИ('C:\Users\delle\Desktop\poker1.xlsm'!M[Profit]>0;'C:\Users\delle\Desktop\poker1.xlsm'!M[Profit]))
E7: Прибыль / турнир: | F7: =F2/I2 -> 0.2713718412 | K7: недель минусовых: | L7: СЧЁТ(ЕСЛИ('C:\Users\delle\Desktop\poker1.xlsm'!M[Profit]<0;'C:\Users\delle\Desktop\poker1.xlsm'!M[Profit]))
E8: Прибыль / 100 рук: | F8: =F2/F15*100 -> 0.3490110502 | H8: Ср. кол. открытых турниров: | I8: =IFERROR(AVERAGE(o[[7]:[294]]),0) -> 9.990322581
H9: Макс. кол. открытых турниров: | I9: =IFERROR(MAX(o[[7]:[294]]),0) -> 20
B10: кол. игровых часов: | C10: =SUM(o[h]) -> 51.66666667 | E10: ABI: | F10: =F21/I2 -> 0.3855595668
B11: Ср. кол. игровых часов в день: | C11: =AVERAGE(D[h]) -> 1.666666667 | E11: ROI: | F11: =F2/F21*100 -> 70.38389513
B12: Макс. кол. игровых часов в день: | C12: =MAX(D[h]) -> 14.41666667 | E12: ITM: | F12: =COUNTIFS(Baza[Winnings],">0")/I2*100 -> 27.61732852
E13: AFS: | F13: =AVERAGE(Baza[Size]) -> 77.48101266
H14: srednii proigrish v minusavie dni | I14: =IFERROR(AVERAGEIFS(D[Profit],D[Profit],"<0"),0) -> 0
E15: количество рук: | F15: =SUM(D[H.]) -> 43076 | H15: max. proigrish v deni | I15: =MIN(D[Profit]) -> 0 | K15: ranii vileti
B16: Худший стрик (турниры): | C16: =IF(I2=0,0,MAX(FREQUENCY(ROW(Baza[Net Winnings]),(Baza[Net Winnings]>0)*ROW(Baza[Net Winnings])))) -> 13 | E16: BB/100 | F16: =SUM(Baza[bb/1002])/F15 -> 17.98553951 | H16: srednii dahod v pliusavie dni | I16: =IFERROR(AVERAGEIFS(D[Profit],D[Profit],">0"),0) -> 37.585
B17: Худший стрик (день): | C17: =MAX(FREQUENCY(ROW(D[Profit]),(D[Profit]>0)*ROW(D[Profit]))) -> 27 | E17: EV BB/100 | F17: =SUM(Baza[EV bb/1002])/F15 -> 13.87214922
B18: Лучший стрик (день): | C18: =MAX(FREQUENCY(ROW(D[Profit]),(D[Profit]<=0)*ROW(D[Profit])))-1 -> 4
B19: Худший стрик ($): | C19: =MIN(Baza[Prasatka]) -> -12.45 | E19: Макс. выигрыш: | F19: =MAX(Baza[Winnings]) -> 32.76 | K19: Нужный банкролл:
B20: Лучший стрик ($): | C20: =MAX(Baza[Столбец3]) -> 153.84 | E20: Сумма призов: | F20: =SUM(Baza[Winnings]) -> 361.93 | H20: Ср. продолжительность турниров | I20: =IFERROR(AVERAGE(Baza[6]),0) -> 01:00:53.056 | K20: vazmojnii max. proigrish
E21: Общая ставка: | F21: =SUM(D[Buy-in]) -> 213.6 | H21: Ср. участники: | I21: =AVERAGE(Baza[Size]) -> 77.48101266 | K21: srednea
E23: Ср. загрузка в день: | F23: =AVERAGE(D[Buy-in]) -> 6.890322581
E24: Макс. загрузка в день: | F24: =MAX(D[Buy-in]) -> 74.5 | K24: kofitient h

Sheet PS
B2: NN | C2: DN | D2: M | E2: Date | F2: Action | G2: № | H2: Game | I2: Amount | J2: Balance | K2: Name | L2: GTD | M2: Y | N2: T | O2: K | P2: R | Q2: Z | R2: Data | S2: Vremea | T2: Amount2 | U2: Balance6
B3: =IF(PS[[#This Row],[Date]]="","",IFERROR(WEEKNUM(PS[[#This Row],[Date]],2),"")) ->  | C3: =IF(PS[[#This Row],[Date]]="","",IFERROR(CHOOSE(WEEKDAY(PS[[#This Row],[Date]],2),"понедельник","вторник","среда","четверг","пятница","суббота","воскресенье"),"")) ->  | D3: =IF(PS[[#This Row],[Date]]="","",TEXT(PS[[#This Row],[Date]],"mmmm")) ->  | K3: =SUBSTITUTE(SUBSTITUTE(SUBSTITUTE(IFERROR(IF(PS[[#This Row],[Y]]="S",MID(PS[[#This Row],[Game]],FIND("[",PS[[#This Row],[Game]]),FIND("]",PS[[#This Row],[Game]])-FIND("[",PS[[#This Row],[Game]])+1),LEFT(LEFT(RIGHT(PS[[#This Row],[Game]],((LEN(PS[[#This Row],[Game]]))-( FIND("*",SUBSTITUTE(PS[[#This Row],[Game]]," ","*",4))))),( FIND("*",SUBSTITUTE(RIGHT(PS[[#This Row],[Game]],((LEN(PS[[#This Row],[Game]]))-( FIND("*",SUBSTITUTE(PS[[#This Row],[Game]]," ","*",4))))),", $","*",1)))),LEN(LEFT(RIGHT(PS[[#This Row],[Game]],((LEN(PS[[#This Row],[Game]]))-( FIND("*",SUBSTITUTE(PS[[#This Row],[Game]]," ","*",4))))),( FIND("*",SUBSTITUTE(RIGHT(PS[[#This Row],[Game]],((LEN(PS[[#This Row],[Game]]))-( FIND("*",SUBSTITUTE(PS[[#This Row],[Game]]," ","*",4))))),", $","*",1)))))-1)),"")," [Saturday Special]",""),"ger",""),"ter","") ->  | L3: =IFERROR(IF(PS[[#This Row],[Y]]="S","",IF(IF(NOT(ISERR(FIND(".",SUBSTITUTE(MID(PS[[#This Row],[Game]],FIND(", $",PS[[#This Row],[Game]])+1,FIND(" Gtd",PS[[#This Row],[Game]])-FIND(", $",PS[[#This Row],[Game]])-1),"$","")))),1,0)=1,SUBSTITUTE(SUBSTITUTE(SUBSTITUTE(MID(PS[[#This Row],[Game]],FIND(", $",PS[[#This Row],[Game]])+1,FIND(" Gtd",PS[[#This Row],[Game]])-FIND(", $",PS[[#This Row],[Game]])-1),"$",""),".",""),"K","00"),SUBSTITUTE(SUBSTITUTE(SUBSTITUTE(MID(PS[[#This Row],[Game]],FIND(", $",PS[[#This Row],[Game]])+1,FIND(" Gtd",PS[[#This Row],[Game]])-FIND(", $",PS[[#This Row],[Game]])-1),"$",""),".",""),"K","000"))),"") ->  | M3: =IF(PS[[#This Row],[Game]]="","",IF(COUNTIF(PS[[#This Row],[Game]],"*Sit&Go*"),"S","M")) ->  | N3: =IF(PS[[#This Row],[Game]]="","",IF(OR(COUNTIF(PS[[#This Row],[Game]],"*Turbo*"),COUNTIF(PS[[#This Row],[Game]],"*Hot*")),"T",IF(COUNTIF(PS[[#This Row],[Game]],"*Bubble Rush*"),"T","R"))) ->  | O3: =IF(PS[[#This Row],[Game]]="","",IF(OR(COUNTIF(PS[[#This Row],[Game]],"*Bounty Builder*"),COUNTIF(PS[[#This Row],[Game]],"*KO*")),"K","")) ->  | P3: =IF(PS[[#This Row],[Game]]="","",IF(OR(COUNTIF(PS[[#This Row],[Game]],"*Rebuy*"),COUNTIF(PS[[#This Row],[Game]],"*+R*")),"R","")) ->  | Q3: =IF(PS[[#This Row],[Game]]="","",IF(COUNTIF(PS[[#This Row],[Game]],"*Zoom*"),"Z","")) ->  | R3: =IF(PS[[#This Row],[Date]]="","",DATE(YEAR(VALUE(PS[[#This Row],[Date]])),MONTH(VALUE(PS[[#This Row],[Date]])),DAY(VALUE(PS[[#This Row],[Date]])))) ->  | S3: =IF(PS[[#This Row],[Date]]="","",TIME(HOUR(VALUE(PS[[#This Row],[Date]])),MINUTE(VALUE(PS[[#This Row],[Date]])),SECOND(PS[[#This Row],[Date]]))) ->  | T3: =IFERROR(VALUE(SUBSTITUTE(PS[[#This Row],[Amount]],".",",")),"") ->  | U3: =IFERROR(VALUE(SUBSTITUTE(PS[[#This Row],[Balance]],".",",")),"") -> 
B4: =IF(PS[[#This Row],[Date]]="","",IFERROR(WEEKNUM(PS[[#This Row],[Date]],2),"")) -> 44 | C4: =IF(PS[[#This Row],[Date]]="","",IFERROR(CHOOSE(WEEKDAY(PS[[#This Row],[Date]],2),"понедельник","вторник","среда","четверг","пятница","суббота","воскресенье"),"")) -> пятница | D4: =IF(PS[[#This Row],[Date]]="","",TEXT(PS[[#This Row],[Date]],"mmmm")) -> ноябрь | E4: 2019/11/01 3:20 AM | F4: Tournament Registration | G4: 2726460031 | H4: NL Hold'em Sit&Go Buy-In: 0.45/0.05 $0.50 NL Hold'em [45 Players, Turbo] | I4: (0.50) | J4: 24.93 | K4: =SUBSTITUTE(SUBSTITUTE(SUBSTITUTE(IFERROR(IF(PS[[#This Row],[Y]]="S",MID(PS[[#This Row],[Game]],FIND("[",PS[[#This Row],[Game]]),FIND("]",PS[[#This Row],[Game]])-FIND("[",PS[[#This Row],[Game]])+1),LEFT(LEFT(RIGHT(PS[[#This Row],[Game]],((LEN(PS[[#This Row],[Game]]))-( FIND("*",SUBSTITUTE(PS[[#This Row],[Game]]," ","*",4))))),( FIND("*",SUBSTITUTE(RIGHT(PS[[#This Row],[Game]],((LEN(PS[[#This Row],[Game]]))-( FIND("*",SUBSTITUTE(PS[[#This Row],[Game]]," ","*",4))))),", $","*",1)))),LEN(LEFT(RIGHT(PS[[#This Row],[Game]],((LEN(PS[[#This Row],[Game]]))-( FIND("*",SUBSTITUTE(PS[[#This Row],[Game]]," ","*",4))))),( FIND("*",SUBSTITUTE(RIGHT(PS[[#This Row],[Game]],((LEN(PS[[#This Row],[Game]]))-( FIND("*",SUBSTITUTE(PS[[#This Row],[Game]]," ","*",4))))),", $","*",1)))))-1)),"")," [Saturday Special]",""),"ger",""),"ter","") -> [45 Players, Turbo] | L4: =IFERROR(IF(PS[[#This Row],[Y]]="S","",IF(IF(NOT(ISERR(FIND(".",SUBSTITUTE(MID(PS[[#This Row],[Game]],FIND(", $",PS[[#This Row],[Game]])+1,FIND(" Gtd",PS[[#This Row],[Game]])-FIND(", $",PS[[#This Row],[Game]])-1),"$","")))),1,0)=1,SUBSTITUTE(SUBSTITUTE(SUBSTITUTE(MID(PS[[#This Row],[Game]],FIND(", $",PS[[#This Row],[Game]])+1,FIND(" Gtd",PS[[#This Row],[Game]])-FIND(", $",PS[[#This Row],[Game]])-1),"$",""),".",""),"K","00"),SUBSTITUTE(SUBSTITUTE(SUBSTITUTE(MID(PS[[#This Row],[Game]],FIND(", $",PS[[#This Row],[Game]])+1,FIND(" Gtd",PS[[#This Row],[Game]])-FIND(", $",PS[[#This Row],[Game]])-1),"$",""),".",""),"K","000"))),"") ->  | M4: =IF(PS[[#This Row],[Game]]="","",IF(COUNTIF(PS[[#This Row],[Game]],"*Sit&Go*"),"S","M")) -> S | N4: =IF(PS[[#This Row],[Game]]="","",IF(OR(COUNTIF(PS[[#This Row],[Game]],"*Turbo*"),COUNTIF(PS[[#This Row],[Game]],"*Hot*")),"T",IF(COUNTIF(PS[[#This Row],[Game]],"*Bubble Rush*"),"T","R"))) -> T | O4: =IF(PS[[#This Row],[Game]]="","",IF(OR(COUNTIF(PS[[#This Row],[Game]],"*Bounty Builder*"),COUNTIF(PS[[#This Row],[Game]],"*KO*")),"K","")) ->  | P4: =IF(PS[[#This Row],[Game]]="","",IF(OR(COUNTIF(PS[[#This Row],[Game]],"*Rebuy*"),COUNTIF(PS[[#This Row],[Game]],"*+R*")),"R","")) ->  | Q4: =IF(PS[[#This Row],[Game]]="","",IF(COUNTIF(PS[[#This Row],[Game]],"*Zoom*"),"Z","")) ->  | R4: =IF(PS[[#This Row],[Date]]="","",DATE(YEAR(VALUE(PS[[#This Row],[Date]])),MONTH(VALUE(PS[[#This Row],[Date]])),DAY(VALUE(PS[[#This Row],[Date]])))) -> 2019-11-01 | S4: =IF(PS[[#This Row],[Date]]="","",TIME(HOUR(VALUE(PS[[#This Row],[Date]])),MINUTE(VALUE(PS[[#This Row],[Date]])),SECOND(PS[[#This Row],[Date]]))) -> 03:20:00 | T4: =IFERROR(VALUE(SUBSTITUTE(PS[[#This Row],[Amount]],".",",")),"") -> -0.5 | U4: =IFERROR(VALUE(SUBSTITUTE(PS[[#This Row],[Balance]],".",",")),"") -> 24.93
B5: =IF(PS[[#This Row],[Date]]="","",IFERROR(WEEKNUM(PS[[#This Row],[Date]],2),"")) -> 44 | C5: =IF(PS[[#This Row],[Date]]="","",IFERROR(CHOOSE(WEEKDAY(PS[[#This Row],[Date]],2),"понедельник","вторник","среда","четверг","пятница","суббота","воскресенье"),"")) -> пятница | D5: =IF(PS[[#This Row],[Date]]="","",TEXT(PS[[#This Row],[Date]],"mmmm")) -> ноябрь | E5: 2019/11/01 3:20 AM | F5: Tournament Registration | G5: 2726446669 | H5: NL Hold'em Sit&Go Buy-In: 0.91/0.09 $1.00 NL Hold'em [45 Players] | I5: (1.00) | J5: 23.93 | K5: =SUBSTITUTE(SUBSTITUTE(SUBSTITUTE(IFERROR(IF(PS[[#This Row],[Y]]="S",MID(PS[[#This Row],[Game]],FIND("[",PS[[#This Row],[Game]]),FIND("]",PS[[#This Row],[Game]])-FIND("[",PS[[#This Row],[Game]])+1),LEFT(LEFT(RIGHT(PS[[#This Row],[Game]],((LEN(PS[[#This Row],[Game]]))-( FIND("*",SUBSTITUTE(PS[[#This Row],[Game]]," ","*",4))))),( FIND("*",SUBSTITUTE(RIGHT(PS[[#This Row],[Game]],((LEN(PS[[#This Row],[Game]]))-( FIND("*",SUBSTITUTE(PS[[#This Row],[Game]]," ","*",4))))),", $","*",1)))),LEN(LEFT(RIGHT(PS[[#This Row],[Game]],((LEN(PS[[#This Row],[Game]]))-( FIND("*",SUBSTITUTE(PS[[#This Row],[Game]]," ","*",4))))),( FIND("*",SUBSTITUTE(RIGHT(PS[[#This Row],[Game]],((LEN(PS[[#This Row],[Game]]))-( FIND("*",SUBSTITUTE(PS[[#This Row],[Game]]," ","*",4))))),", $","*",1)))))-1)),"")," [Saturday Special]",""),"ger",""),"ter","") -> [45 Players] | L5: =IFERROR(IF(PS[[#This Row],[Y]]="S","",IF(IF(NOT(ISERR(FIND(".",SUBSTITUTE(MID(PS[[#This Row],[Game]],FIND(", $",PS[[#This Row],[Game]])+1,FIND(" Gtd",PS[[#This Row],[Game]])-FIND(", $",PS[[#This Row],[Game]])-1),"$","")))),1,0)=1,SUBSTITUTE(SUBSTITUTE(SUBSTITUTE(MID(PS[[#This Row],[Game]],FIND(", $",PS[[#This Row],[Game]])+1,FIND(" Gtd",PS[[#This Row],[Game]])-FIND(", $",PS[[#This Row],[Game]])-1),"$",""),".",""),"K","00"),SUBSTITUTE(SUBSTITUTE(SUBSTITUTE(MID(PS[[#This Row],[Game]],FIND(", $",PS[[#This Row],[Game]])+1,FIND(" Gtd",PS[[#This Row],[Game]])-FIND(", $",PS[[#This Row],[Game]])-1),"$",""),".",""),"K","000"))),"") ->  | M5: =IF(PS[[#This Row],[Game]]="","",IF(COUNTIF(PS[[#This Row],[Game]],"*Sit&Go*"),"S","M")) -> S | N5: =IF(PS[[#This Row],[Game]]="","",IF(OR(COUNTIF(PS[[#This Row],[Game]],"*Turbo*"),COUNTIF(PS[[#This Row],[Game]],"*Hot*")),"T",IF(COUNTIF(PS[[#This Row],[Game]],"*Bubble Rush*"),"T","R"))) -> R | O5: =IF(PS[[#This Row],[Game]]="","",IF(OR(COUNTIF(PS[[#This Row],[Game]],"*Bounty Builder*"),COUNTIF(PS[[#This Row],[Game]],"*KO*")),"K","")) ->  | P5: =IF(PS[[#This Row],[Game]]="","",IF(OR(COUNTIF(PS[[#This Row],[Game]],"*Rebuy*"),COUNTIF(PS[[#This Row],[Game]],"*+R*")),"R","")) ->  | Q5: =IF(PS[[#This Row],[Game]]="","",IF(COUNTIF(PS[[#This Row],[Game]],"*Zoom*"),"Z","")) ->  | R5: =IF(PS[[#This Row],[Date]]="","",DATE(YEAR(VALUE(PS[[#This Row],[Date]])),MONTH(VALUE(PS[[#This Row],[Date]])),DAY(VALUE(PS[[#This Row],[Date]])))) -> 2019-11-01 | S5: =IF(PS[[#This Row],[Date]]="","",TIME(HOUR(VALUE(PS[[#This Row],[Date]])),MINUTE(VALUE(PS[[#This Row],[Date]])),SECOND(PS[[#This Row],[Date]]))) -> 03:20:00 | T5: =IFERROR(VALUE(SUBSTITUTE(PS[[#This Row],[Amount]],".",",")),"") -> -1 | U5: =IFERROR(VALUE(SUBSTITUTE(PS[[#This Row],[Balance]],".",",")),"") -> 23.93
B6: =IF(PS[[#This Row],[Date]]="","",IFERROR(WEEKNUM(PS[[#This Row],[Date]],2),"")) -> 44 | C6: =IF(PS[[#This Row],[Date]]="","",IFERROR(CHOOSE(WEEKDAY(PS[[#This Row],[Date]],2),"понедельник","вторник","среда","четверг","пятница","суббота","воскресенье"),"")) -> пятница | D6: =IF(PS[[#This Row],[Date]]="","",TEXT(PS[[#This Row],[Date]],"mmmm")) -> ноябрь | E6: 2019/11/01 3:20 AM | F6: Tournament Registration | G6: 2726183376 | H6: NL Hold'em Sit&Go Buy-In: 0.91/0.09 $1.00 NL Hold'em [180 Players] | I6: (1.00) | J6: 22.93 | K6: =SUBSTITUTE(SUBSTITUTE(SUBSTITUTE(IFERROR(IF(PS[[#This Row],[Y]]="S",MID(PS[[#This Row],[Game]],FIND("[",PS[[#This Row],[Game]]),FIND("]",PS[[#This Row],[Game]])-FIND("[",PS[[#This Row],[Game]])+1),LEFT(LEFT(RIGHT(PS[[#This Row],[Game]],((LEN(PS[[#This Row],[Game]]))-( FIND("*",SUBSTITUTE(PS[[#This Row],[Game]]," ","*",4))))),( FIND("*",SUBSTITUTE(RIGHT(PS[[#This Row],[Game]],((LEN(PS[[#This Row],[Game]]))-( FIND("*",SUBSTITUTE(PS[[#This Row],[Game]]," ","*",4))))),", $","*",1)))),LEN(LEFT(RIGHT(PS[[#This Row],[Game]],((LEN(PS[[#This Row],[Game]]))-( FIND("*",SUBSTITUTE(PS[[#This Row],[Game]]," ","*",4))))),( FIND("*",SUBSTITUTE(RIGHT(PS[[#This Row],[Game]],((LEN(PS[[#This Row],[Game]]))-( FIND("*",SUBSTITUTE(PS[[#This Row],[Game]]," ","*",4))))),", $","*",1)))))-1)),"")," [Saturday Special]",""),"ger",""),"ter","") -> [180 Players] | L6: =IFERROR(IF(PS[[#This Row],[Y]]="S","",IF(IF(NOT(ISERR(FIND(".",SUBSTITUTE(MID(PS[[#This Row],[Game]],FIND(", $",PS[[#This Row],[Game]])+1,FIND(" Gtd",PS[[#This Row],[Game]])-FIND(", $",PS[[#This Row],[Game]])-1),"$","")))),1,0)=1,SUBSTITUTE(SUBSTITUTE(SUBSTITUTE(MID(PS[[#This Row],[Game]],FIND(", $",PS[[#This Row],[Game]])+1,FIND(" Gtd",PS[[#This Row],[Game]])-FIND(", $",PS[[#This Row],[Game]])-1),"$",""),".",""),"K","00"),SUBSTITUTE(SUBSTITUTE(SUBSTITUTE(MID(PS[[#This Row],[Game]],FIND(", $",PS[[#This Row],[Game]])+1,FIND(" Gtd",PS[[#This Row],[Game]])-FIND(", $",PS[[#This Row],[Game]])-1),"$",""),".",""),"K","000"))),"") ->  | M6: =IF(PS[[#This Row],[Game]]="","",IF(COUNTIF(PS[[#This Row],[Game]],"*Sit&Go*"),"S","M")) -> S | N6: =IF(PS[[#This Row],[Game]]="","",IF(OR(COUNTIF(PS[[#This Row],[Game]],"*Turbo*"),COUNTIF(PS[[#This Row],[Game]],"*Hot*")),"T",IF(COUNTIF(PS[[#This Row],[Game]],"*Bubble Rush*"),"T","R"))) -> R | O6: =IF(PS[[#This Row],[Game]]="","",IF(OR(COUNTIF(PS[[#This Row],[Game]],"*Bounty Builder*"),COUNTIF(PS[[#This Row],[Game]],"*KO*")),"K","")) ->  | P6: =IF(PS[[#This Row],[Game]]="","",IF(OR(COUNTIF(PS[[#This Row],[Game]],"*Rebuy*"),COUNTIF(PS[[#This Row],[Game]],"*+R*")),"R","")) ->  | Q6: =IF(PS[[#This Row],[Game]]="","",IF(COUNTIF(PS[[#This Row],[Game]],"*Zoom*"),"Z","")) ->  | R6: =IF(PS[[#This Row],[Date]]="","",DATE(YEAR(VALUE(PS[[#This Row],[Date]])),MONTH(VALUE(PS[[#This Row],[Date]])),DAY(VALUE(PS[[#This Row],[Date]])))) -> 2019-11-01 | S6: =IF(PS[[#This Row],[Date]]="","",TIME(HOUR(VALUE(PS[[#This Row],[Date]])),MINUTE(VALUE(PS[[#This Row],[Date]])),SECOND(PS[[#This Row],[Date]]))) -> 03:20:00 | T6: =IFERROR(VALUE(SUBSTITUTE(PS[[#This Row],[Amount]],".",",")),"") -> -1 | U6: =IFERROR(VALUE(SUBSTITUTE(PS[[#This Row],[Balance]],".",",")),"") -> 22.93
B7: =IF(PS[[#This Row],[Date]]="","",IFERROR(WEEKNUM(PS[[#This Row],[Date]],2),"")) -> 44 | C7: =IF(PS[[#This Row],[Date]]="","",IFERROR(CHOOSE(WEEKDAY(PS[[#This Row],[Date]],2),"понедельник","вторник","среда","четверг","пятница","суббота","воскресенье"),"")) -> пятница | D7: =IF(PS[[#This Row],[Date]]="","",TEXT(PS[[#This Row],[Date]],"mmmm")) -> ноябрь | E7: 2019/11/01 3:26 AM | F7: Tournament Registration | G7: 2726463237 | H7: NL Hold'em Sit&Go Buy-In: 0.91/0.09 $1.00 NL Hold'em [45 Players] | I7: (1.00) | J7: 21.93 | K7: =SUBSTITUTE(SUBSTITUTE(SUBSTITUTE(IFERROR(IF(PS[[#This Row],[Y]]="S",MID(PS[[#This Row],[Game]],FIND("[",PS[[#This Row],[Game]]),FIND("]",PS[[#This Row],[Game]])-FIND("[",PS[[#This Row],[Game]])+1),LEFT(LEFT(RIGHT(PS[[#This Row],[Game]],((LEN(PS[[#This Row],[Game]]))-( FIND("*",SUBSTITUTE(PS[[#This Row],[Game]]," ","*",4))))),( FIND("*",SUBSTITUTE(RIGHT(PS[[#This Row],[Game]],((LEN(PS[[#This Row],[Game]]))-( FIND("*",SUBSTITUTE(PS[[#This Row],[Game]]," ","*",4))))),", $","*",1)))),LEN(LEFT(RIGHT(PS[[#This Row],[Game]],((LEN(PS[[#This Row],[Game]]))-( FIND("*",SUBSTITUTE(PS[[#This Row],[Game]]," ","*",4))))),( FIND("*",SUBSTITUTE(RIGHT(PS[[#This Row],[Game]],((LEN(PS[[#This Row],[Game]]))-( FIND("*",SUBSTITUTE(PS[[#This Row],[Game]]," ","*",4))))),", $","*",1)))))-1)),"")," [Saturday Special]",""),"ger",""),"ter","") -> [45 Players] | L7: =IFERROR(IF(PS[[#This Row],[Y]]="S","",IF(IF(NOT(ISERR(FIND(".",SUBSTITUTE(MID(PS[[#This Row],[Game]],FIND(", $",PS[[#This Row],[Game]])+1,FIND(" Gtd",PS[[#This Row],[Game]])-FIND(", $",PS[[#This Row],[Game]])-1),"$","")))),1,0)=1,SUBSTITUTE(SUBSTITUTE(SUBSTITUTE(MID(PS[[#This Row],[Game]],FIND(", $",PS[[#This Row],[Game]])+1,FIND(" Gtd",PS[[#This Row],[Game]])-FIND(", $",PS[[#This Row],[Game]])-1),"$",""),".",""),"K","00"),SUBSTITUTE(SUBSTITUTE(SUBSTITUTE(MID(PS[[#This Row],[Game]],FIND(", $",PS[[#This Row],[Game]])+1,FIND(" Gtd",PS[[#This Row],[Game]])-FIND(", $",PS[[#This Row],[Game]])-1),"$",""),".",""),"K","000"))),"") ->  | M7: =IF(PS[[#This Row],[Game]]="","",IF(COUNTIF(PS[[#This Row],[Game]],"*Sit&Go*"),"S","M")) -> S | N7: =IF(PS[[#This Row],[Game]]="","",IF(OR(COUNTIF(PS[[#This Row],[Game]],"*Turbo*"),COUNTIF(PS[[#This Row],[Game]],"*Hot*")),"T",IF(COUNTIF(PS[[#This Row],[Game]],"*Bubble Rush*"),"T","R"))) -> R | O7: =IF(PS[[#This Row],[Game]]="","",IF(OR(COUNTIF(PS[[#This Row],[Game]],"*Bounty Builder*"),COUNTIF(PS[[#This Row],[Game]],"*KO*")),"K","")) ->  | P7: =IF(PS[[#This Row],[Game]]="","",IF(OR(COUNTIF(PS[[#This Row],[Game]],"*Rebuy*"),COUNTIF(PS[[#This Row],[Game]],"*+R*")),"R","")) ->  | Q7: =IF(PS[[#This Row],[Game]]="","",IF(COUNTIF(PS[[#This Row],[Game]],"*Zoom*"),"Z","")) ->  | R7: =IF(PS[[#This Row],[Date]]="","",DATE(YEAR(VALUE(PS[[#This Row],[Date]])),MONTH(VALUE(PS[[#This Row],[Date]])),DAY(VALUE(PS[[#This Row],[Date]])))) -> 2019-11-01 | S7: =IF(PS[[#This Row],[Date]]="","",TIME(HOUR(VALUE(PS[[#This Row],[Date]])),MINUTE(VALUE(PS[[#This Row],[Date]])),SECOND(PS[[#This Row],[Date]]))) -> 03:26:00 | T7: =IFERROR(VALUE(SUBSTITUTE(PS[[#This Row],[Amount]],".",",")),"") -> -1 | U7: =IFERROR(VALUE(SUBSTITUTE(PS[[#This Row],[Balance]],".",",")),"") -> 21.93
B8: =IF(PS[[#This Row],[Date]]="","",IFERROR(WEEKNUM(PS[[#This Row],[Date]],2),"")) -> 44 | C8: =IF(PS[[#This Row],[Date]]="","",IFERROR(CHOOSE(WEEKDAY(PS[[#This Row],[Date]],2),"понедельник","вторник","среда","четверг","пятница","суббота","воскресенье"),"")) -> пятница | D8: =IF(PS[[#This Row],[Date]]="","",TEXT(PS[[#This Row],[Date]],"mmmm")) -> ноябрь | E8: 2019/11/01 3:27 AM | F8: Tournament Registration | G8: 2726463668 | H8: NL Hold'em Sit&Go Buy-In: 0.45/0.05 $0.50 NL Hold'em [45 Players, Turbo] | I8: (0.50) | J8: 21.43 | K8: =SUBSTITUTE(SUBSTITUTE(SUBSTITUTE(IFERROR(IF(PS[[#This Row],[Y]]="S",MID(PS[[#This Row],[Game]],FIND("[",PS[[#This Row],[Game]]),FIND("]",PS[[#This Row],[Game]])-FIND("[",PS[[#This Row],[Game]])+1),LEFT(LEFT(RIGHT(PS[[#This Row],[Game]],((LEN(PS[[#This Row],[Game]]))-( FIND("*",SUBSTITUTE(PS[[#This Row],[Game]]," ","*",4))))),( FIND("*",SUBSTITUTE(RIGHT(PS[[#This Row],[Game]],((LEN(PS[[#This Row],[Game]]))-( FIND("*",SUBSTITUTE(PS[[#This Row],[Game]]," ","*",4))))),", $","*",1)))),LEN(LEFT(RIGHT(PS[[#This Row],[Game]],((LEN(PS[[#This Row],[Game]]))-( FIND("*",SUBSTITUTE(PS[[#This Row],[Game]]," ","*",4))))),( FIND("*",SUBSTITUTE(RIGHT(PS[[#This Row],[Game]],((LEN(PS[[#This Row],[Game]]))-( FIND("*",SUBSTITUTE(PS[[#This Row],[Game]]," ","*",4))))),", $","*",1)))))-1)),"")," [Saturday Special]",""),"ger",""),"ter","") -> [45 Players, Turbo] | L8: =IFERROR(IF(PS[[#This Row],[Y]]="S","",IF(IF(NOT(ISERR(FIND(".",SUBSTITUTE(MID(PS[[#This Row],[Game]],FIND(", $",PS[[#This Row],[Game]])+1,FIND(" Gtd",PS[[#This Row],[Game]])-FIND(", $",PS[[#This Row],[Game]])-1),"$","")))),1,0)=1,SUBSTITUTE(SUBSTITUTE(SUBSTITUTE(MID(PS[[#This Row],[Game]],FIND(", $",PS[[#This Row],[Game]])+1,FIND(" Gtd",PS[[#This Row],[Game]])-FIND(", $",PS[[#This Row],[Game]])-1),"$",""),".",""),"K","00"),SUBSTITUTE(SUBSTITUTE(SUBSTITUTE(MID(PS[[#This Row],[Game]],FIND(", $",PS[[#This Row],[Game]])+1,FIND(" Gtd",PS[[#This Row],[Game]])-FIND(", $",PS[[#This Row],[Game]])-1),"$",""),".",""),"K","000"))),"") ->  | M8: =IF(PS[[#This Row],[Game]]="","",IF(COUNTIF(PS[[#This Row],[Game]],"*Sit&Go*"),"S","M")) -> S | N8: =IF(PS[[#This Row],[Game]]="","",IF(OR(COUNTIF(PS[[#This Row],[Game]],"*Turbo*"),COUNTIF(PS[[#This Row],[Game]],"*Hot*")),"T",IF(COUNTIF(PS[[#This Row],[Game]],"*Bubble Rush*"),"T","R"))) -> T | O8: =IF(PS[[#This Row],[Game]]="","",IF(OR(COUNTIF(PS[[#This Row],[Game]],"*Bounty Builder*"),COUNTIF(PS[[#This Row],[Game]],"*KO*")),"K","")) ->  | P8: =IF(PS[[#This Row],[Game]]="","",IF(OR(COUNTIF(PS[[#This Row],[Game]],"*Rebuy*"),COUNTIF(PS[[#This Row],[Game]],"*+R*")),"R","")) ->  | Q8: =IF(PS[[#This Row],[Game]]="","",IF(COUNTIF(PS[[#This Row],[Game]],"*Zoom*"),"Z","")) ->  | R8: =IF(PS[[#This Row],[Date]]="","",DATE(YEAR(VALUE(PS[[#This Row],[Date]])),MONTH(VALUE(PS[[#This Row],[Date]])),DAY(VALUE(PS[[#This Row],[Date]])))) -> 2019-11-01 | S8: =IF(PS[[#This Row],[Date]]="","",TIME(HOUR(VALUE(PS[[#This Row],[Date]])),MINUTE(VALUE(PS[[#This Row],[Date]])),SECOND(PS[[#This Row],[Date]]))) -> 03:27:00 | T8: =IFERROR(VALUE(SUBSTITUTE(PS[[#This Row],[Amount]],".",",")),"") -> -0.5 | U8: =IFERROR(VALUE(SUBSTITUTE(PS[[#This Row],[Balance]],".",",")),"") -> 21.43
B9: =IF(PS[[#This Row],[Date]]="","",IFERROR(WEEKNUM(PS[[#This Row],[Date]],2),"")) -> 44 | C9: =IF(PS[[#This Row],[Date]]="","",IFERROR(CHOOSE(WEEKDAY(PS[[#This Row],[Date]],2),"понедельник","вторник","среда","четверг","пятница","суббота","воскресенье"),"")) -> пятница | D9: =IF(PS[[#This Row],[Date]]="","",TEXT(PS[[#This Row],[Date]],"mmmm")) -> ноябрь | E9: 2019/11/01 3:36 AM | F9: Tournament Registration | G9: 2726466655 | H9: NL Hold'em Sit&Go Buy-In: 0.45/0.05 $0.50 NL Hold'em [45 Players, Turbo] | I9: (0.50) | J9: 20.93 | K9: =SUBSTITUTE(SUBSTITUTE(SUBSTITUTE(IFERROR(IF(PS[[#This Row],[Y]]="S",MID(PS[[#This Row],[Game]],FIND("[",PS[[#This Row],[Game]]),FIND("]",PS[[#This Row],[Game]])-FIND("[",PS[[#This Row],[Game]])+1),LEFT(LEFT(RIGHT(PS[[#This Row],[Game]],((LEN(PS[[#This Row],[Game]]))-( FIND("*",SUBSTITUTE(PS[[#This Row],[Game]]," ","*",4))))),( FIND("*",SUBSTITUTE(RIGHT(PS[[#This Row],[Game]],((LEN(PS[[#This Row],[Game]]))-( FIND("*",SUBSTITUTE(PS[[#This Row],[Game]]," ","*",4))))),", $","*",1)))),LEN(LEFT(RIGHT(PS[[#This Row],[Game]],((LEN(PS[[#This Row],[Game]]))-( FIND("*",SUBSTITUTE(PS[[#This Row],[Game]]," ","*",4))))),( FIND("*",SUBSTITUTE(RIGHT(PS[[#This Row],[Game]],((LEN(PS[[#This Row],[Game]]))-( FIND("*",SUBSTITUTE(PS[[#This Row],[Game]]," ","*",4))))),", $","*",1)))))-1)),"")," [Saturday Special]",""),"ger",""),"ter","") -> [45 Players, Turbo] | L9: =IFERROR(IF(PS[[#This Row],[Y]]="S","",IF(IF(NOT(ISERR(FIND(".",SUBSTITUTE(MID(PS[[#This Row],[Game]],FIND(", $",PS[[#This Row],[Game]])+1,FIND(" Gtd",PS[[#This Row],[Game]])-FIND(", $",PS[[#This Row],[Game]])-1),"$","")))),1,0)=1,SUBSTITUTE(SUBSTITUTE(SUBSTITUTE(MID(PS[[#This Row],[Game]],FIND(", $",PS[[#This Row],[Game]])+1,FIND(" Gtd",PS[[#This Row],[Game]])-FIND(", $",PS[[#This Row],[Game]])-1),"$",""),".",""),"K","00"),SUBSTITUTE(SUBSTITUTE(SUBSTITUTE(MID(PS[[#This Row],[Game]],FIND(", $",PS[[#This Row],[Game]])+1,FIND(" Gtd",PS[[#This Row],[Game]])-FIND(", $",PS[[#This Row],[Game]])-1),"$",""),".",""),"K","000"))),"") ->  | M9: =IF(PS[[#This Row],[Game]]="","",IF(COUNTIF(PS[[#This Row],[Game]],"*Sit&Go*"),"S","M")) -> S | N9: =IF(PS[[#This Row],[Game]]="","",IF(OR(COUNTIF(PS[[#This Row],[Game]],"*Turbo*"),COUNTIF(PS[[#This Row],[Game]],"*Hot*")),"T",IF(COUNTIF(PS[[#This Row],[Game]],"*Bubble Rush*"),"T","R"))) -> T | O9: =IF(PS[[#This Row],[Game]]="","",IF(OR(COUNTIF(PS[[#This Row],[Game]],"*Bounty Builder*"),COUNTIF(PS[[#This Row],[Game]],"*KO*")),"K","")) ->  | P9: =IF(PS[[#This Row],[Game]]="","",IF(OR(COUNTIF(PS[[#This Row],[Game]],"*Rebuy*"),COUNTIF(PS[[#This Row],[Game]],"*+R*")),"R","")) ->  | Q9: =IF(PS[[#This Row],[Game]]="","",IF(COUNTIF(PS[[#This Row],[Game]],"*Zoom*"),"Z","")) ->  | R9: =IF(PS[[#This Row],[Date]]="","",DATE(YEAR(VALUE(PS[[#This Row],[Date]])),MONTH(VALUE(PS[[#This Row],[Date]])),DAY(VALUE(PS[[#This Row],[Date]])))) -> 2019-11-01 | S9: =IF(PS[[#This Row],[Date]]="","",TIME(HOUR(VALUE(PS[[#This Row],[Date]])),MINUTE(VALUE(PS[[#This Row],[Date]])),SECOND(PS[[#This Row],[Date]]))) -> 03:36:00 | T9: =IFERROR(VALUE(SUBSTITUTE(PS[[#This Row],[Amount]],".",",")),"") -> -0.5 | U9: =IFERROR(VALUE(SUBSTITUTE(PS[[#This Row],[Balance]],".",",")),"") -> 20.93
B10: =IF(PS[[#This Row],[Date]]="","",IFERROR(WEEKNUM(PS[[#This Row],[Date]],2),"")) -> 44 | C10: =IF(PS[[#This Row],[Date]]="","",IFERROR(CHOOSE(WEEKDAY(PS[[#This Row],[Date]],2),"понедельник","вторник","среда","четверг","пятница","суббота","воскресенье"),"")) -> пятница | D10: =IF(PS[[#This Row],[Date]]="","",TEXT(PS[[#This Row],[Date]],"mmmm")) -> ноябрь | E10: 2019/11/01 3:48 AM | F10: Tournament Registration | G10: 2726470610 | H10: NL Hold'em Sit&Go Buy-In: 0.45/0.05 $0.50 NL Hold'em [45 Players, Turbo] | I10: (0.50) | J10: 20.43 | K10: =SUBSTITUTE(SUBSTITUTE(SUBSTITUTE(IFERROR(IF(PS[[#This Row],[Y]]="S",MID(PS[[#This Row],[Game]],FIND("[",PS[[#This Row],[Game]]),FIND("]",PS[[#This Row],[Game]])-FIND("[",PS[[#This Row],[Game]])+1),LEFT(LEFT(RIGHT(PS[[#This Row],[Game]],((LEN(PS[[#This Row],[Game]]))-( FIND("*",SUBSTITUTE(PS[[#This Row],[Game]]," ","*",4))))),( FIND("*",SUBSTITUTE(RIGHT(PS[[#This Row],[Game]],((LEN(PS[[#This Row],[Game]]))-( FIND("*",SUBSTITUTE(PS[[#This Row],[Game]]," ","*",4))))),", $","*",1)))),LEN(LEFT(RIGHT(PS[[#This Row],[Game]],((LEN(PS[[#This Row],[Game]]))-( FIND("*",SUBSTITUTE(PS[[#This Row],[Game]]," ","*",4))))),( FIND("*",SUBSTITUTE(RIGHT(PS[[#This Row],[Game]],((LEN(PS[[#This Row],[Game]]))-( FIND("*",SUBSTITUTE(PS[[#This Row],[Game]]," ","*",4))))),", $","*",1)))))-1)),"")," [Saturday Special]",""),"ger",""),"ter","") -> [45 Players, Turbo] | L10: =IFERROR(IF(PS[[#This Row],[Y]]="S","",IF(IF(NOT(ISERR(FIND(".",SUBSTITUTE(MID(PS[[#This Row],[Game]],FIND(", $",PS[[#This Row],[Game]])+1,FIND(" Gtd",PS[[#This Row],[Game]])-FIND(", $",PS[[#This Row],[Game]])-1),"$","")))),1,0)=1,SUBSTITUTE(SUBSTITUTE(SUBSTITUTE(MID(PS[[#This Row],[Game]],FIND(", $",PS[[#This Row],[Game]])+1,FIND(" Gtd",PS[[#This Row],[Game]])-FIND(", $",PS[[#This Row],[Game]])-1),"$",""),".",""),"K","00"),SUBSTITUTE(SUBSTITUTE(SUBSTITUTE(MID(PS[[#This Row],[Game]],FIND(", $",PS[[#This Row],[Game]])+1,FIND(" Gtd",PS[[#This Row],[Game]])-FIND(", $",PS[[#This Row],[Game]])-1),"$",""),".",""),"K","000"))),"") ->  | M10: =IF(PS[[#This Row],[Game]]="","",IF(COUNTIF(PS[[#This Row],[Game]],"*Sit&Go*"),"S","M")) -> S | N10: =IF(PS[[#This Row],[Game]]="","",IF(OR(COUNTIF(PS[[#This Row],[Game]],"*Turbo*"),COUNTIF(PS[[#This Row],[Game]],"*Hot*")),"T",IF(COUNTIF(PS[[#This Row],[Game]],"*Bubble Rush*"),"T","R"))) -> T | O10: =IF(PS[[#This Row],[Game]]="","",IF(OR(COUNTIF(PS[[#This Row],[Game]],"*Bounty Builder*"),COUNTIF(PS[[#This Row],[Game]],"*KO*")),"K","")) ->  | P10: =IF(PS[[#This Row],[Game]]="","",IF(OR(COUNTIF(PS[[#This Row],[Game]],"*Rebuy*"),COUNTIF(PS[[#This Row],[Game]],"*+R*")),"R","")) ->  | Q10: =IF(PS[[#This Row],[Game]]="","",IF(COUNTIF(PS[[#This Row],[Game]],"*Zoom*"),"Z","")) ->  | R10: =IF(PS[[#This Row],[Date]]="","",DATE(YEAR(VALUE(PS[[#This Row],[Date]])),MONTH(VALUE(PS[[#This Row],[Date]])),DAY(VALUE(PS[[#This Row],[Date]])))) -> 2019-11-01 | S10: =IF(PS[[#This Row],[Date]]="","",TIME(HOUR(VALUE(PS[[#This Row],[Date]])),MINUTE(VALUE(PS[[#This Row],[Date]])),SECOND(PS[[#This Row],[Date]]))) -> 03:48:00 | T10: =IFERROR(VALUE(SUBSTITUTE(PS[[#This Row],[Amount]],".",",")),"") -> -0.5 | U10: =IFERROR(VALUE(SUBSTITUTE(PS[[#This Row],[Balance]],".",",")),"") -> 20.43
B11: =IF(PS[[#This Row],[Date]]="","",IFERROR(WEEKNUM(PS[[#This Row],[Date]],2),"")) -> 44 | C11: =IF(PS[[#This Row],[Date]]="","",IFERROR(CHOOSE(WEEKDAY(PS[[#This Row],[Date]],2),"понедельник","вторник","среда","четверг","пятница","суббота","воскресенье"),"")) -> пятница | D11: =IF(PS[[#This Row],[Date]]="","",TEXT(PS[[#This Row],[Date]],"mmmm")) -> ноябрь | E11: 2019/11/01 3:54 AM | F11: Tournament Registration | G11: 2721424761 | H11: NL Hold'em Buy-In: 0.98/0.12 $1.10 NLHE [6-Max, Turbo], $500 Gtd | I11: (1.10) | J11: 19.33 | K11: =SUBSTITUTE(SUBSTITUTE(SUBSTITUTE(IFERROR(IF(PS[[#This Row],[Y]]="S",MID(PS[[#This Row],[Game]],FIND("[",PS[[#This Row],[Game]]),FIND("]",PS[[#This Row],[Game]])-FIND("[",PS[[#This Row],[Game]])+1),LEFT(LEFT(RIGHT(PS[[#This Row],[Game]],((LEN(PS[[#This Row],[Game]]))-( FIND("*",SUBSTITUTE(PS[[#This Row],[Game]]," ","*",4))))),( FIND("*",SUBSTITUTE(RIGHT(PS[[#This Row],[Game]],((LEN(PS[[#This Row],[Game]]))-( FIND("*",SUBSTITUTE(PS[[#This Row],[Game]]," ","*",4))))),", $","*",1)))),LEN(LEFT(RIGHT(PS[[#This Row],[Game]],((LEN(PS[[#This Row],[Game]]))-( FIND("*",SUBSTITUTE(PS[[#This Row],[Game]]," ","*",4))))),( FIND("*",SUBSTITUTE(RIGHT(PS[[#This Row],[Game]],((LEN(PS[[#This Row],[Game]]))-( FIND("*",SUBSTITUTE(PS[[#This Row],[Game]]," ","*",4))))),", $","*",1)))))-1)),"")," [Saturday Special]",""),"ger",""),"ter","") -> $1.10 NLHE [6-Max, Turbo] | L11: =IFERROR(IF(PS[[#This Row],[Y]]="S","",IF(IF(NOT(ISERR(FIND(".",SUBSTITUTE(MID(PS[[#This Row],[Game]],FIND(", $",PS[[#This Row],[Game]])+1,FIND(" Gtd",PS[[#This Row],[Game]])-FIND(", $",PS[[#This Row],[Game]])-1),"$","")))),1,0)=1,SUBSTITUTE(SUBSTITUTE(SUBSTITUTE(MID(PS[[#This Row],[Game]],FIND(", $",PS[[#This Row],[Game]])+1,FIND(" Gtd",PS[[#This Row],[Game]])-FIND(", $",PS[[#This Row],[Game]])-1),"$",""),".",""),"K","00"),SUBSTITUTE(SUBSTITUTE(SUBSTITUTE(MID(PS[[#This Row],[Game]],FIND(", $",PS[[#This Row],[Game]])+1,FIND(" Gtd",PS[[#This Row],[Game]])-FIND(", $",PS[[#This Row],[Game]])-1),"$",""),".",""),"K","000"))),"") -> 500 | M11: =IF(PS[[#This Row],[Game]]="","",IF(COUNTIF(PS[[#This Row],[Game]],"*Sit&Go*"),"S","M")) -> M | N11: =IF(PS[[#This Row],[Game]]="","",IF(OR(COUNTIF(PS[[#This Row],[Game]],"*Turbo*"),COUNTIF(PS[[#This Row],[Game]],"*Hot*")),"T",IF(COUNTIF(PS[[#This Row],[Game]],"*Bubble Rush*"),"T","R"))) -> T | O11: =IF(PS[[#This Row],[Game]]="","",IF(OR(COUNTIF(PS[[#This Row],[Game]],"*Bounty Builder*"),COUNTIF(PS[[#This Row],[Game]],"*KO*")),"K","")) ->  | P11: =IF(PS[[#This Row],[Game]]="","",IF(OR(COUNTIF(PS[[#This Row],[Game]],"*Rebuy*"),COUNTIF(PS[[#This Row],[Game]],"*+R*")),"R","")) ->  | Q11: =IF(PS[[#This Row],[Game]]="","",IF(COUNTIF(PS[[#This Row],[Game]],"*Zoom*"),"Z","")) ->  | R11: =IF(PS[[#This Row],[Date]]="","",DATE(YEAR(VALUE(PS[[#This Row],[Date]])),MONTH(VALUE(PS[[#This Row],[Date]])),DAY(VALUE(PS[[#This Row],[Date]])))) -> 2019-11-01 | S11: =IF(PS[[#This Row],[Date]]="","",TIME(HOUR(VALUE(PS[[#This Row],[Date]])),MINUTE(VALUE(PS[[#This Row],[Date]])),SECOND(PS[[#This Row],[Date]]))) -> 03:54:00 | T11: =IFERROR(VALUE(SUBSTITUTE(PS[[#This Row],[Amount]],".",",")),"") -> -1.1 | U11: =IFERROR(VALUE(SUBSTITUTE(PS[[#This Row],[Balance]],".",",")),"") -> 19.33
B12: =IF(PS[[#This Row],[Date]]="","",IFERROR(WEEKNUM(PS[[#This Row],[Date]],2),"")) -> 44 | C12: =IF(PS[[#This Row],[Date]]="","",IFERROR(CHOOSE(WEEKDAY(PS[[#This Row],[Date]],2),"понедельник","вторник","среда","четверг","пятница","суббота","воскресенье"),"")) -> пятница | D12: =IF(PS[[#This Row],[Date]]="","",TEXT(PS[[#This Row],[Date]],"mmmm")) -> ноябрь | E12: 2019/11/01 4:03 AM | F12: Tournament Registration | G12: 2726475676 | H12: NL Hold'em Sit&Go Buy-In: 0.45/0.05 $0.50 NL Hold'em [45 Players, Turbo] | I12: (0.50) | J12: 18.83 | K12: =SUBSTITUTE(SUBSTITUTE(SUBSTITUTE(IFERROR(IF(PS[[#This Row],[Y]]="S",MID(PS[[#This Row],[Game]],FIND("[",PS[[#This Row],[Game]]),FIND("]",PS[[#This Row],[Game]])-FIND("[",PS[[#This Row],[Game]])+1),LEFT(LEFT(RIGHT(PS[[#This Row],[Game]],((LEN(PS[[#This Row],[Game]]))-( FIND("*",SUBSTITUTE(PS[[#This Row],[Game]]," ","*",4))))),( FIND("*",SUBSTITUTE(RIGHT(PS[[#This Row],[Game]],((LEN(PS[[#This Row],[Game]]))-( FIND("*",SUBSTITUTE(PS[[#This Row],[Game]]," ","*",4))))),", $","*",1)))),LEN(LEFT(RIGHT(PS[[#This Row],[Game]],((LEN(PS[[#This Row],[Game]]))-( FIND("*",SUBSTITUTE(PS[[#This Row],[Game]]," ","*",4))))),( FIND("*",SUBSTITUTE(RIGHT(PS[[#This Row],[Game]],((LEN(PS[[#This Row],[Game]]))-( FIND("*",SUBSTITUTE(PS[[#This Row],[Game]]," ","*",4))))),", $","*",1)))))-1)),"")," [Saturday Special]",""),"ger",""),"ter","") -> [45 Players, Turbo] | L12: =IFERROR(IF(PS[[#This Row],[Y]]="S","",IF(IF(NOT(ISERR(FIND(".",SUBSTITUTE(MID(PS[[#This Row],[Game]],FIND(", $",PS[[#This Row],[Game]])+1,FIND(" Gtd",PS[[#This Row],[Game]])-FIND(", $",PS[[#This Row],[Game]])-1),"$","")))),1,0)=1,SUBSTITUTE(SUBSTITUTE(SUBSTITUTE(MID(PS[[#This Row],[Game]],FIND(", $",PS[[#This Row],[Game]])+1,FIND(" Gtd",PS[[#This Row],[Game]])-FIND(", $",PS[[#This Row],[Game]])-1),"$",""),".",""),"K","00"),SUBSTITUTE(SUBSTITUTE(SUBSTITUTE(MID(PS[[#This Row],[Game]],FIND(", $",PS[[#This Row],[Game]])+1,FIND(" Gtd",PS[[#This Row],[Game]])-FIND(", $",PS[[#This Row],[Game]])-1),"$",""),".",""),"K","000"))),"") ->  | M12: =IF(PS[[#This Row],[Game]]="","",IF(COUNTIF(PS[[#This Row],[Game]],"*Sit&Go*"),"S","M")) -> S | N12: =IF(PS[[#This Row],[Game]]="","",IF(OR(COUNTIF(PS[[#This Row],[Game]],"*Turbo*"),COUNTIF(PS[[#This Row],[Game]],"*Hot*")),"T",IF(COUNTIF(PS[[#This Row],[Game]],"*Bubble Rush*"),"T","R"))) -> T | O12: =IF(PS[[#This Row],[Game]]="","",IF(OR(COUNTIF(PS[[#This Row],[Game]],"*Bounty Builder*"),COUNTIF(PS[[#This Row],[Game]],"*KO*")),"K","")) ->  | P12: =IF(PS[[#This Row],[Game]]="","",IF(OR(COUNTIF(PS[[#This Row],[Game]],"*Rebuy*"),COUNTIF(PS[[#This Row],[Game]],"*+R*")),"R","")) ->  | Q12: =IF(PS[[#This Row],[Game]]="","",IF(COUNTIF(PS[[#This Row],[Game]],"*Zoom*"),"Z","")) ->  | R12: =IF(PS[[#This Row],[Date]]="","",DATE(YEAR(VALUE(PS[[#This Row],[Date]])),MONTH(VALUE(PS[[#This Row],[Date]])),DAY(VALUE(PS[[#This Row],[Date]])))) -> 2019-11-01 | S12: =IF(PS[[#This Row],[Date]]="","",TIME(HOUR(VALUE(PS[[#This Row],[Date]])),MINUTE(VALUE(PS[[#This Row],[Date]])),SECOND(PS[[#This Row],[Date]]))) -> 04:03:00 | T12: =IFERROR(VALUE(SUBSTITUTE(PS[[#This Row],[Amount]],".",",")),"") -> -0.5 | U12: =IFERROR(VALUE(SUBSTITUTE(PS[[#This Row],[Balance]],".",",")),"") -> 18.83
B13: =IF(PS[[#This Row],[Date]]="","",IFERROR(WEEKNUM(PS[[#This Row],[Date]],2),"")) -> 44 | C13: =IF(PS[[#This Row],[Date]]="","",IFERROR(CHOOSE(WEEKDAY(PS[[#This Row],[Date]],2),"понедельник","вторник","среда","четверг","пятница","суббота","воскресенье"),"")) -> пятница | D13: =IF(PS[[#This Row],[Date]]="","",TEXT(PS[[#This Row],[Date]],"mmmm")) -> ноябрь | E13: 2019/11/01 4:13 AM | F13: Tournament Registration | G13: 2726479312 | H13: NL Hold'em Sit&Go Buy-In: 0.45/0.05 $0.50 NL Hold'em [45 Players, Turbo] | I13: (0.50) | J13: 18.33 | K13: =SUBSTITUTE(SUBSTITUTE(SUBSTITUTE(IFERROR(IF(PS[[#This Row],[Y]]="S",MID(PS[[#This Row],[Game]],FIND("[",PS[[#This Row],[Game]]),FIND("]",PS[[#This Row],[Game]])-FIND("[",PS[[#This Row],[Game]])+1),LEFT(LEFT(RIGHT(PS[[#This Row],[Game]],((LEN(PS[[#This Row],[Game]]))-( FIND("*",SUBSTITUTE(PS[[#This Row],[Game]]," ","*",4))))),( FIND("*",SUBSTITUTE(RIGHT(PS[[#This Row],[Game]],((LEN(PS[[#This Row],[Game]]))-( FIND("*",SUBSTITUTE(PS[[#This Row],[Game]]," ","*",4))))),", $","*",1)))),LEN(LEFT(RIGHT(PS[[#This Row],[Game]],((LEN(PS[[#This Row],[Game]]))-( FIND("*",SUBSTITUTE(PS[[#This Row],[Game]]," ","*",4))))),( FIND("*",SUBSTITUTE(RIGHT(PS[[#This Row],[Game]],((LEN(PS[[#This Row],[Game]]))-( FIND("*",SUBSTITUTE(PS[[#This Row],[Game]]," ","*",4))))),", $","*",1)))))-1)),"")," [Saturday Special]",""),"ger",""),"ter","") -> [45 Players, Turbo] | L13: =IFERROR(IF(PS[[#This Row],[Y]]="S","",IF(IF(NOT(ISERR(FIND(".",SUBSTITUTE(MID(PS[[#This Row],[Game]],FIND(", $",PS[[#This Row],[Game]])+1,FIND(" Gtd",PS[[#This Row],[Game]])-FIND(", $",PS[[#This Row],[Game]])-1),"$","")))),1,0)=1,SUBSTITUTE(SUBSTITUTE(SUBSTITUTE(MID(PS[[#This Row],[Game]],FIND(", $",PS[[#This Row],[Game]])+1,FIND(" Gtd",PS[[#This Row],[Game]])-FIND(", $",PS[[#This Row],[Game]])-1),"$",""),".",""),"K","00"),SUBSTITUTE(SUBSTITUTE(SUBSTITUTE(MID(PS[[#This Row],[Game]],FIND(", $",PS[[#This Row],[Game]])+1,FIND(" Gtd",PS[[#This Row],[Game]])-FIND(", $",PS[[#This Row],[Game]])-1),"$",""),".",""),"K","000"))),"") ->  | M13: =IF(PS[[#This Row],[Game]]="","",IF(COUNTIF(PS[[#This Row],[Game]],"*Sit&Go*"),"S","M")) -> S | N13: =IF(PS[[#This Row],[Game]]="","",IF(OR(COUNTIF(PS[[#This Row],[Game]],"*Turbo*"),COUNTIF(PS[[#This Row],[Game]],"*Hot*")),"T",IF(COUNTIF(PS[[#This Row],[Game]],"*Bubble Rush*"),"T","R"))) -> T | O13: =IF(PS[[#This Row],[Game]]="","",IF(OR(COUNTIF(PS[[#This Row],[Game]],"*Bounty Builder*"),COUNTIF(PS[[#This Row],[Game]],"*KO*")),"K","")) ->  | P13: =IF(PS[[#This Row],[Game]]="","",IF(OR(COUNTIF(PS[[#This Row],[Game]],"*Rebuy*"),COUNTIF(PS[[#This Row],[Game]],"*+R*")),"R","")) ->  | Q13: =IF(PS[[#This Row],[Game]]="","",IF(COUNTIF(PS[[#This Row],[Game]],"*Zoom*"),"Z","")) ->  | R13: =IF(PS[[#This Row],[Date]]="","",DATE(YEAR(VALUE(PS[[#This Row],[Date]])),MONTH(VALUE(PS[[#This Row],[Date]])),DAY(VALUE(PS[[#This Row],[Date]])))) -> 2019-11-01 | S13: =IF(PS[[#This Row],[Date]]="","",TIME(HOUR(VALUE(PS[[#This Row],[Date]])),MINUTE(VALUE(PS[[#This Row],[Date]])),SECOND(PS[[#This Row],[Date]]))) -> 04:13:00 | T13: =IFERROR(VALUE(SUBSTITUTE(PS[[#This Row],[Amount]],".",",")),"") -> -0.5 | U13: =IFERROR(VALUE(SUBSTITUTE(PS[[#This Row],[Balance]],".",",")),"") -> 18.33
B14: =IF(PS[[#This Row],[Date]]="","",IFERROR(WEEKNUM(PS[[#This Row],[Date]],2),"")) -> 44 | C14: =IF(PS[[#This Row],[Date]]="","",IFERROR(CHOOSE(WEEKDAY(PS[[#This Row],[Date]],2),"понедельник","вторник","среда","четверг","пятница","суббота","воскресенье"),"")) -> пятница | D14: =IF(PS[[#This Row],[Date]]="","",TEXT(PS[[#This Row],[Date]],"mmmm")) -> ноябрь | E14: 2019/11/01 4:17 AM | F14: Tournament Registration | G14: 2726479436 | H14: NL Hold'em Sit&Go Buy-In: 0.91/0.09 $1.00 NL Hold'em [45 Players] | I14: (1.00) | J14: 17.33 | K14: =SUBSTITUTE(SUBSTITUTE(SUBSTITUTE(IFERROR(IF(PS[[#This Row],[Y]]="S",MID(PS[[#This Row],[Game]],FIND("[",PS[[#This Row],[Game]]),FIND("]",PS[[#This Row],[Game]])-FIND("[",PS[[#This Row],[Game]])+1),LEFT(LEFT(RIGHT(PS[[#This Row],[Game]],((LEN(PS[[#This Row],[Game]]))-( FIND("*",SUBSTITUTE(PS[[#This Row],[Game]]," ","*",4))))),( FIND("*",SUBSTITUTE(RIGHT(PS[[#This Row],[Game]],((LEN(PS[[#This Row],[Game]]))-( FIND("*",SUBSTITUTE(PS[[#This Row],[Game]]," ","*",4))))),", $","*",1)))),LEN(LEFT(RIGHT(PS[[#This Row],[Game]],((LEN(PS[[#This Row],[Game]]))-( FIND("*",SUBSTITUTE(PS[[#This Row],[Game]]," ","*",4))))),( FIND("*",SUBSTITUTE(RIGHT(PS[[#This Row],[Game]],((LEN(PS[[#This Row],[Game]]))-( FIND("*",SUBSTITUTE(PS[[#This Row],[Game]]," ","*",4))))),", $","*",1)))))-1)),"")," [Saturday Special]",""),"ger",""),"ter","") -> [45 Players] | L14: =IFERROR(IF(PS[[#This Row],[Y]]="S","",IF(IF(NOT(ISERR(FIND(".",SUBSTITUTE(MID(PS[[#This Row],[Game]],FIND(", $",PS[[#This Row],[Game]])+1,FIND(" Gtd",PS[[#This Row],[Game]])-FIND(", $",PS[[#This Row],[Game]])-1),"$","")))),1,0)=1,SUBSTITUTE(SUBSTITUTE(SUBSTITUTE(MID(PS[[#This Row],[Game]],FIND(", $",PS[[#This Row],[Game]])+1,FIND(" Gtd",PS[[#This Row],[Game]])-FIND(", $",PS[[#This Row],[Game]])-1),"$",""),".",""),"K","00"),SUBSTITUTE(SUBSTITUTE(SUBSTITUTE(MID(PS[[#This Row],[Game]],FIND(", $",PS[[#This Row],[Game]])+1,FIND(" Gtd",PS[[#This Row],[Game]])-FIND(", $",PS[[#This Row],[Game]])-1),"$",""),".",""),"K","000"))),"") ->  | M14: =IF(PS[[#This Row],[Game]]="","",IF(COUNTIF(PS[[#This Row],[Game]],"*Sit&Go*"),"S","M")) -> S | N14: =IF(PS[[#This Row],[Game]]="","",IF(OR(COUNTIF(PS[[#This Row],[Game]],"*Turbo*"),COUNTIF(PS[[#This Row],[Game]],"*Hot*")),"T",IF(COUNTIF(PS[[#This Row],[Game]],"*Bubble Rush*"),"T","R"))) -> R | O14: =IF(PS[[#This Row],[Game]]="","",IF(OR(COUNTIF(PS[[#This Row],[Game]],"*Bounty Builder*"),COUNTIF(PS[[#This Row],[Game]],"*KO*")),"K","")) ->  | P14: =IF(PS[[#This Row],[Game]]="","",IF(OR(COUNTIF(PS[[#This Row],[Game]],"*Rebuy*"),COUNTIF(PS[[#This Row],[Game]],"*+R*")),"R","")) ->  | Q14: =IF(PS[[#This Row],[Game]]="","",IF(COUNTIF(PS[[#This Row],[Game]],"*Zoom*"),"Z","")) ->  | R14: =IF(PS[[#This Row],[Date]]="","",DATE(YEAR(VALUE(PS[[#This Row],[Date]])),MONTH(VALUE(PS[[#This Row],[Date]])),DAY(VALUE(PS[[#This Row],[Date]])))) -> 2019-11-01 | S14: =IF(PS[[#This Row],[Date]]="","",TIME(HOUR(VALUE(PS[[#This Row],[Date]])),MINUTE(VALUE(PS[[#This Row],[Date]])),SECOND(PS[[#This Row],[Date]]))) -> 04:17:00 | T14: =IFERROR(VALUE(SUBSTITUTE(PS[[#This Row],[Amount]],".",",")),"") -> -1 | U14: =IFERROR(VALUE(SUBSTITUTE(PS[[#This Row],[Balance]],".",",")),"") -> 17.33
B15: =IF(PS[[#This Row],[Date]]="","",IFERROR(WEEKNUM(PS[[#This Row],[Date]],2),"")) -> 44 | C15: =IF(PS[[#This Row],[Date]]="","",IFERROR(CHOOSE(WEEKDAY(PS[[#This Row],[Date]],2),"понедельник","вторник","среда","четверг","пятница","суббота","воскресенье"),"")) -> пятница | D15: =IF(PS[[#This Row],[Date]]="","",TEXT(PS[[#This Row],[Date]],"mmmm")) -> ноябрь | E15: 2019/11/01 4:24 AM | F15: Tournament Registration | G15: 2726483666 | H15: NL Hold'em Sit&Go Buy-In: 0.45/0.05 $0.50 NL Hold'em [45 Players, Turbo] | I15: (0.50) | J15: 16.83 | K15: =SUBSTITUTE(SUBSTITUTE(SUBSTITUTE(IFERROR(IF(PS[[#This Row],[Y]]="S",MID(PS[[#This Row],[Game]],FIND("[",PS[[#This Row],[Game]]),FIND("]",PS[[#This Row],[Game]])-FIND("[",PS[[#This Row],[Game]])+1),LEFT(LEFT(RIGHT(PS[[#This Row],[Game]],((LEN(PS[[#This Row],[Game]]))-( FIND("*",SUBSTITUTE(PS[[#This Row],[Game]]," ","*",4))))),( FIND("*",SUBSTITUTE(RIGHT(PS[[#This Row],[Game]],((LEN(PS[[#This Row],[Game]]))-( FIND("*",SUBSTITUTE(PS[[#This Row],[Game]]," ","*",4))))),", $","*",1)))),LEN(LEFT(RIGHT(PS[[#This Row],[Game]],((LEN(PS[[#This Row],[Game]]))-( FIND("*",SUBSTITUTE(PS[[#This Row],[Game]]," ","*",4))))),( FIND("*",SUBSTITUTE(RIGHT(PS[[#This Row],[Game]],((LEN(PS[[#This Row],[Game]]))-( FIND("*",SUBSTITUTE(PS[[#This Row],[Game]]," ","*",4))))),", $","*",1)))))-1)),"")," [Saturday Special]",""),"ger",""),"ter","") -> [45 Players, Turbo] | L15: =IFERROR(IF(PS[[#This Row],[Y]]="S","",IF(IF(NOT(ISERR(FIND(".",SUBSTITUTE(MID(PS[[#This Row],[Game]],FIND(", $",PS[[#This Row],[Game]])+1,FIND(" Gtd",PS[[#This Row],[Game]])-FIND(", $",PS[[#This Row],[Game]])-1),"$","")))),1,0)=1,SUBSTITUTE(SUBSTITUTE(SUBSTITUTE(MID(PS[[#This Row],[Game]],FIND(", $",PS[[#This Row],[Game]])+1,FIND(" Gtd",PS[[#This Row],[Game]])-FIND(", $",PS[[#This Row],[Game]])-1),"$",""),".",""),"K","00"),SUBSTITUTE(SUBSTITUTE(SUBSTITUTE(MID(PS[[#This Row],[Game]],FIND(", $",PS[[#This Row],[Game]])+1,FIND(" Gtd",PS[[#This Row],[Game]])-FIND(", $",PS[[#This Row],[Game]])-1),"$",""),".",""),"K","000"))),"") ->  | M15: =IF(PS[[#This Row],[Game]]="","",IF(COUNTIF(PS[[#This Row],[Game]],"*Sit&Go*"),"S","M")) -> S | N15: =IF(PS[[#This Row],[Game]]="","",IF(OR(COUNTIF(PS[[#This Row],[Game]],"*Turbo*"),COUNTIF(PS[[#This Row],[Game]],"*Hot*")),"T",IF(COUNTIF(PS[[#This Row],[Game]],"*Bubble Rush*"),"T","R"))) -> T | O15: =IF(PS[[#This Row],[Game]]="","",IF(OR(COUNTIF(PS[[#This Row],[Game]],"*Bounty Builder*"),COUNTIF(PS[[#This Row],[Game]],"*KO*")),"K","")) ->  | P15: =IF(PS[[#This Row],[Game]]="","",IF(OR(COUNTIF(PS[[#This Row],[Game]],"*Rebuy*"),COUNTIF(PS[[#This Row],[Game]],"*+R*")),"R","")) ->  | Q15: =IF(PS[[#This Row],[Game]]="","",IF(COUNTIF(PS[[#This Row],[Game]],"*Zoom*"),"Z","")) ->  | R15: =IF(PS[[#This Row],[Date]]="","",DATE(YEAR(VALUE(PS[[#This Row],[Date]])),MONTH(VALUE(PS[[#This Row],[Date]])),DAY(VALUE(PS[[#This Row],[Date]])))) -> 2019-11-01 | S15: =IF(PS[[#This Row],[Date]]="","",TIME(HOUR(VALUE(PS[[#This Row],[Date]])),MINUTE(VALUE(PS[[#This Row],[Date]])),SECOND(PS[[#This Row],[Date]]))) -> 04:24:00 | T15: =IFERROR(VALUE(SUBSTITUTE(PS[[#This Row],[Amount]],".",",")),"") -> -0.5 | U15: =IFERROR(VALUE(SUBSTITUTE(PS[[#This Row],[Balance]],".",",")),"") -> 16.83
B16: =IF(PS[[#This Row],[Date]]="","",IFERROR(WEEKNUM(PS[[#This Row],[Date]],2),"")) -> 44 | C16: =IF(PS[[#This Row],[Date]]="","",IFERROR(CHOOSE(WEEKDAY(PS[[#This Row],[Date]],2),"понедельник","вторник","среда","четверг","пятница","суббота","воскресенье"),"")) -> пятница | D16: =IF(PS[[#This Row],[Date]]="","",TEXT(PS[[#This Row],[Date]],"mmmm")) -> ноябрь | E16: 2019/11/01 4:31 AM | F16: Tournament Registration | G16: 2726486346 | H16: NL Hold'em Sit&Go Buy-In: 0.45/0.05 $0.50 NL Hold'em [45 Players, Turbo] | I16: (0.50) | J16: 16.33 | K16: =SUBSTITUTE(SUBSTITUTE(SUBSTITUTE(IFERROR(IF(PS[[#This Row],[Y]]="S",MID(PS[[#This Row],[Game]],FIND("[",PS[[#This Row],[Game]]),FIND("]",PS[[#This Row],[Game]])-FIND("[",PS[[#This Row],[Game]])+1),LEFT(LEFT(RIGHT(PS[[#This Row],[Game]],((LEN(PS[[#This Row],[Game]]))-( FIND("*",SUBSTITUTE(PS[[#This Row],[Game]]," ","*",4))))),( FIND("*",SUBSTITUTE(RIGHT(PS[[#This Row],[Game]],((LEN(PS[[#This Row],[Game]]))-( FIND("*",SUBSTITUTE(PS[[#This Row],[Game]]," ","*",4))))),", $","*",1)))),LEN(LEFT(RIGHT(PS[[#This Row],[Game]],((LEN(PS[[#This Row],[Game]]))-( FIND("*",SUBSTITUTE(PS[[#This Row],[Game]]," ","*",4))))),( FIND("*",SUBSTITUTE(RIGHT(PS[[#This Row],[Game]],((LEN(PS[[#This Row],[Game]]))-( FIND("*",SUBSTITUTE(PS[[#This Row],[Game]]," ","*",4))))),", $","*",1)))))-1)),"")," [Saturday Special]",""),"ger",""),"ter","") -> [45 Players, Turbo] | L16: =IFERROR(IF(PS[[#This Row],[Y]]="S","",IF(IF(NOT(ISERR(FIND(".",SUBSTITUTE(MID(PS[[#This Row],[Game]],FIND(", $",PS[[#This Row],[Game]])+1,FIND(" Gtd",PS[[#This Row],[Game]])-FIND(", $",PS[[#This Row],[Game]])-1),"$","")))),1,0)=1,SUBSTITUTE(SUBSTITUTE(SUBSTITUTE(MID(PS[[#This Row],[Game]],FIND(", $",PS[[#This Row],[Game]])+1,FIND(" Gtd",PS[[#This Row],[Game]])-FIND(", $",PS[[#This Row],[Game]])-1),"$",""),".",""),"K","00"),SUBSTITUTE(SUBSTITUTE(SUBSTITUTE(MID(PS[[#This Row],[Game]],FIND(", $",PS[[#This Row],[Game]])+1,FIND(" Gtd",PS[[#This Row],[Game]])-FIND(", $",PS[[#This Row],[Game]])-1),"$",""),".",""),"K","000"))),"") ->  | M16: =IF(PS[[#This Row],[Game]]="","",IF(COUNTIF(PS[[#This Row],[Game]],"*Sit&Go*"),"S","M")) -> S | N16: =IF(PS[[#This Row],[Game]]="","",IF(OR(COUNTIF(PS[[#This Row],[Game]],"*Turbo*"),COUNTIF(PS[[#This Row],[Game]],"*Hot*")),"T",IF(COUNTIF(PS[[#This Row],[Game]],"*Bubble Rush*"),"T","R"))) -> T | O16: =IF(PS[[#This Row],[Game]]="","",IF(OR(COUNTIF(PS[[#This Row],[Game]],"*Bounty Builder*"),COUNTIF(PS[[#This Row],[Game]],"*KO*")),"K","")) ->  | P16: =IF(PS[[#This Row],[Game]]="","",IF(OR(COUNTIF(PS[[#This Row],[Game]],"*Rebuy*"),COUNTIF(PS[[#This Row],[Game]],"*+R*")),"R","")) ->  | Q16: =IF(PS[[#This Row],[Game]]="","",IF(COUNTIF(PS[[#This Row],[Game]],"*Zoom*"),"Z","")) ->  | R16: =IF(PS[[#This Row],[Date]]="","",DATE(YEAR(VALUE(PS[[#This Row],[Date]])),MONTH(VALUE(PS[[#This Row],[Date]])),DAY(VALUE(PS[[#This Row],[Date]])))) -> 2019-11-01 | S16: =IF(PS[[#This Row],[Date]]="","",TIME(HOUR(VALUE(PS[[#This Row],[Date]])),MINUTE(VALUE(PS[[#This Row],[Date]])),SECOND(PS[[#This Row],[Date]]))) -> 04:31:00 | T16: =IFERROR(VALUE(SUBSTITUTE(PS[[#This Row],[Amount]],".",",")),"") -> -0.5 | U16: =IFERROR(VALUE(SUBSTITUTE(PS[[#This Row],[Balance]],".",",")),"") -> 16.33
B17: =IF(PS[[#This Row],[Date]]="","",IFERROR(WEEKNUM(PS[[#This Row],[Date]],2),"")) -> 44 | C17: =IF(PS[[#This Row],[Date]]="","",IFERROR(CHOOSE(WEEKDAY(PS[[#This Row],[Date]],2),"понедельник","вторник","среда","четверг","пятница","суббота","воскресенье"),"")) -> пятница | D17: =IF(PS[[#This Row],[Date]]="","",TEXT(PS[[#This Row],[Date]],"mmmm")) -> ноябрь | E17: 2019/11/01 4:34 AM | F17: Tournament Unregistration | G17: 2726183376 | H17: NL Hold'em Sit&Go Buy-In: 0.91/0.09 $1.00 NL Hold'em [180 Players] | I17: 1.00 | J17: 17.33 | K17: =SUBSTITUTE(SUBSTITUTE(SUBSTITUTE(IFERROR(IF(PS[[#This Row],[Y]]="S",MID(PS[[#This Row],[Game]],FIND("[",PS[[#This Row],[Game]]),FIND("]",PS[[#This Row],[Game]])-FIND("[",PS[[#This Row],[Game]])+1),LEFT(LEFT(RIGHT(PS[[#This Row],[Game]],((LEN(PS[[#This Row],[Game]]))-( FIND("*",SUBSTITUTE(PS[[#This Row],[Game]]," ","*",4))))),( FIND("*",SUBSTITUTE(RIGHT(PS[[#This Row],[Game]],((LEN(PS[[#This Row],[Game]]))-( FIND("*",SUBSTITUTE(PS[[#This Row],[Game]]," ","*",4))))),", $","*",1)))),LEN(LEFT(RIGHT(PS[[#This Row],[Game]],((LEN(PS[[#This Row],[Game]]))-( FIND("*",SUBSTITUTE(PS[[#This Row],[Game]]," ","*",4))))),( FIND("*",SUBSTITUTE(RIGHT(PS[[#This Row],[Game]],((LEN(PS[[#This Row],[Game]]))-( FIND("*",SUBSTITUTE(PS[[#This Row],[Game]]," ","*",4))))),", $","*",1)))))-1)),"")," [Saturday Special]",""),"ger",""),"ter","") -> [180 Players] | L17: =IFERROR(IF(PS[[#This Row],[Y]]="S","",IF(IF(NOT(ISERR(FIND(".",SUBSTITUTE(MID(PS[[#This Row],[Game]],FIND(", $",PS[[#This Row],[Game]])+1,FIND(" Gtd",PS[[#This Row],[Game]])-FIND(", $",PS[[#This Row],[Game]])-1),"$","")))),1,0)=1,SUBSTITUTE(SUBSTITUTE(SUBSTITUTE(MID(PS[[#This Row],[Game]],FIND(", $",PS[[#This Row],[Game]])+1,FIND(" Gtd",PS[[#This Row],[Game]])-FIND(", $",PS[[#This Row],[Game]])-1),"$",""),".",""),"K","00"),SUBSTITUTE(SUBSTITUTE(SUBSTITUTE(MID(PS[[#This Row],[Game]],FIND(", $",PS[[#This Row],[Game]])+1,FIND(" Gtd",PS[[#This Row],[Game]])-FIND(", $",PS[[#This Row],[Game]])-1),"$",""),".",""),"K","000"))),"") ->  | M17: =IF(PS[[#This Row],[Game]]="","",IF(COUNTIF(PS[[#This Row],[Game]],"*Sit&Go*"),"S","M")) -> S | N17: =IF(PS[[#This Row],[Game]]="","",IF(OR(COUNTIF(PS[[#This Row],[Game]],"*Turbo*"),COUNTIF(PS[[#This Row],[Game]],"*Hot*")),"T",IF(COUNTIF(PS[[#This Row],[Game]],"*Bubble Rush*"),"T","R"))) -> R | O17: =IF(PS[[#This Row],[Game]]="","",IF(OR(COUNTIF(PS[[#This Row],[Game]],"*Bounty Builder*"),COUNTIF(PS[[#This Row],[Game]],"*KO*")),"K","")) ->  | P17: =IF(PS[[#This Row],[Game]]="","",IF(OR(COUNTIF(PS[[#This Row],[Game]],"*Rebuy*"),COUNTIF(PS[[#This Row],[Game]],"*+R*")),"R","")) ->  | Q17: =IF(PS[[#This Row],[Game]]="","",IF(COUNTIF(PS[[#This Row],[Game]],"*Zoom*"),"Z","")) ->  | R17: =IF(PS[[#This Row],[Date]]="","",DATE(YEAR(VALUE(PS[[#This Row],[Date]])),MONTH(VALUE(PS[[#This Row],[Date]])),DAY(VALUE(PS[[#This Row],[Date]])))) -> 2019-11-01 | S17: =IF(PS[[#This Row],[Date]]="","",TIME(HOUR(VALUE(PS[[#This Row],[Date]])),MINUTE(VALUE(PS[[#This Row],[Date]])),SECOND(PS[[#This Row],[Date]]))) -> 04:34:00 | T17: =IFERROR(VALUE(SUBSTITUTE(PS[[#This Row],[Amount]],".",",")),"") -> 1 | U17: =IFERROR(VALUE(SUBSTITUTE(PS[[#This Row],[Balance]],".",",")),"") -> 17.33
B18: =IF(PS[[#This Row],[Date]]="","",IFERROR(WEEKNUM(PS[[#This Row],[Date]],2),"")) -> 44 | C18: =IF(PS[[#This Row],[Date]]="","",IFERROR(CHOOSE(WEEKDAY(PS[[#This Row],[Date]],2),"понедельник","вторник","среда","четверг","пятница","суббота","воскресенье"),"")) -> пятница | D18: =IF(PS[[#This Row],[Date]]="","",TEXT(PS[[#This Row],[Date]],"mmmm")) -> ноябрь | E18: 2019/11/01 4:37 AM | F18: Tournament Registration | G18: 2726488635 | H18: NL Hold'em Sit&Go Buy-In: 0.45/0.05 $0.50 NL Hold'em [45 Players, Turbo] | I18: (0.50) | J18: 16.83 | K18: =SUBSTITUTE(SUBSTITUTE(SUBSTITUTE(IFERROR(IF(PS[[#This Row],[Y]]="S",MID(PS[[#This Row],[Game]],FIND("[",PS[[#This Row],[Game]]),FIND("]",PS[[#This Row],[Game]])-FIND("[",PS[[#This Row],[Game]])+1),LEFT(LEFT(RIGHT(PS[[#This Row],[Game]],((LEN(PS[[#This Row],[Game]]))-( FIND("*",SUBSTITUTE(PS[[#This Row],[Game]]," ","*",4))))),( FIND("*",SUBSTITUTE(RIGHT(PS[[#This Row],[Game]],((LEN(PS[[#This Row],[Game]]))-( FIND("*",SUBSTITUTE(PS[[#This Row],[Game]]," ","*",4))))),", $","*",1)))),LEN(LEFT(RIGHT(PS[[#This Row],[Game]],((LEN(PS[[#This Row],[Game]]))-( FIND("*",SUBSTITUTE(PS[[#This Row],[Game]]," ","*",4))))),( FIND("*",SUBSTITUTE(RIGHT(PS[[#This Row],[Game]],((LEN(PS[[#This Row],[Game]]))-( FIND("*",SUBSTITUTE(PS[[#This Row],[Game]]," ","*",4))))),", $","*",1)))))-1)),"")," [Saturday Special]",""),"ger",""),"ter","") -> [45 Players, Turbo] | L18: =IFERROR(IF(PS[[#This Row],[Y]]="S","",IF(IF(NOT(ISERR(FIND(".",SUBSTITUTE(MID(PS[[#This Row],[Game]],FIND(", $",PS[[#This Row],[Game]])+1,FIND(" Gtd",PS[[#This Row],[Game]])-FIND(", $",PS[[#This Row],[Game]])-1),"$","")))),1,0)=1,SUBSTITUTE(SUBSTITUTE(SUBSTITUTE(MID(PS[[#This Row],[Game]],FIND(", $",PS[[#This Row],[Game]])+1,FIND(" Gtd",PS[[#This Row],[Game]])-FIND(", $",PS[[#This Row],[Game]])-1),"$",""),".",""),"K","00"),SUBSTITUTE(SUBSTITUTE(SUBSTITUTE(MID(PS[[#This Row],[Game]],FIND(", $",PS[[#This Row],[Game]])+1,FIND(" Gtd",PS[[#This Row],[Game]])-FIND(", $",PS[[#This Row],[Game]])-1),"$",""),".",""),"K","000"))),"") ->  | M18: =IF(PS[[#This Row],[Game]]="","",IF(COUNTIF(PS[[#This Row],[Game]],"*Sit&Go*"),"S","M")) -> S | N18: =IF(PS[[#This Row],[Game]]="","",IF(OR(COUNTIF(PS[[#This Row],[Game]],"*Turbo*"),COUNTIF(PS[[#This Row],[Game]],"*Hot*")),"T",IF(COUNTIF(PS[[#This Row],[Game]],"*Bubble Rush*"),"T","R"))) -> T | O18: =IF(PS[[#This Row],[Game]]="","",IF(OR(COUNTIF(PS[[#This Row],[Game]],"*Bounty Builder*"),COUNTIF(PS[[#This Row],[Game]],"*KO*")),"K","")) ->  | P18: =IF(PS[[#This Row],[Game]]="","",IF(OR(COUNTIF(PS[[#This Row],[Game]],"*Rebuy*"),COUNTIF(PS[[#This Row],[Game]],"*+R*")),"R","")) ->  | Q18: =IF(PS[[#This Row],[Game]]="","",IF(COUNTIF(PS[[#This Row],[Game]],"*Zoom*"),"Z","")) ->  | R18: =IF(PS[[#This Row],[Date]]="","",DATE(YEAR(VALUE(PS[[#This Row],[Date]])),MONTH(VALUE(PS[[#This Row],[Date]])),DAY(VALUE(PS[[#This Row],[Date]])))) -> 2019-11-01 | S18: =IF(PS[[#This Row],[Date]]="","",TIME(HOUR(VALUE(PS[[#This Row],[Date]])),MINUTE(VALUE(PS[[#This Row],[Date]])),SECOND(PS[[#This Row],[Date]]))) -> 04:37:00 | T18: =IFERROR(VALUE(SUBSTITUTE(PS[[#This Row],[Amount]],".",",")),"") -> -0.5 | U18: =IFERROR(VALUE(SUBSTITUTE(PS[[#This Row],[Balance]],".",",")),"") -> 16.83
B19: =IF(PS[[#This Row],[Date]]="","",IFERROR(WEEKNUM(PS[[#This Row],[Date]],2),"")) -> 44 | C19: =IF(PS[[#This Row],[Date]]="","",IFERROR(CHOOSE(WEEKDAY(PS[[#This Row],[Date]],2),"понедельник","вторник","среда","четверг","пятница","суббота","воскресенье"),"")) -> пятница | D19: =IF(PS[[#This Row],[Date]]="","",TEXT(PS[[#This Row],[Date]],"mmmm")) -> ноябрь | E19: 2019/11/01 4:47 AM | F19: Tournament Registration | G19: 2726492375 | H19: NL Hold'em Sit&Go Buy-In: 0.45/0.05 $0.50 NL Hold'em [45 Players, Turbo] | I19: (0.50) | J19: 16.33 | K19: =SUBSTITUTE(SUBSTITUTE(SUBSTITUTE(IFERROR(IF(PS[[#This Row],[Y]]="S",MID(PS[[#This Row],[Game]],FIND("[",PS[[#This Row],[Game]]),FIND("]",PS[[#This Row],[Game]])-FIND("[",PS[[#This Row],[Game]])+1),LEFT(LEFT(RIGHT(PS[[#This Row],[Game]],((LEN(PS[[#This Row],[Game]]))-( FIND("*",SUBSTITUTE(PS[[#This Row],[Game]]," ","*",4))))),( FIND("*",SUBSTITUTE(RIGHT(PS[[#This Row],[Game]],((LEN(PS[[#This Row],[Game]]))-( FIND("*",SUBSTITUTE(PS[[#This Row],[Game]]," ","*",4))))),", $","*",1)))),LEN(LEFT(RIGHT(PS[[#This Row],[Game]],((LEN(PS[[#This Row],[Game]]))-( FIND("*",SUBSTITUTE(PS[[#This Row],[Game]]," ","*",4))))),( FIND("*",SUBSTITUTE(RIGHT(PS[[#This Row],[Game]],((LEN(PS[[#This Row],[Game]]))-( FIND("*",SUBSTITUTE(PS[[#This Row],[Game]]," ","*",4))))),", $","*",1)))))-1)),"")," [Saturday Special]",""),"ger",""),"ter","") -> [45 Players, Turbo] | L19: =IFERROR(IF(PS[[#This Row],[Y]]="S","",IF(IF(NOT(ISERR(FIND(".",SUBSTITUTE(MID(PS[[#This Row],[Game]],FIND(", $",PS[[#This Row],[Game]])+1,FIND(" Gtd",PS[[#This Row],[Game]])-FIND(", $",PS[[#This Row],[Game]])-1),"$","")))),1,0)=1,SUBSTITUTE(SUBSTITUTE(SUBSTITUTE(MID(PS[[#This Row],[Game]],FIND(", $",PS[[#This Row],[Game]])+1,FIND(" Gtd",PS[[#This Row],[Game]])-FIND(", $",PS[[#This Row],[Game]])-1),"$",""),".",""),"K","00"),SUBSTITUTE(SUBSTITUTE(SUBSTITUTE(MID(PS[[#This Row],[Game]],FIND(", $",PS[[#This Row],[Game]])+1,FIND(" Gtd",PS[[#This Row],[Game]])-FIND(", $",PS[[#This Row],[Game]])-1),"$",""),".",""),"K","000"))),"") ->  | M19: =IF(PS[[#This Row],[Game]]="","",IF(COUNTIF(PS[[#This Row],[Game]],"*Sit&Go*"),"S","M")) -> S | N19: =IF(PS[[#This Row],[Game]]="","",IF(OR(COUNTIF(PS[[#This Row],[Game]],"*Turbo*"),COUNTIF(PS[[#This Row],[Game]],"*Hot*")),"T",IF(COUNTIF(PS[[#This Row],[Game]],"*Bubble Rush*"),"T","R"))) -> T | O19: =IF(PS[[#This Row],[Game]]="","",IF(OR(COUNTIF(PS[[#This Row],[Game]],"*Bounty Builder*"),COUNTIF(PS[[#This Row],[Game]],"*KO*")),"K","")) ->  | P19: =IF(PS[[#This Row],[Game]]="","",IF(OR(COUNTIF(PS[[#This Row],[Game]],"*Rebuy*"),COUNTIF(PS[[#This Row],[Game]],"*+R*")),"R","")) ->  | Q19: =IF(PS[[#This Row],[Game]]="","",IF(COUNTIF(PS[[#This Row],[Game]],"*Zoom*"),"Z","")) ->  | R19: =IF(PS[[#This Row],[Date]]="","",DATE(YEAR(VALUE(PS[[#This Row],[Date]])),MONTH(VALUE(PS[[#This Row],[Date]])),DAY(VALUE(PS[[#This Row],[Date]])))) -> 2019-11-01 | S19: =IF(PS[[#This Row],[Date]]="","",TIME(HOUR(VALUE(PS[[#This Row],[Date]])),MINUTE(VALUE(PS[[#This Row],[Date]])),SECOND(PS[[#This Row],[Date]]))) -> 04:47:00 | T19: =IFERROR(VALUE(SUBSTITUTE(PS[[#This Row],[Amount]],".",",")),"") -> -0.5 | U19: =IFERROR(VALUE(SUBSTITUTE(PS[[#This Row],[Balance]],".",",")),"") -> 16.33
B20: =IF(PS[[#This Row],[Date]]="","",IFERROR(WEEKNUM(PS[[#This Row],[Date]],2),"")) -> 44 | C20: =IF(PS[[#This Row],[Date]]="","",IFERROR(CHOOSE(WEEKDAY(PS[[#This Row],[Date]],2),"понедельник","вторник","среда","четверг","пятница","суббота","воскресенье"),"")) -> пятница | D20: =IF(PS[[#This Row],[Date]]="","",TEXT(PS[[#This Row],[Date]],"mmmm")) -> ноябрь | E20: 2019/11/01 4:55 AM | F20: Tournament Registration | G20: 2721494849 | H20: NL Hold'em Buy-In: 0.98/0.12 Big $1.10, $1K Gtd | I20: (1.10) | J20: 15.23 | K20: =SUBSTITUTE(SUBSTITUTE(SUBSTITUTE(IFERROR(IF(PS[[#This Row],[Y]]="S",MID(PS[[#This Row],[Game]],FIND("[",PS[[#This Row],[Game]]),FIND("]",PS[[#This Row],[Game]])-FIND("[",PS[[#This Row],[Game]])+1),LEFT(LEFT(RIGHT(PS[[#This Row],[Game]],((LEN(PS[[#This Row],[Game]]))-( FIND("*",SUBSTITUTE(PS[[#This Row],[Game]]," ","*",4))))),( FIND("*",SUBSTITUTE(RIGHT(PS[[#This Row],[Game]],((LEN(PS[[#This Row],[Game]]))-( FIND("*",SUBSTITUTE(PS[[#This Row],[Game]]," ","*",4))))),", $","*",1)))),LEN(LEFT(RIGHT(PS[[#This Row],[Game]],((LEN(PS[[#This Row],[Game]]))-( FIND("*",SUBSTITUTE(PS[[#This Row],[Game]]," ","*",4))))),( FIND("*",SUBSTITUTE(RIGHT(PS[[#This Row],[Game]],((LEN(PS[[#This Row],[Game]]))-( FIND("*",SUBSTITUTE(PS[[#This Row],[Game]]," ","*",4))))),", $","*",1)))))-1)),"")," [Saturday Special]",""),"ger",""),"ter","") -> Big $1.10 | L20: =IFERROR(IF(PS[[#This Row],[Y]]="S","",IF(IF(NOT(ISERR(FIND(".",SUBSTITUTE(MID(PS[[#This Row],[Game]],FIND(", $",PS[[#This Row],[Game]])+1,FIND(" Gtd",PS[[#This Row],[Game]])-FIND(", $",PS[[#This Row],[Game]])-1),"$","")))),1,0)=1,SUBSTITUTE(SUBSTITUTE(SUBSTITUTE(MID(PS[[#This Row],[Game]],FIND(", $",PS[[#This Row],[Game]])+1,FIND(" Gtd",PS[[#This Row],[Game]])-FIND(", $",PS[[#This Row],[Game]])-1),"$",""),".",""),"K","00"),SUBSTITUTE(SUBSTITUTE(SUBSTITUTE(MID(PS[[#This Row],[Game]],FIND(", $",PS[[#This Row],[Game]])+1,FIND(" Gtd",PS[[#This Row],[Game]])-FIND(", $",PS[[#This Row],[Game]])-1),"$",""),".",""),"K","000"))),"") -> 1000 | M20: =IF(PS[[#This Row],[Game]]="","",IF(COUNTIF(PS[[#This Row],[Game]],"*Sit&Go*"),"S","M")) -> M | N20: =IF(PS[[#This Row],[Game]]="","",IF(OR(COUNTIF(PS[[#This Row],[Game]],"*Turbo*"),COUNTIF(PS[[#This Row],[Game]],"*Hot*")),"T",IF(COUNTIF(PS[[#This Row],[Game]],"*Bubble Rush*"),"T","R"))) -> R | O20: =IF(PS[[#This Row],[Game]]="","",IF(OR(COUNTIF(PS[[#This Row],[Game]],"*Bounty Builder*"),COUNTIF(PS[[#This Row],[Game]],"*KO*")),"K","")) ->  | P20: =IF(PS[[#This Row],[Game]]="","",IF(OR(COUNTIF(PS[[#This Row],[Game]],"*Rebuy*"),COUNTIF(PS[[#This Row],[Game]],"*+R*")),"R","")) ->  | Q20: =IF(PS[[#This Row],[Game]]="","",IF(COUNTIF(PS[[#This Row],[Game]],"*Zoom*"),"Z","")) ->  | R20: =IF(PS[[#This Row],[Date]]="","",DATE(YEAR(VALUE(PS[[#This Row],[Date]])),MONTH(VALUE(PS[[#This Row],[Date]])),DAY(VALUE(PS[[#This Row],[Date]])))) -> 2019-11-01 | S20: =IF(PS[[#This Row],[Date]]="","",TIME(HOUR(VALUE(PS[[#This Row],[Date]])),MINUTE(VALUE(PS[[#This Row],[Date]])),SECOND(PS[[#This Row],[Date]]))) -> 04:55:00 | T20: =IFERROR(VALUE(SUBSTITUTE(PS[[#This Row],[Amount]],".",",")),"") -> -1.1 | U20: =IFERROR(VALUE(SUBSTITUTE(PS[[#This Row],[Balance]],".",",")),"") -> 15.23
B21: =IF(PS[[#This Row],[Date]]="","",IFERROR(WEEKNUM(PS[[#This Row],[Date]],2),"")) -> 44 | C21: =IF(PS[[#This Row],[Date]]="","",IFERROR(CHOOSE(WEEKDAY(PS[[#This Row],[Date]],2),"понедельник","вторник","среда","четверг","пятница","суббота","воскресенье"),"")) -> пятница | D21: =IF(PS[[#This Row],[Date]]="","",TEXT(PS[[#This Row],[Date]],"mmmm")) -> ноябрь | E21: 2019/11/01 4:55 AM | F21: Tournament Registration | G21: 2721424819 | H21: NL Hold'em Buy-In: 0.98/0.12 $1.10 NLHE [Turbo, Progressive KO], $1K Gtd | I21: (1.10) | J21: 14.13 | K21: =SUBSTITUTE(SUBSTITUTE(SUBSTITUTE(IFERROR(IF(PS[[#This Row],[Y]]="S",MID(PS[[#This Row],[Game]],FIND("[",PS[[#This Row],[Game]]),FIND("]",PS[[#This Row],[Game]])-FIND("[",PS[[#This Row],[Game]])+1),LEFT(LEFT(RIGHT(PS[[#This Row],[Game]],((LEN(PS[[#This Row],[Game]]))-( FIND("*",SUBSTITUTE(PS[[#This Row],[Game]]," ","*",4))))),( FIND("*",SUBSTITUTE(RIGHT(PS[[#This Row],[Game]],((LEN(PS[[#This Row],[Game]]))-( FIND("*",SUBSTITUTE(PS[[#This Row],[Game]]," ","*",4))))),", $","*",1)))),LEN(LEFT(RIGHT(PS[[#This Row],[Game]],((LEN(PS[[#This Row],[Game]]))-( FIND("*",SUBSTITUTE(PS[[#This Row],[Game]]," ","*",4))))),( FIND("*",SUBSTITUTE(RIGHT(PS[[#This Row],[Game]],((LEN(PS[[#This Row],[Game]]))-( FIND("*",SUBSTITUTE(PS[[#This Row],[Game]]," ","*",4))))),", $","*",1)))))-1)),"")," [Saturday Special]",""),"ger",""),"ter","") -> $1.10 NLHE [Turbo, Progressive KO] | L21: =IFERROR(IF(PS[[#This Row],[Y]]="S","",IF(IF(NOT(ISERR(FIND(".",SUBSTITUTE(MID(PS[[#This Row],[Game]],FIND(", $",PS[[#This Row],[Game]])+1,FIND(" Gtd",PS[[#This Row],[Game]])-FIND(", $",PS[[#This Row],[Game]])-1),"$","")))),1,0)=1,SUBSTITUTE(SUBSTITUTE(SUBSTITUTE(MID(PS[[#This Row],[Game]],FIND(", $",PS[[#This Row],[Game]])+1,FIND(" Gtd",PS[[#This Row],[Game]])-FIND(", $",PS[[#This Row],[Game]])-1),"$",""),".",""),"K","00"),SUBSTITUTE(SUBSTITUTE(SUBSTITUTE(MID(PS[[#This Row],[Game]],FIND(", $",PS[[#This Row],[Game]])+1,FIND(" Gtd",PS[[#This Row],[Game]])-FIND(", $",PS[[#This Row],[Game]])-1),"$",""),".",""),"K","000"))),"") -> 1000 | M21: =IF(PS[[#This Row],[Game]]="","",IF(COUNTIF(PS[[#This Row],[Game]],"*Sit&Go*"),"S","M")) -> M | N21: =IF(PS[[#This Row],[Game]]="","",IF(OR(COUNTIF(PS[[#This Row],[Game]],"*Turbo*"),COUNTIF(PS[[#This Row],[Game]],"*Hot*")),"T",IF(COUNTIF(PS[[#This Row],[Game]],"*Bubble Rush*"),"T","R"))) -> T | O21: =IF(PS[[#This Row],[Game]]="","",IF(OR(COUNTIF(PS[[#This Row],[Game]],"*Bounty Builder*"),COUNTIF(PS[[#This Row],[Game]],"*KO*")),"K","")) -> K | P21: =IF(PS[[#This Row],[Game]]="","",IF(OR(COUNTIF(PS[[#This Row],[Game]],"*Rebuy*"),COUNTIF(PS[[#This Row],[Game]],"*+R*")),"R","")) ->  | Q21: =IF(PS[[#This Row],[Game]]="","",IF(COUNTIF(PS[[#This Row],[Game]],"*Zoom*"),"Z","")) ->  | R21: =IF(PS[[#This Row],[Date]]="","",DATE(YEAR(VALUE(PS[[#This Row],[Date]])),MONTH(VALUE(PS[[#This Row],[Date]])),DAY(VALUE(PS[[#This Row],[Date]])))) -> 2019-11-01 | S21: =IF(PS[[#This Row],[Date]]="","",TIME(HOUR(VALUE(PS[[#This Row],[Date]])),MINUTE(VALUE(PS[[#This Row],[Date]])),SECOND(PS[[#This Row],[Date]]))) -> 04:55:00 | T21: =IFERROR(VALUE(SUBSTITUTE(PS[[#This Row],[Amount]],".",",")),"") -> -1.1 | U21: =IFERROR(VALUE(SUBSTITUTE(PS[[#This Row],[Balance]],".",",")),"") -> 14.13
B22: =IF(PS[[#This Row],[Date]]="","",IFERROR(WEEKNUM(PS[[#This Row],[Date]],2),"")) -> 44 | C22: =IF(PS[[#This Row],[Date]]="","",IFERROR(CHOOSE(WEEKDAY(PS[[#This Row],[Date]],2),"понедельник","вторник","среда","четверг","пятница","суббота","воскресенье"),"")) -> пятница | D22: =IF(PS[[#This Row],[Date]]="","",TEXT(PS[[#This Row],[Date]],"mmmm")) -> ноябрь | E22: 2019/11/01 5:02 AM | F22: Tournament Won | G22: 2726446669 | H22: NL Hold'em Sit&Go Buy-In: 0.91/0.09 $1.00 NL Hold'em [45 Players] | I22: 2.45 | J22: 16.58 | K22: =SUBSTITUTE(SUBSTITUTE(SUBSTITUTE(IFERROR(IF(PS[[#This Row],[Y]]="S",MID(PS[[#This Row],[Game]],FIND("[",PS[[#This Row],[Game]]),FIND("]",PS[[#This Row],[Game]])-FIND("[",PS[[#This Row],[Game]])+1),LEFT(LEFT(RIGHT(PS[[#This Row],[Game]],((LEN(PS[[#This Row],[Game]]))-( FIND("*",SUBSTITUTE(PS[[#This Row],[Game]]," ","*",4))))),( FIND("*",SUBSTITUTE(RIGHT(PS[[#This Row],[Game]],((LEN(PS[[#This Row],[Game]]))-( FIND("*",SUBSTITUTE(PS[[#This Row],[Game]]," ","*",4))))),", $","*",1)))),LEN(LEFT(RIGHT(PS[[#This Row],[Game]],((LEN(PS[[#This Row],[Game]]))-( FIND("*",SUBSTITUTE(PS[[#This Row],[Game]]," ","*",4))))),( FIND("*",SUBSTITUTE(RIGHT(PS[[#This Row],[Game]],((LEN(PS[[#This Row],[Game]]))-( FIND("*",SUBSTITUTE(PS[[#This Row],[Game]]," ","*",4))))),", $","*",1)))))-1)),"")," [Saturday Special]",""),"ger",""),"ter","") -> [45 Players] | L22: =IFERROR(IF(PS[[#This Row],[Y]]="S","",IF(IF(NOT(ISERR(FIND(".",SUBSTITUTE(MID(PS[[#This Row],[Game]],FIND(", $",PS[[#This Row],[Game]])+1,FIND(" Gtd",PS[[#This Row],[Game]])-FIND(", $",PS[[#This Row],[Game]])-1),"$","")))),1,0)=1,SUBSTITUTE(SUBSTITUTE(SUBSTITUTE(MID(PS[[#This Row],[Game]],FIND(", $",PS[[#This Row],[Game]])+1,FIND(" Gtd",PS[[#This Row],[Game]])-FIND(", $",PS[[#This Row],[Game]])-1),"$",""),".",""),"K","00"),SUBSTITUTE(SUBSTITUTE(SUBSTITUTE(MID(PS[[#This Row],[Game]],FIND(", $",PS[[#This Row],[Game]])+1,FIND(" Gtd",PS[[#This Row],[Game]])-FIND(", $",PS[[#This Row],[Game]])-1),"$",""),".",""),"K","000"))),"") ->  | M22: =IF(PS[[#This Row],[Game]]="","",IF(COUNTIF(PS[[#This Row],[Game]],"*Sit&Go*"),"S","M")) -> S | N22: =IF(PS[[#This Row],[Game]]="","",IF(OR(COUNTIF(PS[[#This Row],[Game]],"*Turbo*"),COUNTIF(PS[[#This Row],[Game]],"*Hot*")),"T",IF(COUNTIF(PS[[#This Row],[Game]],"*Bubble Rush*"),"T","R"))) -> R | O22: =IF(PS[[#This Row],[Game]]="","",IF(OR(COUNTIF(PS[[#This Row],[Game]],"*Bounty Builder*"),COUNTIF(PS[[#This Row],[Game]],"*KO*")),"K","")) ->  | P22: =IF(PS[[#This Row],[Game]]="","",IF(OR(COUNTIF(PS[[#This Row],[Game]],"*Rebuy*"),COUNTIF(PS[[#This Row],[Game]],"*+R*")),"R","")) ->  | Q22: =IF(PS[[#This Row],[Game]]="","",IF(COUNTIF(PS[[#This Row],[Game]],"*Zoom*"),"Z","")) ->  | R22: =IF(PS[[#This Row],[Date]]="","",DATE(YEAR(VALUE(PS[[#This Row],[Date]])),MONTH(VALUE(PS[[#This Row],[Date]])),DAY(VALUE(PS[[#This Row],[Date]])))) -> 2019-11-01 | S22: =IF(PS[[#This Row],[Date]]="","",TIME(HOUR(VALUE(PS[[#This Row],[Date]])),MINUTE(VALUE(PS[[#This Row],[Date]])),SECOND(PS[[#This Row],[Date]]))) -> 05:02:00 | T22: =IFERROR(VALUE(SUBSTITUTE(PS[[#This Row],[Amount]],".",",")),"") -> 2.45 | U22: =IFERROR(VALUE(SUBSTITUTE(PS[[#This Row],[Balance]],".",",")),"") -> 16.58
B23: =IF(PS[[#This Row],[Date]]="","",IFERROR(WEEKNUM(PS[[#This Row],[Date]],2),"")) -> 44 | C23: =IF(PS[[#This Row],[Date]]="","",IFERROR(CHOOSE(WEEKDAY(PS[[#This Row],[Date]],2),"понедельник","вторник","среда","четверг","пятница","суббота","воскресенье"),"")) -> пятница | D23: =IF(PS[[#This Row],[Date]]="","",TEXT(PS[[#This Row],[Date]],"mmmm")) -> ноябрь | E23: 2019/11/01 5:04 AM | F23: Tournament Registration | G23: 2726495784 | H23: NL Hold'em Sit&Go Buy-In: 0.45/0.05 $0.50 NL Hold'em [45 Players, Turbo] | I23: (0.50) | J23: 16.08 | K23: =SUBSTITUTE(SUBSTITUTE(SUBSTITUTE(IFERROR(IF(PS[[#This Row],[Y]]="S",MID(PS[[#This Row],[Game]],FIND("[",PS[[#This Row],[Game]]),FIND("]",PS[[#This Row],[Game]])-FIND("[",PS[[#This Row],[Game]])+1),LEFT(LEFT(RIGHT(PS[[#This Row],[Game]],((LEN(PS[[#This Row],[Game]]))-( FIND("*",SUBSTITUTE(PS[[#This Row],[Game]]," ","*",4))))),( FIND("*",SUBSTITUTE(RIGHT(PS[[#This Row],[Game]],((LEN(PS[[#This Row],[Game]]))-( FIND("*",SUBSTITUTE(PS[[#This Row],[Game]]," ","*",4))))),", $","*",1)))),LEN(LEFT(RIGHT(PS[[#This Row],[Game]],((LEN(PS[[#This Row],[Game]]))-( FIND("*",SUBSTITUTE(PS[[#This Row],[Game]]," ","*",4))))),( FIND("*",SUBSTITUTE(RIGHT(PS[[#This Row],[Game]],((LEN(PS[[#This Row],[Game]]))-( FIND("*",SUBSTITUTE(PS[[#This Row],[Game]]," ","*",4))))),", $","*",1)))))-1)),"")," [Saturday Special]",""),"ger",""),"ter","") -> [45 Players, Turbo] | L23: =IFERROR(IF(PS[[#This Row],[Y]]="S","",IF(IF(NOT(ISERR(FIND(".",SUBSTITUTE(MID(PS[[#This Row],[Game]],FIND(", $",PS[[#This Row],[Game]])+1,FIND(" Gtd",PS[[#This Row],[Game]])-FIND(", $",PS[[#This Row],[Game]])-1),"$","")))),1,0)=1,SUBSTITUTE(SUBSTITUTE(SUBSTITUTE(MID(PS[[#This Row],[Game]],FIND(", $",PS[[#This Row],[Game]])+1,FIND(" Gtd",PS[[#This Row],[Game]])-FIND(", $",PS[[#This Row],[Game]])-1),"$",""),".",""),"K","00"),SUBSTITUTE(SUBSTITUTE(SUBSTITUTE(MID(PS[[#This Row],[Game]],FIND(", $",PS[[#This Row],[Game]])+1,FIND(" Gtd",PS[[#This Row],[Game]])-FIND(", $",PS[[#This Row],[Game]])-1),"$",""),".",""),"K","000"))),"") ->  | M23: =IF(PS[[#This Row],[Game]]="","",IF(COUNTIF(PS[[#This Row],[Game]],"*Sit&Go*"),"S","M")) -> S | N23: =IF(PS[[#This Row],[Game]]="","",IF(OR(COUNTIF(PS[[#This Row],[Game]],"*Turbo*"),COUNTIF(PS[[#This Row],[Game]],"*Hot*")),"T",IF(COUNTIF(PS[[#This Row],[Game]],"*Bubble Rush*"),"T","R"))) -> T | O23: =IF(PS[[#This Row],[Game]]="","",IF(OR(COUNTIF(PS[[#This Row],[Game]],"*Bounty Builder*"),COUNTIF(PS[[#This Row],[Game]],"*KO*")),"K","")) ->  | P23: =IF(PS[[#This Row],[Game]]="","",IF(OR(COUNTIF(PS[[#This Row],[Game]],"*Rebuy*"),COUNTIF(PS[[#This Row],[Game]],"*+R*")),"R","")) ->  | Q23: =IF(PS[[#This Row],[Game]]="","",IF(COUNTIF(PS[[#This Row],[Game]],"*Zoom*"),"Z","")) ->  | R23: =IF(PS[[#This Row],[Date]]="","",DATE(YEAR(VALUE(PS[[#This Row],[Date]])),MONTH(VALUE(PS[[#This Row],[Date]])),DAY(VALUE(PS[[#This Row],[Date]])))) -> 2019-11-01 | S23: =IF(PS[[#This Row],[Date]]="","",TIME(HOUR(VALUE(PS[[#This Row],[Date]])),MINUTE(VALUE(PS[[#This Row],[Date]])),SECOND(PS[[#This Row],[Date]]))) -> 05:04:00 | T23: =IFERROR(VALUE(SUBSTITUTE(PS[[#This Row],[Amount]],".",",")),"") -> -0.5 | U23: =IFERROR(VALUE(SUBSTITUTE(PS[[#This Row],[Balance]],".",",")),"") -> 16.08
B24: =IF(PS[[#This Row],[Date]]="","",IFERROR(WEEKNUM(PS[[#This Row],[Date]],2),"")) -> 44 | C24: =IF(PS[[#This Row],[Date]]="","",IFERROR(CHOOSE(WEEKDAY(PS[[#This Row],[Date]],2),"понедельник","вторник","среда","четверг","пятница","суббота","воскресенье"),"")) -> пятница | D24: =IF(PS[[#This Row],[Date]]="","",TEXT(PS[[#This Row],[Date]],"mmmm")) -> ноябрь | E24: 2019/11/01 5:07 AM | F24: Tournament Registration | G24: 2726499737 | H24: NL Hold'em Sit&Go Buy-In: 0.45/0.05 $0.50 NL Hold'em [45 Players, Turbo] | I24: (0.50) | J24: 15.58 | K24: =SUBSTITUTE(SUBSTITUTE(SUBSTITUTE(IFERROR(IF(PS[[#This Row],[Y]]="S",MID(PS[[#This Row],[Game]],FIND("[",PS[[#This Row],[Game]]),FIND("]",PS[[#This Row],[Game]])-FIND("[",PS[[#This Row],[Game]])+1),LEFT(LEFT(RIGHT(PS[[#This Row],[Game]],((LEN(PS[[#This Row],[Game]]))-( FIND("*",SUBSTITUTE(PS[[#This Row],[Game]]," ","*",4))))),( FIND("*",SUBSTITUTE(RIGHT(PS[[#This Row],[Game]],((LEN(PS[[#This Row],[Game]]))-( FIND("*",SUBSTITUTE(PS[[#This Row],[Game]]," ","*",4))))),", $","*",1)))),LEN(LEFT(RIGHT(PS[[#This Row],[Game]],((LEN(PS[[#This Row],[Game]]))-( FIND("*",SUBSTITUTE(PS[[#This Row],[Game]]," ","*",4))))),( FIND("*",SUBSTITUTE(RIGHT(PS[[#This Row],[Game]],((LEN(PS[[#This Row],[Game]]))-( FIND("*",SUBSTITUTE(PS[[#This Row],[Game]]," ","*",4))))),", $","*",1)))))-1)),"")," [Saturday Special]",""),"ger",""),"ter","") -> [45 Players, Turbo] | L24: =IFERROR(IF(PS[[#This Row],[Y]]="S","",IF(IF(NOT(ISERR(FIND(".",SUBSTITUTE(MID(PS[[#This Row],[Game]],FIND(", $",PS[[#This Row],[Game]])+1,FIND(" Gtd",PS[[#This Row],[Game]])-FIND(", $",PS[[#This Row],[Game]])-1),"$","")))),1,0)=1,SUBSTITUTE(SUBSTITUTE(SUBSTITUTE(MID(PS[[#This Row],[Game]],FIND(", $",PS[[#This Row],[Game]])+1,FIND(" Gtd",PS[[#This Row],[Game]])-FIND(", $",PS[[#This Row],[Game]])-1),"$",""),".",""),"K","00"),SUBSTITUTE(SUBSTITUTE(SUBSTITUTE(MID(PS[[#This Row],[Game]],FIND(", $",PS[[#This Row],[Game]])+1,FIND(" Gtd",PS[[#This Row],[Game]])-FIND(", $",PS[[#This Row],[Game]])-1),"$",""),".",""),"K","000"))),"") ->  | M24: =IF(PS[[#This Row],[Game]]="","",IF(COUNTIF(PS[[#This Row],[Game]],"*Sit&Go*"),"S","M")) -> S | N24: =IF(PS[[#This Row],[Game]]="","",IF(OR(COUNTIF(PS[[#This Row],[Game]],"*Turbo*"),COUNTIF(PS[[#This Row],[Game]],"*Hot*")),"T",IF(COUNTIF(PS[[#This Row],[Game]],"*Bubble Rush*"),"T","R"))) -> T | O24: =IF(PS[[#This Row],[Game]]="","",IF(OR(COUNTIF(PS[[#This Row],[Game]],"*Bounty Builder*"),COUNTIF(PS[[#This Row],[Game]],"*KO*")),"K","")) ->  | P24: =IF(PS[[#This Row],[Game]]="","",IF(OR(COUNTIF(PS[[#This Row],[Game]],"*Rebuy*"),COUNTIF(PS[[#This Row],[Game]],"*+R*")),"R","")) ->  | Q24: =IF(PS[[#This Row],[Game]]="","",IF(COUNTIF(PS[[#This Row],[Game]],"*Zoom*"),"Z","")) ->  | R24: =IF(PS[[#This Row],[Date]]="","",DATE(YEAR(VALUE(PS[[#This Row],[Date]])),MONTH(VALUE(PS[[#This Row],[Date]])),DAY(VALUE(PS[[#This Row],[Date]])))) -> 2019-11-01 | S24: =IF(PS[[#This Row],[Date]]="","",TIME(HOUR(VALUE(PS[[#This Row],[Date]])),MINUTE(VALUE(PS[[#This Row],[Date]])),SECOND(PS[[#This Row],[Date]]))) -> 05:07:00 | T24: =IFERROR(VALUE(SUBSTITUTE(PS[[#This Row],[Amount]],".",",")),"") -> -0.5 | U24: =IFERROR(VALUE(SUBSTITUTE(PS[[#This Row],[Balance]],".",",")),"") -> 15.58
B25: =IF(PS[[#This Row],[Date]]="","",IFERROR(WEEKNUM(PS[[#This Row],[Date]],2),"")) -> 44 | C25: =IF(PS[[#This Row],[Date]]="","",IFERROR(CHOOSE(WEEKDAY(PS[[#This Row],[Date]],2),"понедельник","вторник","среда","четверг","пятница","суббота","воскресенье"),"")) -> пятница | D25: =IF(PS[[#This Row],[Date]]="","",TEXT(PS[[#This Row],[Date]],"mmmm")) -> ноябрь | E25: 2019/11/01 5:15 AM | F25: Tournament Registration | G25: 2726503086 | H25: NL Hold'em Sit&Go Buy-In: 0.45/0.05 $0.50 NL Hold'em [45 Players, Turbo] | I25: (0.50) | J25: 15.08 | K25: =SUBSTITUTE(SUBSTITUTE(SUBSTITUTE(IFERROR(IF(PS[[#This Row],[Y]]="S",MID(PS[[#This Row],[Game]],FIND("[",PS[[#This Row],[Game]]),FIND("]",PS[[#This Row],[Game]])-FIND("[",PS[[#This Row],[Game]])+1),LEFT(LEFT(RIGHT(PS[[#This Row],[Game]],((LEN(PS[[#This Row],[Game]]))-( FIND("*",SUBSTITUTE(PS[[#This Row],[Game]]," ","*",4))))),( FIND("*",SUBSTITUTE(RIGHT(PS[[#This Row],[Game]],((LEN(PS[[#This Row],[Game]]))-( FIND("*",SUBSTITUTE(PS[[#This Row],[Game]]," ","*",4))))),", $","*",1)))),LEN(LEFT(RIGHT(PS[[#This Row],[Game]],((LEN(PS[[#This Row],[Game]]))-( FIND("*",SUBSTITUTE(PS[[#This Row],[Game]]," ","*",4))))),( FIND("*",SUBSTITUTE(RIGHT(PS[[#This Row],[Game]],((LEN(PS[[#This Row],[Game]]))-( FIND("*",SUBSTITUTE(PS[[#This Row],[Game]]," ","*",4))))),", $","*",1)))))-1)),"")," [Saturday Special]",""),"ger",""),"ter","") -> [45 Players, Turbo] | L25: =IFERROR(IF(PS[[#This Row],[Y]]="S","",IF(IF(NOT(ISERR(FIND(".",SUBSTITUTE(MID(PS[[#This Row],[Game]],FIND(", $",PS[[#This Row],[Game]])+1,FIND(" Gtd",PS[[#This Row],[Game]])-FIND(", $",PS[[#This Row],[Game]])-1),"$","")))),1,0)=1,SUBSTITUTE(SUBSTITUTE(SUBSTITUTE(MID(PS[[#This Row],[Game]],FIND(", $",PS[[#This Row],[Game]])+1,FIND(" Gtd",PS[[#This Row],[Game]])-FIND(", $",PS[[#This Row],[Game]])-1),"$",""),".",""),"K","00"),SUBSTITUTE(SUBSTITUTE(SUBSTITUTE(MID(PS[[#This Row],[Game]],FIND(", $",PS[[#This Row],[Game]])+1,FIND(" Gtd",PS[[#This Row],[Game]])-FIND(", $",PS[[#This Row],[Game]])-1),"$",""),".",""),"K","000"))),"") ->  | M25: =IF(PS[[#This Row],[Game]]="","",IF(COUNTIF(PS[[#This Row],[Game]],"*Sit&Go*"),"S","M")) -> S | N25: =IF(PS[[#This Row],[Game]]="","",IF(OR(COUNTIF(PS[[#This Row],[Game]],"*Turbo*"),COUNTIF(PS[[#This Row],[Game]],"*Hot*")),"T",IF(COUNTIF(PS[[#This Row],[Game]],"*Bubble Rush*"),"T","R"))) -> T | O25: =IF(PS[[#This Row],[Game]]="","",IF(OR(COUNTIF(PS[[#This Row],[Game]],"*Bounty Builder*"),COUNTIF(PS[[#This Row],[Game]],"*KO*")),"K","")) ->  | P25: =IF(PS[[#This Row],[Game]]="","",IF(OR(COUNTIF(PS[[#This Row],[Game]],"*Rebuy*"),COUNTIF(PS[[#This Row],[Game]],"*+R*")),"R","")) ->  | Q25: =IF(PS[[#This Row],[Game]]="","",IF(COUNTIF(PS[[#This Row],[Game]],"*Zoom*"),"Z","")) ->  | R25: =IF(PS[[#This Row],[Date]]="","",DATE(YEAR(VALUE(PS[[#This Row],[Date]])),MONTH(VALUE(PS[[#This Row],[Date]])),DAY(VALUE(PS[[#This Row],[Date]])))) -> 2019-11-01 | S25: =IF(PS[[#This Row],[Date]]="","",TIME(HOUR(VALUE(PS[[#This Row],[Date]])),MINUTE(VALUE(PS[[#This Row],[Date]])),SECOND(PS[[#This Row],[Date]]))) -> 05:15:00 | T25: =IFERROR(VALUE(SUBSTITUTE(PS[[#This Row],[Amount]],".",",")),"") -> -0.5 | U25: =IFERROR(VALUE(SUBSTITUTE(PS[[#This Row],[Balance]],".",",")),"") -> 15.08
B26: =IF(PS[[#This Row],[Date]]="","",IFERROR(WEEKNUM(PS[[#This Row],[Date]],2),"")) -> 44 | C26: =IF(PS[[#This Row],[Date]]="","",IFERROR(CHOOSE(WEEKDAY(PS[[#This Row],[Date]],2),"понедельник","вторник","среда","четверг","пятница","суббота","воскресенье"),"")) -> пятница | D26: =IF(PS[[#This Row],[Date]]="","",TEXT(PS[[#This Row],[Date]],"mmmm")) -> ноябрь | E26: 2019/11/01 5:23 AM | F26: Tournament Registration | G26: 2726506664 | H26: NL Hold'em Sit&Go Buy-In: 0.45/0.05 $0.50 NL Hold'em [45 Players, Turbo] | I26: (0.50) | J26: 14.58 | K26: =SUBSTITUTE(SUBSTITUTE(SUBSTITUTE(IFERROR(IF(PS[[#This Row],[Y]]="S",MID(PS[[#This Row],[Game]],FIND("[",PS[[#This Row],[Game]]),FIND("]",PS[[#This Row],[Game]])-FIND("[",PS[[#This Row],[Game]])+1),LEFT(LEFT(RIGHT(PS[[#This Row],[Game]],((LEN(PS[[#This Row],[Game]]))-( FIND("*",SUBSTITUTE(PS[[#This Row],[Game]]," ","*",4))))),( FIND("*",SUBSTITUTE(RIGHT(PS[[#This Row],[Game]],((LEN(PS[[#This Row],[Game]]))-( FIND("*",SUBSTITUTE(PS[[#This Row],[Game]]," ","*",4))))),", $","*",1)))),LEN(LEFT(RIGHT(PS[[#This Row],[Game]],((LEN(PS[[#This Row],[Game]]))-( FIND("*",SUBSTITUTE(PS[[#This Row],[Game]]," ","*",4))))),( FIND("*",SUBSTITUTE(RIGHT(PS[[#This Row],[Game]],((LEN(PS[[#This Row],[Game]]))-( FIND("*",SUBSTITUTE(PS[[#This Row],[Game]]," ","*",4))))),", $","*",1)))))-1)),"")," [Saturday Special]",""),"ger",""),"ter","") -> [45 Players, Turbo] | L26: =IFERROR(IF(PS[[#This Row],[Y]]="S","",IF(IF(NOT(ISERR(FIND(".",SUBSTITUTE(MID(PS[[#This Row],[Game]],FIND(", $",PS[[#This Row],[Game]])+1,FIND(" Gtd",PS[[#This Row],[Game]])-FIND(", $",PS[[#This Row],[Game]])-1),"$","")))),1,0)=1,SUBSTITUTE(SUBSTITUTE(SUBSTITUTE(MID(PS[[#This Row],[Game]],FIND(", $",PS[[#This Row],[Game]])+1,FIND(" Gtd",PS[[#This Row],[Game]])-FIND(", $",PS[[#This Row],[Game]])-1),"$",""),".",""),"K","00"),SUBSTITUTE(SUBSTITUTE(SUBSTITUTE(MID(PS[[#This Row],[Game]],FIND(", $",PS[[#This Row],[Game]])+1,FIND(" Gtd",PS[[#This Row],[Game]])-FIND(", $",PS[[#This Row],[Game]])-1),"$",""),".",""),"K","000"))),"") ->  | M26: =IF(PS[[#This Row],[Game]]="","",IF(COUNTIF(PS[[#This Row],[Game]],"*Sit&Go*"),"S","M")) -> S | N26: =IF(PS[[#This Row],[Game]]="","",IF(OR(COUNTIF(PS[[#This Row],[Game]],"*Turbo*"),COUNTIF(PS[[#This Row],[Game]],"*Hot*")),"T",IF(COUNTIF(PS[[#This Row],[Game]],"*Bubble Rush*"),"T","R"))) -> T | O26: =IF(PS[[#This Row],[Game]]="","",IF(OR(COUNTIF(PS[[#This Row],[Game]],"*Bounty Builder*"),COUNTIF(PS[[#This Row],[Game]],"*KO*")),"K","")) ->  | P26: =IF(PS[[#This Row],[Game]]="","",IF(OR(COUNTIF(PS[[#This Row],[Game]],"*Rebuy*"),COUNTIF(PS[[#This Row],[Game]],"*+R*")),"R","")) ->  | Q26: =IF(PS[[#This Row],[Game]]="","",IF(COUNTIF(PS[[#This Row],[Game]],"*Zoom*"),"Z","")) ->  | R26: =IF(PS[[#This Row],[Date]]="","",DATE(YEAR(VALUE(PS[[#This Row],[Date]])),MONTH(VALUE(PS[[#This Row],[Date]])),DAY(VALUE(PS[[#This Row],[Date]])))) -> 2019-11-01 | S26: =IF(PS[[#This Row],[Date]]="","",TIME(HOUR(VALUE(PS[[#This Row],[Date]])),MINUTE(VALUE(PS[[#This Row],[Date]])),SECOND(PS[[#This Row],[Date]]))) -> 05:23:00 | T26: =IFERROR(VALUE(SUBSTITUTE(PS[[#This Row],[Amount]],".",",")),"") -> -0.5 | U26: =IFERROR(VALUE(SUBSTITUTE(PS[[#This Row],[Balance]],".",",")),"") -> 14.58
B27: =IF(PS[[#This Row],[Date]]="","",IFERROR(WEEKNUM(PS[[#This Row],[Date]],2),"")) -> 44 | C27: =IF(PS[[#This Row],[Date]]="","",IFERROR(CHOOSE(WEEKDAY(PS[[#This Row],[Date]],2),"понедельник","вторник","среда","четверг","пятница","суббота","воскресенье"),"")) -> пятница | D27: =IF(PS[[#This Row],[Date]]="","",TEXT(PS[[#This Row],[Date]],"mmmm")) -> ноябрь | E27: 2019/11/01 5:33 AM | F27: Tournament Registration | G27: 2726509689 | H27: NL Hold'em Sit&Go Buy-In: 0.45/0.05 $0.50 NL Hold'em [45 Players, Turbo] | I27: (0.50) | J27: 14.08 | K27: =SUBSTITUTE(SUBSTITUTE(SUBSTITUTE(IFERROR(IF(PS[[#This Row],[Y]]="S",MID(PS[[#This Row],[Game]],FIND("[",PS[[#This Row],[Game]]),FIND("]",PS[[#This Row],[Game]])-FIND("[",PS[[#This Row],[Game]])+1),LEFT(LEFT(RIGHT(PS[[#This Row],[Game]],((LEN(PS[[#This Row],[Game]]))-( FIND("*",SUBSTITUTE(PS[[#This Row],[Game]]," ","*",4))))),( FIND("*",SUBSTITUTE(RIGHT(PS[[#This Row],[Game]],((LEN(PS[[#This Row],[Game]]))-( FIND("*",SUBSTITUTE(PS[[#This Row],[Game]]," ","*",4))))),", $","*",1)))),LEN(LEFT(RIGHT(PS[[#This Row],[Game]],((LEN(PS[[#This Row],[Game]]))-( FIND("*",SUBSTITUTE(PS[[#This Row],[Game]]," ","*",4))))),( FIND("*",SUBSTITUTE(RIGHT(PS[[#This Row],[Game]],((LEN(PS[[#This Row],[Game]]))-( FIND("*",SUBSTITUTE(PS[[#This Row],[Game]]," ","*",4))))),", $","*",1)))))-1)),"")," [Saturday Special]",""),"ger",""),"ter","") -> [45 Players, Turbo] | L27: =IFERROR(IF(PS[[#This Row],[Y]]="S","",IF(IF(NOT(ISERR(FIND(".",SUBSTITUTE(MID(PS[[#This Row],[Game]],FIND(", $",PS[[#This Row],[Game]])+1,FIND(" Gtd",PS[[#This Row],[Game]])-FIND(", $",PS[[#This Row],[Game]])-1),"$","")))),1,0)=1,SUBSTITUTE(SUBSTITUTE(SUBSTITUTE(MID(PS[[#This Row],[Game]],FIND(", $",PS[[#This Row],[Game]])+1,FIND(" Gtd",PS[[#This Row],[Game]])-FIND(", $",PS[[#This Row],[Game]])-1),"$",""),".",""),"K","00"),SUBSTITUTE(SUBSTITUTE(SUBSTITUTE(MID(PS[[#This Row],[Game]],FIND(", $",PS[[#This Row],[Game]])+1,FIND(" Gtd",PS[[#This Row],[Game]])-FIND(", $",PS[[#This Row],[Game]])-1),"$",""),".",""),"K","000"))),"") ->  | M27: =IF(PS[[#This Row],[Game]]="","",IF(COUNTIF(PS[[#This Row],[Game]],"*Sit&Go*"),"S","M")) -> S | N27: =IF(PS[[#This Row],[Game]]="","",IF(OR(COUNTIF(PS[[#This Row],[Game]],"*Turbo*"),COUNTIF(PS[[#This Row],[Game]],"*Hot*")),"T",IF(COUNTIF(PS[[#This Row],[Game]],"*Bubble Rush*"),"T","R"))) -> T | O27: =IF(PS[[#This Row],[Game]]="","",IF(OR(COUNTIF(PS[[#This Row],[Game]],"*Bounty Builder*"),COUNTIF(PS[[#This Row],[Game]],"*KO*")),"K","")) ->  | P27: =IF(PS[[#This Row],[Game]]="","",IF(OR(COUNTIF(PS[[#This Row],[Game]],"*Rebuy*"),COUNTIF(PS[[#This Row],[Game]],"*+R*")),"R","")) ->  | Q27: =IF(PS[[#This Row],[Game]]="","",IF(COUNTIF(PS[[#This Row],[Game]],"*Zoom*"),"Z","")) ->  | R27: =IF(PS[[#This Row],[Date]]="","",DATE(YEAR(VALUE(PS[[#This Row],[Date]])),MONTH(VALUE(PS[[#This Row],[Date]])),DAY(VALUE(PS[[#This Row],[Date]])))) -> 2019-11-01 | S27: =IF(PS[[#This Row],[Date]]="","",TIME(HOUR(VALUE(PS[[#This Row],[Date]])),MINUTE(VALUE(PS[[#This Row],[Date]])),SECOND(PS[[#This Row],[Date]]))) -> 05:33:00 | T27: =IFERROR(VALUE(SUBSTITUTE(PS[[#This Row],[Amount]],".",",")),"") -> -0.5 | U27: =IFERROR(VALUE(SUBSTITUTE(PS[[#This Row],[Balance]],".",",")),"") -> 14.08
B28: =IF(PS[[#This Row],[Date]]="","",IFERROR(WEEKNUM(PS[[#This Row],[Date]],2),"")) -> 44 | C28: =IF(PS[[#This Row],[Date]]="","",IFERROR(CHOOSE(WEEKDAY(PS[[#This Row],[Date]],2),"понедельник","вторник","среда","четверг","пятница","суббота","воскресенье"),"")) -> пятница | D28: =IF(PS[[#This Row],[Date]]="","",TEXT(PS[[#This Row],[Date]],"mmmm")) -> ноябрь | E28: 2019/11/01 5:37 AM | F28: Tournament Registration | G28: 2726512418 | H28: NL Hold'em Sit&Go Buy-In: 0.45/0.05 $0.50 NL Hold'em [45 Players, Turbo] | I28: (0.50) | J28: 13.58 | K28: =SUBSTITUTE(SUBSTITUTE(SUBSTITUTE(IFERROR(IF(PS[[#This Row],[Y]]="S",MID(PS[[#This Row],[Game]],FIND("[",PS[[#This Row],[Game]]),FIND("]",PS[[#This Row],[Game]])-FIND("[",PS[[#This Row],[Game]])+1),LEFT(LEFT(RIGHT(PS[[#This Row],[Game]],((LEN(PS[[#This Row],[Game]]))-( FIND("*",SUBSTITUTE(PS[[#This Row],[Game]]," ","*",4))))),( FIND("*",SUBSTITUTE(RIGHT(PS[[#This Row],[Game]],((LEN(PS[[#This Row],[Game]]))-( FIND("*",SUBSTITUTE(PS[[#This Row],[Game]]," ","*",4))))),", $","*",1)))),LEN(LEFT(RIGHT(PS[[#This Row],[Game]],((LEN(PS[[#This Row],[Game]]))-( FIND("*",SUBSTITUTE(PS[[#This Row],[Game]]," ","*",4))))),( FIND("*",SUBSTITUTE(RIGHT(PS[[#This Row],[Game]],((LEN(PS[[#This Row],[Game]]))-( FIND("*",SUBSTITUTE(PS[[#This Row],[Game]]," ","*",4))))),", $","*",1)))))-1)),"")," [Saturday Special]",""),"ger",""),"ter","") -> [45 Players, Turbo] | L28: =IFERROR(IF(PS[[#This Row],[Y]]="S","",IF(IF(NOT(ISERR(FIND(".",SUBSTITUTE(MID(PS[[#This Row],[Game]],FIND(", $",PS[[#This Row],[Game]])+1,FIND(" Gtd",PS[[#This Row],[Game]])-FIND(", $",PS[[#This Row],[Game]])-1),"$","")))),1,0)=1,SUBSTITUTE(SUBSTITUTE(SUBSTITUTE(MID(PS[[#This Row],[Game]],FIND(", $",PS[[#This Row],[Game]])+1,FIND(" Gtd",PS[[#This Row],[Game]])-FIND(", $",PS[[#This Row],[Game]])-1),"$",""),".",""),"K","00"),SUBSTITUTE(SUBSTITUTE(SUBSTITUTE(MID(PS[[#This Row],[Game]],FIND(", $",PS[[#This Row],[Game]])+1,FIND(" Gtd",PS[[#This Row],[Game]])-FIND(", $",PS[[#This Row],[Game]])-1),"$",""),".",""),"K","000"))),"") ->  | M28: =IF(PS[[#This Row],[Game]]="","",IF(COUNTIF(PS[[#This Row],[Game]],"*Sit&Go*"),"S","M")) -> S | N28: =IF(PS[[#This Row],[Game]]="","",IF(OR(COUNTIF(PS[[#This Row],[Game]],"*Turbo*"),COUNTIF(PS[[#This Row],[Game]],"*Hot*")),"T",IF(COUNTIF(PS[[#This Row],[Game]],"*Bubble Rush*"),"T","R"))) -> T | O28: =IF(PS[[#This Row],[Game]]="","",IF(OR(COUNTIF(PS[[#This Row],[Game]],"*Bounty Builder*"),COUNTIF(PS[[#This Row],[Game]],"*KO*")),"K","")) ->  | P28: =IF(PS[[#This Row],[Game]]="","",IF(OR(COUNTIF(PS[[#This Row],[Game]],"*Rebuy*"),COUNTIF(PS[[#This Row],[Game]],"*+R*")),"R","")) ->  | Q28: =IF(PS[[#This Row],[Game]]="","",IF(COUNTIF(PS[[#This Row],[Game]],"*Zoom*"),"Z","")) ->  | R28: =IF(PS[[#This Row],[Date]]="","",DATE(YEAR(VALUE(PS[[#This Row],[Date]])),MONTH(VALUE(PS[[#This Row],[Date]])),DAY(VALUE(PS[[#This Row],[Date]])))) -> 2019-11-01 | S28: =IF(PS[[#This Row],[Date]]="","",TIME(HOUR(VALUE(PS[[#This Row],[Date]])),MINUTE(VALUE(PS[[#This Row],[Date]])),SECOND(PS[[#This Row],[Date]]))) -> 05:37:00 | T28: =IFERROR(VALUE(SUBSTITUTE(PS[[#This Row],[Amount]],".",",")),"") -> -0.5 | U28: =IFERROR(VALUE(SUBSTITUTE(PS[[#This Row],[Balance]],".",",")),"") -> 13.58
B29: =IF(PS[[#This Row],[Date]]="","",IFERROR(WEEKNUM(PS[[#This Row],[Date]],2),"")) -> 44 | C29: =IF(PS[[#This Row],[Date]]="","",IFERROR(CHOOSE(WEEKDAY(PS[[#This Row],[Date]],2),"понедельник","вторник","среда","четверг","пятница","суббота","воскресенье"),"")) -> пятница | D29: =IF(PS[[#This Row],[Date]]="","",TEXT(PS[[#This Row],[Date]],"mmmm")) -> ноябрь | E29: 2019/11/01 5:44 AM | F29: Tournament Registration | G29: 2726515389 | H29: NL Hold'em Sit&Go Buy-In: 0.45/0.05 $0.50 NL Hold'em [45 Players, Turbo] | I29: (0.50) | J29: 13.08 | K29: =SUBSTITUTE(SUBSTITUTE(SUBSTITUTE(IFERROR(IF(PS[[#This Row],[Y]]="S",MID(PS[[#This Row],[Game]],FIND("[",PS[[#This Row],[Game]]),FIND("]",PS[[#This Row],[Game]])-FIND("[",PS[[#This Row],[Game]])+1),LEFT(LEFT(RIGHT(PS[[#This Row],[Game]],((LEN(PS[[#This Row],[Game]]))-( FIND("*",SUBSTITUTE(PS[[#This Row],[Game]]," ","*",4))))),( FIND("*",SUBSTITUTE(RIGHT(PS[[#This Row],[Game]],((LEN(PS[[#This Row],[Game]]))-( FIND("*",SUBSTITUTE(PS[[#This Row],[Game]]," ","*",4))))),", $","*",1)))),LEN(LEFT(RIGHT(PS[[#This Row],[Game]],((LEN(PS[[#This Row],[Game]]))-( FIND("*",SUBSTITUTE(PS[[#This Row],[Game]]," ","*",4))))),( FIND("*",SUBSTITUTE(RIGHT(PS[[#This Row],[Game]],((LEN(PS[[#This Row],[Game]]))-( FIND("*",SUBSTITUTE(PS[[#This Row],[Game]]," ","*",4))))),", $","*",1)))))-1)),"")," [Saturday Special]",""),"ger",""),"ter","") -> [45 Players, Turbo] | L29: =IFERROR(IF(PS[[#This Row],[Y]]="S","",IF(IF(NOT(ISERR(FIND(".",SUBSTITUTE(MID(PS[[#This Row],[Game]],FIND(", $",PS[[#This Row],[Game]])+1,FIND(" Gtd",PS[[#This Row],[Game]])-FIND(", $",PS[[#This Row],[Game]])-1),"$","")))),1,0)=1,SUBSTITUTE(SUBSTITUTE(SUBSTITUTE(MID(PS[[#This Row],[Game]],FIND(", $",PS[[#This Row],[Game]])+1,FIND(" Gtd",PS[[#This Row],[Game]])-FIND(", $",PS[[#This Row],[Game]])-1),"$",""),".",""),"K","00"),SUBSTITUTE(SUBSTITUTE(SUBSTITUTE(MID(PS[[#This Row],[Game]],FIND(", $",PS[[#This Row],[Game]])+1,FIND(" Gtd",PS[[#This Row],[Game]])-FIND(", $",PS[[#This Row],[Game]])-1),"$",""),".",""),"K","000"))),"") ->  | M29: =IF(PS[[#This Row],[Game]]="","",IF(COUNTIF(PS[[#This Row],[Game]],"*Sit&Go*"),"S","M")) -> S | N29: =IF(PS[[#This Row],[Game]]="","",IF(OR(COUNTIF(PS[[#This Row],[Game]],"*Turbo*"),COUNTIF(PS[[#This Row],[Game]],"*Hot*")),"T",IF(COUNTIF(PS[[#This Row],[Game]],"*Bubble Rush*"),"T","R"))) -> T | O29: =IF(PS[[#This Row],[Game]]="","",IF(OR(COUNTIF(PS[[#This Row],[Game]],"*Bounty Builder*"),COUNTIF(PS[[#This Row],[Game]],"*KO*")),"K","")) ->  | P29: =IF(PS[[#This Row],[Game]]="","",IF(OR(COUNTIF(PS[[#This Row],[Game]],"*Rebuy*"),COUNTIF(PS[[#This Row],[Game]],"*+R*")),"R","")) ->  | Q29: =IF(PS[[#This Row],[Game]]="","",IF(COUNTIF(PS[[#This Row],[Game]],"*Zoom*"),"Z","")) ->  | R29: =IF(PS[[#This Row],[Date]]="","",DATE(YEAR(VALUE(PS[[#This Row],[Date]])),MONTH(VALUE(PS[[#This Row],[Date]])),DAY(VALUE(PS[[#This Row],[Date]])))) -> 2019-11-01 | S29: =IF(PS[[#This Row],[Date]]="","",TIME(HOUR(VALUE(PS[[#This Row],[Date]])),MINUTE(VALUE(PS[[#This Row],[Date]])),SECOND(PS[[#This Row],[Date]]))) -> 05:44:00 | T29: =IFERROR(VALUE(SUBSTITUTE(PS[[#This Row],[Amount]],".",",")),"") -> -0.5 | U29: =IFERROR(VALUE(SUBSTITUTE(PS[[#This Row],[Balance]],".",",")),"") -> 13.08
B30: =IF(PS[[#This Row],[Date]]="","",IFERROR(WEEKNUM(PS[[#This Row],[Date]],2),"")) -> 44 | C30: =IF(PS[[#This Row],[Date]]="","",IFERROR(CHOOSE(WEEKDAY(PS[[#This Row],[Date]],2),"понедельник","вторник","среда","четверг","пятница","суббота","воскресенье"),"")) -> пятница | D30: =IF(PS[[#This Row],[Date]]="","",TEXT(PS[[#This Row],[Date]],"mmmm")) -> ноябрь | E30: 2019/11/01 5:51 AM | F30: Tournament Registration | G30: 2726518382 | H30: NL Hold'em Sit&Go Buy-In: 0.45/0.05 $0.50 NL Hold'em [45 Players, Turbo] | I30: (0.50) | J30: 12.58 | K30: =SUBSTITUTE(SUBSTITUTE(SUBSTITUTE(IFERROR(IF(PS[[#This Row],[Y]]="S",MID(PS[[#This Row],[Game]],FIND("[",PS[[#This Row],[Game]]),FIND("]",PS[[#This Row],[Game]])-FIND("[",PS[[#This Row],[Game]])+1),LEFT(LEFT(RIGHT(PS[[#This Row],[Game]],((LEN(PS[[#This Row],[Game]]))-( FIND("*",SUBSTITUTE(PS[[#This Row],[Game]]," ","*",4))))),( FIND("*",SUBSTITUTE(RIGHT(PS[[#This Row],[Game]],((LEN(PS[[#This Row],[Game]]))-( FIND("*",SUBSTITUTE(PS[[#This Row],[Game]]," ","*",4))))),", $","*",1)))),LEN(LEFT(RIGHT(PS[[#This Row],[Game]],((LEN(PS[[#This Row],[Game]]))-( FIND("*",SUBSTITUTE(PS[[#This Row],[Game]]," ","*",4))))),( FIND("*",SUBSTITUTE(RIGHT(PS[[#This Row],[Game]],((LEN(PS[[#This Row],[Game]]))-( FIND("*",SUBSTITUTE(PS[[#This Row],[Game]]," ","*",4))))),", $","*",1)))))-1)),"")," [Saturday Special]",""),"ger",""),"ter","") -> [45 Players, Turbo] | L30: =IFERROR(IF(PS[[#This Row],[Y]]="S","",IF(IF(NOT(ISERR(FIND(".",SUBSTITUTE(MID(PS[[#This Row],[Game]],FIND(", $",PS[[#This Row],[Game]])+1,FIND(" Gtd",PS[[#This Row],[Game]])-FIND(", $",PS[[#This Row],[Game]])-1),"$","")))),1,0)=1,SUBSTITUTE(SUBSTITUTE(SUBSTITUTE(MID(PS[[#This Row],[Game]],FIND(", $",PS[[#This Row],[Game]])+1,FIND(" Gtd",PS[[#This Row],[Game]])-FIND(", $",PS[[#This Row],[Game]])-1),"$",""),".",""),"K","00"),SUBSTITUTE(SUBSTITUTE(SUBSTITUTE(MID(PS[[#This Row],[Game]],FIND(", $",PS[[#This Row],[Game]])+1,FIND(" Gtd",PS[[#This Row],[Game]])-FIND(", $",PS[[#This Row],[Game]])-1),"$",""),".",""),"K","000"))),"") ->  | M30: =IF(PS[[#This Row],[Game]]="","",IF(COUNTIF(PS[[#This Row],[Game]],"*Sit&Go*"),"S","M")) -> S | N30: =IF(PS[[#This Row],[Game]]="","",IF(OR(COUNTIF(PS[[#This Row],[Game]],"*Turbo*"),COUNTIF(PS[[#This Row],[Game]],"*Hot*")),"T",IF(COUNTIF(PS[[#This Row],[Game]],"*Bubble Rush*"),"T","R"))) -> T | O30: =IF(PS[[#This Row],[Game]]="","",IF(OR(COUNTIF(PS[[#This Row],[Game]],"*Bounty Builder*"),COUNTIF(PS[[#This Row],[Game]],"*KO*")),"K","")) ->  | P30: =IF(PS[[#This Row],[Game]]="","",IF(OR(COUNTIF(PS[[#This Row],[Game]],"*Rebuy*"),COUNTIF(PS[[#This Row],[Game]],"*+R*")),"R","")) ->  | Q30: =IF(PS[[#This Row],[Game]]="","",IF(COUNTIF(PS[[#This Row],[Game]],"*Zoom*"),"Z","")) ->  | R30: =IF(PS[[#This Row],[Date]]="","",DATE(YEAR(VALUE(PS[[#This Row],[Date]])),MONTH(VALUE(PS[[#This Row],[Date]])),DAY(VALUE(PS[[#This Row],[Date]])))) -> 2019-11-01 | S30: =IF(PS[[#This Row],[Date]]="","",TIME(HOUR(VALUE(PS[[#This Row],[Date]])),MINUTE(VALUE(PS[[#This Row],[Date]])),SECOND(PS[[#This Row],[Date]]))) -> 05:51:00 | T30: =IFERROR(VALUE(SUBSTITUTE(PS[[#This Row],[Amount]],".",",")),"") -> -0.5 | U30: =IFERROR(VALUE(SUBSTITUTE(PS[[#This Row],[Balance]],".",",")),"") -> 12.58
B31: =IF(PS[[#This Row],[Date]]="","",IFERROR(WEEKNUM(PS[[#This Row],[Date]],2),"")) -> 44 | C31: =IF(PS[[#This Row],[Date]]="","",IFERROR(CHOOSE(WEEKDAY(PS[[#This Row],[Date]],2),"понедельник","вторник","среда","четверг","пятница","суббота","воскресенье"),"")) -> пятница | D31: =IF(PS[[#This Row],[Date]]="","",TEXT(PS[[#This Row],[Date]],"mmmm")) -> ноябрь | E31: 2019/11/01 6:01 AM | F31: Tournament Registration | G31: 2726522636 | H31: NL Hold'em Sit&Go Buy-In: 0.45/0.05 $0.50 NL Hold'em [45 Players, Turbo] | I31: (0.50) | J31: 12.08 | K31: =SUBSTITUTE(SUBSTITUTE(SUBSTITUTE(IFERROR(IF(PS[[#This Row],[Y]]="S",MID(PS[[#This Row],[Game]],FIND("[",PS[[#This Row],[Game]]),FIND("]",PS[[#This Row],[Game]])-FIND("[",PS[[#This Row],[Game]])+1),LEFT(LEFT(RIGHT(PS[[#This Row],[Game]],((LEN(PS[[#This Row],[Game]]))-( FIND("*",SUBSTITUTE(PS[[#This Row],[Game]]," ","*",4))))),( FIND("*",SUBSTITUTE(RIGHT(PS[[#This Row],[Game]],((LEN(PS[[#This Row],[Game]]))-( FIND("*",SUBSTITUTE(PS[[#This Row],[Game]]," ","*",4))))),", $","*",1)))),LEN(LEFT(RIGHT(PS[[#This Row],[Game]],((LEN(PS[[#This Row],[Game]]))-( FIND("*",SUBSTITUTE(PS[[#This Row],[Game]]," ","*",4))))),( FIND("*",SUBSTITUTE(RIGHT(PS[[#This Row],[Game]],((LEN(PS[[#This Row],[Game]]))-( FIND("*",SUBSTITUTE(PS[[#This Row],[Game]]," ","*",4))))),", $","*",1)))))-1)),"")," [Saturday Special]",""),"ger",""),"ter","") -> [45 Players, Turbo] | L31: =IFERROR(IF(PS[[#This Row],[Y]]="S","",IF(IF(NOT(ISERR(FIND(".",SUBSTITUTE(MID(PS[[#This Row],[Game]],FIND(", $",PS[[#This Row],[Game]])+1,FIND(" Gtd",PS[[#This Row],[Game]])-FIND(", $",PS[[#This Row],[Game]])-1),"$","")))),1,0)=1,SUBSTITUTE(SUBSTITUTE(SUBSTITUTE(MID(PS[[#This Row],[Game]],FIND(", $",PS[[#This Row],[Game]])+1,FIND(" Gtd",PS[[#This Row],[Game]])-FIND(", $",PS[[#This Row],[Game]])-1),"$",""),".",""),"K","00"),SUBSTITUTE(SUBSTITUTE(SUBSTITUTE(MID(PS[[#This Row],[Game]],FIND(", $",PS[[#This Row],[Game]])+1,FIND(" Gtd",PS[[#This Row],[Game]])-FIND(", $",PS[[#This Row],[Game]])-1),"$",""),".",""),"K","000"))),"") ->  | M31: =IF(PS[[#This Row],[Game]]="","",IF(COUNTIF(PS[[#This Row],[Game]],"*Sit&Go*"),"S","M")) -> S | N31: =IF(PS[[#This Row],[Game]]="","",IF(OR(COUNTIF(PS[[#This Row],[Game]],"*Turbo*"),COUNTIF(PS[[#This Row],[Game]],"*Hot*")),"T",IF(COUNTIF(PS[[#This Row],[Game]],"*Bubble Rush*"),"T","R"))) -> T | O31: =IF(PS[[#This Row],[Game]]="","",IF(OR(COUNTIF(PS[[#This Row],[Game]],"*Bounty Builder*"),COUNTIF(PS[[#This Row],[Game]],"*KO*")),"K","")) ->  | P31: =IF(PS[[#This Row],[Game]]="","",IF(OR(COUNTIF(PS[[#This Row],[Game]],"*Rebuy*"),COUNTIF(PS[[#This Row],[Game]],"*+R*")),"R","")) ->  | Q31: =IF(PS[[#This Row],[Game]]="","",IF(COUNTIF(PS[[#This Row],[Game]],"*Zoom*"),"Z","")) ->  | R31: =IF(PS[[#This Row],[Date]]="","",DATE(YEAR(VALUE(PS[[#This Row],[Date]])),MONTH(VALUE(PS[[#This Row],[Date]])),DAY(VALUE(PS[[#This Row],[Date]])))) -> 2019-11-01 | S31: =IF(PS[[#This Row],[Date]]="","",TIME(HOUR(VALUE(PS[[#This Row],[Date]])),MINUTE(VALUE(PS[[#This Row],[Date]])),SECOND(PS[[#This Row],[Date]]))) -> 06:01:00 | T31: =IFERROR(VALUE(SUBSTITUTE(PS[[#This Row],[Amount]],".",",")),"") -> -0.5 | U31: =IFERROR(VALUE(SUBSTITUTE(PS[[#This Row],[Balance]],".",",")),"") -> 12.08
B32: =IF(PS[[#This Row],[Date]]="","",IFERROR(WEEKNUM(PS[[#This Row],[Date]],2),"")) -> 44 | C32: =IF(PS[[#This Row],[Date]]="","",IFERROR(CHOOSE(WEEKDAY(PS[[#This Row],[Date]],2),"понедельник","вторник","среда","четверг","пятница","суббота","воскресенье"),"")) -> пятница | D32: =IF(PS[[#This Row],[Date]]="","",TEXT(PS[[#This Row],[Date]],"mmmm")) -> ноябрь | E32: 2019/11/01 6:09 AM | F32: Tournament Registration | G32: 2726526389 | H32: NL Hold'em Sit&Go Buy-In: 0.45/0.05 $0.50 NL Hold'em [45 Players, Turbo] | I32: (0.50) | J32: 11.58 | K32: =SUBSTITUTE(SUBSTITUTE(SUBSTITUTE(IFERROR(IF(PS[[#This Row],[Y]]="S",MID(PS[[#This Row],[Game]],FIND("[",PS[[#This Row],[Game]]),FIND("]",PS[[#This Row],[Game]])-FIND("[",PS[[#This Row],[Game]])+1),LEFT(LEFT(RIGHT(PS[[#This Row],[Game]],((LEN(PS[[#This Row],[Game]]))-( FIND("*",SUBSTITUTE(PS[[#This Row],[Game]]," ","*",4))))),( FIND("*",SUBSTITUTE(RIGHT(PS[[#This Row],[Game]],((LEN(PS[[#This Row],[Game]]))-( FIND("*",SUBSTITUTE(PS[[#This Row],[Game]]," ","*",4))))),", $","*",1)))),LEN(LEFT(RIGHT(PS[[#This Row],[Game]],((LEN(PS[[#This Row],[Game]]))-( FIND("*",SUBSTITUTE(PS[[#This Row],[Game]]," ","*",4))))),( FIND("*",SUBSTITUTE(RIGHT(PS[[#This Row],[Game]],((LEN(PS[[#This Row],[Game]]))-( FIND("*",SUBSTITUTE(PS[[#This Row],[Game]]," ","*",4))))),", $","*",1)))))-1)),"")," [Saturday Special]",""),"ger",""),"ter","") -> [45 Players, Turbo] | L32: =IFERROR(IF(PS[[#This Row],[Y]]="S","",IF(IF(NOT(ISERR(FIND(".",SUBSTITUTE(MID(PS[[#This Row],[Game]],FIND(", $",PS[[#This Row],[Game]])+1,FIND(" Gtd",PS[[#This Row],[Game]])-FIND(", $",PS[[#This Row],[Game]])-1),"$","")))),1,0)=1,SUBSTITUTE(SUBSTITUTE(SUBSTITUTE(MID(PS[[#This Row],[Game]],FIND(", $",PS[[#This Row],[Game]])+1,FIND(" Gtd",PS[[#This Row],[Game]])-FIND(", $",PS[[#This Row],[Game]])-1),"$",""),".",""),"K","00"),SUBSTITUTE(SUBSTITUTE(SUBSTITUTE(MID(PS[[#This Row],[Game]],FIND(", $",PS[[#This Row],[Game]])+1,FIND(" Gtd",PS[[#This Row],[Game]])-FIND(", $",PS[[#This Row],[Game]])-1),"$",""),".",""),"K","000"))),"") ->  | M32: =IF(PS[[#This Row],[Game]]="","",IF(COUNTIF(PS[[#This Row],[Game]],"*Sit&Go*"),"S","M")) -> S | N32: =IF(PS[[#This Row],[Game]]="","",IF(OR(COUNTIF(PS[[#This Row],[Game]],"*Turbo*"),COUNTIF(PS[[#This Row],[Game]],"*Hot*")),"T",IF(COUNTIF(PS[[#This Row],[Game]],"*Bubble Rush*"),"T","R"))) -> T | O32: =IF(PS[[#This Row],[Game]]="","",IF(OR(COUNTIF(PS[[#This Row],[Game]],"*Bounty Builder*"),COUNTIF(PS[[#This Row],[Game]],"*KO*")),"K","")) ->  | P32: =IF(PS[[#This Row],[Game]]="","",IF(OR(COUNTIF(PS[[#This Row],[Game]],"*Rebuy*"),COUNTIF(PS[[#This Row],[Game]],"*+R*")),"R","")) ->  | Q32: =IF(PS[[#This Row],[Game]]="","",IF(COUNTIF(PS[[#This Row],[Game]],"*Zoom*"),"Z","")) ->  | R32: =IF(PS[[#This Row],[Date]]="","",DATE(YEAR(VALUE(PS[[#This Row],[Date]])),MONTH(VALUE(PS[[#This Row],[Date]])),DAY(VALUE(PS[[#This Row],[Date]])))) -> 2019-11-01 | S32: =IF(PS[[#This Row],[Date]]="","",TIME(HOUR(VALUE(PS[[#This Row],[Date]])),MINUTE(VALUE(PS[[#This Row],[Date]])),SECOND(PS[[#This Row],[Date]]))) -> 06:09:00 | T32: =IFERROR(VALUE(SUBSTITUTE(PS[[#This Row],[Amount]],".",",")),"") -> -0.5 | U32: =IFERROR(VALUE(SUBSTITUTE(PS[[#This Row],[Balance]],".",",")),"") -> 11.58
B33: =IF(PS[[#This Row],[Date]]="","",IFERROR(WEEKNUM(PS[[#This Row],[Date]],2),"")) -> 44 | C33: =IF(PS[[#This Row],[Date]]="","",IFERROR(CHOOSE(WEEKDAY(PS[[#This Row],[Date]],2),"понедельник","вторник","среда","четверг","пятница","суббота","воскресенье"),"")) -> пятница | D33: =IF(PS[[#This Row],[Date]]="","",TEXT(PS[[#This Row],[Date]],"mmmm")) -> ноябрь | E33: 2019/11/01 6:16 AM | F33: Tournament Registration | G33: 2726529715 | H33: NL Hold'em Sit&Go Buy-In: 0.45/0.05 $0.50 NL Hold'em [45 Players, Turbo] | I33: (0.50) | J33: 11.08 | K33: =SUBSTITUTE(SUBSTITUTE(SUBSTITUTE(IFERROR(IF(PS[[#This Row],[Y]]="S",MID(PS[[#This Row],[Game]],FIND("[",PS[[#This Row],[Game]]),FIND("]",PS[[#This Row],[Game]])-FIND("[",PS[[#This Row],[Game]])+1),LEFT(LEFT(RIGHT(PS[[#This Row],[Game]],((LEN(PS[[#This Row],[Game]]))-( FIND("*",SUBSTITUTE(PS[[#This Row],[Game]]," ","*",4))))),( FIND("*",SUBSTITUTE(RIGHT(PS[[#This Row],[Game]],((LEN(PS[[#This Row],[Game]]))-( FIND("*",SUBSTITUTE(PS[[#This Row],[Game]]," ","*",4))))),", $","*",1)))),LEN(LEFT(RIGHT(PS[[#This Row],[Game]],((LEN(PS[[#This Row],[Game]]))-( FIND("*",SUBSTITUTE(PS[[#This Row],[Game]]," ","*",4))))),( FIND("*",SUBSTITUTE(RIGHT(PS[[#This Row],[Game]],((LEN(PS[[#This Row],[Game]]))-( FIND("*",SUBSTITUTE(PS[[#This Row],[Game]]," ","*",4))))),", $","*",1)))))-1)),"")," [Saturday Special]",""),"ger",""),"ter","") -> [45 Players, Turbo] | L33: =IFERROR(IF(PS[[#This Row],[Y]]="S","",IF(IF(NOT(ISERR(FIND(".",SUBSTITUTE(MID(PS[[#This Row],[Game]],FIND(", $",PS[[#This Row],[Game]])+1,FIND(" Gtd",PS[[#This Row],[Game]])-FIND(", $",PS[[#This Row],[Game]])-1),"$","")))),1,0)=1,SUBSTITUTE(SUBSTITUTE(SUBSTITUTE(MID(PS[[#This Row],[Game]],FIND(", $",PS[[#This Row],[Game]])+1,FIND(" Gtd",PS[[#This Row],[Game]])-FIND(", $",PS[[#This Row],[Game]])-1),"$",""),".",""),"K","00"),SUBSTITUTE(SUBSTITUTE(SUBSTITUTE(MID(PS[[#This Row],[Game]],FIND(", $",PS[[#This Row],[Game]])+1,FIND(" Gtd",PS[[#This Row],[Game]])-FIND(", $",PS[[#This Row],[Game]])-1),"$",""),".",""),"K","000"))),"") ->  | M33: =IF(PS[[#This Row],[Game]]="","",IF(COUNTIF(PS[[#This Row],[Game]],"*Sit&Go*"),"S","M")) -> S | N33: =IF(PS[[#This Row],[Game]]="","",IF(OR(COUNTIF(PS[[#This Row],[Game]],"*Turbo*"),COUNTIF(PS[[#This Row],[Game]],"*Hot*")),"T",IF(COUNTIF(PS[[#This Row],[Game]],"*Bubble Rush*"),"T","R"))) -> T | O33: =IF(PS[[#This Row],[Game]]="","",IF(OR(COUNTIF(PS[[#This Row],[Game]],"*Bounty Builder*"),COUNTIF(PS[[#This Row],[Game]],"*KO*")),"K","")) ->  | P33: =IF(PS[[#This Row],[Game]]="","",IF(OR(COUNTIF(PS[[#This Row],[Game]],"*Rebuy*"),COUNTIF(PS[[#This Row],[Game]],"*+R*")),"R","")) ->  | Q33: =IF(PS[[#This Row],[Game]]="","",IF(COUNTIF(PS[[#This Row],[Game]],"*Zoom*"),"Z","")) ->  | R33: =IF(PS[[#This Row],[Date]]="","",DATE(YEAR(VALUE(PS[[#This Row],[Date]])),MONTH(VALUE(PS[[#This Row],[Date]])),DAY(VALUE(PS[[#This Row],[Date]])))) -> 2019-11-01 | S33: =IF(PS[[#This Row],[Date]]="","",TIME(HOUR(VALUE(PS[[#This Row],[Date]])),MINUTE(VALUE(PS[[#This Row],[Date]])),SECOND(PS[[#This Row],[Date]]))) -> 06:16:00 | T33: =IFERROR(VALUE(SUBSTITUTE(PS[[#This Row],[Amount]],".",",")),"") -> -0.5 | U33: =IFERROR(VALUE(SUBSTITUTE(PS[[#This Row],[Balance]],".",",")),"") -> 11.08
B34: =IF(PS[[#This Row],[Date]]="","",IFERROR(WEEKNUM(PS[[#This Row],[Date]],2),"")) -> 44 | C34: =IF(PS[[#This Row],[Date]]="","",IFERROR(CHOOSE(WEEKDAY(PS[[#This Row],[Date]],2),"понедельник","вторник","среда","четверг","пятница","суббота","воскресенье"),"")) -> пятница | D34: =IF(PS[[#This Row],[Date]]="","",TEXT(PS[[#This Row],[Date]],"mmmm")) -> ноябрь | E34: 2019/11/01 6:17 AM | F34: Tournament Won | G34: 2726499737 | H34: NL Hold'em Sit&Go Buy-In: 0.45/0.05 $0.50 NL Hold'em [45 Players, Turbo] | I34: 0.70 | J34: 11.78 | K34: =SUBSTITUTE(SUBSTITUTE(SUBSTITUTE(IFERROR(IF(PS[[#This Row],[Y]]="S",MID(PS[[#This Row],[Game]],FIND("[",PS[[#This Row],[Game]]),FIND("]",PS[[#This Row],[Game]])-FIND("[",PS[[#This Row],[Game]])+1),LEFT(LEFT(RIGHT(PS[[#This Row],[Game]],((LEN(PS[[#This Row],[Game]]))-( FIND("*",SUBSTITUTE(PS[[#This Row],[Game]]," ","*",4))))),( FIND("*",SUBSTITUTE(RIGHT(PS[[#This Row],[Game]],((LEN(PS[[#This Row],[Game]]))-( FIND("*",SUBSTITUTE(PS[[#This Row],[Game]]," ","*",4))))),", $","*",1)))),LEN(LEFT(RIGHT(PS[[#This Row],[Game]],((LEN(PS[[#This Row],[Game]]))-( FIND("*",SUBSTITUTE(PS[[#This Row],[Game]]," ","*",4))))),( FIND("*",SUBSTITUTE(RIGHT(PS[[#This Row],[Game]],((LEN(PS[[#This Row],[Game]]))-( FIND("*",SUBSTITUTE(PS[[#This Row],[Game]]," ","*",4))))),", $","*",1)))))-1)),"")," [Saturday Special]",""),"ger",""),"ter","") -> [45 Players, Turbo] | L34: =IFERROR(IF(PS[[#This Row],[Y]]="S","",IF(IF(NOT(ISERR(FIND(".",SUBSTITUTE(MID(PS[[#This Row],[Game]],FIND(", $",PS[[#This Row],[Game]])+1,FIND(" Gtd",PS[[#This Row],[Game]])-FIND(", $",PS[[#This Row],[Game]])-1),"$","")))),1,0)=1,SUBSTITUTE(SUBSTITUTE(SUBSTITUTE(MID(PS[[#This Row],[Game]],FIND(", $",PS[[#This Row],[Game]])+1,FIND(" Gtd",PS[[#This Row],[Game]])-FIND(", $",PS[[#This Row],[Game]])-1),"$",""),".",""),"K","00"),SUBSTITUTE(SUBSTITUTE(SUBSTITUTE(MID(PS[[#This Row],[Game]],FIND(", $",PS[[#This Row],[Game]])+1,FIND(" Gtd",PS[[#This Row],[Game]])-FIND(", $",PS[[#This Row],[Game]])-1),"$",""),".",""),"K","000"))),"") ->  | M34: =IF(PS[[#This Row],[Game]]="","",IF(COUNTIF(PS[[#This Row],[Game]],"*Sit&Go*"),"S","M")) -> S | N34: =IF(PS[[#This Row],[Game]]="","",IF(OR(COUNTIF(PS[[#This Row],[Game]],"*Turbo*"),COUNTIF(PS[[#This Row],[Game]],"*Hot*")),"T",IF(COUNTIF(PS[[#This Row],[Game]],"*Bubble Rush*"),"T","R"))) -> T | O34: =IF(PS[[#This Row],[Game]]="","",IF(OR(COUNTIF(PS[[#This Row],[Game]],"*Bounty Builder*"),COUNTIF(PS[[#This Row],[Game]],"*KO*")),"K","")) ->  | P34: =IF(PS[[#This Row],[Game]]="","",IF(OR(COUNTIF(PS[[#This Row],[Game]],"*Rebuy*"),COUNTIF(PS[[#This Row],[Game]],"*+R*")),"R","")) ->  | Q34: =IF(PS[[#This Row],[Game]]="","",IF(COUNTIF(PS[[#This Row],[Game]],"*Zoom*"),"Z","")) ->  | R34: =IF(PS[[#This Row],[Date]]="","",DATE(YEAR(VALUE(PS[[#This Row],[Date]])),MONTH(VALUE(PS[[#This Row],[Date]])),DAY(VALUE(PS[[#This Row],[Date]])))) -> 2019-11-01 | S34: =IF(PS[[#This Row],[Date]]="","",TIME(HOUR(VALUE(PS[[#This Row],[Date]])),MINUTE(VALUE(PS[[#This Row],[Date]])),SECOND(PS[[#This Row],[Date]]))) -> 06:17:00 | T34: =IFERROR(VALUE(SUBSTITUTE(PS[[#This Row],[Amount]],".",",")),"") -> 0.7 | U34: =IFERROR(VALUE(SUBSTITUTE(PS[[#This Row],[Balance]],".",",")),"") -> 11.78
B35: =IF(PS[[#This Row],[Date]]="","",IFERROR(WEEKNUM(PS[[#This Row],[Date]],2),"")) -> 44 | C35: =IF(PS[[#This Row],[Date]]="","",IFERROR(CHOOSE(WEEKDAY(PS[[#This Row],[Date]],2),"понедельник","вторник","среда","четверг","пятница","суббота","воскресенье"),"")) -> пятница | D35: =IF(PS[[#This Row],[Date]]="","",TEXT(PS[[#This Row],[Date]],"mmmm")) -> ноябрь | E35: 2019/11/01 6:21 AM | F35: Tournament Registration | G35: 2726531951 | H35: NL Hold'em Sit&Go Buy-In: 0.45/0.05 $0.50 NL Hold'em [45 Players, Turbo] | I35: (0.50) | J35: 11.28 | K35: =SUBSTITUTE(SUBSTITUTE(SUBSTITUTE(IFERROR(IF(PS[[#This Row],[Y]]="S",MID(PS[[#This Row],[Game]],FIND("[",PS[[#This Row],[Game]]),FIND("]",PS[[#This Row],[Game]])-FIND("[",PS[[#This Row],[Game]])+1),LEFT(LEFT(RIGHT(PS[[#This Row],[Game]],((LEN(PS[[#This Row],[Game]]))-( FIND("*",SUBSTITUTE(PS[[#This Row],[Game]]," ","*",4))))),( FIND("*",SUBSTITUTE(RIGHT(PS[[#This Row],[Game]],((LEN(PS[[#This Row],[Game]]))-( FIND("*",SUBSTITUTE(PS[[#This Row],[Game]]," ","*",4))))),", $","*",1)))),LEN(LEFT(RIGHT(PS[[#This Row],[Game]],((LEN(PS[[#This Row],[Game]]))-( FIND("*",SUBSTITUTE(PS[[#This Row],[Game]]," ","*",4))))),( FIND("*",SUBSTITUTE(RIGHT(PS[[#This Row],[Game]],((LEN(PS[[#This Row],[Game]]))-( FIND("*",SUBSTITUTE(PS[[#This Row],[Game]]," ","*",4))))),", $","*",1)))))-1)),"")," [Saturday Special]",""),"ger",""),"ter","") -> [45 Players, Turbo] | L35: =IFERROR(IF(PS[[#This Row],[Y]]="S","",IF(IF(NOT(ISERR(FIND(".",SUBSTITUTE(MID(PS[[#This Row],[Game]],FIND(", $",PS[[#This Row],[Game]])+1,FIND(" Gtd",PS[[#This Row],[Game]])-FIND(", $",PS[[#This Row],[Game]])-1),"$","")))),1,0)=1,SUBSTITUTE(SUBSTITUTE(SUBSTITUTE(MID(PS[[#This Row],[Game]],FIND(", $",PS[[#This Row],[Game]])+1,FIND(" Gtd",PS[[#This Row],[Game]])-FIND(", $",PS[[#This Row],[Game]])-1),"$",""),".",""),"K","00"),SUBSTITUTE(SUBSTITUTE(SUBSTITUTE(MID(PS[[#This Row],[Game]],FIND(", $",PS[[#This Row],[Game]])+1,FIND(" Gtd",PS[[#This Row],[Game]])-FIND(", $",PS[[#This Row],[Game]])-1),"$",""),".",""),"K","000"))),"") ->  | M35: =IF(PS[[#This Row],[Game]]="","",IF(COUNTIF(PS[[#This Row],[Game]],"*Sit&Go*"),"S","M")) -> S | N35: =IF(PS[[#This Row],[Game]]="","",IF(OR(COUNTIF(PS[[#This Row],[Game]],"*Turbo*"),COUNTIF(PS[[#This Row],[Game]],"*Hot*")),"T",IF(COUNTIF(PS[[#This Row],[Game]],"*Bubble Rush*"),"T","R"))) -> T | O35: =IF(PS[[#This Row],[Game]]="","",IF(OR(COUNTIF(PS[[#This Row],[Game]],"*Bounty Builder*"),COUNTIF(PS[[#This Row],[Game]],"*KO*")),"K","")) ->  | P35: =IF(PS[[#This Row],[Game]]="","",IF(OR(COUNTIF(PS[[#This Row],[Game]],"*Rebuy*"),COUNTIF(PS[[#This Row],[Game]],"*+R*")),"R","")) ->  | Q35: =IF(PS[[#This Row],[Game]]="","",IF(COUNTIF(PS[[#This Row],[Game]],"*Zoom*"),"Z","")) ->  | R35: =IF(PS[[#This Row],[Date]]="","",DATE(YEAR(VALUE(PS[[#This Row],[Date]])),MONTH(VALUE(PS[[#This Row],[Date]])),DAY(VALUE(PS[[#This Row],[Date]])))) -> 2019-11-01 | S35: =IF(PS[[#This Row],[Date]]="","",TIME(HOUR(VALUE(PS[[#This Row],[Date]])),MINUTE(VALUE(PS[[#This Row],[Date]])),SECOND(PS[[#This Row],[Date]]))) -> 06:21:00 | T35: =IFERROR(VALUE(SUBSTITUTE(PS[[#This Row],[Amount]],".",",")),"") -> -0.5 | U35: =IFERROR(VALUE(SUBSTITUTE(PS[[#This Row],[Balance]],".",",")),"") -> 11.28
B36: =IF(PS[[#This Row],[Date]]="","",IFERROR(WEEKNUM(PS[[#This Row],[Date]],2),"")) -> 44 | C36: =IF(PS[[#This Row],[Date]]="","",IFERROR(CHOOSE(WEEKDAY(PS[[#This Row],[Date]],2),"понедельник","вторник","среда","четверг","пятница","суббота","воскресенье"),"")) -> пятница | D36: =IF(PS[[#This Row],[Date]]="","",TEXT(PS[[#This Row],[Date]],"mmmm")) -> ноябрь | E36: 2019/11/01 6:26 AM | F36: Tournament Registration | G36: 2726534631 | H36: NL Hold'em Sit&Go Buy-In: 0.45/0.05 $0.50 NL Hold'em [45 Players, Turbo] | I36: (0.50) | J36: 10.78 | K36: =SUBSTITUTE(SUBSTITUTE(SUBSTITUTE(IFERROR(IF(PS[[#This Row],[Y]]="S",MID(PS[[#This Row],[Game]],FIND("[",PS[[#This Row],[Game]]),FIND("]",PS[[#This Row],[Game]])-FIND("[",PS[[#This Row],[Game]])+1),LEFT(LEFT(RIGHT(PS[[#This Row],[Game]],((LEN(PS[[#This Row],[Game]]))-( FIND("*",SUBSTITUTE(PS[[#This Row],[Game]]," ","*",4))))),( FIND("*",SUBSTITUTE(RIGHT(PS[[#This Row],[Game]],((LEN(PS[[#This Row],[Game]]))-( FIND("*",SUBSTITUTE(PS[[#This Row],[Game]]," ","*",4))))),", $","*",1)))),LEN(LEFT(RIGHT(PS[[#This Row],[Game]],((LEN(PS[[#This Row],[Game]]))-( FIND("*",SUBSTITUTE(PS[[#This Row],[Game]]," ","*",4))))),( FIND("*",SUBSTITUTE(RIGHT(PS[[#This Row],[Game]],((LEN(PS[[#This Row],[Game]]))-( FIND("*",SUBSTITUTE(PS[[#This Row],[Game]]," ","*",4))))),", $","*",1)))))-1)),"")," [Saturday Special]",""),"ger",""),"ter","") -> [45 Players, Turbo] | L36: =IFERROR(IF(PS[[#This Row],[Y]]="S","",IF(IF(NOT(ISERR(FIND(".",SUBSTITUTE(MID(PS[[#This Row],[Game]],FIND(", $",PS[[#This Row],[Game]])+1,FIND(" Gtd",PS[[#This Row],[Game]])-FIND(", $",PS[[#This Row],[Game]])-1),"$","")))),1,0)=1,SUBSTITUTE(SUBSTITUTE(SUBSTITUTE(MID(PS[[#This Row],[Game]],FIND(", $",PS[[#This Row],[Game]])+1,FIND(" Gtd",PS[[#This Row],[Game]])-FIND(", $",PS[[#This Row],[Game]])-1),"$",""),".",""),"K","00"),SUBSTITUTE(SUBSTITUTE(SUBSTITUTE(MID(PS[[#This Row],[Game]],FIND(", $",PS[[#This Row],[Game]])+1,FIND(" Gtd",PS[[#This Row],[Game]])-FIND(", $",PS[[#This Row],[Game]])-1),"$",""),".",""),"K","000"))),"") ->  | M36: =IF(PS[[#This Row],[Game]]="","",IF(COUNTIF(PS[[#This Row],[Game]],"*Sit&Go*"),"S","M")) -> S | N36: =IF(PS[[#This Row],[Game]]="","",IF(OR(COUNTIF(PS[[#This Row],[Game]],"*Turbo*"),COUNTIF(PS[[#This Row],[Game]],"*Hot*")),"T",IF(COUNTIF(PS[[#This Row],[Game]],"*Bubble Rush*"),"T","R"))) -> T | O36: =IF(PS[[#This Row],[Game]]="","",IF(OR(COUNTIF(PS[[#This Row],[Game]],"*Bounty Builder*"),COUNTIF(PS[[#This Row],[Game]],"*KO*")),"K","")) ->  | P36: =IF(PS[[#This Row],[Game]]="","",IF(OR(COUNTIF(PS[[#This Row],[Game]],"*Rebuy*"),COUNTIF(PS[[#This Row],[Game]],"*+R*")),"R","")) ->  | Q36: =IF(PS[[#This Row],[Game]]="","",IF(COUNTIF(PS[[#This Row],[Game]],"*Zoom*"),"Z","")) ->  | R36: =IF(PS[[#This Row],[Date]]="","",DATE(YEAR(VALUE(PS[[#This Row],[Date]])),MONTH(VALUE(PS[[#This Row],[Date]])),DAY(VALUE(PS[[#This Row],[Date]])))) -> 2019-11-01 | S36: =IF(PS[[#This Row],[Date]]="","",TIME(HOUR(VALUE(PS[[#This Row],[Date]])),MINUTE(VALUE(PS[[#This Row],[Date]])),SECOND(PS[[#This Row],[Date]]))) -> 06:26:00 | T36: =IFERROR(VALUE(SUBSTITUTE(PS[[#This Row],[Amount]],".",",")),"") -> -0.5 | U36: =IFERROR(VALUE(SUBSTITUTE(PS[[#This Row],[Balance]],".",",")),"") -> 10.78
B37: =IF(PS[[#This Row],[Date]]="","",IFERROR(WEEKNUM(PS[[#This Row],[Date]],2),"")) -> 44 | C37: =IF(PS[[#This Row],[Date]]="","",IFERROR(CHOOSE(WEEKDAY(PS[[#This Row],[Date]],2),"понедельник","вторник","среда","четверг","пятница","суббота","воскресенье"),"")) -> пятница | D37: =IF(PS[[#This Row],[Date]]="","",TEXT(PS[[#This Row],[Date]],"mmmm")) -> ноябрь | E37: 2019/11/01 6:29 AM | F37: Tournament Unregistration | G37: 2726534631 | H37: NL Hold'em Sit&Go Buy-In: 0.45/0.05 $0.50 NL Hold'em [45 Players, Turbo] | I37: 0.50 | J37: 11.28 | K37: =SUBSTITUTE(SUBSTITUTE(SUBSTITUTE(IFERROR(IF(PS[[#This Row],[Y]]="S",MID(PS[[#This Row],[Game]],FIND("[",PS[[#This Row],[Game]]),FIND("]",PS[[#This Row],[Game]])-FIND("[",PS[[#This Row],[Game]])+1),LEFT(LEFT(RIGHT(PS[[#This Row],[Game]],((LEN(PS[[#This Row],[Game]]))-( FIND("*",SUBSTITUTE(PS[[#This Row],[Game]]," ","*",4))))),( FIND("*",SUBSTITUTE(RIGHT(PS[[#This Row],[Game]],((LEN(PS[[#This Row],[Game]]))-( FIND("*",SUBSTITUTE(PS[[#This Row],[Game]]," ","*",4))))),", $","*",1)))),LEN(LEFT(RIGHT(PS[[#This Row],[Game]],((LEN(PS[[#This Row],[Game]]))-( FIND("*",SUBSTITUTE(PS[[#This Row],[Game]]," ","*",4))))),( FIND("*",SUBSTITUTE(RIGHT(PS[[#This Row],[Game]],((LEN(PS[[#This Row],[Game]]))-( FIND("*",SUBSTITUTE(PS[[#This Row],[Game]]," ","*",4))))),", $","*",1)))))-1)),"")," [Saturday Special]",""),"ger",""),"ter","") -> [45 Players, Turbo] | L37: =IFERROR(IF(PS[[#This Row],[Y]]="S","",IF(IF(NOT(ISERR(FIND(".",SUBSTITUTE(MID(PS[[#This Row],[Game]],FIND(", $",PS[[#This Row],[Game]])+1,FIND(" Gtd",PS[[#This Row],[Game]])-FIND(", $",PS[[#This Row],[Game]])-1),"$","")))),1,0)=1,SUBSTITUTE(SUBSTITUTE(SUBSTITUTE(MID(PS[[#This Row],[Game]],FIND(", $",PS[[#This Row],[Game]])+1,FIND(" Gtd",PS[[#This Row],[Game]])-FIND(", $",PS[[#This Row],[Game]])-1),"$",""),".",""),"K","00"),SUBSTITUTE(SUBSTITUTE(SUBSTITUTE(MID(PS[[#This Row],[Game]],FIND(", $",PS[[#This Row],[Game]])+1,FIND(" Gtd",PS[[#This Row],[Game]])-FIND(", $",PS[[#This Row],[Game]])-1),"$",""),".",""),"K","000"))),"") ->  | M37: =IF(PS[[#This Row],[Game]]="","",IF(COUNTIF(PS[[#This Row],[Game]],"*Sit&Go*"),"S","M")) -> S | N37: =IF(PS[[#This Row],[Game]]="","",IF(OR(COUNTIF(PS[[#This Row],[Game]],"*Turbo*"),COUNTIF(PS[[#This Row],[Game]],"*Hot*")),"T",IF(COUNTIF(PS[[#This Row],[Game]],"*Bubble Rush*"),"T","R"))) -> T | O37: =IF(PS[[#This Row],[Game]]="","",IF(OR(COUNTIF(PS[[#This Row],[Game]],"*Bounty Builder*"),COUNTIF(PS[[#This Row],[Game]],"*KO*")),"K","")) ->  | P37: =IF(PS[[#This Row],[Game]]="","",IF(OR(COUNTIF(PS[[#This Row],[Game]],"*Rebuy*"),COUNTIF(PS[[#This Row],[Game]],"*+R*")),"R","")) ->  | Q37: =IF(PS[[#This Row],[Game]]="","",IF(COUNTIF(PS[[#This Row],[Game]],"*Zoom*"),"Z","")) ->  | R37: =IF(PS[[#This Row],[Date]]="","",DATE(YEAR(VALUE(PS[[#This Row],[Date]])),MONTH(VALUE(PS[[#This Row],[Date]])),DAY(VALUE(PS[[#This Row],[Date]])))) -> 2019-11-01 | S37: =IF(PS[[#This Row],[Date]]="","",TIME(HOUR(VALUE(PS[[#This Row],[Date]])),MINUTE(VALUE(PS[[#This Row],[Date]])),SECOND(PS[[#This Row],[Date]]))) -> 06:29:00 | T37: =IFERROR(VALUE(SUBSTITUTE(PS[[#This Row],[Amount]],".",",")),"") -> 0.5 | U37: =IFERROR(VALUE(SUBSTITUTE(PS[[#This Row],[Balance]],".",",")),"") -> 11.28
B38: =IF(PS[[#This Row],[Date]]="","",IFERROR(WEEKNUM(PS[[#This Row],[Date]],2),"")) -> 44 | C38: =IF(PS[[#This Row],[Date]]="","",IFERROR(CHOOSE(WEEKDAY(PS[[#This Row],[Date]],2),"понедельник","вторник","среда","четверг","пятница","суббота","воскресенье"),"")) -> пятница | D38: =IF(PS[[#This Row],[Date]]="","",TEXT(PS[[#This Row],[Date]],"mmmm")) -> ноябрь | E38: 2019/11/01 6:34 AM | F38: Tournament Won | G38: 2726503086 | H38: NL Hold'em Sit&Go Buy-In: 0.45/0.05 $0.50 NL Hold'em [45 Players, Turbo] | I38: 1.21 | J38: 12.49 | K38: =SUBSTITUTE(SUBSTITUTE(SUBSTITUTE(IFERROR(IF(PS[[#This Row],[Y]]="S",MID(PS[[#This Row],[Game]],FIND("[",PS[[#This Row],[Game]]),FIND("]",PS[[#This Row],[Game]])-FIND("[",PS[[#This Row],[Game]])+1),LEFT(LEFT(RIGHT(PS[[#This Row],[Game]],((LEN(PS[[#This Row],[Game]]))-( FIND("*",SUBSTITUTE(PS[[#This Row],[Game]]," ","*",4))))),( FIND("*",SUBSTITUTE(RIGHT(PS[[#This Row],[Game]],((LEN(PS[[#This Row],[Game]]))-( FIND("*",SUBSTITUTE(PS[[#This Row],[Game]]," ","*",4))))),", $","*",1)))),LEN(LEFT(RIGHT(PS[[#This Row],[Game]],((LEN(PS[[#This Row],[Game]]))-( FIND("*",SUBSTITUTE(PS[[#This Row],[Game]]," ","*",4))))),( FIND("*",SUBSTITUTE(RIGHT(PS[[#This Row],[Game]],((LEN(PS[[#This Row],[Game]]))-( FIND("*",SUBSTITUTE(PS[[#This Row],[Game]]," ","*",4))))),", $","*",1)))))-1)),"")," [Saturday Special]",""),"ger",""),"ter","") -> [45 Players, Turbo] | L38: =IFERROR(IF(PS[[#This Row],[Y]]="S","",IF(IF(NOT(ISERR(FIND(".",SUBSTITUTE(MID(PS[[#This Row],[Game]],FIND(", $",PS[[#This Row],[Game]])+1,FIND(" Gtd",PS[[#This Row],[Game]])-FIND(", $",PS[[#This Row],[Game]])-1),"$","")))),1,0)=1,SUBSTITUTE(SUBSTITUTE(SUBSTITUTE(MID(PS[[#This Row],[Game]],FIND(", $",PS[[#This Row],[Game]])+1,FIND(" Gtd",PS[[#This Row],[Game]])-FIND(", $",PS[[#This Row],[Game]])-1),"$",""),".",""),"K","00"),SUBSTITUTE(SUBSTITUTE(SUBSTITUTE(MID(PS[[#This Row],[Game]],FIND(", $",PS[[#This Row],[Game]])+1,FIND(" Gtd",PS[[#This Row],[Game]])-FIND(", $",PS[[#This Row],[Game]])-1),"$",""),".",""),"K","000"))),"") ->  | M38: =IF(PS[[#This Row],[Game]]="","",IF(COUNTIF(PS[[#This Row],[Game]],"*Sit&Go*"),"S","M")) -> S | N38: =IF(PS[[#This Row],[Game]]="","",IF(OR(COUNTIF(PS[[#This Row],[Game]],"*Turbo*"),COUNTIF(PS[[#This Row],[Game]],"*Hot*")),"T",IF(COUNTIF(PS[[#This Row],[Game]],"*Bubble Rush*"),"T","R"))) -> T | O38: =IF(PS[[#This Row],[Game]]="","",IF(OR(COUNTIF(PS[[#This Row],[Game]],"*Bounty Builder*"),COUNTIF(PS[[#This Row],[Game]],"*KO*")),"K","")) ->  | P38: =IF(PS[[#This Row],[Game]]="","",IF(OR(COUNTIF(PS[[#This Row],[Game]],"*Rebuy*"),COUNTIF(PS[[#This Row],[Game]],"*+R*")),"R","")) ->  | Q38: =IF(PS[[#This Row],[Game]]="","",IF(COUNTIF(PS[[#This Row],[Game]],"*Zoom*"),"Z","")) ->  | R38: =IF(PS[[#This Row],[Date]]="","",DATE(YEAR(VALUE(PS[[#This Row],[Date]])),MONTH(VALUE(PS[[#This Row],[Date]])),DAY(VALUE(PS[[#This Row],[Date]])))) -> 2019-11-01 | S38: =IF(PS[[#This Row],[Date]]="","",TIME(HOUR(VALUE(PS[[#This Row],[Date]])),MINUTE(VALUE(PS[[#This Row],[Date]])),SECOND(PS[[#This Row],[Date]]))) -> 06:34:00 | T38: =IFERROR(VALUE(SUBSTITUTE(PS[[#This Row],[Amount]],".",",")),"") -> 1.21 | U38: =IFERROR(VALUE(SUBSTITUTE(PS[[#This Row],[Balance]],".",",")),"") -> 12.49
B39: =IF(PS[[#This Row],[Date]]="","",IFERROR(WEEKNUM(PS[[#This Row],[Date]],2),"")) -> 44 | C39: =IF(PS[[#This Row],[Date]]="","",IFERROR(CHOOSE(WEEKDAY(PS[[#This Row],[Date]],2),"понедельник","вторник","среда","четверг","пятница","суббота","воскресенье"),"")) -> пятница | D39: =IF(PS[[#This Row],[Date]]="","",TEXT(PS[[#This Row],[Date]],"mmmm")) -> ноябрь | E39: 2019/11/01 7:08 AM | F39: Tournament Won | G39: 2726526389 | H39: NL Hold'em Sit&Go Buy-In: 0.45/0.05 $0.50 NL Hold'em [45 Players, Turbo] | I39: 0.70 | J39: 13.19 | K39: =SUBSTITUTE(SUBSTITUTE(SUBSTITUTE(IFERROR(IF(PS[[#This Row],[Y]]="S",MID(PS[[#This Row],[Game]],FIND("[",PS[[#This Row],[Game]]),FIND("]",PS[[#This Row],[Game]])-FIND("[",PS[[#This Row],[Game]])+1),LEFT(LEFT(RIGHT(PS[[#This Row],[Game]],((LEN(PS[[#This Row],[Game]]))-( FIND("*",SUBSTITUTE(PS[[#This Row],[Game]]," ","*",4))))),( FIND("*",SUBSTITUTE(RIGHT(PS[[#This Row],[Game]],((LEN(PS[[#This Row],[Game]]))-( FIND("*",SUBSTITUTE(PS[[#This Row],[Game]]," ","*",4))))),", $","*",1)))),LEN(LEFT(RIGHT(PS[[#This Row],[Game]],((LEN(PS[[#This Row],[Game]]))-( FIND("*",SUBSTITUTE(PS[[#This Row],[Game]]," ","*",4))))),( FIND("*",SUBSTITUTE(RIGHT(PS[[#This Row],[Game]],((LEN(PS[[#This Row],[Game]]))-( FIND("*",SUBSTITUTE(PS[[#This Row],[Game]]," ","*",4))))),", $","*",1)))))-1)),"")," [Saturday Special]",""),"ger",""),"ter","") -> [45 Players, Turbo] | L39: =IFERROR(IF(PS[[#This Row],[Y]]="S","",IF(IF(NOT(ISERR(FIND(".",SUBSTITUTE(MID(PS[[#This Row],[Game]],FIND(", $",PS[[#This Row],[Game]])+1,FIND(" Gtd",PS[[#This Row],[Game]])-FIND(", $",PS[[#This Row],[Game]])-1),"$","")))),1,0)=1,SUBSTITUTE(SUBSTITUTE(SUBSTITUTE(MID(PS[[#This Row],[Game]],FIND(", $",PS[[#This Row],[Game]])+1,FIND(" Gtd",PS[[#This Row],[Game]])-FIND(", $",PS[[#This Row],[Game]])-1),"$",""),".",""),"K","00"),SUBSTITUTE(SUBSTITUTE(SUBSTITUTE(MID(PS[[#This Row],[Game]],FIND(", $",PS[[#This Row],[Game]])+1,FIND(" Gtd",PS[[#This Row],[Game]])-FIND(", $",PS[[#This Row],[Game]])-1),"$",""),".",""),"K","000"))),"") ->  | M39: =IF(PS[[#This Row],[Game]]="","",IF(COUNTIF(PS[[#This Row],[Game]],"*Sit&Go*"),"S","M")) -> S | N39: =IF(PS[[#This Row],[Game]]="","",IF(OR(COUNTIF(PS[[#This Row],[Game]],"*Turbo*"),COUNTIF(PS[[#This Row],[Game]],"*Hot*")),"T",IF(COUNTIF(PS[[#This Row],[Game]],"*Bubble Rush*"),"T","R"))) -> T | O39: =IF(PS[[#This Row],[Game]]="","",IF(OR(COUNTIF(PS[[#This Row],[Game]],"*Bounty Builder*"),COUNTIF(PS[[#This Row],[Game]],"*KO*")),"K","")) ->  | P39: =IF(PS[[#This Row],[Game]]="","",IF(OR(COUNTIF(PS[[#This Row],[Game]],"*Rebuy*"),COUNTIF(PS[[#This Row],[Game]],"*+R*")),"R","")) ->  | Q39: =IF(PS[[#This Row],[Game]]="","",IF(COUNTIF(PS[[#This Row],[Game]],"*Zoom*"),"Z","")) ->  | R39: =IF(PS[[#This Row],[Date]]="","",DATE(YEAR(VALUE(PS[[#This Row],[Date]])),MONTH(VALUE(PS[[#This Row],[Date]])),DAY(VALUE(PS[[#This Row],[Date]])))) -> 2019-11-01 | S39: =IF(PS[[#This Row],[Date]]="","",TIME(HOUR(VALUE(PS[[#This Row],[Date]])),MINUTE(VALUE(PS[[#This Row],[Date]])),SECOND(PS[[#This Row],[Date]]))) -> 07:08:00 | T39: =IFERROR(VALUE(SUBSTITUTE(PS[[#This Row],[Amount]],".",",")),"") -> 0.7 | U39: =IFERROR(VALUE(SUBSTITUTE(PS[[#This Row],[Balance]],".",",")),"") -> 13.19
B40: =IF(PS[[#This Row],[Date]]="","",IFERROR(WEEKNUM(PS[[#This Row],[Date]],2),"")) -> 44 | C40: =IF(PS[[#This Row],[Date]]="","",IFERROR(CHOOSE(WEEKDAY(PS[[#This Row],[Date]],2),"понедельник","вторник","среда","четверг","пятница","суббота","воскресенье"),"")) -> пятница | D40: =IF(PS[[#This Row],[Date]]="","",TEXT(PS[[#This Row],[Date]],"mmmm")) -> ноябрь | E40: 2019/11/01 8:48 AM | F40: Tournament Registration | G40: 2726607644 | H40: NL Hold'em Sit&Go Buy-In: 0.45/0.05 $0.50 NL Hold'em [45 Players, Turbo] | I40: (0.50) | J40: 12.69 | K40: =SUBSTITUTE(SUBSTITUTE(SUBSTITUTE(IFERROR(IF(PS[[#This Row],[Y]]="S",MID(PS[[#This Row],[Game]],FIND("[",PS[[#This Row],[Game]]),FIND("]",PS[[#This Row],[Game]])-FIND("[",PS[[#This Row],[Game]])+1),LEFT(LEFT(RIGHT(PS[[#This Row],[Game]],((LEN(PS[[#This Row],[Game]]))-( FIND("*",SUBSTITUTE(PS[[#This Row],[Game]]," ","*",4))))),( FIND("*",SUBSTITUTE(RIGHT(PS[[#This Row],[Game]],((LEN(PS[[#This Row],[Game]]))-( FIND("*",SUBSTITUTE(PS[[#This Row],[Game]]," ","*",4))))),", $","*",1)))),LEN(LEFT(RIGHT(PS[[#This Row],[Game]],((LEN(PS[[#This Row],[Game]]))-( FIND("*",SUBSTITUTE(PS[[#This Row],[Game]]," ","*",4))))),( FIND("*",SUBSTITUTE(RIGHT(PS[[#This Row],[Game]],((LEN(PS[[#This Row],[Game]]))-( FIND("*",SUBSTITUTE(PS[[#This Row],[Game]]," ","*",4))))),", $","*",1)))))-1)),"")," [Saturday Special]",""),"ger",""),"ter","") -> [45 Players, Turbo] | L40: =IFERROR(IF(PS[[#This Row],[Y]]="S","",IF(IF(NOT(ISERR(FIND(".",SUBSTITUTE(MID(PS[[#This Row],[Game]],FIND(", $",PS[[#This Row],[Game]])+1,FIND(" Gtd",PS[[#This Row],[Game]])-FIND(", $",PS[[#This Row],[Game]])-1),"$","")))),1,0)=1,SUBSTITUTE(SUBSTITUTE(SUBSTITUTE(MID(PS[[#This Row],[Game]],FIND(", $",PS[[#This Row],[Game]])+1,FIND(" Gtd",PS[[#This Row],[Game]])-FIND(", $",PS[[#This Row],[Game]])-1),"$",""),".",""),"K","00"),SUBSTITUTE(SUBSTITUTE(SUBSTITUTE(MID(PS[[#This Row],[Game]],FIND(", $",PS[[#This Row],[Game]])+1,FIND(" Gtd",PS[[#This Row],[Game]])-FIND(", $",PS[[#This Row],[Game]])-1),"$",""),".",""),"K","000"))),"") ->  | M40: =IF(PS[[#This Row],[Game]]="","",IF(COUNTIF(PS[[#This Row],[Game]],"*Sit&Go*"),"S","M")) -> S | N40: =IF(PS[[#This Row],[Game]]="","",IF(OR(COUNTIF(PS[[#This Row],[Game]],"*Turbo*"),COUNTIF(PS[[#This Row],[Game]],"*Hot*")),"T",IF(COUNTIF(PS[[#This Row],[Game]],"*Bubble Rush*"),"T","R"))) -> T | O40: =IF(PS[[#This Row],[Game]]="","",IF(OR(COUNTIF(PS[[#This Row],[Game]],"*Bounty Builder*"),COUNTIF(PS[[#This Row],[Game]],"*KO*")),"K","")) ->  | P40: =IF(PS[[#This Row],[Game]]="","",IF(OR(COUNTIF(PS[[#This Row],[Game]],"*Rebuy*"),COUNTIF(PS[[#This Row],[Game]],"*+R*")),"R","")) ->  | Q40: =IF(PS[[#This Row],[Game]]="","",IF(COUNTIF(PS[[#This Row],[Game]],"*Zoom*"),"Z","")) ->  | R40: =IF(PS[[#This Row],[Date]]="","",DATE(YEAR(VALUE(PS[[#This Row],[Date]])),MONTH(VALUE(PS[[#This Row],[Date]])),DAY(VALUE(PS[[#This Row],[Date]])))) -> 2019-11-01 | S40: =IF(PS[[#This Row],[Date]]="","",TIME(HOUR(VALUE(PS[[#This Row],[Date]])),MINUTE(VALUE(PS[[#This Row],[Date]])),SECOND(PS[[#This Row],[Date]]))) -> 08:48:00 | T40: =IFERROR(VALUE(SUBSTITUTE(PS[[#This Row],[Amount]],".",",")),"") -> -0.5 | U40: =IFERROR(VALUE(SUBSTITUTE(PS[[#This Row],[Balance]],".",",")),"") -> 12.69
B41: =IF(PS[[#This Row],[Date]]="","",IFERROR(WEEKNUM(PS[[#This Row],[Date]],2),"")) -> 44 | C41: =IF(PS[[#This Row],[Date]]="","",IFERROR(CHOOSE(WEEKDAY(PS[[#This Row],[Date]],2),"понедельник","вторник","среда","четверг","пятница","суббота","воскресенье"),"")) -> пятница | D41: =IF(PS[[#This Row],[Date]]="","",TEXT(PS[[#This Row],[Date]],"mmmm")) -> ноябрь | E41: 2019/11/01 8:49 AM | F41: Tournament Registration | G41: 2726610411 | H41: NL Hold'em Sit&Go Buy-In: 0.45/0.05 $0.50 NL Hold'em [45 Players, Turbo] | I41: (0.50) | J41: 12.19 | K41: =SUBSTITUTE(SUBSTITUTE(SUBSTITUTE(IFERROR(IF(PS[[#This Row],[Y]]="S",MID(PS[[#This Row],[Game]],FIND("[",PS[[#This Row],[Game]]),FIND("]",PS[[#This Row],[Game]])-FIND("[",PS[[#This Row],[Game]])+1),LEFT(LEFT(RIGHT(PS[[#This Row],[Game]],((LEN(PS[[#This Row],[Game]]))-( FIND("*",SUBSTITUTE(PS[[#This Row],[Game]]," ","*",4))))),( FIND("*",SUBSTITUTE(RIGHT(PS[[#This Row],[Game]],((LEN(PS[[#This Row],[Game]]))-( FIND("*",SUBSTITUTE(PS[[#This Row],[Game]]," ","*",4))))),", $","*",1)))),LEN(LEFT(RIGHT(PS[[#This Row],[Game]],((LEN(PS[[#This Row],[Game]]))-( FIND("*",SUBSTITUTE(PS[[#This Row],[Game]]," ","*",4))))),( FIND("*",SUBSTITUTE(RIGHT(PS[[#This Row],[Game]],((LEN(PS[[#This Row],[Game]]))-( FIND("*",SUBSTITUTE(PS[[#This Row],[Game]]," ","*",4))))),", $","*",1)))))-1)),"")," [Saturday Special]",""),"ger",""),"ter","") -> [45 Players, Turbo] | L41: =IFERROR(IF(PS[[#This Row],[Y]]="S","",IF(IF(NOT(ISERR(FIND(".",SUBSTITUTE(MID(PS[[#This Row],[Game]],FIND(", $",PS[[#This Row],[Game]])+1,FIND(" Gtd",PS[[#This Row],[Game]])-FIND(", $",PS[[#This Row],[Game]])-1),"$","")))),1,0)=1,SUBSTITUTE(SUBSTITUTE(SUBSTITUTE(MID(PS[[#This Row],[Game]],FIND(", $",PS[[#This Row],[Game]])+1,FIND(" Gtd",PS[[#This Row],[Game]])-FIND(", $",PS[[#This Row],[Game]])-1),"$",""),".",""),"K","00"),SUBSTITUTE(SUBSTITUTE(SUBSTITUTE(MID(PS[[#This Row],[Game]],FIND(", $",PS[[#This Row],[Game]])+1,FIND(" Gtd",PS[[#This Row],[Game]])-FIND(", $",PS[[#This Row],[Game]])-1),"$",""),".",""),"K","000"))),"") ->  | M41: =IF(PS[[#This Row],[Game]]="","",IF(COUNTIF(PS[[#This Row],[Game]],"*Sit&Go*"),"S","M")) -> S | N41: =IF(PS[[#This Row],[Game]]="","",IF(OR(COUNTIF(PS[[#This Row],[Game]],"*Turbo*"),COUNTIF(PS[[#This Row],[Game]],"*Hot*")),"T",IF(COUNTIF(PS[[#This Row],[Game]],"*Bubble Rush*"),"T","R"))) -> T | O41: =IF(PS[[#This Row],[Game]]="","",IF(OR(COUNTIF(PS[[#This Row],[Game]],"*Bounty Builder*"),COUNTIF(PS[[#This Row],[Game]],"*KO*")),"K","")) ->  | P41: =IF(PS[[#This Row],[Game]]="","",IF(OR(COUNTIF(PS[[#This Row],[Game]],"*Rebuy*"),COUNTIF(PS[[#This Row],[Game]],"*+R*")),"R","")) ->  | Q41: =IF(PS[[#This Row],[Game]]="","",IF(COUNTIF(PS[[#This Row],[Game]],"*Zoom*"),"Z","")) ->  | R41: =IF(PS[[#This Row],[Date]]="","",DATE(YEAR(VALUE(PS[[#This Row],[Date]])),MONTH(VALUE(PS[[#This Row],[Date]])),DAY(VALUE(PS[[#This Row],[Date]])))) -> 2019-11-01 | S41: =IF(PS[[#This Row],[Date]]="","",TIME(HOUR(VALUE(PS[[#This Row],[Date]])),MINUTE(VALUE(PS[[#This Row],[Date]])),SECOND(PS[[#This Row],[Date]]))) -> 08:49:00 | T41: =IFERROR(VALUE(SUBSTITUTE(PS[[#This Row],[Amount]],".",",")),"") -> -0.5 | U41: =IFERROR(VALUE(SUBSTITUTE(PS[[#This Row],[Balance]],".",",")),"") -> 12.19
B42: =IF(PS[[#This Row],[Date]]="","",IFERROR(WEEKNUM(PS[[#This Row],[Date]],2),"")) -> 44 | C42: =IF(PS[[#This Row],[Date]]="","",IFERROR(CHOOSE(WEEKDAY(PS[[#This Row],[Date]],2),"понедельник","вторник","среда","четверг","пятница","суббота","воскресенье"),"")) -> пятница | D42: =IF(PS[[#This Row],[Date]]="","",TEXT(PS[[#This Row],[Date]],"mmmm")) -> ноябрь | E42: 2019/11/01 8:54 AM | F42: Tournament Registration | G42: 2726613180 | H42: NL Hold'em Sit&Go Buy-In: 0.45/0.05 $0.50 NL Hold'em [45 Players, Turbo] | I42: (0.50) | J42: 11.69 | K42: =SUBSTITUTE(SUBSTITUTE(SUBSTITUTE(IFERROR(IF(PS[[#This Row],[Y]]="S",MID(PS[[#This Row],[Game]],FIND("[",PS[[#This Row],[Game]]),FIND("]",PS[[#This Row],[Game]])-FIND("[",PS[[#This Row],[Game]])+1),LEFT(LEFT(RIGHT(PS[[#This Row],[Game]],((LEN(PS[[#This Row],[Game]]))-( FIND("*",SUBSTITUTE(PS[[#This Row],[Game]]," ","*",4))))),( FIND("*",SUBSTITUTE(RIGHT(PS[[#This Row],[Game]],((LEN(PS[[#This Row],[Game]]))-( FIND("*",SUBSTITUTE(PS[[#This Row],[Game]]," ","*",4))))),", $","*",1)))),LEN(LEFT(RIGHT(PS[[#This Row],[Game]],((LEN(PS[[#This Row],[Game]]))-( FIND("*",SUBSTITUTE(PS[[#This Row],[Game]]," ","*",4))))),( FIND("*",SUBSTITUTE(RIGHT(PS[[#This Row],[Game]],((LEN(PS[[#This Row],[Game]]))-( FIND("*",SUBSTITUTE(PS[[#This Row],[Game]]," ","*",4))))),", $","*",1)))))-1)),"")," [Saturday Special]",""),"ger",""),"ter","") -> [45 Players, Turbo] | L42: =IFERROR(IF(PS[[#This Row],[Y]]="S","",IF(IF(NOT(ISERR(FIND(".",SUBSTITUTE(MID(PS[[#This Row],[Game]],FIND(", $",PS[[#This Row],[Game]])+1,FIND(" Gtd",PS[[#This Row],[Game]])-FIND(", $",PS[[#This Row],[Game]])-1),"$","")))),1,0)=1,SUBSTITUTE(SUBSTITUTE(SUBSTITUTE(MID(PS[[#This Row],[Game]],FIND(", $",PS[[#This Row],[Game]])+1,FIND(" Gtd",PS[[#This Row],[Game]])-FIND(", $",PS[[#This Row],[Game]])-1),"$",""),".",""),"K","00"),SUBSTITUTE(SUBSTITUTE(SUBSTITUTE(MID(PS[[#This Row],[Game]],FIND(", $",PS[[#This Row],[Game]])+1,FIND(" Gtd",PS[[#This Row],[Game]])-FIND(", $",PS[[#This Row],[Game]])-1),"$",""),".",""),"K","000"))),"") ->  | M42: =IF(PS[[#This Row],[Game]]="","",IF(COUNTIF(PS[[#This Row],[Game]],"*Sit&Go*"),"S","M")) -> S | N42: =IF(PS[[#This Row],[Game]]="","",IF(OR(COUNTIF(PS[[#This Row],[Game]],"*Turbo*"),COUNTIF(PS[[#This Row],[Game]],"*Hot*")),"T",IF(COUNTIF(PS[[#This Row],[Game]],"*Bubble Rush*"),"T","R"))) -> T | O42: =IF(PS[[#This Row],[Game]]="","",IF(OR(COUNTIF(PS[[#This Row],[Game]],"*Bounty Builder*"),COUNTIF(PS[[#This Row],[Game]],"*KO*")),"K","")) ->  | P42: =IF(PS[[#This Row],[Game]]="","",IF(OR(COUNTIF(PS[[#This Row],[Game]],"*Rebuy*"),COUNTIF(PS[[#This Row],[Game]],"*+R*")),"R","")) ->  | Q42: =IF(PS[[#This Row],[Game]]="","",IF(COUNTIF(PS[[#This Row],[Game]],"*Zoom*"),"Z","")) ->  | R42: =IF(PS[[#This Row],[Date]]="","",DATE(YEAR(VALUE(PS[[#This Row],[Date]])),MONTH(VALUE(PS[[#This Row],[Date]])),DAY(VALUE(PS[[#This Row],[Date]])))) -> 2019-11-01 | S42: =IF(PS[[#This Row],[Date]]="","",TIME(HOUR(VALUE(PS[[#This Row],[Date]])),MINUTE(VALUE(PS[[#This Row],[Date]])),SECOND(PS[[#This Row],[Date]]))) -> 08:54:00 | T42: =IFERROR(VALUE(SUBSTITUTE(PS[[#This Row],[Amount]],".",",")),"") -> -0.5 | U42: =IFERROR(VALUE(SUBSTITUTE(PS[[#This Row],[Balance]],".",",")),"") -> 11.69
B43: =IF(PS[[#This Row],[Date]]="","",IFERROR(WEEKNUM(PS[[#This Row],[Date]],2),"")) -> 44 | C43: =IF(PS[[#This Row],[Date]]="","",IFERROR(CHOOSE(WEEKDAY(PS[[#This Row],[Date]],2),"понедельник","вторник","среда","четверг","пятница","суббота","воскресенье"),"")) -> пятница | D43: =IF(PS[[#This Row],[Date]]="","",TEXT(PS[[#This Row],[Date]],"mmmm")) -> ноябрь | E43: 2019/11/01 8:58 AM | F43: Tournament Registration | G43: 2726615665 | H43: NL Hold'em Sit&Go Buy-In: 0.45/0.05 $0.50 NL Hold'em [45 Players, Turbo] | I43: (0.50) | J43: 11.19 | K43: =SUBSTITUTE(SUBSTITUTE(SUBSTITUTE(IFERROR(IF(PS[[#This Row],[Y]]="S",MID(PS[[#This Row],[Game]],FIND("[",PS[[#This Row],[Game]]),FIND("]",PS[[#This Row],[Game]])-FIND("[",PS[[#This Row],[Game]])+1),LEFT(LEFT(RIGHT(PS[[#This Row],[Game]],((LEN(PS[[#This Row],[Game]]))-( FIND("*",SUBSTITUTE(PS[[#This Row],[Game]]," ","*",4))))),( FIND("*",SUBSTITUTE(RIGHT(PS[[#This Row],[Game]],((LEN(PS[[#This Row],[Game]]))-( FIND("*",SUBSTITUTE(PS[[#This Row],[Game]]," ","*",4))))),", $","*",1)))),LEN(LEFT(RIGHT(PS[[#This Row],[Game]],((LEN(PS[[#This Row],[Game]]))-( FIND("*",SUBSTITUTE(PS[[#This Row],[Game]]," ","*",4))))),( FIND("*",SUBSTITUTE(RIGHT(PS[[#This Row],[Game]],((LEN(PS[[#This Row],[Game]]))-( FIND("*",SUBSTITUTE(PS[[#This Row],[Game]]," ","*",4))))),", $","*",1)))))-1)),"")," [Saturday Special]",""),"ger",""),"ter","") -> [45 Players, Turbo] | L43: =IFERROR(IF(PS[[#This Row],[Y]]="S","",IF(IF(NOT(ISERR(FIND(".",SUBSTITUTE(MID(PS[[#This Row],[Game]],FIND(", $",PS[[#This Row],[Game]])+1,FIND(" Gtd",PS[[#This Row],[Game]])-FIND(", $",PS[[#This Row],[Game]])-1),"$","")))),1,0)=1,SUBSTITUTE(SUBSTITUTE(SUBSTITUTE(MID(PS[[#This Row],[Game]],FIND(", $",PS[[#This Row],[Game]])+1,FIND(" Gtd",PS[[#This Row],[Game]])-FIND(", $",PS[[#This Row],[Game]])-1),"$",""),".",""),"K","00"),SUBSTITUTE(SUBSTITUTE(SUBSTITUTE(MID(PS[[#This Row],[Game]],FIND(", $",PS[[#This Row],[Game]])+1,FIND(" Gtd",PS[[#This Row],[Game]])-FIND(", $",PS[[#This Row],[Game]])-1),"$",""),".",""),"K","000"))),"") ->  | M43: =IF(PS[[#This Row],[Game]]="","",IF(COUNTIF(PS[[#This Row],[Game]],"*Sit&Go*"),"S","M")) -> S | N43: =IF(PS[[#This Row],[Game]]="","",IF(OR(COUNTIF(PS[[#This Row],[Game]],"*Turbo*"),COUNTIF(PS[[#This Row],[Game]],"*Hot*")),"T",IF(COUNTIF(PS[[#This Row],[Game]],"*Bubble Rush*"),"T","R"))) -> T | O43: =IF(PS[[#This Row],[Game]]="","",IF(OR(COUNTIF(PS[[#This Row],[Game]],"*Bounty Builder*"),COUNTIF(PS[[#This Row],[Game]],"*KO*")),"K","")) ->  | P43: =IF(PS[[#This Row],[Game]]="","",IF(OR(COUNTIF(PS[[#This Row],[Game]],"*Rebuy*"),COUNTIF(PS[[#This Row],[Game]],"*+R*")),"R","")) ->  | Q43: =IF(PS[[#This Row],[Game]]="","",IF(COUNTIF(PS[[#This Row],[Game]],"*Zoom*"),"Z","")) ->  | R43: =IF(PS[[#This Row],[Date]]="","",DATE(YEAR(VALUE(PS[[#This Row],[Date]])),MONTH(VALUE(PS[[#This Row],[Date]])),DAY(VALUE(PS[[#This Row],[Date]])))) -> 2019-11-01 | S43: =IF(PS[[#This Row],[Date]]="","",TIME(HOUR(VALUE(PS[[#This Row],[Date]])),MINUTE(VALUE(PS[[#This Row],[Date]])),SECOND(PS[[#This Row],[Date]]))) -> 08:58:00 | T43: =IFERROR(VALUE(SUBSTITUTE(PS[[#This Row],[Amount]],".",",")),"") -> -0.5 | U43: =IFERROR(VALUE(SUBSTITUTE(PS[[#This Row],[Balance]],".",",")),"") -> 11.19
B44: =IF(PS[[#This Row],[Date]]="","",IFERROR(WEEKNUM(PS[[#This Row],[Date]],2),"")) -> 44 | C44: =IF(PS[[#This Row],[Date]]="","",IFERROR(CHOOSE(WEEKDAY(PS[[#This Row],[Date]],2),"понедельник","вторник","среда","четверг","пятница","суббота","воскресенье"),"")) -> пятница | D44: =IF(PS[[#This Row],[Date]]="","",TEXT(PS[[#This Row],[Date]],"mmmm")) -> ноябрь | E44: 2019/11/01 9:05 AM | F44: Tournament Registration | G44: 2726619625 | H44: NL Hold'em Sit&Go Buy-In: 0.45/0.05 $0.50 NL Hold'em [45 Players, Turbo] | I44: (0.50) | J44: 10.69 | K44: =SUBSTITUTE(SUBSTITUTE(SUBSTITUTE(IFERROR(IF(PS[[#This Row],[Y]]="S",MID(PS[[#This Row],[Game]],FIND("[",PS[[#This Row],[Game]]),FIND("]",PS[[#This Row],[Game]])-FIND("[",PS[[#This Row],[Game]])+1),LEFT(LEFT(RIGHT(PS[[#This Row],[Game]],((LEN(PS[[#This Row],[Game]]))-( FIND("*",SUBSTITUTE(PS[[#This Row],[Game]]," ","*",4))))),( FIND("*",SUBSTITUTE(RIGHT(PS[[#This Row],[Game]],((LEN(PS[[#This Row],[Game]]))-( FIND("*",SUBSTITUTE(PS[[#This Row],[Game]]," ","*",4))))),", $","*",1)))),LEN(LEFT(RIGHT(PS[[#This Row],[Game]],((LEN(PS[[#This Row],[Game]]))-( FIND("*",SUBSTITUTE(PS[[#This Row],[Game]]," ","*",4))))),( FIND("*",SUBSTITUTE(RIGHT(PS[[#This Row],[Game]],((LEN(PS[[#This Row],[Game]]))-( FIND("*",SUBSTITUTE(PS[[#This Row],[Game]]," ","*",4))))),", $","*",1)))))-1)),"")," [Saturday Special]",""),"ger",""),"ter","") -> [45 Players, Turbo] | L44: =IFERROR(IF(PS[[#This Row],[Y]]="S","",IF(IF(NOT(ISERR(FIND(".",SUBSTITUTE(MID(PS[[#This Row],[Game]],FIND(", $",PS[[#This Row],[Game]])+1,FIND(" Gtd",PS[[#This Row],[Game]])-FIND(", $",PS[[#This Row],[Game]])-1),"$","")))),1,0)=1,SUBSTITUTE(SUBSTITUTE(SUBSTITUTE(MID(PS[[#This Row],[Game]],FIND(", $",PS[[#This Row],[Game]])+1,FIND(" Gtd",PS[[#This Row],[Game]])-FIND(", $",PS[[#This Row],[Game]])-1),"$",""),".",""),"K","00"),SUBSTITUTE(SUBSTITUTE(SUBSTITUTE(MID(PS[[#This Row],[Game]],FIND(", $",PS[[#This Row],[Game]])+1,FIND(" Gtd",PS[[#This Row],[Game]])-FIND(", $",PS[[#This Row],[Game]])-1),"$",""),".",""),"K","000"))),"") ->  | M44: =IF(PS[[#This Row],[Game]]="","",IF(COUNTIF(PS[[#This Row],[Game]],"*Sit&Go*"),"S","M")) -> S | N44: =IF(PS[[#This Row],[Game]]="","",IF(OR(COUNTIF(PS[[#This Row],[Game]],"*Turbo*"),COUNTIF(PS[[#This Row],[Game]],"*Hot*")),"T",IF(COUNTIF(PS[[#This Row],[Game]],"*Bubble Rush*"),"T","R"))) -> T | O44: =IF(PS[[#This Row],[Game]]="","",IF(OR(COUNTIF(PS[[#This Row],[Game]],"*Bounty Builder*"),COUNTIF(PS[[#This Row],[Game]],"*KO*")),"K","")) ->  | P44: =IF(PS[[#This Row],[Game]]="","",IF(OR(COUNTIF(PS[[#This Row],[Game]],"*Rebuy*"),COUNTIF(PS[[#This Row],[Game]],"*+R*")),"R","")) ->  | Q44: =IF(PS[[#This Row],[Game]]="","",IF(COUNTIF(PS[[#This Row],[Game]],"*Zoom*"),"Z","")) ->  | R44: =IF(PS[[#This Row],[Date]]="","",DATE(YEAR(VALUE(PS[[#This Row],[Date]])),MONTH(VALUE(PS[[#This Row],[Date]])),DAY(VALUE(PS[[#This Row],[Date]])))) -> 2019-11-01 | S44: =IF(PS[[#This Row],[Date]]="","",TIME(HOUR(VALUE(PS[[#This Row],[Date]])),MINUTE(VALUE(PS[[#This Row],[Date]])),SECOND(PS[[#This Row],[Date]]))) -> 09:05:00 | T44: =IFERROR(VALUE(SUBSTITUTE(PS[[#This Row],[Amount]],".",",")),"") -> -0.5 | U44: =IFERROR(VALUE(SUBSTITUTE(PS[[#This Row],[Balance]],".",",")),"") -> 10.69
B45: =IF(PS[[#This Row],[Date]]="","",IFERROR(WEEKNUM(PS[[#This Row],[Date]],2),"")) -> 44 | C45: =IF(PS[[#This Row],[Date]]="","",IFERROR(CHOOSE(WEEKDAY(PS[[#This Row],[Date]],2),"понедельник","вторник","среда","четверг","пятница","суббота","воскресенье"),"")) -> пятница | D45: =IF(PS[[#This Row],[Date]]="","",TEXT(PS[[#This Row],[Date]],"mmmm")) -> ноябрь | E45: 2019/11/01 9:09 AM | F45: Tournament Registration | G45: 2726622207 | H45: NL Hold'em Sit&Go Buy-In: 0.45/0.05 $0.50 NL Hold'em [45 Players, Turbo] | I45: (0.50) | J45: 10.19 | K45: =SUBSTITUTE(SUBSTITUTE(SUBSTITUTE(IFERROR(IF(PS[[#This Row],[Y]]="S",MID(PS[[#This Row],[Game]],FIND("[",PS[[#This Row],[Game]]),FIND("]",PS[[#This Row],[Game]])-FIND("[",PS[[#This Row],[Game]])+1),LEFT(LEFT(RIGHT(PS[[#This Row],[Game]],((LEN(PS[[#This Row],[Game]]))-( FIND("*",SUBSTITUTE(PS[[#This Row],[Game]]," ","*",4))))),( FIND("*",SUBSTITUTE(RIGHT(PS[[#This Row],[Game]],((LEN(PS[[#This Row],[Game]]))-( FIND("*",SUBSTITUTE(PS[[#This Row],[Game]]," ","*",4))))),", $","*",1)))),LEN(LEFT(RIGHT(PS[[#This Row],[Game]],((LEN(PS[[#This Row],[Game]]))-( FIND("*",SUBSTITUTE(PS[[#This Row],[Game]]," ","*",4))))),( FIND("*",SUBSTITUTE(RIGHT(PS[[#This Row],[Game]],((LEN(PS[[#This Row],[Game]]))-( FIND("*",SUBSTITUTE(PS[[#This Row],[Game]]," ","*",4))))),", $","*",1)))))-1)),"")," [Saturday Special]",""),"ger",""),"ter","") -> [45 Players, Turbo] | L45: =IFERROR(IF(PS[[#This Row],[Y]]="S","",IF(IF(NOT(ISERR(FIND(".",SUBSTITUTE(MID(PS[[#This Row],[Game]],FIND(", $",PS[[#This Row],[Game]])+1,FIND(" Gtd",PS[[#This Row],[Game]])-FIND(", $",PS[[#This Row],[Game]])-1),"$","")))),1,0)=1,SUBSTITUTE(SUBSTITUTE(SUBSTITUTE(MID(PS[[#This Row],[Game]],FIND(", $",PS[[#This Row],[Game]])+1,FIND(" Gtd",PS[[#This Row],[Game]])-FIND(", $",PS[[#This Row],[Game]])-1),"$",""),".",""),"K","00"),SUBSTITUTE(SUBSTITUTE(SUBSTITUTE(MID(PS[[#This Row],[Game]],FIND(", $",PS[[#This Row],[Game]])+1,FIND(" Gtd",PS[[#This Row],[Game]])-FIND(", $",PS[[#This Row],[Game]])-1),"$",""),".",""),"K","000"))),"") ->  | M45: =IF(PS[[#This Row],[Game]]="","",IF(COUNTIF(PS[[#This Row],[Game]],"*Sit&Go*"),"S","M")) -> S | N45: =IF(PS[[#This Row],[Game]]="","",IF(OR(COUNTIF(PS[[#This Row],[Game]],"*Turbo*"),COUNTIF(PS[[#This Row],[Game]],"*Hot*")),"T",IF(COUNTIF(PS[[#This Row],[Game]],"*Bubble Rush*"),"T","R"))) -> T | O45: =IF(PS[[#This Row],[Game]]="","",IF(OR(COUNTIF(PS[[#This Row],[Game]],"*Bounty Builder*"),COUNTIF(PS[[#This Row],[Game]],"*KO*")),"K","")) ->  | P45: =IF(PS[[#This Row],[Game]]="","",IF(OR(COUNTIF(PS[[#This Row],[Game]],"*Rebuy*"),COUNTIF(PS[[#This Row],[Game]],"*+R*")),"R","")) ->  | Q45: =IF(PS[[#This Row],[Game]]="","",IF(COUNTIF(PS[[#This Row],[Game]],"*Zoom*"),"Z","")) ->  | R45: =IF(PS[[#This Row],[Date]]="","",DATE(YEAR(VALUE(PS[[#This Row],[Date]])),MONTH(VALUE(PS[[#This Row],[Date]])),DAY(VALUE(PS[[#This Row],[Date]])))) -> 2019-11-01 | S45: =IF(PS[[#This Row],[Date]]="","",TIME(HOUR(VALUE(PS[[#This Row],[Date]])),MINUTE(VALUE(PS[[#This Row],[Date]])),SECOND(PS[[#This Row],[Date]]))) -> 09:09:00 | T45: =IFERROR(VALUE(SUBSTITUTE(PS[[#This Row],[Amount]],".",",")),"") -> -0.5 | U45: =IFERROR(VALUE(SUBSTITUTE(PS[[#This Row],[Balance]],".",",")),"") -> 10.19
B46: =IF(PS[[#This Row],[Date]]="","",IFERROR(WEEKNUM(PS[[#This Row],[Date]],2),"")) -> 44 | C46: =IF(PS[[#This Row],[Date]]="","",IFERROR(CHOOSE(WEEKDAY(PS[[#This Row],[Date]],2),"понедельник","вторник","среда","четверг","пятница","суббота","воскресенье"),"")) -> пятница | D46: =IF(PS[[#This Row],[Date]]="","",TEXT(PS[[#This Row],[Date]],"mmmm")) -> ноябрь | E46: 2019/11/01 11:01 AM | F46: Tournament Registration | G46: 2726688448 | H46: NL Hold'em Sit&Go Buy-In: 0.23/0.02 $0.25 NL Hold'em [45 Players] | I46: (0.25) | J46: 9.94 | K46: =SUBSTITUTE(SUBSTITUTE(SUBSTITUTE(IFERROR(IF(PS[[#This Row],[Y]]="S",MID(PS[[#This Row],[Game]],FIND("[",PS[[#This Row],[Game]]),FIND("]",PS[[#This Row],[Game]])-FIND("[",PS[[#This Row],[Game]])+1),LEFT(LEFT(RIGHT(PS[[#This Row],[Game]],((LEN(PS[[#This Row],[Game]]))-( FIND("*",SUBSTITUTE(PS[[#This Row],[Game]]," ","*",4))))),( FIND("*",SUBSTITUTE(RIGHT(PS[[#This Row],[Game]],((LEN(PS[[#This Row],[Game]]))-( FIND("*",SUBSTITUTE(PS[[#This Row],[Game]]," ","*",4))))),", $","*",1)))),LEN(LEFT(RIGHT(PS[[#This Row],[Game]],((LEN(PS[[#This Row],[Game]]))-( FIND("*",SUBSTITUTE(PS[[#This Row],[Game]]," ","*",4))))),( FIND("*",SUBSTITUTE(RIGHT(PS[[#This Row],[Game]],((LEN(PS[[#This Row],[Game]]))-( FIND("*",SUBSTITUTE(PS[[#This Row],[Game]]," ","*",4))))),", $","*",1)))))-1)),"")," [Saturday Special]",""),"ger",""),"ter","") -> [45 Players] | L46: =IFERROR(IF(PS[[#This Row],[Y]]="S","",IF(IF(NOT(ISERR(FIND(".",SUBSTITUTE(MID(PS[[#This Row],[Game]],FIND(", $",PS[[#This Row],[Game]])+1,FIND(" Gtd",PS[[#This Row],[Game]])-FIND(", $",PS[[#This Row],[Game]])-1),"$","")))),1,0)=1,SUBSTITUTE(SUBSTITUTE(SUBSTITUTE(MID(PS[[#This Row],[Game]],FIND(", $",PS[[#This Row],[Game]])+1,FIND(" Gtd",PS[[#This Row],[Game]])-FIND(", $",PS[[#This Row],[Game]])-1),"$",""),".",""),"K","00"),SUBSTITUTE(SUBSTITUTE(SUBSTITUTE(MID(PS[[#This Row],[Game]],FIND(", $",PS[[#This Row],[Game]])+1,FIND(" Gtd",PS[[#This Row],[Game]])-FIND(", $",PS[[#This Row],[Game]])-1),"$",""),".",""),"K","000"))),"") ->  | M46: =IF(PS[[#This Row],[Game]]="","",IF(COUNTIF(PS[[#This Row],[Game]],"*Sit&Go*"),"S","M")) -> S | N46: =IF(PS[[#This Row],[Game]]="","",IF(OR(COUNTIF(PS[[#This Row],[Game]],"*Turbo*"),COUNTIF(PS[[#This Row],[Game]],"*Hot*")),"T",IF(COUNTIF(PS[[#This Row],[Game]],"*Bubble Rush*"),"T","R"))) -> R | O46: =IF(PS[[#This Row],[Game]]="","",IF(OR(COUNTIF(PS[[#This Row],[Game]],"*Bounty Builder*"),COUNTIF(PS[[#This Row],[Game]],"*KO*")),"K","")) ->  | P46: =IF(PS[[#This Row],[Game]]="","",IF(OR(COUNTIF(PS[[#This Row],[Game]],"*Rebuy*"),COUNTIF(PS[[#This Row],[Game]],"*+R*")),"R","")) ->  | Q46: =IF(PS[[#This Row],[Game]]="","",IF(COUNTIF(PS[[#This Row],[Game]],"*Zoom*"),"Z","")) ->  | R46: =IF(PS[[#This Row],[Date]]="","",DATE(YEAR(VALUE(PS[[#This Row],[Date]])),MONTH(VALUE(PS[[#This Row],[Date]])),DAY(VALUE(PS[[#This Row],[Date]])))) -> 2019-11-01 | S46: =IF(PS[[#This Row],[Date]]="","",TIME(HOUR(VALUE(PS[[#This Row],[Date]])),MINUTE(VALUE(PS[[#This Row],[Date]])),SECOND(PS[[#This Row],[Date]]))) -> 11:01:00 | T46: =IFERROR(VALUE(SUBSTITUTE(PS[[#This Row],[Amount]],".",",")),"") -> -0.25 | U46: =IFERROR(VALUE(SUBSTITUTE(PS[[#This Row],[Balance]],".",",")),"") -> 9.94
B47: =IF(PS[[#This Row],[Date]]="","",IFERROR(WEEKNUM(PS[[#This Row],[Date]],2),"")) -> 44 | C47: =IF(PS[[#This Row],[Date]]="","",IFERROR(CHOOSE(WEEKDAY(PS[[#This Row],[Date]],2),"понедельник","вторник","среда","четверг","пятница","суббота","воскресенье"),"")) -> пятница | D47: =IF(PS[[#This Row],[Date]]="","",TEXT(PS[[#This Row],[Date]],"mmmm")) -> ноябрь | E47: 2019/11/01 11:01 AM | F47: Tournament Registration | G47: 2726689898 | H47: NL Hold'em Sit&Go Buy-In: 0.23/0.02 $0.25 NL Hold'em [90 Players] | I47: (0.25) | J47: 9.69 | K47: =SUBSTITUTE(SUBSTITUTE(SUBSTITUTE(IFERROR(IF(PS[[#This Row],[Y]]="S",MID(PS[[#This Row],[Game]],FIND("[",PS[[#This Row],[Game]]),FIND("]",PS[[#This Row],[Game]])-FIND("[",PS[[#This Row],[Game]])+1),LEFT(LEFT(RIGHT(PS[[#This Row],[Game]],((LEN(PS[[#This Row],[Game]]))-( FIND("*",SUBSTITUTE(PS[[#This Row],[Game]]," ","*",4))))),( FIND("*",SUBSTITUTE(RIGHT(PS[[#This Row],[Game]],((LEN(PS[[#This Row],[Game]]))-( FIND("*",SUBSTITUTE(PS[[#This Row],[Game]]," ","*",4))))),", $","*",1)))),LEN(LEFT(RIGHT(PS[[#This Row],[Game]],((LEN(PS[[#This Row],[Game]]))-( FIND("*",SUBSTITUTE(PS[[#This Row],[Game]]," ","*",4))))),( FIND("*",SUBSTITUTE(RIGHT(PS[[#This Row],[Game]],((LEN(PS[[#This Row],[Game]]))-( FIND("*",SUBSTITUTE(PS[[#This Row],[Game]]," ","*",4))))),", $","*",1)))))-1)),"")," [Saturday Special]",""),"ger",""),"ter","") -> [90 Players] | L47: =IFERROR(IF(PS[[#This Row],[Y]]="S","",IF(IF(NOT(ISERR(FIND(".",SUBSTITUTE(MID(PS[[#This Row],[Game]],FIND(", $",PS[[#This Row],[Game]])+1,FIND(" Gtd",PS[[#This Row],[Game]])-FIND(", $",PS[[#This Row],[Game]])-1),"$","")))),1,0)=1,SUBSTITUTE(SUBSTITUTE(SUBSTITUTE(MID(PS[[#This Row],[Game]],FIND(", $",PS[[#This Row],[Game]])+1,FIND(" Gtd",PS[[#This Row],[Game]])-FIND(", $",PS[[#This Row],[Game]])-1),"$",""),".",""),"K","00"),SUBSTITUTE(SUBSTITUTE(SUBSTITUTE(MID(PS[[#This Row],[Game]],FIND(", $",PS[[#This Row],[Game]])+1,FIND(" Gtd",PS[[#This Row],[Game]])-FIND(", $",PS[[#This Row],[Game]])-1),"$",""),".",""),"K","000"))),"") ->  | M47: =IF(PS[[#This Row],[Game]]="","",IF(COUNTIF(PS[[#This Row],[Game]],"*Sit&Go*"),"S","M")) -> S | N47: =IF(PS[[#This Row],[Game]]="","",IF(OR(COUNTIF(PS[[#This Row],[Game]],"*Turbo*"),COUNTIF(PS[[#This Row],[Game]],"*Hot*")),"T",IF(COUNTIF(PS[[#This Row],[Game]],"*Bubble Rush*"),"T","R"))) -> R | O47: =IF(PS[[#This Row],[Game]]="","",IF(OR(COUNTIF(PS[[#This Row],[Game]],"*Bounty Builder*"),COUNTIF(PS[[#This Row],[Game]],"*KO*")),"K","")) ->  | P47: =IF(PS[[#This Row],[Game]]="","",IF(OR(COUNTIF(PS[[#This Row],[Game]],"*Rebuy*"),COUNTIF(PS[[#This Row],[Game]],"*+R*")),"R","")) ->  | Q47: =IF(PS[[#This Row],[Game]]="","",IF(COUNTIF(PS[[#This Row],[Game]],"*Zoom*"),"Z","")) ->  | R47: =IF(PS[[#This Row],[Date]]="","",DATE(YEAR(VALUE(PS[[#This Row],[Date]])),MONTH(VALUE(PS[[#This Row],[Date]])),DAY(VALUE(PS[[#This Row],[Date]])))) -> 2019-11-01 | S47: =IF(PS[[#This Row],[Date]]="","",TIME(HOUR(VALUE(PS[[#This Row],[Date]])),MINUTE(VALUE(PS[[#This Row],[Date]])),SECOND(PS[[#This Row],[Date]]))) -> 11:01:00 | T47: =IFERROR(VALUE(SUBSTITUTE(PS[[#This Row],[Amount]],".",",")),"") -> -0.25 | U47: =IFERROR(VALUE(SUBSTITUTE(PS[[#This Row],[Balance]],".",",")),"") -> 9.69
B48: =IF(PS[[#This Row],[Date]]="","",IFERROR(WEEKNUM(PS[[#This Row],[Date]],2),"")) -> 44 | C48: =IF(PS[[#This Row],[Date]]="","",IFERROR(CHOOSE(WEEKDAY(PS[[#This Row],[Date]],2),"понедельник","вторник","среда","четверг","пятница","суббота","воскресенье"),"")) -> пятница | D48: =IF(PS[[#This Row],[Date]]="","",TEXT(PS[[#This Row],[Date]],"mmmm")) -> ноябрь | E48: 2019/11/01 11:02 AM | F48: Tournament Registration | G48: 2726692496 | H48: NL Hold'em Sit&Go Buy-In: 0.23/0.02 $0.25 NL Hold'em [45 Players] | I48: (0.25) | J48: 9.44 | K48: =SUBSTITUTE(SUBSTITUTE(SUBSTITUTE(IFERROR(IF(PS[[#This Row],[Y]]="S",MID(PS[[#This Row],[Game]],FIND("[",PS[[#This Row],[Game]]),FIND("]",PS[[#This Row],[Game]])-FIND("[",PS[[#This Row],[Game]])+1),LEFT(LEFT(RIGHT(PS[[#This Row],[Game]],((LEN(PS[[#This Row],[Game]]))-( FIND("*",SUBSTITUTE(PS[[#This Row],[Game]]," ","*",4))))),( FIND("*",SUBSTITUTE(RIGHT(PS[[#This Row],[Game]],((LEN(PS[[#This Row],[Game]]))-( FIND("*",SUBSTITUTE(PS[[#This Row],[Game]]," ","*",4))))),", $","*",1)))),LEN(LEFT(RIGHT(PS[[#This Row],[Game]],((LEN(PS[[#This Row],[Game]]))-( FIND("*",SUBSTITUTE(PS[[#This Row],[Game]]," ","*",4))))),( FIND("*",SUBSTITUTE(RIGHT(PS[[#This Row],[Game]],((LEN(PS[[#This Row],[Game]]))-( FIND("*",SUBSTITUTE(PS[[#This Row],[Game]]," ","*",4))))),", $","*",1)))))-1)),"")," [Saturday Special]",""),"ger",""),"ter","") -> [45 Players] | L48: =IFERROR(IF(PS[[#This Row],[Y]]="S","",IF(IF(NOT(ISERR(FIND(".",SUBSTITUTE(MID(PS[[#This Row],[Game]],FIND(", $",PS[[#This Row],[Game]])+1,FIND(" Gtd",PS[[#This Row],[Game]])-FIND(", $",PS[[#This Row],[Game]])-1),"$","")))),1,0)=1,SUBSTITUTE(SUBSTITUTE(SUBSTITUTE(MID(PS[[#This Row],[Game]],FIND(", $",PS[[#This Row],[Game]])+1,FIND(" Gtd",PS[[#This Row],[Game]])-FIND(", $",PS[[#This Row],[Game]])-1),"$",""),".",""),"K","00"),SUBSTITUTE(SUBSTITUTE(SUBSTITUTE(MID(PS[[#This Row],[Game]],FIND(", $",PS[[#This Row],[Game]])+1,FIND(" Gtd",PS[[#This Row],[Game]])-FIND(", $",PS[[#This Row],[Game]])-1),"$",""),".",""),"K","000"))),"") ->  | M48: =IF(PS[[#This Row],[Game]]="","",IF(COUNTIF(PS[[#This Row],[Game]],"*Sit&Go*"),"S","M")) -> S | N48: =IF(PS[[#This Row],[Game]]="","",IF(OR(COUNTIF(PS[[#This Row],[Game]],"*Turbo*"),COUNTIF(PS[[#This Row],[Game]],"*Hot*")),"T",IF(COUNTIF(PS[[#This Row],[Game]],"*Bubble Rush*"),"T","R"))) -> R | O48: =IF(PS[[#This Row],[Game]]="","",IF(OR(COUNTIF(PS[[#This Row],[Game]],"*Bounty Builder*"),COUNTIF(PS[[#This Row],[Game]],"*KO*")),"K","")) ->  | P48: =IF(PS[[#This Row],[Game]]="","",IF(OR(COUNTIF(PS[[#This Row],[Game]],"*Rebuy*"),COUNTIF(PS[[#This Row],[Game]],"*+R*")),"R","")) ->  | Q48: =IF(PS[[#This Row],[Game]]="","",IF(COUNTIF(PS[[#This Row],[Game]],"*Zoom*"),"Z","")) ->  | R48: =IF(PS[[#This Row],[Date]]="","",DATE(YEAR(VALUE(PS[[#This Row],[Date]])),MONTH(VALUE(PS[[#This Row],[Date]])),DAY(VALUE(PS[[#This Row],[Date]])))) -> 2019-11-01 | S48: =IF(PS[[#This Row],[Date]]="","",TIME(HOUR(VALUE(PS[[#This Row],[Date]])),MINUTE(VALUE(PS[[#This Row],[Date]])),SECOND(PS[[#This Row],[Date]]))) -> 11:02:00 | T48: =IFERROR(VALUE(SUBSTITUTE(PS[[#This Row],[Amount]],".",",")),"") -> -0.25 | U48: =IFERROR(VALUE(SUBSTITUTE(PS[[#This Row],[Balance]],".",",")),"") -> 9.44
B49: =IF(PS[[#This Row],[Date]]="","",IFERROR(WEEKNUM(PS[[#This Row],[Date]],2),"")) -> 44 | C49: =IF(PS[[#This Row],[Date]]="","",IFERROR(CHOOSE(WEEKDAY(PS[[#This Row],[Date]],2),"понедельник","вторник","среда","четверг","пятница","суббота","воскресенье"),"")) -> пятница | D49: =IF(PS[[#This Row],[Date]]="","",TEXT(PS[[#This Row],[Date]],"mmmm")) -> ноябрь | E49: 2019/11/01 11:05 AM | F49: Tournament Registration | G49: 2726694760 | H49: NL Hold'em Sit&Go Buy-In: 0.23/0.02 $0.25 NL Hold'em [45 Players] | I49: (0.25) | J49: 9.19 | K49: =SUBSTITUTE(SUBSTITUTE(SUBSTITUTE(IFERROR(IF(PS[[#This Row],[Y]]="S",MID(PS[[#This Row],[Game]],FIND("[",PS[[#This Row],[Game]]),FIND("]",PS[[#This Row],[Game]])-FIND("[",PS[[#This Row],[Game]])+1),LEFT(LEFT(RIGHT(PS[[#This Row],[Game]],((LEN(PS[[#This Row],[Game]]))-( FIND("*",SUBSTITUTE(PS[[#This Row],[Game]]," ","*",4))))),( FIND("*",SUBSTITUTE(RIGHT(PS[[#This Row],[Game]],((LEN(PS[[#This Row],[Game]]))-( FIND("*",SUBSTITUTE(PS[[#This Row],[Game]]," ","*",4))))),", $","*",1)))),LEN(LEFT(RIGHT(PS[[#This Row],[Game]],((LEN(PS[[#This Row],[Game]]))-( FIND("*",SUBSTITUTE(PS[[#This Row],[Game]]," ","*",4))))),( FIND("*",SUBSTITUTE(RIGHT(PS[[#This Row],[Game]],((LEN(PS[[#This Row],[Game]]))-( FIND("*",SUBSTITUTE(PS[[#This Row],[Game]]," ","*",4))))),", $","*",1)))))-1)),"")," [Saturday Special]",""),"ger",""),"ter","") -> [45 Players] | L49: =IFERROR(IF(PS[[#This Row],[Y]]="S","",IF(IF(NOT(ISERR(FIND(".",SUBSTITUTE(MID(PS[[#This Row],[Game]],FIND(", $",PS[[#This Row],[Game]])+1,FIND(" Gtd",PS[[#This Row],[Game]])-FIND(", $",PS[[#This Row],[Game]])-1),"$","")))),1,0)=1,SUBSTITUTE(SUBSTITUTE(SUBSTITUTE(MID(PS[[#This Row],[Game]],FIND(", $",PS[[#This Row],[Game]])+1,FIND(" Gtd",PS[[#This Row],[Game]])-FIND(", $",PS[[#This Row],[Game]])-1),"$",""),".",""),"K","00"),SUBSTITUTE(SUBSTITUTE(SUBSTITUTE(MID(PS[[#This Row],[Game]],FIND(", $",PS[[#This Row],[Game]])+1,FIND(" Gtd",PS[[#This Row],[Game]])-FIND(", $",PS[[#This Row],[Game]])-1),"$",""),".",""),"K","000"))),"") ->  | M49: =IF(PS[[#This Row],[Game]]="","",IF(COUNTIF(PS[[#This Row],[Game]],"*Sit&Go*"),"S","M")) -> S | N49: =IF(PS[[#This Row],[Game]]="","",IF(OR(COUNTIF(PS[[#This Row],[Game]],"*Turbo*"),COUNTIF(PS[[#This Row],[Game]],"*Hot*")),"T",IF(COUNTIF(PS[[#This Row],[Game]],"*Bubble Rush*"),"T","R"))) -> R | O49: =IF(PS[[#This Row],[Game]]="","",IF(OR(COUNTIF(PS[[#This Row],[Game]],"*Bounty Builder*"),COUNTIF(PS[[#This Row],[Game]],"*KO*")),"K","")) ->  | P49: =IF(PS[[#This Row],[Game]]="","",IF(OR(COUNTIF(PS[[#This Row],[Game]],"*Rebuy*"),COUNTIF(PS[[#This Row],[Game]],"*+R*")),"R","")) ->  | Q49: =IF(PS[[#This Row],[Game]]="","",IF(COUNTIF(PS[[#This Row],[Game]],"*Zoom*"),"Z","")) ->  | R49: =IF(PS[[#This Row],[Date]]="","",DATE(YEAR(VALUE(PS[[#This Row],[Date]])),MONTH(VALUE(PS[[#This Row],[Date]])),DAY(VALUE(PS[[#This Row],[Date]])))) -> 2019-11-01 | S49: =IF(PS[[#This Row],[Date]]="","",TIME(HOUR(VALUE(PS[[#This Row],[Date]])),MINUTE(VALUE(PS[[#This Row],[Date]])),SECOND(PS[[#This Row],[Date]]))) -> 11:05:00 | T49: =IFERROR(VALUE(SUBSTITUTE(PS[[#This Row],[Amount]],".",",")),"") -> -0.25 | U49: =IFERROR(VALUE(SUBSTITUTE(PS[[#This Row],[Balance]],".",",")),"") -> 9.19
B50: =IF(PS[[#This Row],[Date]]="","",IFERROR(WEEKNUM(PS[[#This Row],[Date]],2),"")) -> 44 | C50: =IF(PS[[#This Row],[Date]]="","",IFERROR(CHOOSE(WEEKDAY(PS[[#This Row],[Date]],2),"понедельник","вторник","среда","четверг","пятница","суббота","воскресенье"),"")) -> пятница | D50: =IF(PS[[#This Row],[Date]]="","",TEXT(PS[[#This Row],[Date]],"mmmm")) -> ноябрь | E50: 2019/11/01 11:08 AM | F50: Tournament Registration | G50: 2726696837 | H50: NL Hold'em Sit&Go Buy-In: 0.23/0.02 $0.25 NL Hold'em [45 Players] | I50: (0.25) | J50: 8.94 | K50: =SUBSTITUTE(SUBSTITUTE(SUBSTITUTE(IFERROR(IF(PS[[#This Row],[Y]]="S",MID(PS[[#This Row],[Game]],FIND("[",PS[[#This Row],[Game]]),FIND("]",PS[[#This Row],[Game]])-FIND("[",PS[[#This Row],[Game]])+1),LEFT(LEFT(RIGHT(PS[[#This Row],[Game]],((LEN(PS[[#This Row],[Game]]))-( FIND("*",SUBSTITUTE(PS[[#This Row],[Game]]," ","*",4))))),( FIND("*",SUBSTITUTE(RIGHT(PS[[#This Row],[Game]],((LEN(PS[[#This Row],[Game]]))-( FIND("*",SUBSTITUTE(PS[[#This Row],[Game]]," ","*",4))))),", $","*",1)))),LEN(LEFT(RIGHT(PS[[#This Row],[Game]],((LEN(PS[[#This Row],[Game]]))-( FIND("*",SUBSTITUTE(PS[[#This Row],[Game]]," ","*",4))))),( FIND("*",SUBSTITUTE(RIGHT(PS[[#This Row],[Game]],((LEN(PS[[#This Row],[Game]]))-( FIND("*",SUBSTITUTE(PS[[#This Row],[Game]]," ","*",4))))),", $","*",1)))))-1)),"")," [Saturday Special]",""),"ger",""),"ter","") -> [45 Players] | L50: =IFERROR(IF(PS[[#This Row],[Y]]="S","",IF(IF(NOT(ISERR(FIND(".",SUBSTITUTE(MID(PS[[#This Row],[Game]],FIND(", $",PS[[#This Row],[Game]])+1,FIND(" Gtd",PS[[#This Row],[Game]])-FIND(", $",PS[[#This Row],[Game]])-1),"$","")))),1,0)=1,SUBSTITUTE(SUBSTITUTE(SUBSTITUTE(MID(PS[[#This Row],[Game]],FIND(", $",PS[[#This Row],[Game]])+1,FIND(" Gtd",PS[[#This Row],[Game]])-FIND(", $",PS[[#This Row],[Game]])-1),"$",""),".",""),"K","00"),SUBSTITUTE(SUBSTITUTE(SUBSTITUTE(MID(PS[[#This Row],[Game]],FIND(", $",PS[[#This Row],[Game]])+1,FIND(" Gtd",PS[[#This Row],[Game]])-FIND(", $",PS[[#This Row],[Game]])-1),"$",""),".",""),"K","000"))),"") ->  | M50: =IF(PS[[#This Row],[Game]]="","",IF(COUNTIF(PS[[#This Row],[Game]],"*Sit&Go*"),"S","M")) -> S | N50: =IF(PS[[#This Row],[Game]]="","",IF(OR(COUNTIF(PS[[#This Row],[Game]],"*Turbo*"),COUNTIF(PS[[#This Row],[Game]],"*Hot*")),"T",IF(COUNTIF(PS[[#This Row],[Game]],"*Bubble Rush*"),"T","R"))) -> R | O50: =IF(PS[[#This Row],[Game]]="","",IF(OR(COUNTIF(PS[[#This Row],[Game]],"*Bounty Builder*"),COUNTIF(PS[[#This Row],[Game]],"*KO*")),"K","")) ->  | P50: =IF(PS[[#This Row],[Game]]="","",IF(OR(COUNTIF(PS[[#This Row],[Game]],"*Rebuy*"),COUNTIF(PS[[#This Row],[Game]],"*+R*")),"R","")) ->  | Q50: =IF(PS[[#This Row],[Game]]="","",IF(COUNTIF(PS[[#This Row],[Game]],"*Zoom*"),"Z","")) ->  | R50: =IF(PS[[#This Row],[Date]]="","",DATE(YEAR(VALUE(PS[[#This Row],[Date]])),MONTH(VALUE(PS[[#This Row],[Date]])),DAY(VALUE(PS[[#This Row],[Date]])))) -> 2019-11-01 | S50: =IF(PS[[#This Row],[Date]]="","",TIME(HOUR(VALUE(PS[[#This Row],[Date]])),MINUTE(VALUE(PS[[#This Row],[Date]])),SECOND(PS[[#This Row],[Date]]))) -> 11:08:00 | T50: =IFERROR(VALUE(SUBSTITUTE(PS[[#This Row],[Amount]],".",",")),"") -> -0.25 | U50: =IFERROR(VALUE(SUBSTITUTE(PS[[#This Row],[Balance]],".",",")),"") -> 8.94
B51: =IF(PS[[#This Row],[Date]]="","",IFERROR(WEEKNUM(PS[[#This Row],[Date]],2),"")) -> 44 | C51: =IF(PS[[#This Row],[Date]]="","",IFERROR(CHOOSE(WEEKDAY(PS[[#This Row],[Date]],2),"понедельник","вторник","среда","четверг","пятница","суббота","воскресенье"),"")) -> пятница | D51: =IF(PS[[#This Row],[Date]]="","",TEXT(PS[[#This Row],[Date]],"mmmm")) -> ноябрь | E51: 2019/11/01 11:12 AM | F51: Tournament Registration | G51: 2726699527 | H51: NL Hold'em Sit&Go Buy-In: 0.23/0.02 $0.25 NL Hold'em [45 Players] | I51: (0.25) | J51: 8.69 | K51: =SUBSTITUTE(SUBSTITUTE(SUBSTITUTE(IFERROR(IF(PS[[#This Row],[Y]]="S",MID(PS[[#This Row],[Game]],FIND("[",PS[[#This Row],[Game]]),FIND("]",PS[[#This Row],[Game]])-FIND("[",PS[[#This Row],[Game]])+1),LEFT(LEFT(RIGHT(PS[[#This Row],[Game]],((LEN(PS[[#This Row],[Game]]))-( FIND("*",SUBSTITUTE(PS[[#This Row],[Game]]," ","*",4))))),( FIND("*",SUBSTITUTE(RIGHT(PS[[#This Row],[Game]],((LEN(PS[[#This Row],[Game]]))-( FIND("*",SUBSTITUTE(PS[[#This Row],[Game]]," ","*",4))))),", $","*",1)))),LEN(LEFT(RIGHT(PS[[#This Row],[Game]],((LEN(PS[[#This Row],[Game]]))-( FIND("*",SUBSTITUTE(PS[[#This Row],[Game]]," ","*",4))))),( FIND("*",SUBSTITUTE(RIGHT(PS[[#This Row],[Game]],((LEN(PS[[#This Row],[Game]]))-( FIND("*",SUBSTITUTE(PS[[#This Row],[Game]]," ","*",4))))),", $","*",1)))))-1)),"")," [Saturday Special]",""),"ger",""),"ter","") -> [45 Players] | L51: =IFERROR(IF(PS[[#This Row],[Y]]="S","",IF(IF(NOT(ISERR(FIND(".",SUBSTITUTE(MID(PS[[#This Row],[Game]],FIND(", $",PS[[#This Row],[Game]])+1,FIND(" Gtd",PS[[#This Row],[Game]])-FIND(", $",PS[[#This Row],[Game]])-1),"$","")))),1,0)=1,SUBSTITUTE(SUBSTITUTE(SUBSTITUTE(MID(PS[[#This Row],[Game]],FIND(", $",PS[[#This Row],[Game]])+1,FIND(" Gtd",PS[[#This Row],[Game]])-FIND(", $",PS[[#This Row],[Game]])-1),"$",""),".",""),"K","00"),SUBSTITUTE(SUBSTITUTE(SUBSTITUTE(MID(PS[[#This Row],[Game]],FIND(", $",PS[[#This Row],[Game]])+1,FIND(" Gtd",PS[[#This Row],[Game]])-FIND(", $",PS[[#This Row],[Game]])-1),"$",""),".",""),"K","000"))),"") ->  | M51: =IF(PS[[#This Row],[Game]]="","",IF(COUNTIF(PS[[#This Row],[Game]],"*Sit&Go*"),"S","M")) -> S | N51: =IF(PS[[#This Row],[Game]]="","",IF(OR(COUNTIF(PS[[#This Row],[Game]],"*Turbo*"),COUNTIF(PS[[#This Row],[Game]],"*Hot*")),"T",IF(COUNTIF(PS[[#This Row],[Game]],"*Bubble Rush*"),"T","R"))) -> R | O51: =IF(PS[[#This Row],[Game]]="","",IF(OR(COUNTIF(PS[[#This Row],[Game]],"*Bounty Builder*"),COUNTIF(PS[[#This Row],[Game]],"*KO*")),"K","")) ->  | P51: =IF(PS[[#This Row],[Game]]="","",IF(OR(COUNTIF(PS[[#This Row],[Game]],"*Rebuy*"),COUNTIF(PS[[#This Row],[Game]],"*+R*")),"R","")) ->  | Q51: =IF(PS[[#This Row],[Game]]="","",IF(COUNTIF(PS[[#This Row],[Game]],"*Zoom*"),"Z","")) ->  | R51: =IF(PS[[#This Row],[Date]]="","",DATE(YEAR(VALUE(PS[[#This Row],[Date]])),MONTH(VALUE(PS[[#This Row],[Date]])),DAY(VALUE(PS[[#This Row],[Date]])))) -> 2019-11-01 | S51: =IF(PS[[#This Row],[Date]]="","",TIME(HOUR(VALUE(PS[[#This Row],[Date]])),MINUTE(VALUE(PS[[#This Row],[Date]])),SECOND(PS[[#This Row],[Date]]))) -> 11:12:00 | T51: =IFERROR(VALUE(SUBSTITUTE(PS[[#This Row],[Amount]],".",",")),"") -> -0.25 | U51: =IFERROR(VALUE(SUBSTITUTE(PS[[#This Row],[Balance]],".",",")),"") -> 8.69
B52: =IF(PS[[#This Row],[Date]]="","",IFERROR(WEEKNUM(PS[[#This Row],[Date]],2),"")) -> 44 | C52: =IF(PS[[#This Row],[Date]]="","",IFERROR(CHOOSE(WEEKDAY(PS[[#This Row],[Date]],2),"понедельник","вторник","среда","четверг","пятница","суббота","воскресенье"),"")) -> пятница | D52: =IF(PS[[#This Row],[Date]]="","",TEXT(PS[[#This Row],[Date]],"mmmm")) -> ноябрь | E52: 2019/11/01 11:16 AM | F52: Tournament Registration | G52: 2726702001 | H52: NL Hold'em Sit&Go Buy-In: 0.23/0.02 $0.25 NL Hold'em [45 Players] | I52: (0.25) | J52: 8.44 | K52: =SUBSTITUTE(SUBSTITUTE(SUBSTITUTE(IFERROR(IF(PS[[#This Row],[Y]]="S",MID(PS[[#This Row],[Game]],FIND("[",PS[[#This Row],[Game]]),FIND("]",PS[[#This Row],[Game]])-FIND("[",PS[[#This Row],[Game]])+1),LEFT(LEFT(RIGHT(PS[[#This Row],[Game]],((LEN(PS[[#This Row],[Game]]))-( FIND("*",SUBSTITUTE(PS[[#This Row],[Game]]," ","*",4))))),( FIND("*",SUBSTITUTE(RIGHT(PS[[#This Row],[Game]],((LEN(PS[[#This Row],[Game]]))-( FIND("*",SUBSTITUTE(PS[[#This Row],[Game]]," ","*",4))))),", $","*",1)))),LEN(LEFT(RIGHT(PS[[#This Row],[Game]],((LEN(PS[[#This Row],[Game]]))-( FIND("*",SUBSTITUTE(PS[[#This Row],[Game]]," ","*",4))))),( FIND("*",SUBSTITUTE(RIGHT(PS[[#This Row],[Game]],((LEN(PS[[#This Row],[Game]]))-( FIND("*",SUBSTITUTE(PS[[#This Row],[Game]]," ","*",4))))),", $","*",1)))))-1)),"")," [Saturday Special]",""),"ger",""),"ter","") -> [45 Players] | L52: =IFERROR(IF(PS[[#This Row],[Y]]="S","",IF(IF(NOT(ISERR(FIND(".",SUBSTITUTE(MID(PS[[#This Row],[Game]],FIND(", $",PS[[#This Row],[Game]])+1,FIND(" Gtd",PS[[#This Row],[Game]])-FIND(", $",PS[[#This Row],[Game]])-1),"$","")))),1,0)=1,SUBSTITUTE(SUBSTITUTE(SUBSTITUTE(MID(PS[[#This Row],[Game]],FIND(", $",PS[[#This Row],[Game]])+1,FIND(" Gtd",PS[[#This Row],[Game]])-FIND(", $",PS[[#This Row],[Game]])-1),"$",""),".",""),"K","00"),SUBSTITUTE(SUBSTITUTE(SUBSTITUTE(MID(PS[[#This Row],[Game]],FIND(", $",PS[[#This Row],[Game]])+1,FIND(" Gtd",PS[[#This Row],[Game]])-FIND(", $",PS[[#This Row],[Game]])-1),"$",""),".",""),"K","000"))),"") ->  | M52: =IF(PS[[#This Row],[Game]]="","",IF(COUNTIF(PS[[#This Row],[Game]],"*Sit&Go*"),"S","M")) -> S | N52: =IF(PS[[#This Row],[Game]]="","",IF(OR(COUNTIF(PS[[#This Row],[Game]],"*Turbo*"),COUNTIF(PS[[#This Row],[Game]],"*Hot*")),"T",IF(COUNTIF(PS[[#This Row],[Game]],"*Bubble Rush*"),"T","R"))) -> R | O52: =IF(PS[[#This Row],[Game]]="","",IF(OR(COUNTIF(PS[[#This Row],[Game]],"*Bounty Builder*"),COUNTIF(PS[[#This Row],[Game]],"*KO*")),"K","")) ->  | P52: =IF(PS[[#This Row],[Game]]="","",IF(OR(COUNTIF(PS[[#This Row],[Game]],"*Rebuy*"),COUNTIF(PS[[#This Row],[Game]],"*+R*")),"R","")) ->  | Q52: =IF(PS[[#This Row],[Game]]="","",IF(COUNTIF(PS[[#This Row],[Game]],"*Zoom*"),"Z","")) ->  | R52: =IF(PS[[#This Row],[Date]]="","",DATE(YEAR(VALUE(PS[[#This Row],[Date]])),MONTH(VALUE(PS[[#This Row],[Date]])),DAY(VALUE(PS[[#This Row],[Date]])))) -> 2019-11-01 | S52: =IF(PS[[#This Row],[Date]]="","",TIME(HOUR(VALUE(PS[[#This Row],[Date]])),MINUTE(VALUE(PS[[#This Row],[Date]])),SECOND(PS[[#This Row],[Date]]))) -> 11:16:00 | T52: =IFERROR(VALUE(SUBSTITUTE(PS[[#This Row],[Amount]],".",",")),"") -> -0.25 | U52: =IFERROR(VALUE(SUBSTITUTE(PS[[#This Row],[Balance]],".",",")),"") -> 8.44
B53: =IF(PS[[#This Row],[Date]]="","",IFERROR(WEEKNUM(PS[[#This Row],[Date]],2),"")) -> 44 | C53: =IF(PS[[#This Row],[Date]]="","",IFERROR(CHOOSE(WEEKDAY(PS[[#This Row],[Date]],2),"понедельник","вторник","среда","четверг","пятница","суббота","воскресенье"),"")) -> пятница | D53: =IF(PS[[#This Row],[Date]]="","",TEXT(PS[[#This Row],[Date]],"mmmm")) -> ноябрь | E53: 2019/11/01 11:18 AM | F53: Tournament Registration | G53: 2726703561 | H53: NL Hold'em Sit&Go Buy-In: 0.23/0.02 $0.25 NL Hold'em [45 Players] | I53: (0.25) | J53: 8.19 | K53: =SUBSTITUTE(SUBSTITUTE(SUBSTITUTE(IFERROR(IF(PS[[#This Row],[Y]]="S",MID(PS[[#This Row],[Game]],FIND("[",PS[[#This Row],[Game]]),FIND("]",PS[[#This Row],[Game]])-FIND("[",PS[[#This Row],[Game]])+1),LEFT(LEFT(RIGHT(PS[[#This Row],[Game]],((LEN(PS[[#This Row],[Game]]))-( FIND("*",SUBSTITUTE(PS[[#This Row],[Game]]," ","*",4))))),( FIND("*",SUBSTITUTE(RIGHT(PS[[#This Row],[Game]],((LEN(PS[[#This Row],[Game]]))-( FIND("*",SUBSTITUTE(PS[[#This Row],[Game]]," ","*",4))))),", $","*",1)))),LEN(LEFT(RIGHT(PS[[#This Row],[Game]],((LEN(PS[[#This Row],[Game]]))-( FIND("*",SUBSTITUTE(PS[[#This Row],[Game]]," ","*",4))))),( FIND("*",SUBSTITUTE(RIGHT(PS[[#This Row],[Game]],((LEN(PS[[#This Row],[Game]]))-( FIND("*",SUBSTITUTE(PS[[#This Row],[Game]]," ","*",4))))),", $","*",1)))))-1)),"")," [Saturday Special]",""),"ger",""),"ter","") -> [45 Players] | L53: =IFERROR(IF(PS[[#This Row],[Y]]="S","",IF(IF(NOT(ISERR(FIND(".",SUBSTITUTE(MID(PS[[#This Row],[Game]],FIND(", $",PS[[#This Row],[Game]])+1,FIND(" Gtd",PS[[#This Row],[Game]])-FIND(", $",PS[[#This Row],[Game]])-1),"$","")))),1,0)=1,SUBSTITUTE(SUBSTITUTE(SUBSTITUTE(MID(PS[[#This Row],[Game]],FIND(", $",PS[[#This Row],[Game]])+1,FIND(" Gtd",PS[[#This Row],[Game]])-FIND(", $",PS[[#This Row],[Game]])-1),"$",""),".",""),"K","00"),SUBSTITUTE(SUBSTITUTE(SUBSTITUTE(MID(PS[[#This Row],[Game]],FIND(", $",PS[[#This Row],[Game]])+1,FIND(" Gtd",PS[[#This Row],[Game]])-FIND(", $",PS[[#This Row],[Game]])-1),"$",""),".",""),"K","000"))),"") ->  | M53: =IF(PS[[#This Row],[Game]]="","",IF(COUNTIF(PS[[#This Row],[Game]],"*Sit&Go*"),"S","M")) -> S | N53: =IF(PS[[#This Row],[Game]]="","",IF(OR(COUNTIF(PS[[#This Row],[Game]],"*Turbo*"),COUNTIF(PS[[#This Row],[Game]],"*Hot*")),"T",IF(COUNTIF(PS[[#This Row],[Game]],"*Bubble Rush*"),"T","R"))) -> R | O53: =IF(PS[[#This Row],[Game]]="","",IF(OR(COUNTIF(PS[[#This Row],[Game]],"*Bounty Builder*"),COUNTIF(PS[[#This Row],[Game]],"*KO*")),"K","")) ->  | P53: =IF(PS[[#This Row],[Game]]="","",IF(OR(COUNTIF(PS[[#This Row],[Game]],"*Rebuy*"),COUNTIF(PS[[#This Row],[Game]],"*+R*")),"R","")) ->  | Q53: =IF(PS[[#This Row],[Game]]="","",IF(COUNTIF(PS[[#This Row],[Game]],"*Zoom*"),"Z","")) ->  | R53: =IF(PS[[#This Row],[Date]]="","",DATE(YEAR(VALUE(PS[[#This Row],[Date]])),MONTH(VALUE(PS[[#This Row],[Date]])),DAY(VALUE(PS[[#This Row],[Date]])))) -> 2019-11-01 | S53: =IF(PS[[#This Row],[Date]]="","",TIME(HOUR(VALUE(PS[[#This Row],[Date]])),MINUTE(VALUE(PS[[#This Row],[Date]])),SECOND(PS[[#This Row],[Date]]))) -> 11:18:00 | T53: =IFERROR(VALUE(SUBSTITUTE(PS[[#This Row],[Amount]],".",",")),"") -> -0.25 | U53: =IFERROR(VALUE(SUBSTITUTE(PS[[#This Row],[Balance]],".",",")),"") -> 8.19
B54: =IF(PS[[#This Row],[Date]]="","",IFERROR(WEEKNUM(PS[[#This Row],[Date]],2),"")) -> 44 | C54: =IF(PS[[#This Row],[Date]]="","",IFERROR(CHOOSE(WEEKDAY(PS[[#This Row],[Date]],2),"понедельник","вторник","среда","четверг","пятница","суббота","воскресенье"),"")) -> пятница | D54: =IF(PS[[#This Row],[Date]]="","",TEXT(PS[[#This Row],[Date]],"mmmm")) -> ноябрь | E54: 2019/11/01 11:21 AM | F54: Tournament Registration | G54: 2726705683 | H54: NL Hold'em Sit&Go Buy-In: 0.23/0.02 $0.25 NL Hold'em [45 Players] | I54: (0.25) | J54: 7.94 | K54: =SUBSTITUTE(SUBSTITUTE(SUBSTITUTE(IFERROR(IF(PS[[#This Row],[Y]]="S",MID(PS[[#This Row],[Game]],FIND("[",PS[[#This Row],[Game]]),FIND("]",PS[[#This Row],[Game]])-FIND("[",PS[[#This Row],[Game]])+1),LEFT(LEFT(RIGHT(PS[[#This Row],[Game]],((LEN(PS[[#This Row],[Game]]))-( FIND("*",SUBSTITUTE(PS[[#This Row],[Game]]," ","*",4))))),( FIND("*",SUBSTITUTE(RIGHT(PS[[#This Row],[Game]],((LEN(PS[[#This Row],[Game]]))-( FIND("*",SUBSTITUTE(PS[[#This Row],[Game]]," ","*",4))))),", $","*",1)))),LEN(LEFT(RIGHT(PS[[#This Row],[Game]],((LEN(PS[[#This Row],[Game]]))-( FIND("*",SUBSTITUTE(PS[[#This Row],[Game]]," ","*",4))))),( FIND("*",SUBSTITUTE(RIGHT(PS[[#This Row],[Game]],((LEN(PS[[#This Row],[Game]]))-( FIND("*",SUBSTITUTE(PS[[#This Row],[Game]]," ","*",4))))),", $","*",1)))))-1)),"")," [Saturday Special]",""),"ger",""),"ter","") -> [45 Players] | L54: =IFERROR(IF(PS[[#This Row],[Y]]="S","",IF(IF(NOT(ISERR(FIND(".",SUBSTITUTE(MID(PS[[#This Row],[Game]],FIND(", $",PS[[#This Row],[Game]])+1,FIND(" Gtd",PS[[#This Row],[Game]])-FIND(", $",PS[[#This Row],[Game]])-1),"$","")))),1,0)=1,SUBSTITUTE(SUBSTITUTE(SUBSTITUTE(MID(PS[[#This Row],[Game]],FIND(", $",PS[[#This Row],[Game]])+1,FIND(" Gtd",PS[[#This Row],[Game]])-FIND(", $",PS[[#This Row],[Game]])-1),"$",""),".",""),"K","00"),SUBSTITUTE(SUBSTITUTE(SUBSTITUTE(MID(PS[[#This Row],[Game]],FIND(", $",PS[[#This Row],[Game]])+1,FIND(" Gtd",PS[[#This Row],[Game]])-FIND(", $",PS[[#This Row],[Game]])-1),"$",""),".",""),"K","000"))),"") ->  | M54: =IF(PS[[#This Row],[Game]]="","",IF(COUNTIF(PS[[#This Row],[Game]],"*Sit&Go*"),"S","M")) -> S | N54: =IF(PS[[#This Row],[Game]]="","",IF(OR(COUNTIF(PS[[#This Row],[Game]],"*Turbo*"),COUNTIF(PS[[#This Row],[Game]],"*Hot*")),"T",IF(COUNTIF(PS[[#This Row],[Game]],"*Bubble Rush*"),"T","R"))) -> R | O54: =IF(PS[[#This Row],[Game]]="","",IF(OR(COUNTIF(PS[[#This Row],[Game]],"*Bounty Builder*"),COUNTIF(PS[[#This Row],[Game]],"*KO*")),"K","")) ->  | P54: =IF(PS[[#This Row],[Game]]="","",IF(OR(COUNTIF(PS[[#This Row],[Game]],"*Rebuy*"),COUNTIF(PS[[#This Row],[Game]],"*+R*")),"R","")) ->  | Q54: =IF(PS[[#This Row],[Game]]="","",IF(COUNTIF(PS[[#This Row],[Game]],"*Zoom*"),"Z","")) ->  | R54: =IF(PS[[#This Row],[Date]]="","",DATE(YEAR(VALUE(PS[[#This Row],[Date]])),MONTH(VALUE(PS[[#This Row],[Date]])),DAY(VALUE(PS[[#This Row],[Date]])))) -> 2019-11-01 | S54: =IF(PS[[#This Row],[Date]]="","",TIME(HOUR(VALUE(PS[[#This Row],[Date]])),MINUTE(VALUE(PS[[#This Row],[Date]])),SECOND(PS[[#This Row],[Date]]))) -> 11:21:00 | T54: =IFERROR(VALUE(SUBSTITUTE(PS[[#This Row],[Amount]],".",",")),"") -> -0.25 | U54: =IFERROR(VALUE(SUBSTITUTE(PS[[#This Row],[Balance]],".",",")),"") -> 7.94
B55: =IF(PS[[#This Row],[Date]]="","",IFERROR(WEEKNUM(PS[[#This Row],[Date]],2),"")) -> 44 | C55: =IF(PS[[#This Row],[Date]]="","",IFERROR(CHOOSE(WEEKDAY(PS[[#This Row],[Date]],2),"понедельник","вторник","среда","четверг","пятница","суббота","воскресенье"),"")) -> пятница | D55: =IF(PS[[#This Row],[Date]]="","",TEXT(PS[[#This Row],[Date]],"mmmm")) -> ноябрь | E55: 2019/11/01 11:24 AM | F55: Tournament Registration | G55: 2726707545 | H55: NL Hold'em Sit&Go Buy-In: 0.23/0.02 $0.25 NL Hold'em [45 Players] | I55: (0.25) | J55: 7.69 | K55: =SUBSTITUTE(SUBSTITUTE(SUBSTITUTE(IFERROR(IF(PS[[#This Row],[Y]]="S",MID(PS[[#This Row],[Game]],FIND("[",PS[[#This Row],[Game]]),FIND("]",PS[[#This Row],[Game]])-FIND("[",PS[[#This Row],[Game]])+1),LEFT(LEFT(RIGHT(PS[[#This Row],[Game]],((LEN(PS[[#This Row],[Game]]))-( FIND("*",SUBSTITUTE(PS[[#This Row],[Game]]," ","*",4))))),( FIND("*",SUBSTITUTE(RIGHT(PS[[#This Row],[Game]],((LEN(PS[[#This Row],[Game]]))-( FIND("*",SUBSTITUTE(PS[[#This Row],[Game]]," ","*",4))))),", $","*",1)))),LEN(LEFT(RIGHT(PS[[#This Row],[Game]],((LEN(PS[[#This Row],[Game]]))-( FIND("*",SUBSTITUTE(PS[[#This Row],[Game]]," ","*",4))))),( FIND("*",SUBSTITUTE(RIGHT(PS[[#This Row],[Game]],((LEN(PS[[#This Row],[Game]]))-( FIND("*",SUBSTITUTE(PS[[#This Row],[Game]]," ","*",4))))),", $","*",1)))))-1)),"")," [Saturday Special]",""),"ger",""),"ter","") -> [45 Players] | L55: =IFERROR(IF(PS[[#This Row],[Y]]="S","",IF(IF(NOT(ISERR(FIND(".",SUBSTITUTE(MID(PS[[#This Row],[Game]],FIND(", $",PS[[#This Row],[Game]])+1,FIND(" Gtd",PS[[#This Row],[Game]])-FIND(", $",PS[[#This Row],[Game]])-1),"$","")))),1,0)=1,SUBSTITUTE(SUBSTITUTE(SUBSTITUTE(MID(PS[[#This Row],[Game]],FIND(", $",PS[[#This Row],[Game]])+1,FIND(" Gtd",PS[[#This Row],[Game]])-FIND(", $",PS[[#This Row],[Game]])-1),"$",""),".",""),"K","00"),SUBSTITUTE(SUBSTITUTE(SUBSTITUTE(MID(PS[[#This Row],[Game]],FIND(", $",PS[[#This Row],[Game]])+1,FIND(" Gtd",PS[[#This Row],[Game]])-FIND(", $",PS[[#This Row],[Game]])-1),"$",""),".",""),"K","000"))),"") ->  | M55: =IF(PS[[#This Row],[Game]]="","",IF(COUNTIF(PS[[#This Row],[Game]],"*Sit&Go*"),"S","M")) -> S | N55: =IF(PS[[#This Row],[Game]]="","",IF(OR(COUNTIF(PS[[#This Row],[Game]],"*Turbo*"),COUNTIF(PS[[#This Row],[Game]],"*Hot*")),"T",IF(COUNTIF(PS[[#This Row],[Game]],"*Bubble Rush*"),"T","R"))) -> R | O55: =IF(PS[[#This Row],[Game]]="","",IF(OR(COUNTIF(PS[[#This Row],[Game]],"*Bounty Builder*"),COUNTIF(PS[[#This Row],[Game]],"*KO*")),"K","")) ->  | P55: =IF(PS[[#This Row],[Game]]="","",IF(OR(COUNTIF(PS[[#This Row],[Game]],"*Rebuy*"),COUNTIF(PS[[#This Row],[Game]],"*+R*")),"R","")) ->  | Q55: =IF(PS[[#This Row],[Game]]="","",IF(COUNTIF(PS[[#This Row],[Game]],"*Zoom*"),"Z","")) ->  | R55: =IF(PS[[#This Row],[Date]]="","",DATE(YEAR(VALUE(PS[[#This Row],[Date]])),MONTH(VALUE(PS[[#This Row],[Date]])),DAY(VALUE(PS[[#This Row],[Date]])))) -> 2019-11-01 | S55: =IF(PS[[#This Row],[Date]]="","",TIME(HOUR(VALUE(PS[[#This Row],[Date]])),MINUTE(VALUE(PS[[#This Row],[Date]])),SECOND(PS[[#This Row],[Date]]))) -> 11:24:00 | T55: =IFERROR(VALUE(SUBSTITUTE(PS[[#This Row],[Amount]],".",",")),"") -> -0.25 | U55: =IFERROR(VALUE(SUBSTITUTE(PS[[#This Row],[Balance]],".",",")),"") -> 7.69
B56: =IF(PS[[#This Row],[Date]]="","",IFERROR(WEEKNUM(PS[[#This Row],[Date]],2),"")) -> 44 | C56: =IF(PS[[#This Row],[Date]]="","",IFERROR(CHOOSE(WEEKDAY(PS[[#This Row],[Date]],2),"понедельник","вторник","среда","четверг","пятница","суббота","воскресенье"),"")) -> пятница | D56: =IF(PS[[#This Row],[Date]]="","",TEXT(PS[[#This Row],[Date]],"mmmm")) -> ноябрь | E56: 2019/11/01 11:29 AM | F56: Tournament Registration | G56: 2726710367 | H56: NL Hold'em Sit&Go Buy-In: 0.23/0.02 $0.25 NL Hold'em [45 Players] | I56: (0.25) | J56: 7.44 | K56: =SUBSTITUTE(SUBSTITUTE(SUBSTITUTE(IFERROR(IF(PS[[#This Row],[Y]]="S",MID(PS[[#This Row],[Game]],FIND("[",PS[[#This Row],[Game]]),FIND("]",PS[[#This Row],[Game]])-FIND("[",PS[[#This Row],[Game]])+1),LEFT(LEFT(RIGHT(PS[[#This Row],[Game]],((LEN(PS[[#This Row],[Game]]))-( FIND("*",SUBSTITUTE(PS[[#This Row],[Game]]," ","*",4))))),( FIND("*",SUBSTITUTE(RIGHT(PS[[#This Row],[Game]],((LEN(PS[[#This Row],[Game]]))-( FIND("*",SUBSTITUTE(PS[[#This Row],[Game]]," ","*",4))))),", $","*",1)))),LEN(LEFT(RIGHT(PS[[#This Row],[Game]],((LEN(PS[[#This Row],[Game]]))-( FIND("*",SUBSTITUTE(PS[[#This Row],[Game]]," ","*",4))))),( FIND("*",SUBSTITUTE(RIGHT(PS[[#This Row],[Game]],((LEN(PS[[#This Row],[Game]]))-( FIND("*",SUBSTITUTE(PS[[#This Row],[Game]]," ","*",4))))),", $","*",1)))))-1)),"")," [Saturday Special]",""),"ger",""),"ter","") -> [45 Players] | L56: =IFERROR(IF(PS[[#This Row],[Y]]="S","",IF(IF(NOT(ISERR(FIND(".",SUBSTITUTE(MID(PS[[#This Row],[Game]],FIND(", $",PS[[#This Row],[Game]])+1,FIND(" Gtd",PS[[#This Row],[Game]])-FIND(", $",PS[[#This Row],[Game]])-1),"$","")))),1,0)=1,SUBSTITUTE(SUBSTITUTE(SUBSTITUTE(MID(PS[[#This Row],[Game]],FIND(", $",PS[[#This Row],[Game]])+1,FIND(" Gtd",PS[[#This Row],[Game]])-FIND(", $",PS[[#This Row],[Game]])-1),"$",""),".",""),"K","00"),SUBSTITUTE(SUBSTITUTE(SUBSTITUTE(MID(PS[[#This Row],[Game]],FIND(", $",PS[[#This Row],[Game]])+1,FIND(" Gtd",PS[[#This Row],[Game]])-FIND(", $",PS[[#This Row],[Game]])-1),"$",""),".",""),"K","000"))),"") ->  | M56: =IF(PS[[#This Row],[Game]]="","",IF(COUNTIF(PS[[#This Row],[Game]],"*Sit&Go*"),"S","M")) -> S | N56: =IF(PS[[#This Row],[Game]]="","",IF(OR(COUNTIF(PS[[#This Row],[Game]],"*Turbo*"),COUNTIF(PS[[#This Row],[Game]],"*Hot*")),"T",IF(COUNTIF(PS[[#This Row],[Game]],"*Bubble Rush*"),"T","R"))) -> R | O56: =IF(PS[[#This Row],[Game]]="","",IF(OR(COUNTIF(PS[[#This Row],[Game]],"*Bounty Builder*"),COUNTIF(PS[[#This Row],[Game]],"*KO*")),"K","")) ->  | P56: =IF(PS[[#This Row],[Game]]="","",IF(OR(COUNTIF(PS[[#This Row],[Game]],"*Rebuy*"),COUNTIF(PS[[#This Row],[Game]],"*+R*")),"R","")) ->  | Q56: =IF(PS[[#This Row],[Game]]="","",IF(COUNTIF(PS[[#This Row],[Game]],"*Zoom*"),"Z","")) ->  | R56: =IF(PS[[#This Row],[Date]]="","",DATE(YEAR(VALUE(PS[[#This Row],[Date]])),MONTH(VALUE(PS[[#This Row],[Date]])),DAY(VALUE(PS[[#This Row],[Date]])))) -> 2019-11-01 | S56: =IF(PS[[#This Row],[Date]]="","",TIME(HOUR(VALUE(PS[[#This Row],[Date]])),MINUTE(VALUE(PS[[#This Row],[Date]])),SECOND(PS[[#This Row],[Date]]))) -> 11:29:00 | T56: =IFERROR(VALUE(SUBSTITUTE(PS[[#This Row],[Amount]],".",",")),"") -> -0.25 | U56: =IFERROR(VALUE(SUBSTITUTE(PS[[#This Row],[Balance]],".",",")),"") -> 7.44
B57: =IF(PS[[#This Row],[Date]]="","",IFERROR(WEEKNUM(PS[[#This Row],[Date]],2),"")) -> 44 | C57: =IF(PS[[#This Row],[Date]]="","",IFERROR(CHOOSE(WEEKDAY(PS[[#This Row],[Date]],2),"понедельник","вторник","среда","четверг","пятница","суббота","воскресенье"),"")) -> пятница | D57: =IF(PS[[#This Row],[Date]]="","",TEXT(PS[[#This Row],[Date]],"mmmm")) -> ноябрь | E57: 2019/11/01 11:29 AM | F57: Tournament Unregistration | G57: 2726689898 | H57: NL Hold'em Sit&Go Buy-In: 0.23/0.02 $0.25 NL Hold'em [90 Players] | I57: 0.25 | J57: 7.69 | K57: =SUBSTITUTE(SUBSTITUTE(SUBSTITUTE(IFERROR(IF(PS[[#This Row],[Y]]="S",MID(PS[[#This Row],[Game]],FIND("[",PS[[#This Row],[Game]]),FIND("]",PS[[#This Row],[Game]])-FIND("[",PS[[#This Row],[Game]])+1),LEFT(LEFT(RIGHT(PS[[#This Row],[Game]],((LEN(PS[[#This Row],[Game]]))-( FIND("*",SUBSTITUTE(PS[[#This Row],[Game]]," ","*",4))))),( FIND("*",SUBSTITUTE(RIGHT(PS[[#This Row],[Game]],((LEN(PS[[#This Row],[Game]]))-( FIND("*",SUBSTITUTE(PS[[#This Row],[Game]]," ","*",4))))),", $","*",1)))),LEN(LEFT(RIGHT(PS[[#This Row],[Game]],((LEN(PS[[#This Row],[Game]]))-( FIND("*",SUBSTITUTE(PS[[#This Row],[Game]]," ","*",4))))),( FIND("*",SUBSTITUTE(RIGHT(PS[[#This Row],[Game]],((LEN(PS[[#This Row],[Game]]))-( FIND("*",SUBSTITUTE(PS[[#This Row],[Game]]," ","*",4))))),", $","*",1)))))-1)),"")," [Saturday Special]",""),"ger",""),"ter","") -> [90 Players] | L57: =IFERROR(IF(PS[[#This Row],[Y]]="S","",IF(IF(NOT(ISERR(FIND(".",SUBSTITUTE(MID(PS[[#This Row],[Game]],FIND(", $",PS[[#This Row],[Game]])+1,FIND(" Gtd",PS[[#This Row],[Game]])-FIND(", $",PS[[#This Row],[Game]])-1),"$","")))),1,0)=1,SUBSTITUTE(SUBSTITUTE(SUBSTITUTE(MID(PS[[#This Row],[Game]],FIND(", $",PS[[#This Row],[Game]])+1,FIND(" Gtd",PS[[#This Row],[Game]])-FIND(", $",PS[[#This Row],[Game]])-1),"$",""),".",""),"K","00"),SUBSTITUTE(SUBSTITUTE(SUBSTITUTE(MID(PS[[#This Row],[Game]],FIND(", $",PS[[#This Row],[Game]])+1,FIND(" Gtd",PS[[#This Row],[Game]])-FIND(", $",PS[[#This Row],[Game]])-1),"$",""),".",""),"K","000"))),"") ->  | M57: =IF(PS[[#This Row],[Game]]="","",IF(COUNTIF(PS[[#This Row],[Game]],"*Sit&Go*"),"S","M")) -> S | N57: =IF(PS[[#This Row],[Game]]="","",IF(OR(COUNTIF(PS[[#This Row],[Game]],"*Turbo*"),COUNTIF(PS[[#This Row],[Game]],"*Hot*")),"T",IF(COUNTIF(PS[[#This Row],[Game]],"*Bubble Rush*"),"T","R"))) -> R | O57: =IF(PS[[#This Row],[Game]]="","",IF(OR(COUNTIF(PS[[#This Row],[Game]],"*Bounty Builder*"),COUNTIF(PS[[#This Row],[Game]],"*KO*")),"K","")) ->  | P57: =IF(PS[[#This Row],[Game]]="","",IF(OR(COUNTIF(PS[[#This Row],[Game]],"*Rebuy*"),COUNTIF(PS[[#This Row],[Game]],"*+R*")),"R","")) ->  | Q57: =IF(PS[[#This Row],[Game]]="","",IF(COUNTIF(PS[[#This Row],[Game]],"*Zoom*"),"Z","")) ->  | R57: =IF(PS[[#This Row],[Date]]="","",DATE(YEAR(VALUE(PS[[#This Row],[Date]])),MONTH(VALUE(PS[[#This Row],[Date]])),DAY(VALUE(PS[[#This Row],[Date]])))) -> 2019-11-01 | S57: =IF(PS[[#This Row],[Date]]="","",TIME(HOUR(VALUE(PS[[#This Row],[Date]])),MINUTE(VALUE(PS[[#This Row],[Date]])),SECOND(PS[[#This Row],[Date]]))) -> 11:29:00 | T57: =IFERROR(VALUE(SUBSTITUTE(PS[[#This Row],[Amount]],".",",")),"") -> 0.25 | U57: =IFERROR(VALUE(SUBSTITUTE(PS[[#This Row],[Balance]],".",",")),"") -> 7.69
B58: =IF(PS[[#This Row],[Date]]="","",IFERROR(WEEKNUM(PS[[#This Row],[Date]],2),"")) -> 44 | C58: =IF(PS[[#This Row],[Date]]="","",IFERROR(CHOOSE(WEEKDAY(PS[[#This Row],[Date]],2),"понедельник","вторник","среда","четверг","пятница","суббота","воскресенье"),"")) -> пятница | D58: =IF(PS[[#This Row],[Date]]="","",TEXT(PS[[#This Row],[Date]],"mmmm")) -> ноябрь | E58: 2019/11/01 11:31 AM | F58: Tournament Registration | G58: 2726712734 | H58: NL Hold'em Sit&Go Buy-In: 0.23/0.02 $0.25 NL Hold'em [45 Players] | I58: (0.25) | J58: 7.44 | K58: =SUBSTITUTE(SUBSTITUTE(SUBSTITUTE(IFERROR(IF(PS[[#This Row],[Y]]="S",MID(PS[[#This Row],[Game]],FIND("[",PS[[#This Row],[Game]]),FIND("]",PS[[#This Row],[Game]])-FIND("[",PS[[#This Row],[Game]])+1),LEFT(LEFT(RIGHT(PS[[#This Row],[Game]],((LEN(PS[[#This Row],[Game]]))-( FIND("*",SUBSTITUTE(PS[[#This Row],[Game]]," ","*",4))))),( FIND("*",SUBSTITUTE(RIGHT(PS[[#This Row],[Game]],((LEN(PS[[#This Row],[Game]]))-( FIND("*",SUBSTITUTE(PS[[#This Row],[Game]]," ","*",4))))),", $","*",1)))),LEN(LEFT(RIGHT(PS[[#This Row],[Game]],((LEN(PS[[#This Row],[Game]]))-( FIND("*",SUBSTITUTE(PS[[#This Row],[Game]]," ","*",4))))),( FIND("*",SUBSTITUTE(RIGHT(PS[[#This Row],[Game]],((LEN(PS[[#This Row],[Game]]))-( FIND("*",SUBSTITUTE(PS[[#This Row],[Game]]," ","*",4))))),", $","*",1)))))-1)),"")," [Saturday Special]",""),"ger",""),"ter","") -> [45 Players] | L58: =IFERROR(IF(PS[[#This Row],[Y]]="S","",IF(IF(NOT(ISERR(FIND(".",SUBSTITUTE(MID(PS[[#This Row],[Game]],FIND(", $",PS[[#This Row],[Game]])+1,FIND(" Gtd",PS[[#This Row],[Game]])-FIND(", $",PS[[#This Row],[Game]])-1),"$","")))),1,0)=1,SUBSTITUTE(SUBSTITUTE(SUBSTITUTE(MID(PS[[#This Row],[Game]],FIND(", $",PS[[#This Row],[Game]])+1,FIND(" Gtd",PS[[#This Row],[Game]])-FIND(", $",PS[[#This Row],[Game]])-1),"$",""),".",""),"K","00"),SUBSTITUTE(SUBSTITUTE(SUBSTITUTE(MID(PS[[#This Row],[Game]],FIND(", $",PS[[#This Row],[Game]])+1,FIND(" Gtd",PS[[#This Row],[Game]])-FIND(", $",PS[[#This Row],[Game]])-1),"$",""),".",""),"K","000"))),"") ->  | M58: =IF(PS[[#This Row],[Game]]="","",IF(COUNTIF(PS[[#This Row],[Game]],"*Sit&Go*"),"S","M")) -> S | N58: =IF(PS[[#This Row],[Game]]="","",IF(OR(COUNTIF(PS[[#This Row],[Game]],"*Turbo*"),COUNTIF(PS[[#This Row],[Game]],"*Hot*")),"T",IF(COUNTIF(PS[[#This Row],[Game]],"*Bubble Rush*"),"T","R"))) -> R | O58: =IF(PS[[#This Row],[Game]]="","",IF(OR(COUNTIF(PS[[#This Row],[Game]],"*Bounty Builder*"),COUNTIF(PS[[#This Row],[Game]],"*KO*")),"K","")) ->  | P58: =IF(PS[[#This Row],[Game]]="","",IF(OR(COUNTIF(PS[[#This Row],[Game]],"*Rebuy*"),COUNTIF(PS[[#This Row],[Game]],"*+R*")),"R","")) ->  | Q58: =IF(PS[[#This Row],[Game]]="","",IF(COUNTIF(PS[[#This Row],[Game]],"*Zoom*"),"Z","")) ->  | R58: =IF(PS[[#This Row],[Date]]="","",DATE(YEAR(VALUE(PS[[#This Row],[Date]])),MONTH(VALUE(PS[[#This Row],[Date]])),DAY(VALUE(PS[[#This Row],[Date]])))) -> 2019-11-01 | S58: =IF(PS[[#This Row],[Date]]="","",TIME(HOUR(VALUE(PS[[#This Row],[Date]])),MINUTE(VALUE(PS[[#This Row],[Date]])),SECOND(PS[[#This Row],[Date]]))) -> 11:31:00 | T58: =IFERROR(VALUE(SUBSTITUTE(PS[[#This Row],[Amount]],".",",")),"") -> -0.25 | U58: =IFERROR(VALUE(SUBSTITUTE(PS[[#This Row],[Balance]],".",",")),"") -> 7.44
B59: =IF(PS[[#This Row],[Date]]="","",IFERROR(WEEKNUM(PS[[#This Row],[Date]],2),"")) -> 44 | C59: =IF(PS[[#This Row],[Date]]="","",IFERROR(CHOOSE(WEEKDAY(PS[[#This Row],[Date]],2),"понедельник","вторник","среда","четверг","пятница","суббота","воскресенье"),"")) -> пятница | D59: =IF(PS[[#This Row],[Date]]="","",TEXT(PS[[#This Row],[Date]],"mmmm")) -> ноябрь | E59: 2019/11/01 11:34 AM | F59: Tournament Registration | G59: 2726714683 | H59: NL Hold'em Sit&Go Buy-In: 0.23/0.02 $0.25 NL Hold'em [45 Players] | I59: (0.25) | J59: 7.19 | K59: =SUBSTITUTE(SUBSTITUTE(SUBSTITUTE(IFERROR(IF(PS[[#This Row],[Y]]="S",MID(PS[[#This Row],[Game]],FIND("[",PS[[#This Row],[Game]]),FIND("]",PS[[#This Row],[Game]])-FIND("[",PS[[#This Row],[Game]])+1),LEFT(LEFT(RIGHT(PS[[#This Row],[Game]],((LEN(PS[[#This Row],[Game]]))-( FIND("*",SUBSTITUTE(PS[[#This Row],[Game]]," ","*",4))))),( FIND("*",SUBSTITUTE(RIGHT(PS[[#This Row],[Game]],((LEN(PS[[#This Row],[Game]]))-( FIND("*",SUBSTITUTE(PS[[#This Row],[Game]]," ","*",4))))),", $","*",1)))),LEN(LEFT(RIGHT(PS[[#This Row],[Game]],((LEN(PS[[#This Row],[Game]]))-( FIND("*",SUBSTITUTE(PS[[#This Row],[Game]]," ","*",4))))),( FIND("*",SUBSTITUTE(RIGHT(PS[[#This Row],[Game]],((LEN(PS[[#This Row],[Game]]))-( FIND("*",SUBSTITUTE(PS[[#This Row],[Game]]," ","*",4))))),", $","*",1)))))-1)),"")," [Saturday Special]",""),"ger",""),"ter","") -> [45 Players] | L59: =IFERROR(IF(PS[[#This Row],[Y]]="S","",IF(IF(NOT(ISERR(FIND(".",SUBSTITUTE(MID(PS[[#This Row],[Game]],FIND(", $",PS[[#This Row],[Game]])+1,FIND(" Gtd",PS[[#This Row],[Game]])-FIND(", $",PS[[#This Row],[Game]])-1),"$","")))),1,0)=1,SUBSTITUTE(SUBSTITUTE(SUBSTITUTE(MID(PS[[#This Row],[Game]],FIND(", $",PS[[#This Row],[Game]])+1,FIND(" Gtd",PS[[#This Row],[Game]])-FIND(", $",PS[[#This Row],[Game]])-1),"$",""),".",""),"K","00"),SUBSTITUTE(SUBSTITUTE(SUBSTITUTE(MID(PS[[#This Row],[Game]],FIND(", $",PS[[#This Row],[Game]])+1,FIND(" Gtd",PS[[#This Row],[Game]])-FIND(", $",PS[[#This Row],[Game]])-1),"$",""),".",""),"K","000"))),"") ->  | M59: =IF(PS[[#This Row],[Game]]="","",IF(COUNTIF(PS[[#This Row],[Game]],"*Sit&Go*"),"S","M")) -> S | N59: =IF(PS[[#This Row],[Game]]="","",IF(OR(COUNTIF(PS[[#This Row],[Game]],"*Turbo*"),COUNTIF(PS[[#This Row],[Game]],"*Hot*")),"T",IF(COUNTIF(PS[[#This Row],[Game]],"*Bubble Rush*"),"T","R"))) -> R | O59: =IF(PS[[#This Row],[Game]]="","",IF(OR(COUNTIF(PS[[#This Row],[Game]],"*Bounty Builder*"),COUNTIF(PS[[#This Row],[Game]],"*KO*")),"K","")) ->  | P59: =IF(PS[[#This Row],[Game]]="","",IF(OR(COUNTIF(PS[[#This Row],[Game]],"*Rebuy*"),COUNTIF(PS[[#This Row],[Game]],"*+R*")),"R","")) ->  | Q59: =IF(PS[[#This Row],[Game]]="","",IF(COUNTIF(PS[[#This Row],[Game]],"*Zoom*"),"Z","")) ->  | R59: =IF(PS[[#This Row],[Date]]="","",DATE(YEAR(VALUE(PS[[#This Row],[Date]])),MONTH(VALUE(PS[[#This Row],[Date]])),DAY(VALUE(PS[[#This Row],[Date]])))) -> 2019-11-01 | S59: =IF(PS[[#This Row],[Date]]="","",TIME(HOUR(VALUE(PS[[#This Row],[Date]])),MINUTE(VALUE(PS[[#This Row],[Date]])),SECOND(PS[[#This Row],[Date]]))) -> 11:34:00 | T59: =IFERROR(VALUE(SUBSTITUTE(PS[[#This Row],[Amount]],".",",")),"") -> -0.25 | U59: =IFERROR(VALUE(SUBSTITUTE(PS[[#This Row],[Balance]],".",",")),"") -> 7.19
B60: =IF(PS[[#This Row],[Date]]="","",IFERROR(WEEKNUM(PS[[#This Row],[Date]],2),"")) -> 44 | C60: =IF(PS[[#This Row],[Date]]="","",IFERROR(CHOOSE(WEEKDAY(PS[[#This Row],[Date]],2),"понедельник","вторник","среда","четверг","пятница","суббота","воскресенье"),"")) -> пятница | D60: =IF(PS[[#This Row],[Date]]="","",TEXT(PS[[#This Row],[Date]],"mmmm")) -> ноябрь | E60: 2019/11/01 11:37 AM | F60: Tournament Registration | G60: 2726716271 | H60: NL Hold'em Sit&Go Buy-In: 0.23/0.02 $0.25 NL Hold'em [45 Players] | I60: (0.25) | J60: 6.94 | K60: =SUBSTITUTE(SUBSTITUTE(SUBSTITUTE(IFERROR(IF(PS[[#This Row],[Y]]="S",MID(PS[[#This Row],[Game]],FIND("[",PS[[#This Row],[Game]]),FIND("]",PS[[#This Row],[Game]])-FIND("[",PS[[#This Row],[Game]])+1),LEFT(LEFT(RIGHT(PS[[#This Row],[Game]],((LEN(PS[[#This Row],[Game]]))-( FIND("*",SUBSTITUTE(PS[[#This Row],[Game]]," ","*",4))))),( FIND("*",SUBSTITUTE(RIGHT(PS[[#This Row],[Game]],((LEN(PS[[#This Row],[Game]]))-( FIND("*",SUBSTITUTE(PS[[#This Row],[Game]]," ","*",4))))),", $","*",1)))),LEN(LEFT(RIGHT(PS[[#This Row],[Game]],((LEN(PS[[#This Row],[Game]]))-( FIND("*",SUBSTITUTE(PS[[#This Row],[Game]]," ","*",4))))),( FIND("*",SUBSTITUTE(RIGHT(PS[[#This Row],[Game]],((LEN(PS[[#This Row],[Game]]))-( FIND("*",SUBSTITUTE(PS[[#This Row],[Game]]," ","*",4))))),", $","*",1)))))-1)),"")," [Saturday Special]",""),"ger",""),"ter","") -> [45 Players] | L60: =IFERROR(IF(PS[[#This Row],[Y]]="S","",IF(IF(NOT(ISERR(FIND(".",SUBSTITUTE(MID(PS[[#This Row],[Game]],FIND(", $",PS[[#This Row],[Game]])+1,FIND(" Gtd",PS[[#This Row],[Game]])-FIND(", $",PS[[#This Row],[Game]])-1),"$","")))),1,0)=1,SUBSTITUTE(SUBSTITUTE(SUBSTITUTE(MID(PS[[#This Row],[Game]],FIND(", $",PS[[#This Row],[Game]])+1,FIND(" Gtd",PS[[#This Row],[Game]])-FIND(", $",PS[[#This Row],[Game]])-1),"$",""),".",""),"K","00"),SUBSTITUTE(SUBSTITUTE(SUBSTITUTE(MID(PS[[#This Row],[Game]],FIND(", $",PS[[#This Row],[Game]])+1,FIND(" Gtd",PS[[#This Row],[Game]])-FIND(", $",PS[[#This Row],[Game]])-1),"$",""),".",""),"K","000"))),"") ->  | M60: =IF(PS[[#This Row],[Game]]="","",IF(COUNTIF(PS[[#This Row],[Game]],"*Sit&Go*"),"S","M")) -> S | N60: =IF(PS[[#This Row],[Game]]="","",IF(OR(COUNTIF(PS[[#This Row],[Game]],"*Turbo*"),COUNTIF(PS[[#This Row],[Game]],"*Hot*")),"T",IF(COUNTIF(PS[[#This Row],[Game]],"*Bubble Rush*"),"T","R"))) -> R | O60: =IF(PS[[#This Row],[Game]]="","",IF(OR(COUNTIF(PS[[#This Row],[Game]],"*Bounty Builder*"),COUNTIF(PS[[#This Row],[Game]],"*KO*")),"K","")) ->  | P60: =IF(PS[[#This Row],[Game]]="","",IF(OR(COUNTIF(PS[[#This Row],[Game]],"*Rebuy*"),COUNTIF(PS[[#This Row],[Game]],"*+R*")),"R","")) ->  | Q60: =IF(PS[[#This Row],[Game]]="","",IF(COUNTIF(PS[[#This Row],[Game]],"*Zoom*"),"Z","")) ->  | R60: =IF(PS[[#This Row],[Date]]="","",DATE(YEAR(VALUE(PS[[#This Row],[Date]])),MONTH(VALUE(PS[[#This Row],[Date]])),DAY(VALUE(PS[[#This Row],[Date]])))) -> 2019-11-01 | S60: =IF(PS[[#This Row],[Date]]="","",TIME(HOUR(VALUE(PS[[#This Row],[Date]])),MINUTE(VALUE(PS[[#This Row],[Date]])),SECOND(PS[[#This Row],[Date]]))) -> 11:37:00 | T60: =IFERROR(VALUE(SUBSTITUTE(PS[[#This Row],[Amount]],".",",")),"") -> -0.25 | U60: =IFERROR(VALUE(SUBSTITUTE(PS[[#This Row],[Balance]],".",",")),"") -> 6.94
B61: =IF(PS[[#This Row],[Date]]="","",IFERROR(WEEKNUM(PS[[#This Row],[Date]],2),"")) -> 44 | C61: =IF(PS[[#This Row],[Date]]="","",IFERROR(CHOOSE(WEEKDAY(PS[[#This Row],[Date]],2),"понедельник","вторник","среда","четверг","пятница","суббота","воскресенье"),"")) -> пятница | D61: =IF(PS[[#This Row],[Date]]="","",TEXT(PS[[#This Row],[Date]],"mmmm")) -> ноябрь | E61: 2019/11/01 11:40 AM | F61: Tournament Registration | G61: 2726718317 | H61: NL Hold'em Sit&Go Buy-In: 0.23/0.02 $0.25 NL Hold'em [45 Players] | I61: (0.25) | J61: 6.69 | K61: =SUBSTITUTE(SUBSTITUTE(SUBSTITUTE(IFERROR(IF(PS[[#This Row],[Y]]="S",MID(PS[[#This Row],[Game]],FIND("[",PS[[#This Row],[Game]]),FIND("]",PS[[#This Row],[Game]])-FIND("[",PS[[#This Row],[Game]])+1),LEFT(LEFT(RIGHT(PS[[#This Row],[Game]],((LEN(PS[[#This Row],[Game]]))-( FIND("*",SUBSTITUTE(PS[[#This Row],[Game]]," ","*",4))))),( FIND("*",SUBSTITUTE(RIGHT(PS[[#This Row],[Game]],((LEN(PS[[#This Row],[Game]]))-( FIND("*",SUBSTITUTE(PS[[#This Row],[Game]]," ","*",4))))),", $","*",1)))),LEN(LEFT(RIGHT(PS[[#This Row],[Game]],((LEN(PS[[#This Row],[Game]]))-( FIND("*",SUBSTITUTE(PS[[#This Row],[Game]]," ","*",4))))),( FIND("*",SUBSTITUTE(RIGHT(PS[[#This Row],[Game]],((LEN(PS[[#This Row],[Game]]))-( FIND("*",SUBSTITUTE(PS[[#This Row],[Game]]," ","*",4))))),", $","*",1)))))-1)),"")," [Saturday Special]",""),"ger",""),"ter","") -> [45 Players] | L61: =IFERROR(IF(PS[[#This Row],[Y]]="S","",IF(IF(NOT(ISERR(FIND(".",SUBSTITUTE(MID(PS[[#This Row],[Game]],FIND(", $",PS[[#This Row],[Game]])+1,FIND(" Gtd",PS[[#This Row],[Game]])-FIND(", $",PS[[#This Row],[Game]])-1),"$","")))),1,0)=1,SUBSTITUTE(SUBSTITUTE(SUBSTITUTE(MID(PS[[#This Row],[Game]],FIND(", $",PS[[#This Row],[Game]])+1,FIND(" Gtd",PS[[#This Row],[Game]])-FIND(", $",PS[[#This Row],[Game]])-1),"$",""),".",""),"K","00"),SUBSTITUTE(SUBSTITUTE(SUBSTITUTE(MID(PS[[#This Row],[Game]],FIND(", $",PS[[#This Row],[Game]])+1,FIND(" Gtd",PS[[#This Row],[Game]])-FIND(", $",PS[[#This Row],[Game]])-1),"$",""),".",""),"K","000"))),"") ->  | M61: =IF(PS[[#This Row],[Game]]="","",IF(COUNTIF(PS[[#This Row],[Game]],"*Sit&Go*"),"S","M")) -> S | N61: =IF(PS[[#This Row],[Game]]="","",IF(OR(COUNTIF(PS[[#This Row],[Game]],"*Turbo*"),COUNTIF(PS[[#This Row],[Game]],"*Hot*")),"T",IF(COUNTIF(PS[[#This Row],[Game]],"*Bubble Rush*"),"T","R"))) -> R | O61: =IF(PS[[#This Row],[Game]]="","",IF(OR(COUNTIF(PS[[#This Row],[Game]],"*Bounty Builder*"),COUNTIF(PS[[#This Row],[Game]],"*KO*")),"K","")) ->  | P61: =IF(PS[[#This Row],[Game]]="","",IF(OR(COUNTIF(PS[[#This Row],[Game]],"*Rebuy*"),COUNTIF(PS[[#This Row],[Game]],"*+R*")),"R","")) ->  | Q61: =IF(PS[[#This Row],[Game]]="","",IF(COUNTIF(PS[[#This Row],[Game]],"*Zoom*"),"Z","")) ->  | R61: =IF(PS[[#This Row],[Date]]="","",DATE(YEAR(VALUE(PS[[#This Row],[Date]])),MONTH(VALUE(PS[[#This Row],[Date]])),DAY(VALUE(PS[[#This Row],[Date]])))) -> 2019-11-01 | S61: =IF(PS[[#This Row],[Date]]="","",TIME(HOUR(VALUE(PS[[#This Row],[Date]])),MINUTE(VALUE(PS[[#This Row],[Date]])),SECOND(PS[[#This Row],[Date]]))) -> 11:40:00 | T61: =IFERROR(VALUE(SUBSTITUTE(PS[[#This Row],[Amount]],".",",")),"") -> -0.25 | U61: =IFERROR(VALUE(SUBSTITUTE(PS[[#This Row],[Balance]],".",",")),"") -> 6.69
B62: =IF(PS[[#This Row],[Date]]="","",IFERROR(WEEKNUM(PS[[#This Row],[Date]],2),"")) -> 44 | C62: =IF(PS[[#This Row],[Date]]="","",IFERROR(CHOOSE(WEEKDAY(PS[[#This Row],[Date]],2),"понедельник","вторник","среда","четверг","пятница","суббота","воскресенье"),"")) -> пятница | D62: =IF(PS[[#This Row],[Date]]="","",TEXT(PS[[#This Row],[Date]],"mmmm")) -> ноябрь | E62: 2019/11/01 11:43 AM | F62: Tournament Registration | G62: 2726720623 | H62: NL Hold'em Sit&Go Buy-In: 0.23/0.02 $0.25 NL Hold'em [45 Players] | I62: (0.25) | J62: 6.44 | K62: =SUBSTITUTE(SUBSTITUTE(SUBSTITUTE(IFERROR(IF(PS[[#This Row],[Y]]="S",MID(PS[[#This Row],[Game]],FIND("[",PS[[#This Row],[Game]]),FIND("]",PS[[#This Row],[Game]])-FIND("[",PS[[#This Row],[Game]])+1),LEFT(LEFT(RIGHT(PS[[#This Row],[Game]],((LEN(PS[[#This Row],[Game]]))-( FIND("*",SUBSTITUTE(PS[[#This Row],[Game]]," ","*",4))))),( FIND("*",SUBSTITUTE(RIGHT(PS[[#This Row],[Game]],((LEN(PS[[#This Row],[Game]]))-( FIND("*",SUBSTITUTE(PS[[#This Row],[Game]]," ","*",4))))),", $","*",1)))),LEN(LEFT(RIGHT(PS[[#This Row],[Game]],((LEN(PS[[#This Row],[Game]]))-( FIND("*",SUBSTITUTE(PS[[#This Row],[Game]]," ","*",4))))),( FIND("*",SUBSTITUTE(RIGHT(PS[[#This Row],[Game]],((LEN(PS[[#This Row],[Game]]))-( FIND("*",SUBSTITUTE(PS[[#This Row],[Game]]," ","*",4))))),", $","*",1)))))-1)),"")," [Saturday Special]",""),"ger",""),"ter","") -> [45 Players] | L62: =IFERROR(IF(PS[[#This Row],[Y]]="S","",IF(IF(NOT(ISERR(FIND(".",SUBSTITUTE(MID(PS[[#This Row],[Game]],FIND(", $",PS[[#This Row],[Game]])+1,FIND(" Gtd",PS[[#This Row],[Game]])-FIND(", $",PS[[#This Row],[Game]])-1),"$","")))),1,0)=1,SUBSTITUTE(SUBSTITUTE(SUBSTITUTE(MID(PS[[#This Row],[Game]],FIND(", $",PS[[#This Row],[Game]])+1,FIND(" Gtd",PS[[#This Row],[Game]])-FIND(", $",PS[[#This Row],[Game]])-1),"$",""),".",""),"K","00"),SUBSTITUTE(SUBSTITUTE(SUBSTITUTE(MID(PS[[#This Row],[Game]],FIND(", $",PS[[#This Row],[Game]])+1,FIND(" Gtd",PS[[#This Row],[Game]])-FIND(", $",PS[[#This Row],[Game]])-1),"$",""),".",""),"K","000"))),"") ->  | M62: =IF(PS[[#This Row],[Game]]="","",IF(COUNTIF(PS[[#This Row],[Game]],"*Sit&Go*"),"S","M")) -> S | N62: =IF(PS[[#This Row],[Game]]="","",IF(OR(COUNTIF(PS[[#This Row],[Game]],"*Turbo*"),COUNTIF(PS[[#This Row],[Game]],"*Hot*")),"T",IF(COUNTIF(PS[[#This Row],[Game]],"*Bubble Rush*"),"T","R"))) -> R | O62: =IF(PS[[#This Row],[Game]]="","",IF(OR(COUNTIF(PS[[#This Row],[Game]],"*Bounty Builder*"),COUNTIF(PS[[#This Row],[Game]],"*KO*")),"K","")) ->  | P62: =IF(PS[[#This Row],[Game]]="","",IF(OR(COUNTIF(PS[[#This Row],[Game]],"*Rebuy*"),COUNTIF(PS[[#This Row],[Game]],"*+R*")),"R","")) ->  | Q62: =IF(PS[[#This Row],[Game]]="","",IF(COUNTIF(PS[[#This Row],[Game]],"*Zoom*"),"Z","")) ->  | R62: =IF(PS[[#This Row],[Date]]="","",DATE(YEAR(VALUE(PS[[#This Row],[Date]])),MONTH(VALUE(PS[[#This Row],[Date]])),DAY(VALUE(PS[[#This Row],[Date]])))) -> 2019-11-01 | S62: =IF(PS[[#This Row],[Date]]="","",TIME(HOUR(VALUE(PS[[#This Row],[Date]])),MINUTE(VALUE(PS[[#This Row],[Date]])),SECOND(PS[[#This Row],[Date]]))) -> 11:43:00 | T62: =IFERROR(VALUE(SUBSTITUTE(PS[[#This Row],[Amount]],".",",")),"") -> -0.25 | U62: =IFERROR(VALUE(SUBSTITUTE(PS[[#This Row],[Balance]],".",",")),"") -> 6.44
B63: =IF(PS[[#This Row],[Date]]="","",IFERROR(WEEKNUM(PS[[#This Row],[Date]],2),"")) -> 44 | C63: =IF(PS[[#This Row],[Date]]="","",IFERROR(CHOOSE(WEEKDAY(PS[[#This Row],[Date]],2),"понедельник","вторник","среда","четверг","пятница","суббота","воскресенье"),"")) -> пятница | D63: =IF(PS[[#This Row],[Date]]="","",TEXT(PS[[#This Row],[Date]],"mmmm")) -> ноябрь | E63: 2019/11/01 1:05 PM | F63: Tournament Won | G63: 2726688448 | H63: NL Hold'em Sit&Go Buy-In: 0.23/0.02 $0.25 NL Hold'em [45 Players] | I63: 2.22 | J63: 8.66 | K63: =SUBSTITUTE(SUBSTITUTE(SUBSTITUTE(IFERROR(IF(PS[[#This Row],[Y]]="S",MID(PS[[#This Row],[Game]],FIND("[",PS[[#This Row],[Game]]),FIND("]",PS[[#This Row],[Game]])-FIND("[",PS[[#This Row],[Game]])+1),LEFT(LEFT(RIGHT(PS[[#This Row],[Game]],((LEN(PS[[#This Row],[Game]]))-( FIND("*",SUBSTITUTE(PS[[#This Row],[Game]]," ","*",4))))),( FIND("*",SUBSTITUTE(RIGHT(PS[[#This Row],[Game]],((LEN(PS[[#This Row],[Game]]))-( FIND("*",SUBSTITUTE(PS[[#This Row],[Game]]," ","*",4))))),", $","*",1)))),LEN(LEFT(RIGHT(PS[[#This Row],[Game]],((LEN(PS[[#This Row],[Game]]))-( FIND("*",SUBSTITUTE(PS[[#This Row],[Game]]," ","*",4))))),( FIND("*",SUBSTITUTE(RIGHT(PS[[#This Row],[Game]],((LEN(PS[[#This Row],[Game]]))-( FIND("*",SUBSTITUTE(PS[[#This Row],[Game]]," ","*",4))))),", $","*",1)))))-1)),"")," [Saturday Special]",""),"ger",""),"ter","") -> [45 Players] | L63: =IFERROR(IF(PS[[#This Row],[Y]]="S","",IF(IF(NOT(ISERR(FIND(".",SUBSTITUTE(MID(PS[[#This Row],[Game]],FIND(", $",PS[[#This Row],[Game]])+1,FIND(" Gtd",PS[[#This Row],[Game]])-FIND(", $",PS[[#This Row],[Game]])-1),"$","")))),1,0)=1,SUBSTITUTE(SUBSTITUTE(SUBSTITUTE(MID(PS[[#This Row],[Game]],FIND(", $",PS[[#This Row],[Game]])+1,FIND(" Gtd",PS[[#This Row],[Game]])-FIND(", $",PS[[#This Row],[Game]])-1),"$",""),".",""),"K","00"),SUBSTITUTE(SUBSTITUTE(SUBSTITUTE(MID(PS[[#This Row],[Game]],FIND(", $",PS[[#This Row],[Game]])+1,FIND(" Gtd",PS[[#This Row],[Game]])-FIND(", $",PS[[#This Row],[Game]])-1),"$",""),".",""),"K","000"))),"") ->  | M63: =IF(PS[[#This Row],[Game]]="","",IF(COUNTIF(PS[[#This Row],[Game]],"*Sit&Go*"),"S","M")) -> S | N63: =IF(PS[[#This Row],[Game]]="","",IF(OR(COUNTIF(PS[[#This Row],[Game]],"*Turbo*"),COUNTIF(PS[[#This Row],[Game]],"*Hot*")),"T",IF(COUNTIF(PS[[#This Row],[Game]],"*Bubble Rush*"),"T","R"))) -> R | O63: =IF(PS[[#This Row],[Game]]="","",IF(OR(COUNTIF(PS[[#This Row],[Game]],"*Bounty Builder*"),COUNTIF(PS[[#This Row],[Game]],"*KO*")),"K","")) ->  | P63: =IF(PS[[#This Row],[Game]]="","",IF(OR(COUNTIF(PS[[#This Row],[Game]],"*Rebuy*"),COUNTIF(PS[[#This Row],[Game]],"*+R*")),"R","")) ->  | Q63: =IF(PS[[#This Row],[Game]]="","",IF(COUNTIF(PS[[#This Row],[Game]],"*Zoom*"),"Z","")) ->  | R63: =IF(PS[[#This Row],[Date]]="","",DATE(YEAR(VALUE(PS[[#This Row],[Date]])),MONTH(VALUE(PS[[#This Row],[Date]])),DAY(VALUE(PS[[#This Row],[Date]])))) -> 2019-11-01 | S63: =IF(PS[[#This Row],[Date]]="","",TIME(HOUR(VALUE(PS[[#This Row],[Date]])),MINUTE(VALUE(PS[[#This Row],[Date]])),SECOND(PS[[#This Row],[Date]]))) -> 13:05:00 | T63: =IFERROR(VALUE(SUBSTITUTE(PS[[#This Row],[Amount]],".",",")),"") -> 2.22 | U63: =IFERROR(VALUE(SUBSTITUTE(PS[[#This Row],[Balance]],".",",")),"") -> 8.66
B64: =IF(PS[[#This Row],[Date]]="","",IFERROR(WEEKNUM(PS[[#This Row],[Date]],2),"")) -> 44 | C64: =IF(PS[[#This Row],[Date]]="","",IFERROR(CHOOSE(WEEKDAY(PS[[#This Row],[Date]],2),"понедельник","вторник","среда","четверг","пятница","суббота","воскресенье"),"")) -> пятница | D64: =IF(PS[[#This Row],[Date]]="","",TEXT(PS[[#This Row],[Date]],"mmmm")) -> ноябрь | E64: 2019/11/01 1:14 PM | F64: Tournament Won | G64: 2726712734 | H64: NL Hold'em Sit&Go Buy-In: 0.23/0.02 $0.25 NL Hold'em [45 Players] | I64: 0.93 | J64: 9.59 | K64: =SUBSTITUTE(SUBSTITUTE(SUBSTITUTE(IFERROR(IF(PS[[#This Row],[Y]]="S",MID(PS[[#This Row],[Game]],FIND("[",PS[[#This Row],[Game]]),FIND("]",PS[[#This Row],[Game]])-FIND("[",PS[[#This Row],[Game]])+1),LEFT(LEFT(RIGHT(PS[[#This Row],[Game]],((LEN(PS[[#This Row],[Game]]))-( FIND("*",SUBSTITUTE(PS[[#This Row],[Game]]," ","*",4))))),( FIND("*",SUBSTITUTE(RIGHT(PS[[#This Row],[Game]],((LEN(PS[[#This Row],[Game]]))-( FIND("*",SUBSTITUTE(PS[[#This Row],[Game]]," ","*",4))))),", $","*",1)))),LEN(LEFT(RIGHT(PS[[#This Row],[Game]],((LEN(PS[[#This Row],[Game]]))-( FIND("*",SUBSTITUTE(PS[[#This Row],[Game]]," ","*",4))))),( FIND("*",SUBSTITUTE(RIGHT(PS[[#This Row],[Game]],((LEN(PS[[#This Row],[Game]]))-( FIND("*",SUBSTITUTE(PS[[#This Row],[Game]]," ","*",4))))),", $","*",1)))))-1)),"")," [Saturday Special]",""),"ger",""),"ter","") -> [45 Players] | L64: =IFERROR(IF(PS[[#This Row],[Y]]="S","",IF(IF(NOT(ISERR(FIND(".",SUBSTITUTE(MID(PS[[#This Row],[Game]],FIND(", $",PS[[#This Row],[Game]])+1,FIND(" Gtd",PS[[#This Row],[Game]])-FIND(", $",PS[[#This Row],[Game]])-1),"$","")))),1,0)=1,SUBSTITUTE(SUBSTITUTE(SUBSTITUTE(MID(PS[[#This Row],[Game]],FIND(", $",PS[[#This Row],[Game]])+1,FIND(" Gtd",PS[[#This Row],[Game]])-FIND(", $",PS[[#This Row],[Game]])-1),"$",""),".",""),"K","00"),SUBSTITUTE(SUBSTITUTE(SUBSTITUTE(MID(PS[[#This Row],[Game]],FIND(", $",PS[[#This Row],[Game]])+1,FIND(" Gtd",PS[[#This Row],[Game]])-FIND(", $",PS[[#This Row],[Game]])-1),"$",""),".",""),"K","000"))),"") ->  | M64: =IF(PS[[#This Row],[Game]]="","",IF(COUNTIF(PS[[#This Row],[Game]],"*Sit&Go*"),"S","M")) -> S | N64: =IF(PS[[#This Row],[Game]]="","",IF(OR(COUNTIF(PS[[#This Row],[Game]],"*Turbo*"),COUNTIF(PS[[#This Row],[Game]],"*Hot*")),"T",IF(COUNTIF(PS[[#This Row],[Game]],"*Bubble Rush*"),"T","R"))) -> R | O64: =IF(PS[[#This Row],[Game]]="","",IF(OR(COUNTIF(PS[[#This Row],[Game]],"*Bounty Builder*"),COUNTIF(PS[[#This Row],[Game]],"*KO*")),"K","")) ->  | P64: =IF(PS[[#This Row],[Game]]="","",IF(OR(COUNTIF(PS[[#This Row],[Game]],"*Rebuy*"),COUNTIF(PS[[#This Row],[Game]],"*+R*")),"R","")) ->  | Q64: =IF(PS[[#This Row],[Game]]="","",IF(COUNTIF(PS[[#This Row],[Game]],"*Zoom*"),"Z","")) ->  | R64: =IF(PS[[#This Row],[Date]]="","",DATE(YEAR(VALUE(PS[[#This Row],[Date]])),MONTH(VALUE(PS[[#This Row],[Date]])),DAY(VALUE(PS[[#This Row],[Date]])))) -> 2019-11-01 | S64: =IF(PS[[#This Row],[Date]]="","",TIME(HOUR(VALUE(PS[[#This Row],[Date]])),MINUTE(VALUE(PS[[#This Row],[Date]])),SECOND(PS[[#This Row],[Date]]))) -> 13:14:00 | T64: =IFERROR(VALUE(SUBSTITUTE(PS[[#This Row],[Amount]],".",",")),"") -> 0.93 | U64: =IFERROR(VALUE(SUBSTITUTE(PS[[#This Row],[Balance]],".",",")),"") -> 9.59
B65: =IF(PS[[#This Row],[Date]]="","",IFERROR(WEEKNUM(PS[[#This Row],[Date]],2),"")) -> 44 | C65: =IF(PS[[#This Row],[Date]]="","",IFERROR(CHOOSE(WEEKDAY(PS[[#This Row],[Date]],2),"понедельник","вторник","среда","четверг","пятница","суббота","воскресенье"),"")) -> пятница | D65: =IF(PS[[#This Row],[Date]]="","",TEXT(PS[[#This Row],[Date]],"mmmm")) -> ноябрь | E65: 2019/11/01 1:17 PM | F65: Tournament Won | G65: 2726707545 | H65: NL Hold'em Sit&Go Buy-In: 0.23/0.02 $0.25 NL Hold'em [45 Players] | I65: 0.62 | J65: 10.21 | K65: =SUBSTITUTE(SUBSTITUTE(SUBSTITUTE(IFERROR(IF(PS[[#This Row],[Y]]="S",MID(PS[[#This Row],[Game]],FIND("[",PS[[#This Row],[Game]]),FIND("]",PS[[#This Row],[Game]])-FIND("[",PS[[#This Row],[Game]])+1),LEFT(LEFT(RIGHT(PS[[#This Row],[Game]],((LEN(PS[[#This Row],[Game]]))-( FIND("*",SUBSTITUTE(PS[[#This Row],[Game]]," ","*",4))))),( FIND("*",SUBSTITUTE(RIGHT(PS[[#This Row],[Game]],((LEN(PS[[#This Row],[Game]]))-( FIND("*",SUBSTITUTE(PS[[#This Row],[Game]]," ","*",4))))),", $","*",1)))),LEN(LEFT(RIGHT(PS[[#This Row],[Game]],((LEN(PS[[#This Row],[Game]]))-( FIND("*",SUBSTITUTE(PS[[#This Row],[Game]]," ","*",4))))),( FIND("*",SUBSTITUTE(RIGHT(PS[[#This Row],[Game]],((LEN(PS[[#This Row],[Game]]))-( FIND("*",SUBSTITUTE(PS[[#This Row],[Game]]," ","*",4))))),", $","*",1)))))-1)),"")," [Saturday Special]",""),"ger",""),"ter","") -> [45 Players] | L65: =IFERROR(IF(PS[[#This Row],[Y]]="S","",IF(IF(NOT(ISERR(FIND(".",SUBSTITUTE(MID(PS[[#This Row],[Game]],FIND(", $",PS[[#This Row],[Game]])+1,FIND(" Gtd",PS[[#This Row],[Game]])-FIND(", $",PS[[#This Row],[Game]])-1),"$","")))),1,0)=1,SUBSTITUTE(SUBSTITUTE(SUBSTITUTE(MID(PS[[#This Row],[Game]],FIND(", $",PS[[#This Row],[Game]])+1,FIND(" Gtd",PS[[#This Row],[Game]])-FIND(", $",PS[[#This Row],[Game]])-1),"$",""),".",""),"K","00"),SUBSTITUTE(SUBSTITUTE(SUBSTITUTE(MID(PS[[#This Row],[Game]],FIND(", $",PS[[#This Row],[Game]])+1,FIND(" Gtd",PS[[#This Row],[Game]])-FIND(", $",PS[[#This Row],[Game]])-1),"$",""),".",""),"K","000"))),"") ->  | M65: =IF(PS[[#This Row],[Game]]="","",IF(COUNTIF(PS[[#This Row],[Game]],"*Sit&Go*"),"S","M")) -> S | N65: =IF(PS[[#This Row],[Game]]="","",IF(OR(COUNTIF(PS[[#This Row],[Game]],"*Turbo*"),COUNTIF(PS[[#This Row],[Game]],"*Hot*")),"T",IF(COUNTIF(PS[[#This Row],[Game]],"*Bubble Rush*"),"T","R"))) -> R | O65: =IF(PS[[#This Row],[Game]]="","",IF(OR(COUNTIF(PS[[#This Row],[Game]],"*Bounty Builder*"),COUNTIF(PS[[#This Row],[Game]],"*KO*")),"K","")) ->  | P65: =IF(PS[[#This Row],[Game]]="","",IF(OR(COUNTIF(PS[[#This Row],[Game]],"*Rebuy*"),COUNTIF(PS[[#This Row],[Game]],"*+R*")),"R","")) ->  | Q65: =IF(PS[[#This Row],[Game]]="","",IF(COUNTIF(PS[[#This Row],[Game]],"*Zoom*"),"Z","")) ->  | R65: =IF(PS[[#This Row],[Date]]="","",DATE(YEAR(VALUE(PS[[#This Row],[Date]])),MONTH(VALUE(PS[[#This Row],[Date]])),DAY(VALUE(PS[[#This Row],[Date]])))) -> 2019-11-01 | S65: =IF(PS[[#This Row],[Date]]="","",TIME(HOUR(VALUE(PS[[#This Row],[Date]])),MINUTE(VALUE(PS[[#This Row],[Date]])),SECOND(PS[[#This Row],[Date]]))) -> 13:17:00 | T65: =IFERROR(VALUE(SUBSTITUTE(PS[[#This Row],[Amount]],".",",")),"") -> 0.62 | U65: =IFERROR(VALUE(SUBSTITUTE(PS[[#This Row],[Balance]],".",",")),"") -> 10.21
B66: =IF(PS[[#This Row],[Date]]="","",IFERROR(WEEKNUM(PS[[#This Row],[Date]],2),"")) -> 44 | C66: =IF(PS[[#This Row],[Date]]="","",IFERROR(CHOOSE(WEEKDAY(PS[[#This Row],[Date]],2),"понедельник","вторник","среда","четверг","пятница","суббота","воскресенье"),"")) -> пятница | D66: =IF(PS[[#This Row],[Date]]="","",TEXT(PS[[#This Row],[Date]],"mmmm")) -> ноябрь | E66: 2019/11/01 1:40 PM | F66: Tournament Won | G66: 2726714683 | H66: NL Hold'em Sit&Go Buy-In: 0.23/0.02 $0.25 NL Hold'em [45 Players] | I66: 3.23 | J66: 13.44 | K66: =SUBSTITUTE(SUBSTITUTE(SUBSTITUTE(IFERROR(IF(PS[[#This Row],[Y]]="S",MID(PS[[#This Row],[Game]],FIND("[",PS[[#This Row],[Game]]),FIND("]",PS[[#This Row],[Game]])-FIND("[",PS[[#This Row],[Game]])+1),LEFT(LEFT(RIGHT(PS[[#This Row],[Game]],((LEN(PS[[#This Row],[Game]]))-( FIND("*",SUBSTITUTE(PS[[#This Row],[Game]]," ","*",4))))),( FIND("*",SUBSTITUTE(RIGHT(PS[[#This Row],[Game]],((LEN(PS[[#This Row],[Game]]))-( FIND("*",SUBSTITUTE(PS[[#This Row],[Game]]," ","*",4))))),", $","*",1)))),LEN(LEFT(RIGHT(PS[[#This Row],[Game]],((LEN(PS[[#This Row],[Game]]))-( FIND("*",SUBSTITUTE(PS[[#This Row],[Game]]," ","*",4))))),( FIND("*",SUBSTITUTE(RIGHT(PS[[#This Row],[Game]],((LEN(PS[[#This Row],[Game]]))-( FIND("*",SUBSTITUTE(PS[[#This Row],[Game]]," ","*",4))))),", $","*",1)))))-1)),"")," [Saturday Special]",""),"ger",""),"ter","") -> [45 Players] | L66: =IFERROR(IF(PS[[#This Row],[Y]]="S","",IF(IF(NOT(ISERR(FIND(".",SUBSTITUTE(MID(PS[[#This Row],[Game]],FIND(", $",PS[[#This Row],[Game]])+1,FIND(" Gtd",PS[[#This Row],[Game]])-FIND(", $",PS[[#This Row],[Game]])-1),"$","")))),1,0)=1,SUBSTITUTE(SUBSTITUTE(SUBSTITUTE(MID(PS[[#This Row],[Game]],FIND(", $",PS[[#This Row],[Game]])+1,FIND(" Gtd",PS[[#This Row],[Game]])-FIND(", $",PS[[#This Row],[Game]])-1),"$",""),".",""),"K","00"),SUBSTITUTE(SUBSTITUTE(SUBSTITUTE(MID(PS[[#This Row],[Game]],FIND(", $",PS[[#This Row],[Game]])+1,FIND(" Gtd",PS[[#This Row],[Game]])-FIND(", $",PS[[#This Row],[Game]])-1),"$",""),".",""),"K","000"))),"") ->  | M66: =IF(PS[[#This Row],[Game]]="","",IF(COUNTIF(PS[[#This Row],[Game]],"*Sit&Go*"),"S","M")) -> S | N66: =IF(PS[[#This Row],[Game]]="","",IF(OR(COUNTIF(PS[[#This Row],[Game]],"*Turbo*"),COUNTIF(PS[[#This Row],[Game]],"*Hot*")),"T",IF(COUNTIF(PS[[#This Row],[Game]],"*Bubble Rush*"),"T","R"))) -> R | O66: =IF(PS[[#This Row],[Game]]="","",IF(OR(COUNTIF(PS[[#This Row],[Game]],"*Bounty Builder*"),COUNTIF(PS[[#This Row],[Game]],"*KO*")),"K","")) ->  | P66: =IF(PS[[#This Row],[Game]]="","",IF(OR(COUNTIF(PS[[#This Row],[Game]],"*Rebuy*"),COUNTIF(PS[[#This Row],[Game]],"*+R*")),"R","")) ->  | Q66: =IF(PS[[#This Row],[Game]]="","",IF(COUNTIF(PS[[#This Row],[Game]],"*Zoom*"),"Z","")) ->  | R66: =IF(PS[[#This Row],[Date]]="","",DATE(YEAR(VALUE(PS[[#This Row],[Date]])),MONTH(VALUE(PS[[#This Row],[Date]])),DAY(VALUE(PS[[#This Row],[Date]])))) -> 2019-11-01 | S66: =IF(PS[[#This Row],[Date]]="","",TIME(HOUR(VALUE(PS[[#This Row],[Date]])),MINUTE(VALUE(PS[[#This Row],[Date]])),SECOND(PS[[#This Row],[Date]]))) -> 13:40:00 | T66: =IFERROR(VALUE(SUBSTITUTE(PS[[#This Row],[Amount]],".",",")),"") -> 3.23 | U66: =IFERROR(VALUE(SUBSTITUTE(PS[[#This Row],[Balance]],".",",")),"") -> 13.44
B67: =IF(PS[[#This Row],[Date]]="","",IFERROR(WEEKNUM(PS[[#This Row],[Date]],2),"")) -> 44 | C67: =IF(PS[[#This Row],[Date]]="","",IFERROR(CHOOSE(WEEKDAY(PS[[#This Row],[Date]],2),"понедельник","вторник","среда","четверг","пятница","суббота","воскресенье"),"")) -> пятница | D67: =IF(PS[[#This Row],[Date]]="","",TEXT(PS[[#This Row],[Date]],"mmmm")) -> ноябрь | E67: 2019/11/01 1:40 PM | F67: Tournament Registration | G67: 2726811217 | H67: NL Hold'em Sit&Go Buy-In: 0.23/0.02 $0.25 NL Hold'em [45 Players] | I67: (0.25) | J67: 13.19 | K67: =SUBSTITUTE(SUBSTITUTE(SUBSTITUTE(IFERROR(IF(PS[[#This Row],[Y]]="S",MID(PS[[#This Row],[Game]],FIND("[",PS[[#This Row],[Game]]),FIND("]",PS[[#This Row],[Game]])-FIND("[",PS[[#This Row],[Game]])+1),LEFT(LEFT(RIGHT(PS[[#This Row],[Game]],((LEN(PS[[#This Row],[Game]]))-( FIND("*",SUBSTITUTE(PS[[#This Row],[Game]]," ","*",4))))),( FIND("*",SUBSTITUTE(RIGHT(PS[[#This Row],[Game]],((LEN(PS[[#This Row],[Game]]))-( FIND("*",SUBSTITUTE(PS[[#This Row],[Game]]," ","*",4))))),", $","*",1)))),LEN(LEFT(RIGHT(PS[[#This Row],[Game]],((LEN(PS[[#This Row],[Game]]))-( FIND("*",SUBSTITUTE(PS[[#This Row],[Game]]," ","*",4))))),( FIND("*",SUBSTITUTE(RIGHT(PS[[#This Row],[Game]],((LEN(PS[[#This Row],[Game]]))-( FIND("*",SUBSTITUTE(PS[[#This Row],[Game]]," ","*",4))))),", $","*",1)))))-1)),"")," [Saturday Special]",""),"ger",""),"ter","") -> [45 Players] | L67: =IFERROR(IF(PS[[#This Row],[Y]]="S","",IF(IF(NOT(ISERR(FIND(".",SUBSTITUTE(MID(PS[[#This Row],[Game]],FIND(", $",PS[[#This Row],[Game]])+1,FIND(" Gtd",PS[[#This Row],[Game]])-FIND(", $",PS[[#This Row],[Game]])-1),"$","")))),1,0)=1,SUBSTITUTE(SUBSTITUTE(SUBSTITUTE(MID(PS[[#This Row],[Game]],FIND(", $",PS[[#This Row],[Game]])+1,FIND(" Gtd",PS[[#This Row],[Game]])-FIND(", $",PS[[#This Row],[Game]])-1),"$",""),".",""),"K","00"),SUBSTITUTE(SUBSTITUTE(SUBSTITUTE(MID(PS[[#This Row],[Game]],FIND(", $",PS[[#This Row],[Game]])+1,FIND(" Gtd",PS[[#This Row],[Game]])-FIND(", $",PS[[#This Row],[Game]])-1),"$",""),".",""),"K","000"))),"") ->  | M67: =IF(PS[[#This Row],[Game]]="","",IF(COUNTIF(PS[[#This Row],[Game]],"*Sit&Go*"),"S","M")) -> S | N67: =IF(PS[[#This Row],[Game]]="","",IF(OR(COUNTIF(PS[[#This Row],[Game]],"*Turbo*"),COUNTIF(PS[[#This Row],[Game]],"*Hot*")),"T",IF(COUNTIF(PS[[#This Row],[Game]],"*Bubble Rush*"),"T","R"))) -> R | O67: =IF(PS[[#This Row],[Game]]="","",IF(OR(COUNTIF(PS[[#This Row],[Game]],"*Bounty Builder*"),COUNTIF(PS[[#This Row],[Game]],"*KO*")),"K","")) ->  | P67: =IF(PS[[#This Row],[Game]]="","",IF(OR(COUNTIF(PS[[#This Row],[Game]],"*Rebuy*"),COUNTIF(PS[[#This Row],[Game]],"*+R*")),"R","")) ->  | Q67: =IF(PS[[#This Row],[Game]]="","",IF(COUNTIF(PS[[#This Row],[Game]],"*Zoom*"),"Z","")) ->  | R67: =IF(PS[[#This Row],[Date]]="","",DATE(YEAR(VALUE(PS[[#This Row],[Date]])),MONTH(VALUE(PS[[#This Row],[Date]])),DAY(VALUE(PS[[#This Row],[Date]])))) -> 2019-11-01 | S67: =IF(PS[[#This Row],[Date]]="","",TIME(HOUR(VALUE(PS[[#This Row],[Date]])),MINUTE(VALUE(PS[[#This Row],[Date]])),SECOND(PS[[#This Row],[Date]]))) -> 13:40:00 | T67: =IFERROR(VALUE(SUBSTITUTE(PS[[#This Row],[Amount]],".",",")),"") -> -0.25 | U67: =IFERROR(VALUE(SUBSTITUTE(PS[[#This Row],[Balance]],".",",")),"") -> 13.19
B68: =IF(PS[[#This Row],[Date]]="","",IFERROR(WEEKNUM(PS[[#This Row],[Date]],2),"")) -> 44 | C68: =IF(PS[[#This Row],[Date]]="","",IFERROR(CHOOSE(WEEKDAY(PS[[#This Row],[Date]],2),"понедельник","вторник","среда","четверг","пятница","суббота","воскресенье"),"")) -> пятница | D68: =IF(PS[[#This Row],[Date]]="","",TEXT(PS[[#This Row],[Date]],"mmmm")) -> ноябрь | E68: 2019/11/01 1:44 PM | F68: Tournament Registration | G68: 2726813766 | H68: NL Hold'em Sit&Go Buy-In: 0.23/0.02 $0.25 NL Hold'em [45 Players] | I68: (0.25) | J68: 12.94 | K68: =SUBSTITUTE(SUBSTITUTE(SUBSTITUTE(IFERROR(IF(PS[[#This Row],[Y]]="S",MID(PS[[#This Row],[Game]],FIND("[",PS[[#This Row],[Game]]),FIND("]",PS[[#This Row],[Game]])-FIND("[",PS[[#This Row],[Game]])+1),LEFT(LEFT(RIGHT(PS[[#This Row],[Game]],((LEN(PS[[#This Row],[Game]]))-( FIND("*",SUBSTITUTE(PS[[#This Row],[Game]]," ","*",4))))),( FIND("*",SUBSTITUTE(RIGHT(PS[[#This Row],[Game]],((LEN(PS[[#This Row],[Game]]))-( FIND("*",SUBSTITUTE(PS[[#This Row],[Game]]," ","*",4))))),", $","*",1)))),LEN(LEFT(RIGHT(PS[[#This Row],[Game]],((LEN(PS[[#This Row],[Game]]))-( FIND("*",SUBSTITUTE(PS[[#This Row],[Game]]," ","*",4))))),( FIND("*",SUBSTITUTE(RIGHT(PS[[#This Row],[Game]],((LEN(PS[[#This Row],[Game]]))-( FIND("*",SUBSTITUTE(PS[[#This Row],[Game]]," ","*",4))))),", $","*",1)))))-1)),"")," [Saturday Special]",""),"ger",""),"ter","") -> [45 Players] | L68: =IFERROR(IF(PS[[#This Row],[Y]]="S","",IF(IF(NOT(ISERR(FIND(".",SUBSTITUTE(MID(PS[[#This Row],[Game]],FIND(", $",PS[[#This Row],[Game]])+1,FIND(" Gtd",PS[[#This Row],[Game]])-FIND(", $",PS[[#This Row],[Game]])-1),"$","")))),1,0)=1,SUBSTITUTE(SUBSTITUTE(SUBSTITUTE(MID(PS[[#This Row],[Game]],FIND(", $",PS[[#This Row],[Game]])+1,FIND(" Gtd",PS[[#This Row],[Game]])-FIND(", $",PS[[#This Row],[Game]])-1),"$",""),".",""),"K","00"),SUBSTITUTE(SUBSTITUTE(SUBSTITUTE(MID(PS[[#This Row],[Game]],FIND(", $",PS[[#This Row],[Game]])+1,FIND(" Gtd",PS[[#This Row],[Game]])-FIND(", $",PS[[#This Row],[Game]])-1),"$",""),".",""),"K","000"))),"") ->  | M68: =IF(PS[[#This Row],[Game]]="","",IF(COUNTIF(PS[[#This Row],[Game]],"*Sit&Go*"),"S","M")) -> S | N68: =IF(PS[[#This Row],[Game]]="","",IF(OR(COUNTIF(PS[[#This Row],[Game]],"*Turbo*"),COUNTIF(PS[[#This Row],[Game]],"*Hot*")),"T",IF(COUNTIF(PS[[#This Row],[Game]],"*Bubble Rush*"),"T","R"))) -> R | O68: =IF(PS[[#This Row],[Game]]="","",IF(OR(COUNTIF(PS[[#This Row],[Game]],"*Bounty Builder*"),COUNTIF(PS[[#This Row],[Game]],"*KO*")),"K","")) ->  | P68: =IF(PS[[#This Row],[Game]]="","",IF(OR(COUNTIF(PS[[#This Row],[Game]],"*Rebuy*"),COUNTIF(PS[[#This Row],[Game]],"*+R*")),"R","")) ->  | Q68: =IF(PS[[#This Row],[Game]]="","",IF(COUNTIF(PS[[#This Row],[Game]],"*Zoom*"),"Z","")) ->  | R68: =IF(PS[[#This Row],[Date]]="","",DATE(YEAR(VALUE(PS[[#This Row],[Date]])),MONTH(VALUE(PS[[#This Row],[Date]])),DAY(VALUE(PS[[#This Row],[Date]])))) -> 2019-11-01 | S68: =IF(PS[[#This Row],[Date]]="","",TIME(HOUR(VALUE(PS[[#This Row],[Date]])),MINUTE(VALUE(PS[[#This Row],[Date]])),SECOND(PS[[#This Row],[Date]]))) -> 13:44:00 | T68: =IFERROR(VALUE(SUBSTITUTE(PS[[#This Row],[Amount]],".",",")),"") -> -0.25 | U68: =IFERROR(VALUE(SUBSTITUTE(PS[[#This Row],[Balance]],".",",")),"") -> 12.94
B69: =IF(PS[[#This Row],[Date]]="","",IFERROR(WEEKNUM(PS[[#This Row],[Date]],2),"")) -> 44 | C69: =IF(PS[[#This Row],[Date]]="","",IFERROR(CHOOSE(WEEKDAY(PS[[#This Row],[Date]],2),"понедельник","вторник","среда","четверг","пятница","суббота","воскресенье"),"")) -> пятница | D69: =IF(PS[[#This Row],[Date]]="","",TEXT(PS[[#This Row],[Date]],"mmmm")) -> ноябрь | E69: 2019/11/01 1:47 PM | F69: Tournament Registration | G69: 2726816086 | H69: NL Hold'em Sit&Go Buy-In: 0.23/0.02 $0.25 NL Hold'em [45 Players] | I69: (0.25) | J69: 12.69 | K69: =SUBSTITUTE(SUBSTITUTE(SUBSTITUTE(IFERROR(IF(PS[[#This Row],[Y]]="S",MID(PS[[#This Row],[Game]],FIND("[",PS[[#This Row],[Game]]),FIND("]",PS[[#This Row],[Game]])-FIND("[",PS[[#This Row],[Game]])+1),LEFT(LEFT(RIGHT(PS[[#This Row],[Game]],((LEN(PS[[#This Row],[Game]]))-( FIND("*",SUBSTITUTE(PS[[#This Row],[Game]]," ","*",4))))),( FIND("*",SUBSTITUTE(RIGHT(PS[[#This Row],[Game]],((LEN(PS[[#This Row],[Game]]))-( FIND("*",SUBSTITUTE(PS[[#This Row],[Game]]," ","*",4))))),", $","*",1)))),LEN(LEFT(RIGHT(PS[[#This Row],[Game]],((LEN(PS[[#This Row],[Game]]))-( FIND("*",SUBSTITUTE(PS[[#This Row],[Game]]," ","*",4))))),( FIND("*",SUBSTITUTE(RIGHT(PS[[#This Row],[Game]],((LEN(PS[[#This Row],[Game]]))-( FIND("*",SUBSTITUTE(PS[[#This Row],[Game]]," ","*",4))))),", $","*",1)))))-1)),"")," [Saturday Special]",""),"ger",""),"ter","") -> [45 Players] | L69: =IFERROR(IF(PS[[#This Row],[Y]]="S","",IF(IF(NOT(ISERR(FIND(".",SUBSTITUTE(MID(PS[[#This Row],[Game]],FIND(", $",PS[[#This Row],[Game]])+1,FIND(" Gtd",PS[[#This Row],[Game]])-FIND(", $",PS[[#This Row],[Game]])-1),"$","")))),1,0)=1,SUBSTITUTE(SUBSTITUTE(SUBSTITUTE(MID(PS[[#This Row],[Game]],FIND(", $",PS[[#This Row],[Game]])+1,FIND(" Gtd",PS[[#This Row],[Game]])-FIND(", $",PS[[#This Row],[Game]])-1),"$",""),".",""),"K","00"),SUBSTITUTE(SUBSTITUTE(SUBSTITUTE(MID(PS[[#This Row],[Game]],FIND(", $",PS[[#This Row],[Game]])+1,FIND(" Gtd",PS[[#This Row],[Game]])-FIND(", $",PS[[#This Row],[Game]])-1),"$",""),".",""),"K","000"))),"") ->  | M69: =IF(PS[[#This Row],[Game]]="","",IF(COUNTIF(PS[[#This Row],[Game]],"*Sit&Go*"),"S","M")) -> S | N69: =IF(PS[[#This Row],[Game]]="","",IF(OR(COUNTIF(PS[[#This Row],[Game]],"*Turbo*"),COUNTIF(PS[[#This Row],[Game]],"*Hot*")),"T",IF(COUNTIF(PS[[#This Row],[Game]],"*Bubble Rush*"),"T","R"))) -> R | O69: =IF(PS[[#This Row],[Game]]="","",IF(OR(COUNTIF(PS[[#This Row],[Game]],"*Bounty Builder*"),COUNTIF(PS[[#This Row],[Game]],"*KO*")),"K","")) ->  | P69: =IF(PS[[#This Row],[Game]]="","",IF(OR(COUNTIF(PS[[#This Row],[Game]],"*Rebuy*"),COUNTIF(PS[[#This Row],[Game]],"*+R*")),"R","")) ->  | Q69: =IF(PS[[#This Row],[Game]]="","",IF(COUNTIF(PS[[#This Row],[Game]],"*Zoom*"),"Z","")) ->  | R69: =IF(PS[[#This Row],[Date]]="","",DATE(YEAR(VALUE(PS[[#This Row],[Date]])),MONTH(VALUE(PS[[#This Row],[Date]])),DAY(VALUE(PS[[#This Row],[Date]])))) -> 2019-11-01 | S69: =IF(PS[[#This Row],[Date]]="","",TIME(HOUR(VALUE(PS[[#This Row],[Date]])),MINUTE(VALUE(PS[[#This Row],[Date]])),SECOND(PS[[#This Row],[Date]]))) -> 13:47:00 | T69: =IFERROR(VALUE(SUBSTITUTE(PS[[#This Row],[Amount]],".",",")),"") -> -0.25 | U69: =IFERROR(VALUE(SUBSTITUTE(PS[[#This Row],[Balance]],".",",")),"") -> 12.69
B70: =IF(PS[[#This Row],[Date]]="","",IFERROR(WEEKNUM(PS[[#This Row],[Date]],2),"")) -> 44 | C70: =IF(PS[[#This Row],[Date]]="","",IFERROR(CHOOSE(WEEKDAY(PS[[#This Row],[Date]],2),"понедельник","вторник","среда","четверг","пятница","суббота","воскресенье"),"")) -> пятница | D70: =IF(PS[[#This Row],[Date]]="","",TEXT(PS[[#This Row],[Date]],"mmmm")) -> ноябрь | E70: 2019/11/01 1:49 PM | F70: Tournament Registration | G70: 2726819710 | H70: NL Hold'em Sit&Go Buy-In: 0.23/0.02 $0.25 NL Hold'em [45 Players] | I70: (0.25) | J70: 12.44 | K70: =SUBSTITUTE(SUBSTITUTE(SUBSTITUTE(IFERROR(IF(PS[[#This Row],[Y]]="S",MID(PS[[#This Row],[Game]],FIND("[",PS[[#This Row],[Game]]),FIND("]",PS[[#This Row],[Game]])-FIND("[",PS[[#This Row],[Game]])+1),LEFT(LEFT(RIGHT(PS[[#This Row],[Game]],((LEN(PS[[#This Row],[Game]]))-( FIND("*",SUBSTITUTE(PS[[#This Row],[Game]]," ","*",4))))),( FIND("*",SUBSTITUTE(RIGHT(PS[[#This Row],[Game]],((LEN(PS[[#This Row],[Game]]))-( FIND("*",SUBSTITUTE(PS[[#This Row],[Game]]," ","*",4))))),", $","*",1)))),LEN(LEFT(RIGHT(PS[[#This Row],[Game]],((LEN(PS[[#This Row],[Game]]))-( FIND("*",SUBSTITUTE(PS[[#This Row],[Game]]," ","*",4))))),( FIND("*",SUBSTITUTE(RIGHT(PS[[#This Row],[Game]],((LEN(PS[[#This Row],[Game]]))-( FIND("*",SUBSTITUTE(PS[[#This Row],[Game]]," ","*",4))))),", $","*",1)))))-1)),"")," [Saturday Special]",""),"ger",""),"ter","") -> [45 Players] | L70: =IFERROR(IF(PS[[#This Row],[Y]]="S","",IF(IF(NOT(ISERR(FIND(".",SUBSTITUTE(MID(PS[[#This Row],[Game]],FIND(", $",PS[[#This Row],[Game]])+1,FIND(" Gtd",PS[[#This Row],[Game]])-FIND(", $",PS[[#This Row],[Game]])-1),"$","")))),1,0)=1,SUBSTITUTE(SUBSTITUTE(SUBSTITUTE(MID(PS[[#This Row],[Game]],FIND(", $",PS[[#This Row],[Game]])+1,FIND(" Gtd",PS[[#This Row],[Game]])-FIND(", $",PS[[#This Row],[Game]])-1),"$",""),".",""),"K","00"),SUBSTITUTE(SUBSTITUTE(SUBSTITUTE(MID(PS[[#This Row],[Game]],FIND(", $",PS[[#This Row],[Game]])+1,FIND(" Gtd",PS[[#This Row],[Game]])-FIND(", $",PS[[#This Row],[Game]])-1),"$",""),".",""),"K","000"))),"") ->  | M70: =IF(PS[[#This Row],[Game]]="","",IF(COUNTIF(PS[[#This Row],[Game]],"*Sit&Go*"),"S","M")) -> S | N70: =IF(PS[[#This Row],[Game]]="","",IF(OR(COUNTIF(PS[[#This Row],[Game]],"*Turbo*"),COUNTIF(PS[[#This Row],[Game]],"*Hot*")),"T",IF(COUNTIF(PS[[#This Row],[Game]],"*Bubble Rush*"),"T","R"))) -> R | O70: =IF(PS[[#This Row],[Game]]="","",IF(OR(COUNTIF(PS[[#This Row],[Game]],"*Bounty Builder*"),COUNTIF(PS[[#This Row],[Game]],"*KO*")),"K","")) ->  | P70: =IF(PS[[#This Row],[Game]]="","",IF(OR(COUNTIF(PS[[#This Row],[Game]],"*Rebuy*"),COUNTIF(PS[[#This Row],[Game]],"*+R*")),"R","")) ->  | Q70: =IF(PS[[#This Row],[Game]]="","",IF(COUNTIF(PS[[#This Row],[Game]],"*Zoom*"),"Z","")) ->  | R70: =IF(PS[[#This Row],[Date]]="","",DATE(YEAR(VALUE(PS[[#This Row],[Date]])),MONTH(VALUE(PS[[#This Row],[Date]])),DAY(VALUE(PS[[#This Row],[Date]])))) -> 2019-11-01 | S70: =IF(PS[[#This Row],[Date]]="","",TIME(HOUR(VALUE(PS[[#This Row],[Date]])),MINUTE(VALUE(PS[[#This Row],[Date]])),SECOND(PS[[#This Row],[Date]]))) -> 13:49:00 | T70: =IFERROR(VALUE(SUBSTITUTE(PS[[#This Row],[Amount]],".",",")),"") -> -0.25 | U70: =IFERROR(VALUE(SUBSTITUTE(PS[[#This Row],[Balance]],".",",")),"") -> 12.44
B71: =IF(PS[[#This Row],[Date]]="","",IFERROR(WEEKNUM(PS[[#This Row],[Date]],2),"")) -> 44 | C71: =IF(PS[[#This Row],[Date]]="","",IFERROR(CHOOSE(WEEKDAY(PS[[#This Row],[Date]],2),"понедельник","вторник","среда","четверг","пятница","суббота","воскресенье"),"")) -> пятница | D71: =IF(PS[[#This Row],[Date]]="","",TEXT(PS[[#This Row],[Date]],"mmmm")) -> ноябрь | E71: 2019/11/01 1:52 PM | F71: Tournament Registration | G71: 2726822243 | H71: NL Hold'em Sit&Go Buy-In: 0.23/0.02 $0.25 NL Hold'em [45 Players] | I71: (0.25) | J71: 12.19 | K71: =SUBSTITUTE(SUBSTITUTE(SUBSTITUTE(IFERROR(IF(PS[[#This Row],[Y]]="S",MID(PS[[#This Row],[Game]],FIND("[",PS[[#This Row],[Game]]),FIND("]",PS[[#This Row],[Game]])-FIND("[",PS[[#This Row],[Game]])+1),LEFT(LEFT(RIGHT(PS[[#This Row],[Game]],((LEN(PS[[#This Row],[Game]]))-( FIND("*",SUBSTITUTE(PS[[#This Row],[Game]]," ","*",4))))),( FIND("*",SUBSTITUTE(RIGHT(PS[[#This Row],[Game]],((LEN(PS[[#This Row],[Game]]))-( FIND("*",SUBSTITUTE(PS[[#This Row],[Game]]," ","*",4))))),", $","*",1)))),LEN(LEFT(RIGHT(PS[[#This Row],[Game]],((LEN(PS[[#This Row],[Game]]))-( FIND("*",SUBSTITUTE(PS[[#This Row],[Game]]," ","*",4))))),( FIND("*",SUBSTITUTE(RIGHT(PS[[#This Row],[Game]],((LEN(PS[[#This Row],[Game]]))-( FIND("*",SUBSTITUTE(PS[[#This Row],[Game]]," ","*",4))))),", $","*",1)))))-1)),"")," [Saturday Special]",""),"ger",""),"ter","") -> [45 Players] | L71: =IFERROR(IF(PS[[#This Row],[Y]]="S","",IF(IF(NOT(ISERR(FIND(".",SUBSTITUTE(MID(PS[[#This Row],[Game]],FIND(", $",PS[[#This Row],[Game]])+1,FIND(" Gtd",PS[[#This Row],[Game]])-FIND(", $",PS[[#This Row],[Game]])-1),"$","")))),1,0)=1,SUBSTITUTE(SUBSTITUTE(SUBSTITUTE(MID(PS[[#This Row],[Game]],FIND(", $",PS[[#This Row],[Game]])+1,FIND(" Gtd",PS[[#This Row],[Game]])-FIND(", $",PS[[#This Row],[Game]])-1),"$",""),".",""),"K","00"),SUBSTITUTE(SUBSTITUTE(SUBSTITUTE(MID(PS[[#This Row],[Game]],FIND(", $",PS[[#This Row],[Game]])+1,FIND(" Gtd",PS[[#This Row],[Game]])-FIND(", $",PS[[#This Row],[Game]])-1),"$",""),".",""),"K","000"))),"") ->  | M71: =IF(PS[[#This Row],[Game]]="","",IF(COUNTIF(PS[[#This Row],[Game]],"*Sit&Go*"),"S","M")) -> S | N71: =IF(PS[[#This Row],[Game]]="","",IF(OR(COUNTIF(PS[[#This Row],[Game]],"*Turbo*"),COUNTIF(PS[[#This Row],[Game]],"*Hot*")),"T",IF(COUNTIF(PS[[#This Row],[Game]],"*Bubble Rush*"),"T","R"))) -> R | O71: =IF(PS[[#This Row],[Game]]="","",IF(OR(COUNTIF(PS[[#This Row],[Game]],"*Bounty Builder*"),COUNTIF(PS[[#This Row],[Game]],"*KO*")),"K","")) ->  | P71: =IF(PS[[#This Row],[Game]]="","",IF(OR(COUNTIF(PS[[#This Row],[Game]],"*Rebuy*"),COUNTIF(PS[[#This Row],[Game]],"*+R*")),"R","")) ->  | Q71: =IF(PS[[#This Row],[Game]]="","",IF(COUNTIF(PS[[#This Row],[Game]],"*Zoom*"),"Z","")) ->  | R71: =IF(PS[[#This Row],[Date]]="","",DATE(YEAR(VALUE(PS[[#This Row],[Date]])),MONTH(VALUE(PS[[#This Row],[Date]])),DAY(VALUE(PS[[#This Row],[Date]])))) -> 2019-11-01 | S71: =IF(PS[[#This Row],[Date]]="","",TIME(HOUR(VALUE(PS[[#This Row],[Date]])),MINUTE(VALUE(PS[[#This Row],[Date]])),SECOND(PS[[#This Row],[Date]]))) -> 13:52:00 | T71: =IFERROR(VALUE(SUBSTITUTE(PS[[#This Row],[Amount]],".",",")),"") -> -0.25 | U71: =IFERROR(VALUE(SUBSTITUTE(PS[[#This Row],[Balance]],".",",")),"") -> 12.19
B72: =IF(PS[[#This Row],[Date]]="","",IFERROR(WEEKNUM(PS[[#This Row],[Date]],2),"")) -> 44 | C72: =IF(PS[[#This Row],[Date]]="","",IFERROR(CHOOSE(WEEKDAY(PS[[#This Row],[Date]],2),"понедельник","вторник","среда","четверг","пятница","суббота","воскресенье"),"")) -> пятница | D72: =IF(PS[[#This Row],[Date]]="","",TEXT(PS[[#This Row],[Date]],"mmmm")) -> ноябрь | E72: 2019/11/01 1:57 PM | F72: Tournament Registration | G72: 2726826233 | H72: NL Hold'em Sit&Go Buy-In: 0.23/0.02 $0.25 NL Hold'em [45 Players] | I72: (0.25) | J72: 11.94 | K72: =SUBSTITUTE(SUBSTITUTE(SUBSTITUTE(IFERROR(IF(PS[[#This Row],[Y]]="S",MID(PS[[#This Row],[Game]],FIND("[",PS[[#This Row],[Game]]),FIND("]",PS[[#This Row],[Game]])-FIND("[",PS[[#This Row],[Game]])+1),LEFT(LEFT(RIGHT(PS[[#This Row],[Game]],((LEN(PS[[#This Row],[Game]]))-( FIND("*",SUBSTITUTE(PS[[#This Row],[Game]]," ","*",4))))),( FIND("*",SUBSTITUTE(RIGHT(PS[[#This Row],[Game]],((LEN(PS[[#This Row],[Game]]))-( FIND("*",SUBSTITUTE(PS[[#This Row],[Game]]," ","*",4))))),", $","*",1)))),LEN(LEFT(RIGHT(PS[[#This Row],[Game]],((LEN(PS[[#This Row],[Game]]))-( FIND("*",SUBSTITUTE(PS[[#This Row],[Game]]," ","*",4))))),( FIND("*",SUBSTITUTE(RIGHT(PS[[#This Row],[Game]],((LEN(PS[[#This Row],[Game]]))-( FIND("*",SUBSTITUTE(PS[[#This Row],[Game]]," ","*",4))))),", $","*",1)))))-1)),"")," [Saturday Special]",""),"ger",""),"ter","") -> [45 Players] | L72: =IFERROR(IF(PS[[#This Row],[Y]]="S","",IF(IF(NOT(ISERR(FIND(".",SUBSTITUTE(MID(PS[[#This Row],[Game]],FIND(", $",PS[[#This Row],[Game]])+1,FIND(" Gtd",PS[[#This Row],[Game]])-FIND(", $",PS[[#This Row],[Game]])-1),"$","")))),1,0)=1,SUBSTITUTE(SUBSTITUTE(SUBSTITUTE(MID(PS[[#This Row],[Game]],FIND(", $",PS[[#This Row],[Game]])+1,FIND(" Gtd",PS[[#This Row],[Game]])-FIND(", $",PS[[#This Row],[Game]])-1),"$",""),".",""),"K","00"),SUBSTITUTE(SUBSTITUTE(SUBSTITUTE(MID(PS[[#This Row],[Game]],FIND(", $",PS[[#This Row],[Game]])+1,FIND(" Gtd",PS[[#This Row],[Game]])-FIND(", $",PS[[#This Row],[Game]])-1),"$",""),".",""),"K","000"))),"") ->  | M72: =IF(PS[[#This Row],[Game]]="","",IF(COUNTIF(PS[[#This Row],[Game]],"*Sit&Go*"),"S","M")) -> S | N72: =IF(PS[[#This Row],[Game]]="","",IF(OR(COUNTIF(PS[[#This Row],[Game]],"*Turbo*"),COUNTIF(PS[[#This Row],[Game]],"*Hot*")),"T",IF(COUNTIF(PS[[#This Row],[Game]],"*Bubble Rush*"),"T","R"))) -> R | O72: =IF(PS[[#This Row],[Game]]="","",IF(OR(COUNTIF(PS[[#This Row],[Game]],"*Bounty Builder*"),COUNTIF(PS[[#This Row],[Game]],"*KO*")),"K","")) ->  | P72: =IF(PS[[#This Row],[Game]]="","",IF(OR(COUNTIF(PS[[#This Row],[Game]],"*Rebuy*"),COUNTIF(PS[[#This Row],[Game]],"*+R*")),"R","")) ->  | Q72: =IF(PS[[#This Row],[Game]]="","",IF(COUNTIF(PS[[#This Row],[Game]],"*Zoom*"),"Z","")) ->  | R72: =IF(PS[[#This Row],[Date]]="","",DATE(YEAR(VALUE(PS[[#This Row],[Date]])),MONTH(VALUE(PS[[#This Row],[Date]])),DAY(VALUE(PS[[#This Row],[Date]])))) -> 2019-11-01 | S72: =IF(PS[[#This Row],[Date]]="","",TIME(HOUR(VALUE(PS[[#This Row],[Date]])),MINUTE(VALUE(PS[[#This Row],[Date]])),SECOND(PS[[#This Row],[Date]]))) -> 13:57:00 | T72: =IFERROR(VALUE(SUBSTITUTE(PS[[#This Row],[Amount]],".",",")),"") -> -0.25 | U72: =IFERROR(VALUE(SUBSTITUTE(PS[[#This Row],[Balance]],".",",")),"") -> 11.94
B73: =IF(PS[[#This Row],[Date]]="","",IFERROR(WEEKNUM(PS[[#This Row],[Date]],2),"")) -> 44 | C73: =IF(PS[[#This Row],[Date]]="","",IFERROR(CHOOSE(WEEKDAY(PS[[#This Row],[Date]],2),"понедельник","вторник","среда","четверг","пятница","суббота","воскресенье"),"")) -> пятница | D73: =IF(PS[[#This Row],[Date]]="","",TEXT(PS[[#This Row],[Date]],"mmmm")) -> ноябрь | E73: 2019/11/01 2:02 PM | F73: Tournament Registration | G73: 2726830637 | H73: NL Hold'em Sit&Go Buy-In: 0.23/0.02 $0.25 NL Hold'em [45 Players] | I73: (0.25) | J73: 11.69 | K73: =SUBSTITUTE(SUBSTITUTE(SUBSTITUTE(IFERROR(IF(PS[[#This Row],[Y]]="S",MID(PS[[#This Row],[Game]],FIND("[",PS[[#This Row],[Game]]),FIND("]",PS[[#This Row],[Game]])-FIND("[",PS[[#This Row],[Game]])+1),LEFT(LEFT(RIGHT(PS[[#This Row],[Game]],((LEN(PS[[#This Row],[Game]]))-( FIND("*",SUBSTITUTE(PS[[#This Row],[Game]]," ","*",4))))),( FIND("*",SUBSTITUTE(RIGHT(PS[[#This Row],[Game]],((LEN(PS[[#This Row],[Game]]))-( FIND("*",SUBSTITUTE(PS[[#This Row],[Game]]," ","*",4))))),", $","*",1)))),LEN(LEFT(RIGHT(PS[[#This Row],[Game]],((LEN(PS[[#This Row],[Game]]))-( FIND("*",SUBSTITUTE(PS[[#This Row],[Game]]," ","*",4))))),( FIND("*",SUBSTITUTE(RIGHT(PS[[#This Row],[Game]],((LEN(PS[[#This Row],[Game]]))-( FIND("*",SUBSTITUTE(PS[[#This Row],[Game]]," ","*",4))))),", $","*",1)))))-1)),"")," [Saturday Special]",""),"ger",""),"ter","") -> [45 Players] | L73: =IFERROR(IF(PS[[#This Row],[Y]]="S","",IF(IF(NOT(ISERR(FIND(".",SUBSTITUTE(MID(PS[[#This Row],[Game]],FIND(", $",PS[[#This Row],[Game]])+1,FIND(" Gtd",PS[[#This Row],[Game]])-FIND(", $",PS[[#This Row],[Game]])-1),"$","")))),1,0)=1,SUBSTITUTE(SUBSTITUTE(SUBSTITUTE(MID(PS[[#This Row],[Game]],FIND(", $",PS[[#This Row],[Game]])+1,FIND(" Gtd",PS[[#This Row],[Game]])-FIND(", $",PS[[#This Row],[Game]])-1),"$",""),".",""),"K","00"),SUBSTITUTE(SUBSTITUTE(SUBSTITUTE(MID(PS[[#This Row],[Game]],FIND(", $",PS[[#This Row],[Game]])+1,FIND(" Gtd",PS[[#This Row],[Game]])-FIND(", $",PS[[#This Row],[Game]])-1),"$",""),".",""),"K","000"))),"") ->  | M73: =IF(PS[[#This Row],[Game]]="","",IF(COUNTIF(PS[[#This Row],[Game]],"*Sit&Go*"),"S","M")) -> S | N73: =IF(PS[[#This Row],[Game]]="","",IF(OR(COUNTIF(PS[[#This Row],[Game]],"*Turbo*"),COUNTIF(PS[[#This Row],[Game]],"*Hot*")),"T",IF(COUNTIF(PS[[#This Row],[Game]],"*Bubble Rush*"),"T","R"))) -> R | O73: =IF(PS[[#This Row],[Game]]="","",IF(OR(COUNTIF(PS[[#This Row],[Game]],"*Bounty Builder*"),COUNTIF(PS[[#This Row],[Game]],"*KO*")),"K","")) ->  | P73: =IF(PS[[#This Row],[Game]]="","",IF(OR(COUNTIF(PS[[#This Row],[Game]],"*Rebuy*"),COUNTIF(PS[[#This Row],[Game]],"*+R*")),"R","")) ->  | Q73: =IF(PS[[#This Row],[Game]]="","",IF(COUNTIF(PS[[#This Row],[Game]],"*Zoom*"),"Z","")) ->  | R73: =IF(PS[[#This Row],[Date]]="","",DATE(YEAR(VALUE(PS[[#This Row],[Date]])),MONTH(VALUE(PS[[#This Row],[Date]])),DAY(VALUE(PS[[#This Row],[Date]])))) -> 2019-11-01 | S73: =IF(PS[[#This Row],[Date]]="","",TIME(HOUR(VALUE(PS[[#This Row],[Date]])),MINUTE(VALUE(PS[[#This Row],[Date]])),SECOND(PS[[#This Row],[Date]]))) -> 14:02:00 | T73: =IFERROR(VALUE(SUBSTITUTE(PS[[#This Row],[Amount]],".",",")),"") -> -0.25 | U73: =IFERROR(VALUE(SUBSTITUTE(PS[[#This Row],[Balance]],".",",")),"") -> 11.69
B74: =IF(PS[[#This Row],[Date]]="","",IFERROR(WEEKNUM(PS[[#This Row],[Date]],2),"")) -> 44 | C74: =IF(PS[[#This Row],[Date]]="","",IFERROR(CHOOSE(WEEKDAY(PS[[#This Row],[Date]],2),"понедельник","вторник","среда","четверг","пятница","суббота","воскресенье"),"")) -> пятница | D74: =IF(PS[[#This Row],[Date]]="","",TEXT(PS[[#This Row],[Date]],"mmmm")) -> ноябрь | E74: 2019/11/01 2:04 PM | F74: Tournament Registration | G74: 2726832796 | H74: NL Hold'em Sit&Go Buy-In: 0.23/0.02 $0.25 NL Hold'em [45 Players] | I74: (0.25) | J74: 11.44 | K74: =SUBSTITUTE(SUBSTITUTE(SUBSTITUTE(IFERROR(IF(PS[[#This Row],[Y]]="S",MID(PS[[#This Row],[Game]],FIND("[",PS[[#This Row],[Game]]),FIND("]",PS[[#This Row],[Game]])-FIND("[",PS[[#This Row],[Game]])+1),LEFT(LEFT(RIGHT(PS[[#This Row],[Game]],((LEN(PS[[#This Row],[Game]]))-( FIND("*",SUBSTITUTE(PS[[#This Row],[Game]]," ","*",4))))),( FIND("*",SUBSTITUTE(RIGHT(PS[[#This Row],[Game]],((LEN(PS[[#This Row],[Game]]))-( FIND("*",SUBSTITUTE(PS[[#This Row],[Game]]," ","*",4))))),", $","*",1)))),LEN(LEFT(RIGHT(PS[[#This Row],[Game]],((LEN(PS[[#This Row],[Game]]))-( FIND("*",SUBSTITUTE(PS[[#This Row],[Game]]," ","*",4))))),( FIND("*",SUBSTITUTE(RIGHT(PS[[#This Row],[Game]],((LEN(PS[[#This Row],[Game]]))-( FIND("*",SUBSTITUTE(PS[[#This Row],[Game]]," ","*",4))))),", $","*",1)))))-1)),"")," [Saturday Special]",""),"ger",""),"ter","") -> [45 Players] | L74: =IFERROR(IF(PS[[#This Row],[Y]]="S","",IF(IF(NOT(ISERR(FIND(".",SUBSTITUTE(MID(PS[[#This Row],[Game]],FIND(", $",PS[[#This Row],[Game]])+1,FIND(" Gtd",PS[[#This Row],[Game]])-FIND(", $",PS[[#This Row],[Game]])-1),"$","")))),1,0)=1,SUBSTITUTE(SUBSTITUTE(SUBSTITUTE(MID(PS[[#This Row],[Game]],FIND(", $",PS[[#This Row],[Game]])+1,FIND(" Gtd",PS[[#This Row],[Game]])-FIND(", $",PS[[#This Row],[Game]])-1),"$",""),".",""),"K","00"),SUBSTITUTE(SUBSTITUTE(SUBSTITUTE(MID(PS[[#This Row],[Game]],FIND(", $",PS[[#This Row],[Game]])+1,FIND(" Gtd",PS[[#This Row],[Game]])-FIND(", $",PS[[#This Row],[Game]])-1),"$",""),".",""),"K","000"))),"") ->  | M74: =IF(PS[[#This Row],[Game]]="","",IF(COUNTIF(PS[[#This Row],[Game]],"*Sit&Go*"),"S","M")) -> S | N74: =IF(PS[[#This Row],[Game]]="","",IF(OR(COUNTIF(PS[[#This Row],[Game]],"*Turbo*"),COUNTIF(PS[[#This Row],[Game]],"*Hot*")),"T",IF(COUNTIF(PS[[#This Row],[Game]],"*Bubble Rush*"),"T","R"))) -> R | O74: =IF(PS[[#This Row],[Game]]="","",IF(OR(COUNTIF(PS[[#This Row],[Game]],"*Bounty Builder*"),COUNTIF(PS[[#This Row],[Game]],"*KO*")),"K","")) ->  | P74: =IF(PS[[#This Row],[Game]]="","",IF(OR(COUNTIF(PS[[#This Row],[Game]],"*Rebuy*"),COUNTIF(PS[[#This Row],[Game]],"*+R*")),"R","")) ->  | Q74: =IF(PS[[#This Row],[Game]]="","",IF(COUNTIF(PS[[#This Row],[Game]],"*Zoom*"),"Z","")) ->  | R74: =IF(PS[[#This Row],[Date]]="","",DATE(YEAR(VALUE(PS[[#This Row],[Date]])),MONTH(VALUE(PS[[#This Row],[Date]])),DAY(VALUE(PS[[#This Row],[Date]])))) -> 2019-11-01 | S74: =IF(PS[[#This Row],[Date]]="","",TIME(HOUR(VALUE(PS[[#This Row],[Date]])),MINUTE(VALUE(PS[[#This Row],[Date]])),SECOND(PS[[#This Row],[Date]]))) -> 14:04:00 | T74: =IFERROR(VALUE(SUBSTITUTE(PS[[#This Row],[Amount]],".",",")),"") -> -0.25 | U74: =IFERROR(VALUE(SUBSTITUTE(PS[[#This Row],[Balance]],".",",")),"") -> 11.44
B75: =IF(PS[[#This Row],[Date]]="","",IFERROR(WEEKNUM(PS[[#This Row],[Date]],2),"")) -> 44 | C75: =IF(PS[[#This Row],[Date]]="","",IFERROR(CHOOSE(WEEKDAY(PS[[#This Row],[Date]],2),"понедельник","вторник","среда","четверг","пятница","суббота","воскресенье"),"")) -> пятница | D75: =IF(PS[[#This Row],[Date]]="","",TEXT(PS[[#This Row],[Date]],"mmmm")) -> ноябрь | E75: 2019/11/01 2:07 PM | F75: Tournament Registration | G75: 2726834900 | H75: NL Hold'em Sit&Go Buy-In: 0.23/0.02 $0.25 NL Hold'em [45 Players] | I75: (0.25) | J75: 11.19 | K75: =SUBSTITUTE(SUBSTITUTE(SUBSTITUTE(IFERROR(IF(PS[[#This Row],[Y]]="S",MID(PS[[#This Row],[Game]],FIND("[",PS[[#This Row],[Game]]),FIND("]",PS[[#This Row],[Game]])-FIND("[",PS[[#This Row],[Game]])+1),LEFT(LEFT(RIGHT(PS[[#This Row],[Game]],((LEN(PS[[#This Row],[Game]]))-( FIND("*",SUBSTITUTE(PS[[#This Row],[Game]]," ","*",4))))),( FIND("*",SUBSTITUTE(RIGHT(PS[[#This Row],[Game]],((LEN(PS[[#This Row],[Game]]))-( FIND("*",SUBSTITUTE(PS[[#This Row],[Game]]," ","*",4))))),", $","*",1)))),LEN(LEFT(RIGHT(PS[[#This Row],[Game]],((LEN(PS[[#This Row],[Game]]))-( FIND("*",SUBSTITUTE(PS[[#This Row],[Game]]," ","*",4))))),( FIND("*",SUBSTITUTE(RIGHT(PS[[#This Row],[Game]],((LEN(PS[[#This Row],[Game]]))-( FIND("*",SUBSTITUTE(PS[[#This Row],[Game]]," ","*",4))))),", $","*",1)))))-1)),"")," [Saturday Special]",""),"ger",""),"ter","") -> [45 Players] | L75: =IFERROR(IF(PS[[#This Row],[Y]]="S","",IF(IF(NOT(ISERR(FIND(".",SUBSTITUTE(MID(PS[[#This Row],[Game]],FIND(", $",PS[[#This Row],[Game]])+1,FIND(" Gtd",PS[[#This Row],[Game]])-FIND(", $",PS[[#This Row],[Game]])-1),"$","")))),1,0)=1,SUBSTITUTE(SUBSTITUTE(SUBSTITUTE(MID(PS[[#This Row],[Game]],FIND(", $",PS[[#This Row],[Game]])+1,FIND(" Gtd",PS[[#This Row],[Game]])-FIND(", $",PS[[#This Row],[Game]])-1),"$",""),".",""),"K","00"),SUBSTITUTE(SUBSTITUTE(SUBSTITUTE(MID(PS[[#This Row],[Game]],FIND(", $",PS[[#This Row],[Game]])+1,FIND(" Gtd",PS[[#This Row],[Game]])-FIND(", $",PS[[#This Row],[Game]])-1),"$",""),".",""),"K","000"))),"") ->  | M75: =IF(PS[[#This Row],[Game]]="","",IF(COUNTIF(PS[[#This Row],[Game]],"*Sit&Go*"),"S","M")) -> S | N75: =IF(PS[[#This Row],[Game]]="","",IF(OR(COUNTIF(PS[[#This Row],[Game]],"*Turbo*"),COUNTIF(PS[[#This Row],[Game]],"*Hot*")),"T",IF(COUNTIF(PS[[#This Row],[Game]],"*Bubble Rush*"),"T","R"))) -> R | O75: =IF(PS[[#This Row],[Game]]="","",IF(OR(COUNTIF(PS[[#This Row],[Game]],"*Bounty Builder*"),COUNTIF(PS[[#This Row],[Game]],"*KO*")),"K","")) ->  | P75: =IF(PS[[#This Row],[Game]]="","",IF(OR(COUNTIF(PS[[#This Row],[Game]],"*Rebuy*"),COUNTIF(PS[[#This Row],[Game]],"*+R*")),"R","")) ->  | Q75: =IF(PS[[#This Row],[Game]]="","",IF(COUNTIF(PS[[#This Row],[Game]],"*Zoom*"),"Z","")) ->  | R75: =IF(PS[[#This Row],[Date]]="","",DATE(YEAR(VALUE(PS[[#This Row],[Date]])),MONTH(VALUE(PS[[#This Row],[Date]])),DAY(VALUE(PS[[#This Row],[Date]])))) -> 2019-11-01 | S75: =IF(PS[[#This Row],[Date]]="","",TIME(HOUR(VALUE(PS[[#This Row],[Date]])),MINUTE(VALUE(PS[[#This Row],[Date]])),SECOND(PS[[#This Row],[Date]]))) -> 14:07:00 | T75: =IFERROR(VALUE(SUBSTITUTE(PS[[#This Row],[Amount]],".",",")),"") -> -0.25 | U75: =IFERROR(VALUE(SUBSTITUTE(PS[[#This Row],[Balance]],".",",")),"") -> 11.19
B76: =IF(PS[[#This Row],[Date]]="","",IFERROR(WEEKNUM(PS[[#This Row],[Date]],2),"")) -> 44 | C76: =IF(PS[[#This Row],[Date]]="","",IFERROR(CHOOSE(WEEKDAY(PS[[#This Row],[Date]],2),"понедельник","вторник","среда","четверг","пятница","суббота","воскресенье"),"")) -> пятница | D76: =IF(PS[[#This Row],[Date]]="","",TEXT(PS[[#This Row],[Date]],"mmmm")) -> ноябрь | E76: 2019/11/01 2:10 PM | F76: Tournament Registration | G76: 2726837359 | H76: NL Hold'em Sit&Go Buy-In: 0.23/0.02 $0.25 NL Hold'em [45 Players] | I76: (0.25) | J76: 10.94 | K76: =SUBSTITUTE(SUBSTITUTE(SUBSTITUTE(IFERROR(IF(PS[[#This Row],[Y]]="S",MID(PS[[#This Row],[Game]],FIND("[",PS[[#This Row],[Game]]),FIND("]",PS[[#This Row],[Game]])-FIND("[",PS[[#This Row],[Game]])+1),LEFT(LEFT(RIGHT(PS[[#This Row],[Game]],((LEN(PS[[#This Row],[Game]]))-( FIND("*",SUBSTITUTE(PS[[#This Row],[Game]]," ","*",4))))),( FIND("*",SUBSTITUTE(RIGHT(PS[[#This Row],[Game]],((LEN(PS[[#This Row],[Game]]))-( FIND("*",SUBSTITUTE(PS[[#This Row],[Game]]," ","*",4))))),", $","*",1)))),LEN(LEFT(RIGHT(PS[[#This Row],[Game]],((LEN(PS[[#This Row],[Game]]))-( FIND("*",SUBSTITUTE(PS[[#This Row],[Game]]," ","*",4))))),( FIND("*",SUBSTITUTE(RIGHT(PS[[#This Row],[Game]],((LEN(PS[[#This Row],[Game]]))-( FIND("*",SUBSTITUTE(PS[[#This Row],[Game]]," ","*",4))))),", $","*",1)))))-1)),"")," [Saturday Special]",""),"ger",""),"ter","") -> [45 Players] | L76: =IFERROR(IF(PS[[#This Row],[Y]]="S","",IF(IF(NOT(ISERR(FIND(".",SUBSTITUTE(MID(PS[[#This Row],[Game]],FIND(", $",PS[[#This Row],[Game]])+1,FIND(" Gtd",PS[[#This Row],[Game]])-FIND(", $",PS[[#This Row],[Game]])-1),"$","")))),1,0)=1,SUBSTITUTE(SUBSTITUTE(SUBSTITUTE(MID(PS[[#This Row],[Game]],FIND(", $",PS[[#This Row],[Game]])+1,FIND(" Gtd",PS[[#This Row],[Game]])-FIND(", $",PS[[#This Row],[Game]])-1),"$",""),".",""),"K","00"),SUBSTITUTE(SUBSTITUTE(SUBSTITUTE(MID(PS[[#This Row],[Game]],FIND(", $",PS[[#This Row],[Game]])+1,FIND(" Gtd",PS[[#This Row],[Game]])-FIND(", $",PS[[#This Row],[Game]])-1),"$",""),".",""),"K","000"))),"") ->  | M76: =IF(PS[[#This Row],[Game]]="","",IF(COUNTIF(PS[[#This Row],[Game]],"*Sit&Go*"),"S","M")) -> S | N76: =IF(PS[[#This Row],[Game]]="","",IF(OR(COUNTIF(PS[[#This Row],[Game]],"*Turbo*"),COUNTIF(PS[[#This Row],[Game]],"*Hot*")),"T",IF(COUNTIF(PS[[#This Row],[Game]],"*Bubble Rush*"),"T","R"))) -> R | O76: =IF(PS[[#This Row],[Game]]="","",IF(OR(COUNTIF(PS[[#This Row],[Game]],"*Bounty Builder*"),COUNTIF(PS[[#This Row],[Game]],"*KO*")),"K","")) ->  | P76: =IF(PS[[#This Row],[Game]]="","",IF(OR(COUNTIF(PS[[#This Row],[Game]],"*Rebuy*"),COUNTIF(PS[[#This Row],[Game]],"*+R*")),"R","")) ->  | Q76: =IF(PS[[#This Row],[Game]]="","",IF(COUNTIF(PS[[#This Row],[Game]],"*Zoom*"),"Z","")) ->  | R76: =IF(PS[[#This Row],[Date]]="","",DATE(YEAR(VALUE(PS[[#This Row],[Date]])),MONTH(VALUE(PS[[#This Row],[Date]])),DAY(VALUE(PS[[#This Row],[Date]])))) -> 2019-11-01 | S76: =IF(PS[[#This Row],[Date]]="","",TIME(HOUR(VALUE(PS[[#This Row],[Date]])),MINUTE(VALUE(PS[[#This Row],[Date]])),SECOND(PS[[#This Row],[Date]]))) -> 14:10:00 | T76: =IFERROR(VALUE(SUBSTITUTE(PS[[#This Row],[Amount]],".",",")),"") -> -0.25 | U76: =IFERROR(VALUE(SUBSTITUTE(PS[[#This Row],[Balance]],".",",")),"") -> 10.94
B77: =IF(PS[[#This Row],[Date]]="","",IFERROR(WEEKNUM(PS[[#This Row],[Date]],2),"")) -> 44 | C77: =IF(PS[[#This Row],[Date]]="","",IFERROR(CHOOSE(WEEKDAY(PS[[#This Row],[Date]],2),"понедельник","вторник","среда","четверг","пятница","суббота","воскресенье"),"")) -> пятница | D77: =IF(PS[[#This Row],[Date]]="","",TEXT(PS[[#This Row],[Date]],"mmmm")) -> ноябрь | E77: 2019/11/01 2:13 PM | F77: Tournament Registration | G77: 2726839734 | H77: NL Hold'em Sit&Go Buy-In: 0.23/0.02 $0.25 NL Hold'em [45 Players] | I77: (0.25) | J77: 10.69 | K77: =SUBSTITUTE(SUBSTITUTE(SUBSTITUTE(IFERROR(IF(PS[[#This Row],[Y]]="S",MID(PS[[#This Row],[Game]],FIND("[",PS[[#This Row],[Game]]),FIND("]",PS[[#This Row],[Game]])-FIND("[",PS[[#This Row],[Game]])+1),LEFT(LEFT(RIGHT(PS[[#This Row],[Game]],((LEN(PS[[#This Row],[Game]]))-( FIND("*",SUBSTITUTE(PS[[#This Row],[Game]]," ","*",4))))),( FIND("*",SUBSTITUTE(RIGHT(PS[[#This Row],[Game]],((LEN(PS[[#This Row],[Game]]))-( FIND("*",SUBSTITUTE(PS[[#This Row],[Game]]," ","*",4))))),", $","*",1)))),LEN(LEFT(RIGHT(PS[[#This Row],[Game]],((LEN(PS[[#This Row],[Game]]))-( FIND("*",SUBSTITUTE(PS[[#This Row],[Game]]," ","*",4))))),( FIND("*",SUBSTITUTE(RIGHT(PS[[#This Row],[Game]],((LEN(PS[[#This Row],[Game]]))-( FIND("*",SUBSTITUTE(PS[[#This Row],[Game]]," ","*",4))))),", $","*",1)))))-1)),"")," [Saturday Special]",""),"ger",""),"ter","") -> [45 Players] | L77: =IFERROR(IF(PS[[#This Row],[Y]]="S","",IF(IF(NOT(ISERR(FIND(".",SUBSTITUTE(MID(PS[[#This Row],[Game]],FIND(", $",PS[[#This Row],[Game]])+1,FIND(" Gtd",PS[[#This Row],[Game]])-FIND(", $",PS[[#This Row],[Game]])-1),"$","")))),1,0)=1,SUBSTITUTE(SUBSTITUTE(SUBSTITUTE(MID(PS[[#This Row],[Game]],FIND(", $",PS[[#This Row],[Game]])+1,FIND(" Gtd",PS[[#This Row],[Game]])-FIND(", $",PS[[#This Row],[Game]])-1),"$",""),".",""),"K","00"),SUBSTITUTE(SUBSTITUTE(SUBSTITUTE(MID(PS[[#This Row],[Game]],FIND(", $",PS[[#This Row],[Game]])+1,FIND(" Gtd",PS[[#This Row],[Game]])-FIND(", $",PS[[#This Row],[Game]])-1),"$",""),".",""),"K","000"))),"") ->  | M77: =IF(PS[[#This Row],[Game]]="","",IF(COUNTIF(PS[[#This Row],[Game]],"*Sit&Go*"),"S","M")) -> S | N77: =IF(PS[[#This Row],[Game]]="","",IF(OR(COUNTIF(PS[[#This Row],[Game]],"*Turbo*"),COUNTIF(PS[[#This Row],[Game]],"*Hot*")),"T",IF(COUNTIF(PS[[#This Row],[Game]],"*Bubble Rush*"),"T","R"))) -> R | O77: =IF(PS[[#This Row],[Game]]="","",IF(OR(COUNTIF(PS[[#This Row],[Game]],"*Bounty Builder*"),COUNTIF(PS[[#This Row],[Game]],"*KO*")),"K","")) ->  | P77: =IF(PS[[#This Row],[Game]]="","",IF(OR(COUNTIF(PS[[#This Row],[Game]],"*Rebuy*"),COUNTIF(PS[[#This Row],[Game]],"*+R*")),"R","")) ->  | Q77: =IF(PS[[#This Row],[Game]]="","",IF(COUNTIF(PS[[#This Row],[Game]],"*Zoom*"),"Z","")) ->  | R77: =IF(PS[[#This Row],[Date]]="","",DATE(YEAR(VALUE(PS[[#This Row],[Date]])),MONTH(VALUE(PS[[#This Row],[Date]])),DAY(VALUE(PS[[#This Row],[Date]])))) -> 2019-11-01 | S77: =IF(PS[[#This Row],[Date]]="","",TIME(HOUR(VALUE(PS[[#This Row],[Date]])),MINUTE(VALUE(PS[[#This Row],[Date]])),SECOND(PS[[#This Row],[Date]]))) -> 14:13:00 | T77: =IFERROR(VALUE(SUBSTITUTE(PS[[#This Row],[Amount]],".",",")),"") -> -0.25 | U77: =IFERROR(VALUE(SUBSTITUTE(PS[[#This Row],[Balance]],".",",")),"") -> 10.69
B78: =IF(PS[[#This Row],[Date]]="","",IFERROR(WEEKNUM(PS[[#This Row],[Date]],2),"")) -> 44 | C78: =IF(PS[[#This Row],[Date]]="","",IFERROR(CHOOSE(WEEKDAY(PS[[#This Row],[Date]],2),"понедельник","вторник","среда","четверг","пятница","суббота","воскресенье"),"")) -> пятница | D78: =IF(PS[[#This Row],[Date]]="","",TEXT(PS[[#This Row],[Date]],"mmmm")) -> ноябрь | E78: 2019/11/01 2:17 PM | F78: Tournament Registration | G78: 2726842884 | H78: NL Hold'em Sit&Go Buy-In: 0.23/0.02 $0.25 NL Hold'em [45 Players] | I78: (0.25) | J78: 10.44 | K78: =SUBSTITUTE(SUBSTITUTE(SUBSTITUTE(IFERROR(IF(PS[[#This Row],[Y]]="S",MID(PS[[#This Row],[Game]],FIND("[",PS[[#This Row],[Game]]),FIND("]",PS[[#This Row],[Game]])-FIND("[",PS[[#This Row],[Game]])+1),LEFT(LEFT(RIGHT(PS[[#This Row],[Game]],((LEN(PS[[#This Row],[Game]]))-( FIND("*",SUBSTITUTE(PS[[#This Row],[Game]]," ","*",4))))),( FIND("*",SUBSTITUTE(RIGHT(PS[[#This Row],[Game]],((LEN(PS[[#This Row],[Game]]))-( FIND("*",SUBSTITUTE(PS[[#This Row],[Game]]," ","*",4))))),", $","*",1)))),LEN(LEFT(RIGHT(PS[[#This Row],[Game]],((LEN(PS[[#This Row],[Game]]))-( FIND("*",SUBSTITUTE(PS[[#This Row],[Game]]," ","*",4))))),( FIND("*",SUBSTITUTE(RIGHT(PS[[#This Row],[Game]],((LEN(PS[[#This Row],[Game]]))-( FIND("*",SUBSTITUTE(PS[[#This Row],[Game]]," ","*",4))))),", $","*",1)))))-1)),"")," [Saturday Special]",""),"ger",""),"ter","") -> [45 Players] | L78: =IFERROR(IF(PS[[#This Row],[Y]]="S","",IF(IF(NOT(ISERR(FIND(".",SUBSTITUTE(MID(PS[[#This Row],[Game]],FIND(", $",PS[[#This Row],[Game]])+1,FIND(" Gtd",PS[[#This Row],[Game]])-FIND(", $",PS[[#This Row],[Game]])-1),"$","")))),1,0)=1,SUBSTITUTE(SUBSTITUTE(SUBSTITUTE(MID(PS[[#This Row],[Game]],FIND(", $",PS[[#This Row],[Game]])+1,FIND(" Gtd",PS[[#This Row],[Game]])-FIND(", $",PS[[#This Row],[Game]])-1),"$",""),".",""),"K","00"),SUBSTITUTE(SUBSTITUTE(SUBSTITUTE(MID(PS[[#This Row],[Game]],FIND(", $",PS[[#This Row],[Game]])+1,FIND(" Gtd",PS[[#This Row],[Game]])-FIND(", $",PS[[#This Row],[Game]])-1),"$",""),".",""),"K","000"))),"") ->  | M78: =IF(PS[[#This Row],[Game]]="","",IF(COUNTIF(PS[[#This Row],[Game]],"*Sit&Go*"),"S","M")) -> S | N78: =IF(PS[[#This Row],[Game]]="","",IF(OR(COUNTIF(PS[[#This Row],[Game]],"*Turbo*"),COUNTIF(PS[[#This Row],[Game]],"*Hot*")),"T",IF(COUNTIF(PS[[#This Row],[Game]],"*Bubble Rush*"),"T","R"))) -> R | O78: =IF(PS[[#This Row],[Game]]="","",IF(OR(COUNTIF(PS[[#This Row],[Game]],"*Bounty Builder*"),COUNTIF(PS[[#This Row],[Game]],"*KO*")),"K","")) ->  | P78: =IF(PS[[#This Row],[Game]]="","",IF(OR(COUNTIF(PS[[#This Row],[Game]],"*Rebuy*"),COUNTIF(PS[[#This Row],[Game]],"*+R*")),"R","")) ->  | Q78: =IF(PS[[#This Row],[Game]]="","",IF(COUNTIF(PS[[#This Row],[Game]],"*Zoom*"),"Z","")) ->  | R78: =IF(PS[[#This Row],[Date]]="","",DATE(YEAR(VALUE(PS[[#This Row],[Date]])),MONTH(VALUE(PS[[#This Row],[Date]])),DAY(VALUE(PS[[#This Row],[Date]])))) -> 2019-11-01 | S78: =IF(PS[[#This Row],[Date]]="","",TIME(HOUR(VALUE(PS[[#This Row],[Date]])),MINUTE(VALUE(PS[[#This Row],[Date]])),SECOND(PS[[#This Row],[Date]]))) -> 14:17:00 | T78: =IFERROR(VALUE(SUBSTITUTE(PS[[#This Row],[Amount]],".",",")),"") -> -0.25 | U78: =IFERROR(VALUE(SUBSTITUTE(PS[[#This Row],[Balance]],".",",")),"") -> 10.44
B79: =IF(PS[[#This Row],[Date]]="","",IFERROR(WEEKNUM(PS[[#This Row],[Date]],2),"")) -> 44 | C79: =IF(PS[[#This Row],[Date]]="","",IFERROR(CHOOSE(WEEKDAY(PS[[#This Row],[Date]],2),"понедельник","вторник","среда","четверг","пятница","суббота","воскресенье"),"")) -> пятница | D79: =IF(PS[[#This Row],[Date]]="","",TEXT(PS[[#This Row],[Date]],"mmmm")) -> ноябрь | E79: 2019/11/01 2:21 PM | F79: Tournament Registration | G79: 2726846022 | H79: NL Hold'em Sit&Go Buy-In: 0.23/0.02 $0.25 NL Hold'em [45 Players] | I79: (0.25) | J79: 10.19 | K79: =SUBSTITUTE(SUBSTITUTE(SUBSTITUTE(IFERROR(IF(PS[[#This Row],[Y]]="S",MID(PS[[#This Row],[Game]],FIND("[",PS[[#This Row],[Game]]),FIND("]",PS[[#This Row],[Game]])-FIND("[",PS[[#This Row],[Game]])+1),LEFT(LEFT(RIGHT(PS[[#This Row],[Game]],((LEN(PS[[#This Row],[Game]]))-( FIND("*",SUBSTITUTE(PS[[#This Row],[Game]]," ","*",4))))),( FIND("*",SUBSTITUTE(RIGHT(PS[[#This Row],[Game]],((LEN(PS[[#This Row],[Game]]))-( FIND("*",SUBSTITUTE(PS[[#This Row],[Game]]," ","*",4))))),", $","*",1)))),LEN(LEFT(RIGHT(PS[[#This Row],[Game]],((LEN(PS[[#This Row],[Game]]))-( FIND("*",SUBSTITUTE(PS[[#This Row],[Game]]," ","*",4))))),( FIND("*",SUBSTITUTE(RIGHT(PS[[#This Row],[Game]],((LEN(PS[[#This Row],[Game]]))-( FIND("*",SUBSTITUTE(PS[[#This Row],[Game]]," ","*",4))))),", $","*",1)))))-1)),"")," [Saturday Special]",""),"ger",""),"ter","") -> [45 Players] | L79: =IFERROR(IF(PS[[#This Row],[Y]]="S","",IF(IF(NOT(ISERR(FIND(".",SUBSTITUTE(MID(PS[[#This Row],[Game]],FIND(", $",PS[[#This Row],[Game]])+1,FIND(" Gtd",PS[[#This Row],[Game]])-FIND(", $",PS[[#This Row],[Game]])-1),"$","")))),1,0)=1,SUBSTITUTE(SUBSTITUTE(SUBSTITUTE(MID(PS[[#This Row],[Game]],FIND(", $",PS[[#This Row],[Game]])+1,FIND(" Gtd",PS[[#This Row],[Game]])-FIND(", $",PS[[#This Row],[Game]])-1),"$",""),".",""),"K","00"),SUBSTITUTE(SUBSTITUTE(SUBSTITUTE(MID(PS[[#This Row],[Game]],FIND(", $",PS[[#This Row],[Game]])+1,FIND(" Gtd",PS[[#This Row],[Game]])-FIND(", $",PS[[#This Row],[Game]])-1),"$",""),".",""),"K","000"))),"") ->  | M79: =IF(PS[[#This Row],[Game]]="","",IF(COUNTIF(PS[[#This Row],[Game]],"*Sit&Go*"),"S","M")) -> S | N79: =IF(PS[[#This Row],[Game]]="","",IF(OR(COUNTIF(PS[[#This Row],[Game]],"*Turbo*"),COUNTIF(PS[[#This Row],[Game]],"*Hot*")),"T",IF(COUNTIF(PS[[#This Row],[Game]],"*Bubble Rush*"),"T","R"))) -> R | O79: =IF(PS[[#This Row],[Game]]="","",IF(OR(COUNTIF(PS[[#This Row],[Game]],"*Bounty Builder*"),COUNTIF(PS[[#This Row],[Game]],"*KO*")),"K","")) ->  | P79: =IF(PS[[#This Row],[Game]]="","",IF(OR(COUNTIF(PS[[#This Row],[Game]],"*Rebuy*"),COUNTIF(PS[[#This Row],[Game]],"*+R*")),"R","")) ->  | Q79: =IF(PS[[#This Row],[Game]]="","",IF(COUNTIF(PS[[#This Row],[Game]],"*Zoom*"),"Z","")) ->  | R79: =IF(PS[[#This Row],[Date]]="","",DATE(YEAR(VALUE(PS[[#This Row],[Date]])),MONTH(VALUE(PS[[#This Row],[Date]])),DAY(VALUE(PS[[#This Row],[Date]])))) -> 2019-11-01 | S79: =IF(PS[[#This Row],[Date]]="","",TIME(HOUR(VALUE(PS[[#This Row],[Date]])),MINUTE(VALUE(PS[[#This Row],[Date]])),SECOND(PS[[#This Row],[Date]]))) -> 14:21:00 | T79: =IFERROR(VALUE(SUBSTITUTE(PS[[#This Row],[Amount]],".",",")),"") -> -0.25 | U79: =IFERROR(VALUE(SUBSTITUTE(PS[[#This Row],[Balance]],".",",")),"") -> 10.19
B80: =IF(PS[[#This Row],[Date]]="","",IFERROR(WEEKNUM(PS[[#This Row],[Date]],2),"")) -> 44 | C80: =IF(PS[[#This Row],[Date]]="","",IFERROR(CHOOSE(WEEKDAY(PS[[#This Row],[Date]],2),"понедельник","вторник","среда","четверг","пятница","суббота","воскресенье"),"")) -> пятница | D80: =IF(PS[[#This Row],[Date]]="","",TEXT(PS[[#This Row],[Date]],"mmmm")) -> ноябрь | E80: 2019/11/01 2:23 PM | F80: Tournament Registration | G80: 2726847957 | H80: NL Hold'em Sit&Go Buy-In: 0.23/0.02 $0.25 NL Hold'em [45 Players] | I80: (0.25) | J80: 9.94 | K80: =SUBSTITUTE(SUBSTITUTE(SUBSTITUTE(IFERROR(IF(PS[[#This Row],[Y]]="S",MID(PS[[#This Row],[Game]],FIND("[",PS[[#This Row],[Game]]),FIND("]",PS[[#This Row],[Game]])-FIND("[",PS[[#This Row],[Game]])+1),LEFT(LEFT(RIGHT(PS[[#This Row],[Game]],((LEN(PS[[#This Row],[Game]]))-( FIND("*",SUBSTITUTE(PS[[#This Row],[Game]]," ","*",4))))),( FIND("*",SUBSTITUTE(RIGHT(PS[[#This Row],[Game]],((LEN(PS[[#This Row],[Game]]))-( FIND("*",SUBSTITUTE(PS[[#This Row],[Game]]," ","*",4))))),", $","*",1)))),LEN(LEFT(RIGHT(PS[[#This Row],[Game]],((LEN(PS[[#This Row],[Game]]))-( FIND("*",SUBSTITUTE(PS[[#This Row],[Game]]," ","*",4))))),( FIND("*",SUBSTITUTE(RIGHT(PS[[#This Row],[Game]],((LEN(PS[[#This Row],[Game]]))-( FIND("*",SUBSTITUTE(PS[[#This Row],[Game]]," ","*",4))))),", $","*",1)))))-1)),"")," [Saturday Special]",""),"ger",""),"ter","") -> [45 Players] | L80: =IFERROR(IF(PS[[#This Row],[Y]]="S","",IF(IF(NOT(ISERR(FIND(".",SUBSTITUTE(MID(PS[[#This Row],[Game]],FIND(", $",PS[[#This Row],[Game]])+1,FIND(" Gtd",PS[[#This Row],[Game]])-FIND(", $",PS[[#This Row],[Game]])-1),"$","")))),1,0)=1,SUBSTITUTE(SUBSTITUTE(SUBSTITUTE(MID(PS[[#This Row],[Game]],FIND(", $",PS[[#This Row],[Game]])+1,FIND(" Gtd",PS[[#This Row],[Game]])-FIND(", $",PS[[#This Row],[Game]])-1),"$",""),".",""),"K","00"),SUBSTITUTE(SUBSTITUTE(SUBSTITUTE(MID(PS[[#This Row],[Game]],FIND(", $",PS[[#This Row],[Game]])+1,FIND(" Gtd",PS[[#This Row],[Game]])-FIND(", $",PS[[#This Row],[Game]])-1),"$",""),".",""),"K","000"))),"") ->  | M80: =IF(PS[[#This Row],[Game]]="","",IF(COUNTIF(PS[[#This Row],[Game]],"*Sit&Go*"),"S","M")) -> S | N80: =IF(PS[[#This Row],[Game]]="","",IF(OR(COUNTIF(PS[[#This Row],[Game]],"*Turbo*"),COUNTIF(PS[[#This Row],[Game]],"*Hot*")),"T",IF(COUNTIF(PS[[#This Row],[Game]],"*Bubble Rush*"),"T","R"))) -> R | O80: =IF(PS[[#This Row],[Game]]="","",IF(OR(COUNTIF(PS[[#This Row],[Game]],"*Bounty Builder*"),COUNTIF(PS[[#This Row],[Game]],"*KO*")),"K","")) ->  | P80: =IF(PS[[#This Row],[Game]]="","",IF(OR(COUNTIF(PS[[#This Row],[Game]],"*Rebuy*"),COUNTIF(PS[[#This Row],[Game]],"*+R*")),"R","")) ->  | Q80: =IF(PS[[#This Row],[Game]]="","",IF(COUNTIF(PS[[#This Row],[Game]],"*Zoom*"),"Z","")) ->  | R80: =IF(PS[[#This Row],[Date]]="","",DATE(YEAR(VALUE(PS[[#This Row],[Date]])),MONTH(VALUE(PS[[#This Row],[Date]])),DAY(VALUE(PS[[#This Row],[Date]])))) -> 2019-11-01 | S80: =IF(PS[[#This Row],[Date]]="","",TIME(HOUR(VALUE(PS[[#This Row],[Date]])),MINUTE(VALUE(PS[[#This Row],[Date]])),SECOND(PS[[#This Row],[Date]]))) -> 14:23:00 | T80: =IFERROR(VALUE(SUBSTITUTE(PS[[#This Row],[Amount]],".",",")),"") -> -0.25 | U80: =IFERROR(VALUE(SUBSTITUTE(PS[[#This Row],[Balance]],".",",")),"") -> 9.94
B81: =IF(PS[[#This Row],[Date]]="","",IFERROR(WEEKNUM(PS[[#This Row],[Date]],2),"")) -> 44 | C81: =IF(PS[[#This Row],[Date]]="","",IFERROR(CHOOSE(WEEKDAY(PS[[#This Row],[Date]],2),"понедельник","вторник","среда","четверг","пятница","суббота","воскресенье"),"")) -> пятница | D81: =IF(PS[[#This Row],[Date]]="","",TEXT(PS[[#This Row],[Date]],"mmmm")) -> ноябрь | E81: 2019/11/01 2:26 PM | F81: Tournament Registration | G81: 2726850377 | H81: NL Hold'em Sit&Go Buy-In: 0.23/0.02 $0.25 NL Hold'em [45 Players] | I81: (0.25) | J81: 9.69 | K81: =SUBSTITUTE(SUBSTITUTE(SUBSTITUTE(IFERROR(IF(PS[[#This Row],[Y]]="S",MID(PS[[#This Row],[Game]],FIND("[",PS[[#This Row],[Game]]),FIND("]",PS[[#This Row],[Game]])-FIND("[",PS[[#This Row],[Game]])+1),LEFT(LEFT(RIGHT(PS[[#This Row],[Game]],((LEN(PS[[#This Row],[Game]]))-( FIND("*",SUBSTITUTE(PS[[#This Row],[Game]]," ","*",4))))),( FIND("*",SUBSTITUTE(RIGHT(PS[[#This Row],[Game]],((LEN(PS[[#This Row],[Game]]))-( FIND("*",SUBSTITUTE(PS[[#This Row],[Game]]," ","*",4))))),", $","*",1)))),LEN(LEFT(RIGHT(PS[[#This Row],[Game]],((LEN(PS[[#This Row],[Game]]))-( FIND("*",SUBSTITUTE(PS[[#This Row],[Game]]," ","*",4))))),( FIND("*",SUBSTITUTE(RIGHT(PS[[#This Row],[Game]],((LEN(PS[[#This Row],[Game]]))-( FIND("*",SUBSTITUTE(PS[[#This Row],[Game]]," ","*",4))))),", $","*",1)))))-1)),"")," [Saturday Special]",""),"ger",""),"ter","") -> [45 Players] | L81: =IFERROR(IF(PS[[#This Row],[Y]]="S","",IF(IF(NOT(ISERR(FIND(".",SUBSTITUTE(MID(PS[[#This Row],[Game]],FIND(", $",PS[[#This Row],[Game]])+1,FIND(" Gtd",PS[[#This Row],[Game]])-FIND(", $",PS[[#This Row],[Game]])-1),"$","")))),1,0)=1,SUBSTITUTE(SUBSTITUTE(SUBSTITUTE(MID(PS[[#This Row],[Game]],FIND(", $",PS[[#This Row],[Game]])+1,FIND(" Gtd",PS[[#This Row],[Game]])-FIND(", $",PS[[#This Row],[Game]])-1),"$",""),".",""),"K","00"),SUBSTITUTE(SUBSTITUTE(SUBSTITUTE(MID(PS[[#This Row],[Game]],FIND(", $",PS[[#This Row],[Game]])+1,FIND(" Gtd",PS[[#This Row],[Game]])-FIND(", $",PS[[#This Row],[Game]])-1),"$",""),".",""),"K","000"))),"") ->  | M81: =IF(PS[[#This Row],[Game]]="","",IF(COUNTIF(PS[[#This Row],[Game]],"*Sit&Go*"),"S","M")) -> S | N81: =IF(PS[[#This Row],[Game]]="","",IF(OR(COUNTIF(PS[[#This Row],[Game]],"*Turbo*"),COUNTIF(PS[[#This Row],[Game]],"*Hot*")),"T",IF(COUNTIF(PS[[#This Row],[Game]],"*Bubble Rush*"),"T","R"))) -> R | O81: =IF(PS[[#This Row],[Game]]="","",IF(OR(COUNTIF(PS[[#This Row],[Game]],"*Bounty Builder*"),COUNTIF(PS[[#This Row],[Game]],"*KO*")),"K","")) ->  | P81: =IF(PS[[#This Row],[Game]]="","",IF(OR(COUNTIF(PS[[#This Row],[Game]],"*Rebuy*"),COUNTIF(PS[[#This Row],[Game]],"*+R*")),"R","")) ->  | Q81: =IF(PS[[#This Row],[Game]]="","",IF(COUNTIF(PS[[#This Row],[Game]],"*Zoom*"),"Z","")) ->  | R81: =IF(PS[[#This Row],[Date]]="","",DATE(YEAR(VALUE(PS[[#This Row],[Date]])),MONTH(VALUE(PS[[#This Row],[Date]])),DAY(VALUE(PS[[#This Row],[Date]])))) -> 2019-11-01 | S81: =IF(PS[[#This Row],[Date]]="","",TIME(HOUR(VALUE(PS[[#This Row],[Date]])),MINUTE(VALUE(PS[[#This Row],[Date]])),SECOND(PS[[#This Row],[Date]]))) -> 14:26:00 | T81: =IFERROR(VALUE(SUBSTITUTE(PS[[#This Row],[Amount]],".",",")),"") -> -0.25 | U81: =IFERROR(VALUE(SUBSTITUTE(PS[[#This Row],[Balance]],".",",")),"") -> 9.69
B82: =IF(PS[[#This Row],[Date]]="","",IFERROR(WEEKNUM(PS[[#This Row],[Date]],2),"")) -> 44 | C82: =IF(PS[[#This Row],[Date]]="","",IFERROR(CHOOSE(WEEKDAY(PS[[#This Row],[Date]],2),"понедельник","вторник","среда","четверг","пятница","суббота","воскресенье"),"")) -> пятница | D82: =IF(PS[[#This Row],[Date]]="","",TEXT(PS[[#This Row],[Date]],"mmmm")) -> ноябрь | E82: 2019/11/01 2:30 PM | F82: Tournament Registration | G82: 2726853488 | H82: NL Hold'em Sit&Go Buy-In: 0.23/0.02 $0.25 NL Hold'em [45 Players] | I82: (0.25) | J82: 9.44 | K82: =SUBSTITUTE(SUBSTITUTE(SUBSTITUTE(IFERROR(IF(PS[[#This Row],[Y]]="S",MID(PS[[#This Row],[Game]],FIND("[",PS[[#This Row],[Game]]),FIND("]",PS[[#This Row],[Game]])-FIND("[",PS[[#This Row],[Game]])+1),LEFT(LEFT(RIGHT(PS[[#This Row],[Game]],((LEN(PS[[#This Row],[Game]]))-( FIND("*",SUBSTITUTE(PS[[#This Row],[Game]]," ","*",4))))),( FIND("*",SUBSTITUTE(RIGHT(PS[[#This Row],[Game]],((LEN(PS[[#This Row],[Game]]))-( FIND("*",SUBSTITUTE(PS[[#This Row],[Game]]," ","*",4))))),", $","*",1)))),LEN(LEFT(RIGHT(PS[[#This Row],[Game]],((LEN(PS[[#This Row],[Game]]))-( FIND("*",SUBSTITUTE(PS[[#This Row],[Game]]," ","*",4))))),( FIND("*",SUBSTITUTE(RIGHT(PS[[#This Row],[Game]],((LEN(PS[[#This Row],[Game]]))-( FIND("*",SUBSTITUTE(PS[[#This Row],[Game]]," ","*",4))))),", $","*",1)))))-1)),"")," [Saturday Special]",""),"ger",""),"ter","") -> [45 Players] | L82: =IFERROR(IF(PS[[#This Row],[Y]]="S","",IF(IF(NOT(ISERR(FIND(".",SUBSTITUTE(MID(PS[[#This Row],[Game]],FIND(", $",PS[[#This Row],[Game]])+1,FIND(" Gtd",PS[[#This Row],[Game]])-FIND(", $",PS[[#This Row],[Game]])-1),"$","")))),1,0)=1,SUBSTITUTE(SUBSTITUTE(SUBSTITUTE(MID(PS[[#This Row],[Game]],FIND(", $",PS[[#This Row],[Game]])+1,FIND(" Gtd",PS[[#This Row],[Game]])-FIND(", $",PS[[#This Row],[Game]])-1),"$",""),".",""),"K","00"),SUBSTITUTE(SUBSTITUTE(SUBSTITUTE(MID(PS[[#This Row],[Game]],FIND(", $",PS[[#This Row],[Game]])+1,FIND(" Gtd",PS[[#This Row],[Game]])-FIND(", $",PS[[#This Row],[Game]])-1),"$",""),".",""),"K","000"))),"") ->  | M82: =IF(PS[[#This Row],[Game]]="","",IF(COUNTIF(PS[[#This Row],[Game]],"*Sit&Go*"),"S","M")) -> S | N82: =IF(PS[[#This Row],[Game]]="","",IF(OR(COUNTIF(PS[[#This Row],[Game]],"*Turbo*"),COUNTIF(PS[[#This Row],[Game]],"*Hot*")),"T",IF(COUNTIF(PS[[#This Row],[Game]],"*Bubble Rush*"),"T","R"))) -> R | O82: =IF(PS[[#This Row],[Game]]="","",IF(OR(COUNTIF(PS[[#This Row],[Game]],"*Bounty Builder*"),COUNTIF(PS[[#This Row],[Game]],"*KO*")),"K","")) ->  | P82: =IF(PS[[#This Row],[Game]]="","",IF(OR(COUNTIF(PS[[#This Row],[Game]],"*Rebuy*"),COUNTIF(PS[[#This Row],[Game]],"*+R*")),"R","")) ->  | Q82: =IF(PS[[#This Row],[Game]]="","",IF(COUNTIF(PS[[#This Row],[Game]],"*Zoom*"),"Z","")) ->  | R82: =IF(PS[[#This Row],[Date]]="","",DATE(YEAR(VALUE(PS[[#This Row],[Date]])),MONTH(VALUE(PS[[#This Row],[Date]])),DAY(VALUE(PS[[#This Row],[Date]])))) -> 2019-11-01 | S82: =IF(PS[[#This Row],[Date]]="","",TIME(HOUR(VALUE(PS[[#This Row],[Date]])),MINUTE(VALUE(PS[[#This Row],[Date]])),SECOND(PS[[#This Row],[Date]]))) -> 14:30:00 | T82: =IFERROR(VALUE(SUBSTITUTE(PS[[#This Row],[Amount]],".",",")),"") -> -0.25 | U82: =IFERROR(VALUE(SUBSTITUTE(PS[[#This Row],[Balance]],".",",")),"") -> 9.44
B83: =IF(PS[[#This Row],[Date]]="","",IFERROR(WEEKNUM(PS[[#This Row],[Date]],2),"")) -> 44 | C83: =IF(PS[[#This Row],[Date]]="","",IFERROR(CHOOSE(WEEKDAY(PS[[#This Row],[Date]],2),"понедельник","вторник","среда","четверг","пятница","суббота","воскресенье"),"")) -> пятница | D83: =IF(PS[[#This Row],[Date]]="","",TEXT(PS[[#This Row],[Date]],"mmmm")) -> ноябрь | E83: 2019/11/01 2:33 PM | F83: Tournament Registration | G83: 2726856316 | H83: NL Hold'em Sit&Go Buy-In: 0.23/0.02 $0.25 NL Hold'em [45 Players] | I83: (0.25) | J83: 9.19 | K83: =SUBSTITUTE(SUBSTITUTE(SUBSTITUTE(IFERROR(IF(PS[[#This Row],[Y]]="S",MID(PS[[#This Row],[Game]],FIND("[",PS[[#This Row],[Game]]),FIND("]",PS[[#This Row],[Game]])-FIND("[",PS[[#This Row],[Game]])+1),LEFT(LEFT(RIGHT(PS[[#This Row],[Game]],((LEN(PS[[#This Row],[Game]]))-( FIND("*",SUBSTITUTE(PS[[#This Row],[Game]]," ","*",4))))),( FIND("*",SUBSTITUTE(RIGHT(PS[[#This Row],[Game]],((LEN(PS[[#This Row],[Game]]))-( FIND("*",SUBSTITUTE(PS[[#This Row],[Game]]," ","*",4))))),", $","*",1)))),LEN(LEFT(RIGHT(PS[[#This Row],[Game]],((LEN(PS[[#This Row],[Game]]))-( FIND("*",SUBSTITUTE(PS[[#This Row],[Game]]," ","*",4))))),( FIND("*",SUBSTITUTE(RIGHT(PS[[#This Row],[Game]],((LEN(PS[[#This Row],[Game]]))-( FIND("*",SUBSTITUTE(PS[[#This Row],[Game]]," ","*",4))))),", $","*",1)))))-1)),"")," [Saturday Special]",""),"ger",""),"ter","") -> [45 Players] | L83: =IFERROR(IF(PS[[#This Row],[Y]]="S","",IF(IF(NOT(ISERR(FIND(".",SUBSTITUTE(MID(PS[[#This Row],[Game]],FIND(", $",PS[[#This Row],[Game]])+1,FIND(" Gtd",PS[[#This Row],[Game]])-FIND(", $",PS[[#This Row],[Game]])-1),"$","")))),1,0)=1,SUBSTITUTE(SUBSTITUTE(SUBSTITUTE(MID(PS[[#This Row],[Game]],FIND(", $",PS[[#This Row],[Game]])+1,FIND(" Gtd",PS[[#This Row],[Game]])-FIND(", $",PS[[#This Row],[Game]])-1),"$",""),".",""),"K","00"),SUBSTITUTE(SUBSTITUTE(SUBSTITUTE(MID(PS[[#This Row],[Game]],FIND(", $",PS[[#This Row],[Game]])+1,FIND(" Gtd",PS[[#This Row],[Game]])-FIND(", $",PS[[#This Row],[Game]])-1),"$",""),".",""),"K","000"))),"") ->  | M83: =IF(PS[[#This Row],[Game]]="","",IF(COUNTIF(PS[[#This Row],[Game]],"*Sit&Go*"),"S","M")) -> S | N83: =IF(PS[[#This Row],[Game]]="","",IF(OR(COUNTIF(PS[[#This Row],[Game]],"*Turbo*"),COUNTIF(PS[[#This Row],[Game]],"*Hot*")),"T",IF(COUNTIF(PS[[#This Row],[Game]],"*Bubble Rush*"),"T","R"))) -> R | O83: =IF(PS[[#This Row],[Game]]="","",IF(OR(COUNTIF(PS[[#This Row],[Game]],"*Bounty Builder*"),COUNTIF(PS[[#This Row],[Game]],"*KO*")),"K","")) ->  | P83: =IF(PS[[#This Row],[Game]]="","",IF(OR(COUNTIF(PS[[#This Row],[Game]],"*Rebuy*"),COUNTIF(PS[[#This Row],[Game]],"*+R*")),"R","")) ->  | Q83: =IF(PS[[#This Row],[Game]]="","",IF(COUNTIF(PS[[#This Row],[Game]],"*Zoom*"),"Z","")) ->  | R83: =IF(PS[[#This Row],[Date]]="","",DATE(YEAR(VALUE(PS[[#This Row],[Date]])),MONTH(VALUE(PS[[#This Row],[Date]])),DAY(VALUE(PS[[#This Row],[Date]])))) -> 2019-11-01 | S83: =IF(PS[[#This Row],[Date]]="","",TIME(HOUR(VALUE(PS[[#This Row],[Date]])),MINUTE(VALUE(PS[[#This Row],[Date]])),SECOND(PS[[#This Row],[Date]]))) -> 14:33:00 | T83: =IFERROR(VALUE(SUBSTITUTE(PS[[#This Row],[Amount]],".",",")),"") -> -0.25 | U83: =IFERROR(VALUE(SUBSTITUTE(PS[[#This Row],[Balance]],".",",")),"") -> 9.19
B84: =IF(PS[[#This Row],[Date]]="","",IFERROR(WEEKNUM(PS[[#This Row],[Date]],2),"")) -> 44 | C84: =IF(PS[[#This Row],[Date]]="","",IFERROR(CHOOSE(WEEKDAY(PS[[#This Row],[Date]],2),"понедельник","вторник","среда","четверг","пятница","суббота","воскресенье"),"")) -> пятница | D84: =IF(PS[[#This Row],[Date]]="","",TEXT(PS[[#This Row],[Date]],"mmmm")) -> ноябрь | E84: 2019/11/01 2:35 PM | F84: Tournament Registration | G84: 2726859207 | H84: NL Hold'em Sit&Go Buy-In: 0.23/0.02 $0.25 NL Hold'em [45 Players] | I84: (0.25) | J84: 8.94 | K84: =SUBSTITUTE(SUBSTITUTE(SUBSTITUTE(IFERROR(IF(PS[[#This Row],[Y]]="S",MID(PS[[#This Row],[Game]],FIND("[",PS[[#This Row],[Game]]),FIND("]",PS[[#This Row],[Game]])-FIND("[",PS[[#This Row],[Game]])+1),LEFT(LEFT(RIGHT(PS[[#This Row],[Game]],((LEN(PS[[#This Row],[Game]]))-( FIND("*",SUBSTITUTE(PS[[#This Row],[Game]]," ","*",4))))),( FIND("*",SUBSTITUTE(RIGHT(PS[[#This Row],[Game]],((LEN(PS[[#This Row],[Game]]))-( FIND("*",SUBSTITUTE(PS[[#This Row],[Game]]," ","*",4))))),", $","*",1)))),LEN(LEFT(RIGHT(PS[[#This Row],[Game]],((LEN(PS[[#This Row],[Game]]))-( FIND("*",SUBSTITUTE(PS[[#This Row],[Game]]," ","*",4))))),( FIND("*",SUBSTITUTE(RIGHT(PS[[#This Row],[Game]],((LEN(PS[[#This Row],[Game]]))-( FIND("*",SUBSTITUTE(PS[[#This Row],[Game]]," ","*",4))))),", $","*",1)))))-1)),"")," [Saturday Special]",""),"ger",""),"ter","") -> [45 Players] | L84: =IFERROR(IF(PS[[#This Row],[Y]]="S","",IF(IF(NOT(ISERR(FIND(".",SUBSTITUTE(MID(PS[[#This Row],[Game]],FIND(", $",PS[[#This Row],[Game]])+1,FIND(" Gtd",PS[[#This Row],[Game]])-FIND(", $",PS[[#This Row],[Game]])-1),"$","")))),1,0)=1,SUBSTITUTE(SUBSTITUTE(SUBSTITUTE(MID(PS[[#This Row],[Game]],FIND(", $",PS[[#This Row],[Game]])+1,FIND(" Gtd",PS[[#This Row],[Game]])-FIND(", $",PS[[#This Row],[Game]])-1),"$",""),".",""),"K","00"),SUBSTITUTE(SUBSTITUTE(SUBSTITUTE(MID(PS[[#This Row],[Game]],FIND(", $",PS[[#This Row],[Game]])+1,FIND(" Gtd",PS[[#This Row],[Game]])-FIND(", $",PS[[#This Row],[Game]])-1),"$",""),".",""),"K","000"))),"") ->  | M84: =IF(PS[[#This Row],[Game]]="","",IF(COUNTIF(PS[[#This Row],[Game]],"*Sit&Go*"),"S","M")) -> S | N84: =IF(PS[[#This Row],[Game]]="","",IF(OR(COUNTIF(PS[[#This Row],[Game]],"*Turbo*"),COUNTIF(PS[[#This Row],[Game]],"*Hot*")),"T",IF(COUNTIF(PS[[#This Row],[Game]],"*Bubble Rush*"),"T","R"))) -> R | O84: =IF(PS[[#This Row],[Game]]="","",IF(OR(COUNTIF(PS[[#This Row],[Game]],"*Bounty Builder*"),COUNTIF(PS[[#This Row],[Game]],"*KO*")),"K","")) ->  | P84: =IF(PS[[#This Row],[Game]]="","",IF(OR(COUNTIF(PS[[#This Row],[Game]],"*Rebuy*"),COUNTIF(PS[[#This Row],[Game]],"*+R*")),"R","")) ->  | Q84: =IF(PS[[#This Row],[Game]]="","",IF(COUNTIF(PS[[#This Row],[Game]],"*Zoom*"),"Z","")) ->  | R84: =IF(PS[[#This Row],[Date]]="","",DATE(YEAR(VALUE(PS[[#This Row],[Date]])),MONTH(VALUE(PS[[#This Row],[Date]])),DAY(VALUE(PS[[#This Row],[Date]])))) -> 2019-11-01 | S84: =IF(PS[[#This Row],[Date]]="","",TIME(HOUR(VALUE(PS[[#This Row],[Date]])),MINUTE(VALUE(PS[[#This Row],[Date]])),SECOND(PS[[#This Row],[Date]]))) -> 14:35:00 | T84: =IFERROR(VALUE(SUBSTITUTE(PS[[#This Row],[Amount]],".",",")),"") -> -0.25 | U84: =IFERROR(VALUE(SUBSTITUTE(PS[[#This Row],[Balance]],".",",")),"") -> 8.94
B85: =IF(PS[[#This Row],[Date]]="","",IFERROR(WEEKNUM(PS[[#This Row],[Date]],2),"")) -> 44 | C85: =IF(PS[[#This Row],[Date]]="","",IFERROR(CHOOSE(WEEKDAY(PS[[#This Row],[Date]],2),"понедельник","вторник","среда","четверг","пятница","суббота","воскресенье"),"")) -> пятница | D85: =IF(PS[[#This Row],[Date]]="","",TEXT(PS[[#This Row],[Date]],"mmmm")) -> ноябрь | E85: 2019/11/01 3:39 PM | F85: Tournament Won | G85: 2726813766 | H85: NL Hold'em Sit&Go Buy-In: 0.23/0.02 $0.25 NL Hold'em [45 Players] | I85: 1.70 | J85: 10.64 | K85: =SUBSTITUTE(SUBSTITUTE(SUBSTITUTE(IFERROR(IF(PS[[#This Row],[Y]]="S",MID(PS[[#This Row],[Game]],FIND("[",PS[[#This Row],[Game]]),FIND("]",PS[[#This Row],[Game]])-FIND("[",PS[[#This Row],[Game]])+1),LEFT(LEFT(RIGHT(PS[[#This Row],[Game]],((LEN(PS[[#This Row],[Game]]))-( FIND("*",SUBSTITUTE(PS[[#This Row],[Game]]," ","*",4))))),( FIND("*",SUBSTITUTE(RIGHT(PS[[#This Row],[Game]],((LEN(PS[[#This Row],[Game]]))-( FIND("*",SUBSTITUTE(PS[[#This Row],[Game]]," ","*",4))))),", $","*",1)))),LEN(LEFT(RIGHT(PS[[#This Row],[Game]],((LEN(PS[[#This Row],[Game]]))-( FIND("*",SUBSTITUTE(PS[[#This Row],[Game]]," ","*",4))))),( FIND("*",SUBSTITUTE(RIGHT(PS[[#This Row],[Game]],((LEN(PS[[#This Row],[Game]]))-( FIND("*",SUBSTITUTE(PS[[#This Row],[Game]]," ","*",4))))),", $","*",1)))))-1)),"")," [Saturday Special]",""),"ger",""),"ter","") -> [45 Players] | L85: =IFERROR(IF(PS[[#This Row],[Y]]="S","",IF(IF(NOT(ISERR(FIND(".",SUBSTITUTE(MID(PS[[#This Row],[Game]],FIND(", $",PS[[#This Row],[Game]])+1,FIND(" Gtd",PS[[#This Row],[Game]])-FIND(", $",PS[[#This Row],[Game]])-1),"$","")))),1,0)=1,SUBSTITUTE(SUBSTITUTE(SUBSTITUTE(MID(PS[[#This Row],[Game]],FIND(", $",PS[[#This Row],[Game]])+1,FIND(" Gtd",PS[[#This Row],[Game]])-FIND(", $",PS[[#This Row],[Game]])-1),"$",""),".",""),"K","00"),SUBSTITUTE(SUBSTITUTE(SUBSTITUTE(MID(PS[[#This Row],[Game]],FIND(", $",PS[[#This Row],[Game]])+1,FIND(" Gtd",PS[[#This Row],[Game]])-FIND(", $",PS[[#This Row],[Game]])-1),"$",""),".",""),"K","000"))),"") ->  | M85: =IF(PS[[#This Row],[Game]]="","",IF(COUNTIF(PS[[#This Row],[Game]],"*Sit&Go*"),"S","M")) -> S | N85: =IF(PS[[#This Row],[Game]]="","",IF(OR(COUNTIF(PS[[#This Row],[Game]],"*Turbo*"),COUNTIF(PS[[#This Row],[Game]],"*Hot*")),"T",IF(COUNTIF(PS[[#This Row],[Game]],"*Bubble Rush*"),"T","R"))) -> R | O85: =IF(PS[[#This Row],[Game]]="","",IF(OR(COUNTIF(PS[[#This Row],[Game]],"*Bounty Builder*"),COUNTIF(PS[[#This Row],[Game]],"*KO*")),"K","")) ->  | P85: =IF(PS[[#This Row],[Game]]="","",IF(OR(COUNTIF(PS[[#This Row],[Game]],"*Rebuy*"),COUNTIF(PS[[#This Row],[Game]],"*+R*")),"R","")) ->  | Q85: =IF(PS[[#This Row],[Game]]="","",IF(COUNTIF(PS[[#This Row],[Game]],"*Zoom*"),"Z","")) ->  | R85: =IF(PS[[#This Row],[Date]]="","",DATE(YEAR(VALUE(PS[[#This Row],[Date]])),MONTH(VALUE(PS[[#This Row],[Date]])),DAY(VALUE(PS[[#This Row],[Date]])))) -> 2019-11-01 | S85: =IF(PS[[#This Row],[Date]]="","",TIME(HOUR(VALUE(PS[[#This Row],[Date]])),MINUTE(VALUE(PS[[#This Row],[Date]])),SECOND(PS[[#This Row],[Date]]))) -> 15:39:00 | T85: =IFERROR(VALUE(SUBSTITUTE(PS[[#This Row],[Amount]],".",",")),"") -> 1.7 | U85: =IFERROR(VALUE(SUBSTITUTE(PS[[#This Row],[Balance]],".",",")),"") -> 10.64
B86: =IF(PS[[#This Row],[Date]]="","",IFERROR(WEEKNUM(PS[[#This Row],[Date]],2),"")) -> 44 | C86: =IF(PS[[#This Row],[Date]]="","",IFERROR(CHOOSE(WEEKDAY(PS[[#This Row],[Date]],2),"понедельник","вторник","среда","четверг","пятница","суббота","воскресенье"),"")) -> пятница | D86: =IF(PS[[#This Row],[Date]]="","",TEXT(PS[[#This Row],[Date]],"mmmm")) -> ноябрь | E86: 2019/11/01 3:48 PM | F86: Tournament Won | G86: 2726822243 | H86: NL Hold'em Sit&Go Buy-In: 0.23/0.02 $0.25 NL Hold'em [45 Players] | I86: 0.62 | J86: 11.26 | K86: =SUBSTITUTE(SUBSTITUTE(SUBSTITUTE(IFERROR(IF(PS[[#This Row],[Y]]="S",MID(PS[[#This Row],[Game]],FIND("[",PS[[#This Row],[Game]]),FIND("]",PS[[#This Row],[Game]])-FIND("[",PS[[#This Row],[Game]])+1),LEFT(LEFT(RIGHT(PS[[#This Row],[Game]],((LEN(PS[[#This Row],[Game]]))-( FIND("*",SUBSTITUTE(PS[[#This Row],[Game]]," ","*",4))))),( FIND("*",SUBSTITUTE(RIGHT(PS[[#This Row],[Game]],((LEN(PS[[#This Row],[Game]]))-( FIND("*",SUBSTITUTE(PS[[#This Row],[Game]]," ","*",4))))),", $","*",1)))),LEN(LEFT(RIGHT(PS[[#This Row],[Game]],((LEN(PS[[#This Row],[Game]]))-( FIND("*",SUBSTITUTE(PS[[#This Row],[Game]]," ","*",4))))),( FIND("*",SUBSTITUTE(RIGHT(PS[[#This Row],[Game]],((LEN(PS[[#This Row],[Game]]))-( FIND("*",SUBSTITUTE(PS[[#This Row],[Game]]," ","*",4))))),", $","*",1)))))-1)),"")," [Saturday Special]",""),"ger",""),"ter","") -> [45 Players] | L86: =IFERROR(IF(PS[[#This Row],[Y]]="S","",IF(IF(NOT(ISERR(FIND(".",SUBSTITUTE(MID(PS[[#This Row],[Game]],FIND(", $",PS[[#This Row],[Game]])+1,FIND(" Gtd",PS[[#This Row],[Game]])-FIND(", $",PS[[#This Row],[Game]])-1),"$","")))),1,0)=1,SUBSTITUTE(SUBSTITUTE(SUBSTITUTE(MID(PS[[#This Row],[Game]],FIND(", $",PS[[#This Row],[Game]])+1,FIND(" Gtd",PS[[#This Row],[Game]])-FIND(", $",PS[[#This Row],[Game]])-1),"$",""),".",""),"K","00"),SUBSTITUTE(SUBSTITUTE(SUBSTITUTE(MID(PS[[#This Row],[Game]],FIND(", $",PS[[#This Row],[Game]])+1,FIND(" Gtd",PS[[#This Row],[Game]])-FIND(", $",PS[[#This Row],[Game]])-1),"$",""),".",""),"K","000"))),"") ->  | M86: =IF(PS[[#This Row],[Game]]="","",IF(COUNTIF(PS[[#This Row],[Game]],"*Sit&Go*"),"S","M")) -> S | N86: =IF(PS[[#This Row],[Game]]="","",IF(OR(COUNTIF(PS[[#This Row],[Game]],"*Turbo*"),COUNTIF(PS[[#This Row],[Game]],"*Hot*")),"T",IF(COUNTIF(PS[[#This Row],[Game]],"*Bubble Rush*"),"T","R"))) -> R | O86: =IF(PS[[#This Row],[Game]]="","",IF(OR(COUNTIF(PS[[#This Row],[Game]],"*Bounty Builder*"),COUNTIF(PS[[#This Row],[Game]],"*KO*")),"K","")) ->  | P86: =IF(PS[[#This Row],[Game]]="","",IF(OR(COUNTIF(PS[[#This Row],[Game]],"*Rebuy*"),COUNTIF(PS[[#This Row],[Game]],"*+R*")),"R","")) ->  | Q86: =IF(PS[[#This Row],[Game]]="","",IF(COUNTIF(PS[[#This Row],[Game]],"*Zoom*"),"Z","")) ->  | R86: =IF(PS[[#This Row],[Date]]="","",DATE(YEAR(VALUE(PS[[#This Row],[Date]])),MONTH(VALUE(PS[[#This Row],[Date]])),DAY(VALUE(PS[[#This Row],[Date]])))) -> 2019-11-01 | S86: =IF(PS[[#This Row],[Date]]="","",TIME(HOUR(VALUE(PS[[#This Row],[Date]])),MINUTE(VALUE(PS[[#This Row],[Date]])),SECOND(PS[[#This Row],[Date]]))) -> 15:48:00 | T86: =IFERROR(VALUE(SUBSTITUTE(PS[[#This Row],[Amount]],".",",")),"") -> 0.62 | U86: =IFERROR(VALUE(SUBSTITUTE(PS[[#This Row],[Balance]],".",",")),"") -> 11.26
B87: =IF(PS[[#This Row],[Date]]="","",IFERROR(WEEKNUM(PS[[#This Row],[Date]],2),"")) -> 44 | C87: =IF(PS[[#This Row],[Date]]="","",IFERROR(CHOOSE(WEEKDAY(PS[[#This Row],[Date]],2),"понедельник","вторник","среда","четверг","пятница","суббота","воскресенье"),"")) -> пятница | D87: =IF(PS[[#This Row],[Date]]="","",TEXT(PS[[#This Row],[Date]],"mmmm")) -> ноябрь | E87: 2019/11/01 3:49 PM | F87: Tournament Won | G87: 2726816086 | H87: NL Hold'em Sit&Go Buy-In: 0.23/0.02 $0.25 NL Hold'em [45 Players] | I87: 1.70 | J87: 12.96 | K87: =SUBSTITUTE(SUBSTITUTE(SUBSTITUTE(IFERROR(IF(PS[[#This Row],[Y]]="S",MID(PS[[#This Row],[Game]],FIND("[",PS[[#This Row],[Game]]),FIND("]",PS[[#This Row],[Game]])-FIND("[",PS[[#This Row],[Game]])+1),LEFT(LEFT(RIGHT(PS[[#This Row],[Game]],((LEN(PS[[#This Row],[Game]]))-( FIND("*",SUBSTITUTE(PS[[#This Row],[Game]]," ","*",4))))),( FIND("*",SUBSTITUTE(RIGHT(PS[[#This Row],[Game]],((LEN(PS[[#This Row],[Game]]))-( FIND("*",SUBSTITUTE(PS[[#This Row],[Game]]," ","*",4))))),", $","*",1)))),LEN(LEFT(RIGHT(PS[[#This Row],[Game]],((LEN(PS[[#This Row],[Game]]))-( FIND("*",SUBSTITUTE(PS[[#This Row],[Game]]," ","*",4))))),( FIND("*",SUBSTITUTE(RIGHT(PS[[#This Row],[Game]],((LEN(PS[[#This Row],[Game]]))-( FIND("*",SUBSTITUTE(PS[[#This Row],[Game]]," ","*",4))))),", $","*",1)))))-1)),"")," [Saturday Special]",""),"ger",""),"ter","") -> [45 Players] | L87: =IFERROR(IF(PS[[#This Row],[Y]]="S","",IF(IF(NOT(ISERR(FIND(".",SUBSTITUTE(MID(PS[[#This Row],[Game]],FIND(", $",PS[[#This Row],[Game]])+1,FIND(" Gtd",PS[[#This Row],[Game]])-FIND(", $",PS[[#This Row],[Game]])-1),"$","")))),1,0)=1,SUBSTITUTE(SUBSTITUTE(SUBSTITUTE(MID(PS[[#This Row],[Game]],FIND(", $",PS[[#This Row],[Game]])+1,FIND(" Gtd",PS[[#This Row],[Game]])-FIND(", $",PS[[#This Row],[Game]])-1),"$",""),".",""),"K","00"),SUBSTITUTE(SUBSTITUTE(SUBSTITUTE(MID(PS[[#This Row],[Game]],FIND(", $",PS[[#This Row],[Game]])+1,FIND(" Gtd",PS[[#This Row],[Game]])-FIND(", $",PS[[#This Row],[Game]])-1),"$",""),".",""),"K","000"))),"") ->  | M87: =IF(PS[[#This Row],[Game]]="","",IF(COUNTIF(PS[[#This Row],[Game]],"*Sit&Go*"),"S","M")) -> S | N87: =IF(PS[[#This Row],[Game]]="","",IF(OR(COUNTIF(PS[[#This Row],[Game]],"*Turbo*"),COUNTIF(PS[[#This Row],[Game]],"*Hot*")),"T",IF(COUNTIF(PS[[#This Row],[Game]],"*Bubble Rush*"),"T","R"))) -> R | O87: =IF(PS[[#This Row],[Game]]="","",IF(OR(COUNTIF(PS[[#This Row],[Game]],"*Bounty Builder*"),COUNTIF(PS[[#This Row],[Game]],"*KO*")),"K","")) ->  | P87: =IF(PS[[#This Row],[Game]]="","",IF(OR(COUNTIF(PS[[#This Row],[Game]],"*Rebuy*"),COUNTIF(PS[[#This Row],[Game]],"*+R*")),"R","")) ->  | Q87: =IF(PS[[#This Row],[Game]]="","",IF(COUNTIF(PS[[#This Row],[Game]],"*Zoom*"),"Z","")) ->  | R87: =IF(PS[[#This Row],[Date]]="","",DATE(YEAR(VALUE(PS[[#This Row],[Date]])),MONTH(VALUE(PS[[#This Row],[Date]])),DAY(VALUE(PS[[#This Row],[Date]])))) -> 2019-11-01 | S87: =IF(PS[[#This Row],[Date]]="","",TIME(HOUR(VALUE(PS[[#This Row],[Date]])),MINUTE(VALUE(PS[[#This Row],[Date]])),SECOND(PS[[#This Row],[Date]]))) -> 15:49:00 | T87: =IFERROR(VALUE(SUBSTITUTE(PS[[#This Row],[Amount]],".",",")),"") -> 1.7 | U87: =IFERROR(VALUE(SUBSTITUTE(PS[[#This Row],[Balance]],".",",")),"") -> 12.96
B88: =IF(PS[[#This Row],[Date]]="","",IFERROR(WEEKNUM(PS[[#This Row],[Date]],2),"")) -> 44 | C88: =IF(PS[[#This Row],[Date]]="","",IFERROR(CHOOSE(WEEKDAY(PS[[#This Row],[Date]],2),"понедельник","вторник","среда","четверг","пятница","суббота","воскресенье"),"")) -> пятница | D88: =IF(PS[[#This Row],[Date]]="","",TEXT(PS[[#This Row],[Date]],"mmmm")) -> ноябрь | E88: 2019/11/01 3:52 PM | F88: Tournament Won | G88: 2726837359 | H88: NL Hold'em Sit&Go Buy-In: 0.23/0.02 $0.25 NL Hold'em [45 Players] | I88: 1.29 | J88: 14.25 | K88: =SUBSTITUTE(SUBSTITUTE(SUBSTITUTE(IFERROR(IF(PS[[#This Row],[Y]]="S",MID(PS[[#This Row],[Game]],FIND("[",PS[[#This Row],[Game]]),FIND("]",PS[[#This Row],[Game]])-FIND("[",PS[[#This Row],[Game]])+1),LEFT(LEFT(RIGHT(PS[[#This Row],[Game]],((LEN(PS[[#This Row],[Game]]))-( FIND("*",SUBSTITUTE(PS[[#This Row],[Game]]," ","*",4))))),( FIND("*",SUBSTITUTE(RIGHT(PS[[#This Row],[Game]],((LEN(PS[[#This Row],[Game]]))-( FIND("*",SUBSTITUTE(PS[[#This Row],[Game]]," ","*",4))))),", $","*",1)))),LEN(LEFT(RIGHT(PS[[#This Row],[Game]],((LEN(PS[[#This Row],[Game]]))-( FIND("*",SUBSTITUTE(PS[[#This Row],[Game]]," ","*",4))))),( FIND("*",SUBSTITUTE(RIGHT(PS[[#This Row],[Game]],((LEN(PS[[#This Row],[Game]]))-( FIND("*",SUBSTITUTE(PS[[#This Row],[Game]]," ","*",4))))),", $","*",1)))))-1)),"")," [Saturday Special]",""),"ger",""),"ter","") -> [45 Players] | L88: =IFERROR(IF(PS[[#This Row],[Y]]="S","",IF(IF(NOT(ISERR(FIND(".",SUBSTITUTE(MID(PS[[#This Row],[Game]],FIND(", $",PS[[#This Row],[Game]])+1,FIND(" Gtd",PS[[#This Row],[Game]])-FIND(", $",PS[[#This Row],[Game]])-1),"$","")))),1,0)=1,SUBSTITUTE(SUBSTITUTE(SUBSTITUTE(MID(PS[[#This Row],[Game]],FIND(", $",PS[[#This Row],[Game]])+1,FIND(" Gtd",PS[[#This Row],[Game]])-FIND(", $",PS[[#This Row],[Game]])-1),"$",""),".",""),"K","00"),SUBSTITUTE(SUBSTITUTE(SUBSTITUTE(MID(PS[[#This Row],[Game]],FIND(", $",PS[[#This Row],[Game]])+1,FIND(" Gtd",PS[[#This Row],[Game]])-FIND(", $",PS[[#This Row],[Game]])-1),"$",""),".",""),"K","000"))),"") ->  | M88: =IF(PS[[#This Row],[Game]]="","",IF(COUNTIF(PS[[#This Row],[Game]],"*Sit&Go*"),"S","M")) -> S | N88: =IF(PS[[#This Row],[Game]]="","",IF(OR(COUNTIF(PS[[#This Row],[Game]],"*Turbo*"),COUNTIF(PS[[#This Row],[Game]],"*Hot*")),"T",IF(COUNTIF(PS[[#This Row],[Game]],"*Bubble Rush*"),"T","R"))) -> R | O88: =IF(PS[[#This Row],[Game]]="","",IF(OR(COUNTIF(PS[[#This Row],[Game]],"*Bounty Builder*"),COUNTIF(PS[[#This Row],[Game]],"*KO*")),"K","")) ->  | P88: =IF(PS[[#This Row],[Game]]="","",IF(OR(COUNTIF(PS[[#This Row],[Game]],"*Rebuy*"),COUNTIF(PS[[#This Row],[Game]],"*+R*")),"R","")) ->  | Q88: =IF(PS[[#This Row],[Game]]="","",IF(COUNTIF(PS[[#This Row],[Game]],"*Zoom*"),"Z","")) ->  | R88: =IF(PS[[#This Row],[Date]]="","",DATE(YEAR(VALUE(PS[[#This Row],[Date]])),MONTH(VALUE(PS[[#This Row],[Date]])),DAY(VALUE(PS[[#This Row],[Date]])))) -> 2019-11-01 | S88: =IF(PS[[#This Row],[Date]]="","",TIME(HOUR(VALUE(PS[[#This Row],[Date]])),MINUTE(VALUE(PS[[#This Row],[Date]])),SECOND(PS[[#This Row],[Date]]))) -> 15:52:00 | T88: =IFERROR(VALUE(SUBSTITUTE(PS[[#This Row],[Amount]],".",",")),"") -> 1.29 | U88: =IFERROR(VALUE(SUBSTITUTE(PS[[#This Row],[Balance]],".",",")),"") -> 14.25
B89: =IF(PS[[#This Row],[Date]]="","",IFERROR(WEEKNUM(PS[[#This Row],[Date]],2),"")) -> 44 | C89: =IF(PS[[#This Row],[Date]]="","",IFERROR(CHOOSE(WEEKDAY(PS[[#This Row],[Date]],2),"понедельник","вторник","среда","четверг","пятница","суббота","воскресенье"),"")) -> пятница | D89: =IF(PS[[#This Row],[Date]]="","",TEXT(PS[[#This Row],[Date]],"mmmm")) -> ноябрь | E89: 2019/11/01 4:12 PM | F89: Tournament Won | G89: 2726847957 | H89: NL Hold'em Sit&Go Buy-In: 0.23/0.02 $0.25 NL Hold'em [45 Players] | I89: 0.62 | J89: 14.87 | K89: =SUBSTITUTE(SUBSTITUTE(SUBSTITUTE(IFERROR(IF(PS[[#This Row],[Y]]="S",MID(PS[[#This Row],[Game]],FIND("[",PS[[#This Row],[Game]]),FIND("]",PS[[#This Row],[Game]])-FIND("[",PS[[#This Row],[Game]])+1),LEFT(LEFT(RIGHT(PS[[#This Row],[Game]],((LEN(PS[[#This Row],[Game]]))-( FIND("*",SUBSTITUTE(PS[[#This Row],[Game]]," ","*",4))))),( FIND("*",SUBSTITUTE(RIGHT(PS[[#This Row],[Game]],((LEN(PS[[#This Row],[Game]]))-( FIND("*",SUBSTITUTE(PS[[#This Row],[Game]]," ","*",4))))),", $","*",1)))),LEN(LEFT(RIGHT(PS[[#This Row],[Game]],((LEN(PS[[#This Row],[Game]]))-( FIND("*",SUBSTITUTE(PS[[#This Row],[Game]]," ","*",4))))),( FIND("*",SUBSTITUTE(RIGHT(PS[[#This Row],[Game]],((LEN(PS[[#This Row],[Game]]))-( FIND("*",SUBSTITUTE(PS[[#This Row],[Game]]," ","*",4))))),", $","*",1)))))-1)),"")," [Saturday Special]",""),"ger",""),"ter","") -> [45 Players] | L89: =IFERROR(IF(PS[[#This Row],[Y]]="S","",IF(IF(NOT(ISERR(FIND(".",SUBSTITUTE(MID(PS[[#This Row],[Game]],FIND(", $",PS[[#This Row],[Game]])+1,FIND(" Gtd",PS[[#This Row],[Game]])-FIND(", $",PS[[#This Row],[Game]])-1),"$","")))),1,0)=1,SUBSTITUTE(SUBSTITUTE(SUBSTITUTE(MID(PS[[#This Row],[Game]],FIND(", $",PS[[#This Row],[Game]])+1,FIND(" Gtd",PS[[#This Row],[Game]])-FIND(", $",PS[[#This Row],[Game]])-1),"$",""),".",""),"K","00"),SUBSTITUTE(SUBSTITUTE(SUBSTITUTE(MID(PS[[#This Row],[Game]],FIND(", $",PS[[#This Row],[Game]])+1,FIND(" Gtd",PS[[#This Row],[Game]])-FIND(", $",PS[[#This Row],[Game]])-1),"$",""),".",""),"K","000"))),"") ->  | M89: =IF(PS[[#This Row],[Game]]="","",IF(COUNTIF(PS[[#This Row],[Game]],"*Sit&Go*"),"S","M")) -> S | N89: =IF(PS[[#This Row],[Game]]="","",IF(OR(COUNTIF(PS[[#This Row],[Game]],"*Turbo*"),COUNTIF(PS[[#This Row],[Game]],"*Hot*")),"T",IF(COUNTIF(PS[[#This Row],[Game]],"*Bubble Rush*"),"T","R"))) -> R | O89: =IF(PS[[#This Row],[Game]]="","",IF(OR(COUNTIF(PS[[#This Row],[Game]],"*Bounty Builder*"),COUNTIF(PS[[#This Row],[Game]],"*KO*")),"K","")) ->  | P89: =IF(PS[[#This Row],[Game]]="","",IF(OR(COUNTIF(PS[[#This Row],[Game]],"*Rebuy*"),COUNTIF(PS[[#This Row],[Game]],"*+R*")),"R","")) ->  | Q89: =IF(PS[[#This Row],[Game]]="","",IF(COUNTIF(PS[[#This Row],[Game]],"*Zoom*"),"Z","")) ->  | R89: =IF(PS[[#This Row],[Date]]="","",DATE(YEAR(VALUE(PS[[#This Row],[Date]])),MONTH(VALUE(PS[[#This Row],[Date]])),DAY(VALUE(PS[[#This Row],[Date]])))) -> 2019-11-01 | S89: =IF(PS[[#This Row],[Date]]="","",TIME(HOUR(VALUE(PS[[#This Row],[Date]])),MINUTE(VALUE(PS[[#This Row],[Date]])),SECOND(PS[[#This Row],[Date]]))) -> 16:12:00 | T89: =IFERROR(VALUE(SUBSTITUTE(PS[[#This Row],[Amount]],".",",")),"") -> 0.62 | U89: =IFERROR(VALUE(SUBSTITUTE(PS[[#This Row],[Balance]],".",",")),"") -> 14.87
B90: =IF(PS[[#This Row],[Date]]="","",IFERROR(WEEKNUM(PS[[#This Row],[Date]],2),"")) -> 44 | C90: =IF(PS[[#This Row],[Date]]="","",IFERROR(CHOOSE(WEEKDAY(PS[[#This Row],[Date]],2),"понедельник","вторник","среда","четверг","пятница","суббота","воскресенье"),"")) -> пятница | D90: =IF(PS[[#This Row],[Date]]="","",TEXT(PS[[#This Row],[Date]],"mmmm")) -> ноябрь | E90: 2019/11/01 4:14 PM | F90: Tournament Won | G90: 2726819710 | H90: NL Hold'em Sit&Go Buy-In: 0.23/0.02 $0.25 NL Hold'em [45 Players] | I90: 0.93 | J90: 15.80 | K90: =SUBSTITUTE(SUBSTITUTE(SUBSTITUTE(IFERROR(IF(PS[[#This Row],[Y]]="S",MID(PS[[#This Row],[Game]],FIND("[",PS[[#This Row],[Game]]),FIND("]",PS[[#This Row],[Game]])-FIND("[",PS[[#This Row],[Game]])+1),LEFT(LEFT(RIGHT(PS[[#This Row],[Game]],((LEN(PS[[#This Row],[Game]]))-( FIND("*",SUBSTITUTE(PS[[#This Row],[Game]]," ","*",4))))),( FIND("*",SUBSTITUTE(RIGHT(PS[[#This Row],[Game]],((LEN(PS[[#This Row],[Game]]))-( FIND("*",SUBSTITUTE(PS[[#This Row],[Game]]," ","*",4))))),", $","*",1)))),LEN(LEFT(RIGHT(PS[[#This Row],[Game]],((LEN(PS[[#This Row],[Game]]))-( FIND("*",SUBSTITUTE(PS[[#This Row],[Game]]," ","*",4))))),( FIND("*",SUBSTITUTE(RIGHT(PS[[#This Row],[Game]],((LEN(PS[[#This Row],[Game]]))-( FIND("*",SUBSTITUTE(PS[[#This Row],[Game]]," ","*",4))))),", $","*",1)))))-1)),"")," [Saturday Special]",""),"ger",""),"ter","") -> [45 Players] | L90: =IFERROR(IF(PS[[#This Row],[Y]]="S","",IF(IF(NOT(ISERR(FIND(".",SUBSTITUTE(MID(PS[[#This Row],[Game]],FIND(", $",PS[[#This Row],[Game]])+1,FIND(" Gtd",PS[[#This Row],[Game]])-FIND(", $",PS[[#This Row],[Game]])-1),"$","")))),1,0)=1,SUBSTITUTE(SUBSTITUTE(SUBSTITUTE(MID(PS[[#This Row],[Game]],FIND(", $",PS[[#This Row],[Game]])+1,FIND(" Gtd",PS[[#This Row],[Game]])-FIND(", $",PS[[#This Row],[Game]])-1),"$",""),".",""),"K","00"),SUBSTITUTE(SUBSTITUTE(SUBSTITUTE(MID(PS[[#This Row],[Game]],FIND(", $",PS[[#This Row],[Game]])+1,FIND(" Gtd",PS[[#This Row],[Game]])-FIND(", $",PS[[#This Row],[Game]])-1),"$",""),".",""),"K","000"))),"") ->  | M90: =IF(PS[[#This Row],[Game]]="","",IF(COUNTIF(PS[[#This Row],[Game]],"*Sit&Go*"),"S","M")) -> S | N90: =IF(PS[[#This Row],[Game]]="","",IF(OR(COUNTIF(PS[[#This Row],[Game]],"*Turbo*"),COUNTIF(PS[[#This Row],[Game]],"*Hot*")),"T",IF(COUNTIF(PS[[#This Row],[Game]],"*Bubble Rush*"),"T","R"))) -> R | O90: =IF(PS[[#This Row],[Game]]="","",IF(OR(COUNTIF(PS[[#This Row],[Game]],"*Bounty Builder*"),COUNTIF(PS[[#This Row],[Game]],"*KO*")),"K","")) ->  | P90: =IF(PS[[#This Row],[Game]]="","",IF(OR(COUNTIF(PS[[#This Row],[Game]],"*Rebuy*"),COUNTIF(PS[[#This Row],[Game]],"*+R*")),"R","")) ->  | Q90: =IF(PS[[#This Row],[Game]]="","",IF(COUNTIF(PS[[#This Row],[Game]],"*Zoom*"),"Z","")) ->  | R90: =IF(PS[[#This Row],[Date]]="","",DATE(YEAR(VALUE(PS[[#This Row],[Date]])),MONTH(VALUE(PS[[#This Row],[Date]])),DAY(VALUE(PS[[#This Row],[Date]])))) -> 2019-11-01 | S90: =IF(PS[[#This Row],[Date]]="","",TIME(HOUR(VALUE(PS[[#This Row],[Date]])),MINUTE(VALUE(PS[[#This Row],[Date]])),SECOND(PS[[#This Row],[Date]]))) -> 16:14:00 | T90: =IFERROR(VALUE(SUBSTITUTE(PS[[#This Row],[Amount]],".",",")),"") -> 0.93 | U90: =IFERROR(VALUE(SUBSTITUTE(PS[[#This Row],[Balance]],".",",")),"") -> 15.8
B91: =IF(PS[[#This Row],[Date]]="","",IFERROR(WEEKNUM(PS[[#This Row],[Date]],2),"")) -> 44 | C91: =IF(PS[[#This Row],[Date]]="","",IFERROR(CHOOSE(WEEKDAY(PS[[#This Row],[Date]],2),"понедельник","вторник","среда","четверг","пятница","суббота","воскресенье"),"")) -> пятница | D91: =IF(PS[[#This Row],[Date]]="","",TEXT(PS[[#This Row],[Date]],"mmmm")) -> ноябрь | E91: 2019/11/01 4:39 PM | F91: Tournament Won | G91: 2726846022 | H91: NL Hold'em Sit&Go Buy-In: 0.23/0.02 $0.25 NL Hold'em [45 Players] | I91: 2.22 | J91: 18.02 | K91: =SUBSTITUTE(SUBSTITUTE(SUBSTITUTE(IFERROR(IF(PS[[#This Row],[Y]]="S",MID(PS[[#This Row],[Game]],FIND("[",PS[[#This Row],[Game]]),FIND("]",PS[[#This Row],[Game]])-FIND("[",PS[[#This Row],[Game]])+1),LEFT(LEFT(RIGHT(PS[[#This Row],[Game]],((LEN(PS[[#This Row],[Game]]))-( FIND("*",SUBSTITUTE(PS[[#This Row],[Game]]," ","*",4))))),( FIND("*",SUBSTITUTE(RIGHT(PS[[#This Row],[Game]],((LEN(PS[[#This Row],[Game]]))-( FIND("*",SUBSTITUTE(PS[[#This Row],[Game]]," ","*",4))))),", $","*",1)))),LEN(LEFT(RIGHT(PS[[#This Row],[Game]],((LEN(PS[[#This Row],[Game]]))-( FIND("*",SUBSTITUTE(PS[[#This Row],[Game]]," ","*",4))))),( FIND("*",SUBSTITUTE(RIGHT(PS[[#This Row],[Game]],((LEN(PS[[#This Row],[Game]]))-( FIND("*",SUBSTITUTE(PS[[#This Row],[Game]]," ","*",4))))),", $","*",1)))))-1)),"")," [Saturday Special]",""),"ger",""),"ter","") -> [45 Players] | L91: =IFERROR(IF(PS[[#This Row],[Y]]="S","",IF(IF(NOT(ISERR(FIND(".",SUBSTITUTE(MID(PS[[#This Row],[Game]],FIND(", $",PS[[#This Row],[Game]])+1,FIND(" Gtd",PS[[#This Row],[Game]])-FIND(", $",PS[[#This Row],[Game]])-1),"$","")))),1,0)=1,SUBSTITUTE(SUBSTITUTE(SUBSTITUTE(MID(PS[[#This Row],[Game]],FIND(", $",PS[[#This Row],[Game]])+1,FIND(" Gtd",PS[[#This Row],[Game]])-FIND(", $",PS[[#This Row],[Game]])-1),"$",""),".",""),"K","00"),SUBSTITUTE(SUBSTITUTE(SUBSTITUTE(MID(PS[[#This Row],[Game]],FIND(", $",PS[[#This Row],[Game]])+1,FIND(" Gtd",PS[[#This Row],[Game]])-FIND(", $",PS[[#This Row],[Game]])-1),"$",""),".",""),"K","000"))),"") ->  | M91: =IF(PS[[#This Row],[Game]]="","",IF(COUNTIF(PS[[#This Row],[Game]],"*Sit&Go*"),"S","M")) -> S | N91: =IF(PS[[#This Row],[Game]]="","",IF(OR(COUNTIF(PS[[#This Row],[Game]],"*Turbo*"),COUNTIF(PS[[#This Row],[Game]],"*Hot*")),"T",IF(COUNTIF(PS[[#This Row],[Game]],"*Bubble Rush*"),"T","R"))) -> R | O91: =IF(PS[[#This Row],[Game]]="","",IF(OR(COUNTIF(PS[[#This Row],[Game]],"*Bounty Builder*"),COUNTIF(PS[[#This Row],[Game]],"*KO*")),"K","")) ->  | P91: =IF(PS[[#This Row],[Game]]="","",IF(OR(COUNTIF(PS[[#This Row],[Game]],"*Rebuy*"),COUNTIF(PS[[#This Row],[Game]],"*+R*")),"R","")) ->  | Q91: =IF(PS[[#This Row],[Game]]="","",IF(COUNTIF(PS[[#This Row],[Game]],"*Zoom*"),"Z","")) ->  | R91: =IF(PS[[#This Row],[Date]]="","",DATE(YEAR(VALUE(PS[[#This Row],[Date]])),MONTH(VALUE(PS[[#This Row],[Date]])),DAY(VALUE(PS[[#This Row],[Date]])))) -> 2019-11-01 | S91: =IF(PS[[#This Row],[Date]]="","",TIME(HOUR(VALUE(PS[[#This Row],[Date]])),MINUTE(VALUE(PS[[#This Row],[Date]])),SECOND(PS[[#This Row],[Date]]))) -> 16:39:00 | T91: =IFERROR(VALUE(SUBSTITUTE(PS[[#This Row],[Amount]],".",",")),"") -> 2.22 | U91: =IFERROR(VALUE(SUBSTITUTE(PS[[#This Row],[Balance]],".",",")),"") -> 18.02
B92: =IF(PS[[#This Row],[Date]]="","",IFERROR(WEEKNUM(PS[[#This Row],[Date]],2),"")) -> 44 | C92: =IF(PS[[#This Row],[Date]]="","",IFERROR(CHOOSE(WEEKDAY(PS[[#This Row],[Date]],2),"понедельник","вторник","среда","четверг","пятница","суббота","воскресенье"),"")) -> пятница | D92: =IF(PS[[#This Row],[Date]]="","",TEXT(PS[[#This Row],[Date]],"mmmm")) -> ноябрь | E92: 2019/11/01 4:39 PM | F92: Tournament Registration | G92: 2726959497 | H92: NL Hold'em Sit&Go Buy-In: 0.23/0.02 $0.25 NL Hold'em [45 Players] | I92: (0.25) | J92: 17.77 | K92: =SUBSTITUTE(SUBSTITUTE(SUBSTITUTE(IFERROR(IF(PS[[#This Row],[Y]]="S",MID(PS[[#This Row],[Game]],FIND("[",PS[[#This Row],[Game]]),FIND("]",PS[[#This Row],[Game]])-FIND("[",PS[[#This Row],[Game]])+1),LEFT(LEFT(RIGHT(PS[[#This Row],[Game]],((LEN(PS[[#This Row],[Game]]))-( FIND("*",SUBSTITUTE(PS[[#This Row],[Game]]," ","*",4))))),( FIND("*",SUBSTITUTE(RIGHT(PS[[#This Row],[Game]],((LEN(PS[[#This Row],[Game]]))-( FIND("*",SUBSTITUTE(PS[[#This Row],[Game]]," ","*",4))))),", $","*",1)))),LEN(LEFT(RIGHT(PS[[#This Row],[Game]],((LEN(PS[[#This Row],[Game]]))-( FIND("*",SUBSTITUTE(PS[[#This Row],[Game]]," ","*",4))))),( FIND("*",SUBSTITUTE(RIGHT(PS[[#This Row],[Game]],((LEN(PS[[#This Row],[Game]]))-( FIND("*",SUBSTITUTE(PS[[#This Row],[Game]]," ","*",4))))),", $","*",1)))))-1)),"")," [Saturday Special]",""),"ger",""),"ter","") -> [45 Players] | L92: =IFERROR(IF(PS[[#This Row],[Y]]="S","",IF(IF(NOT(ISERR(FIND(".",SUBSTITUTE(MID(PS[[#This Row],[Game]],FIND(", $",PS[[#This Row],[Game]])+1,FIND(" Gtd",PS[[#This Row],[Game]])-FIND(", $",PS[[#This Row],[Game]])-1),"$","")))),1,0)=1,SUBSTITUTE(SUBSTITUTE(SUBSTITUTE(MID(PS[[#This Row],[Game]],FIND(", $",PS[[#This Row],[Game]])+1,FIND(" Gtd",PS[[#This Row],[Game]])-FIND(", $",PS[[#This Row],[Game]])-1),"$",""),".",""),"K","00"),SUBSTITUTE(SUBSTITUTE(SUBSTITUTE(MID(PS[[#This Row],[Game]],FIND(", $",PS[[#This Row],[Game]])+1,FIND(" Gtd",PS[[#This Row],[Game]])-FIND(", $",PS[[#This Row],[Game]])-1),"$",""),".",""),"K","000"))),"") ->  | M92: =IF(PS[[#This Row],[Game]]="","",IF(COUNTIF(PS[[#This Row],[Game]],"*Sit&Go*"),"S","M")) -> S | N92: =IF(PS[[#This Row],[Game]]="","",IF(OR(COUNTIF(PS[[#This Row],[Game]],"*Turbo*"),COUNTIF(PS[[#This Row],[Game]],"*Hot*")),"T",IF(COUNTIF(PS[[#This Row],[Game]],"*Bubble Rush*"),"T","R"))) -> R | O92: =IF(PS[[#This Row],[Game]]="","",IF(OR(COUNTIF(PS[[#This Row],[Game]],"*Bounty Builder*"),COUNTIF(PS[[#This Row],[Game]],"*KO*")),"K","")) ->  | P92: =IF(PS[[#This Row],[Game]]="","",IF(OR(COUNTIF(PS[[#This Row],[Game]],"*Rebuy*"),COUNTIF(PS[[#This Row],[Game]],"*+R*")),"R","")) ->  | Q92: =IF(PS[[#This Row],[Game]]="","",IF(COUNTIF(PS[[#This Row],[Game]],"*Zoom*"),"Z","")) ->  | R92: =IF(PS[[#This Row],[Date]]="","",DATE(YEAR(VALUE(PS[[#This Row],[Date]])),MONTH(VALUE(PS[[#This Row],[Date]])),DAY(VALUE(PS[[#This Row],[Date]])))) -> 2019-11-01 | S92: =IF(PS[[#This Row],[Date]]="","",TIME(HOUR(VALUE(PS[[#This Row],[Date]])),MINUTE(VALUE(PS[[#This Row],[Date]])),SECOND(PS[[#This Row],[Date]]))) -> 16:39:00 | T92: =IFERROR(VALUE(SUBSTITUTE(PS[[#This Row],[Amount]],".",",")),"") -> -0.25 | U92: =IFERROR(VALUE(SUBSTITUTE(PS[[#This Row],[Balance]],".",",")),"") -> 17.77
B93: =IF(PS[[#This Row],[Date]]="","",IFERROR(WEEKNUM(PS[[#This Row],[Date]],2),"")) -> 44 | C93: =IF(PS[[#This Row],[Date]]="","",IFERROR(CHOOSE(WEEKDAY(PS[[#This Row],[Date]],2),"понедельник","вторник","среда","четверг","пятница","суббота","воскресенье"),"")) -> пятница | D93: =IF(PS[[#This Row],[Date]]="","",TEXT(PS[[#This Row],[Date]],"mmmm")) -> ноябрь | E93: 2019/11/01 4:41 PM | F93: Tournament Registration | G93: 2726962224 | H93: NL Hold'em Sit&Go Buy-In: 0.23/0.02 $0.25 NL Hold'em [45 Players] | I93: (0.25) | J93: 17.52 | K93: =SUBSTITUTE(SUBSTITUTE(SUBSTITUTE(IFERROR(IF(PS[[#This Row],[Y]]="S",MID(PS[[#This Row],[Game]],FIND("[",PS[[#This Row],[Game]]),FIND("]",PS[[#This Row],[Game]])-FIND("[",PS[[#This Row],[Game]])+1),LEFT(LEFT(RIGHT(PS[[#This Row],[Game]],((LEN(PS[[#This Row],[Game]]))-( FIND("*",SUBSTITUTE(PS[[#This Row],[Game]]," ","*",4))))),( FIND("*",SUBSTITUTE(RIGHT(PS[[#This Row],[Game]],((LEN(PS[[#This Row],[Game]]))-( FIND("*",SUBSTITUTE(PS[[#This Row],[Game]]," ","*",4))))),", $","*",1)))),LEN(LEFT(RIGHT(PS[[#This Row],[Game]],((LEN(PS[[#This Row],[Game]]))-( FIND("*",SUBSTITUTE(PS[[#This Row],[Game]]," ","*",4))))),( FIND("*",SUBSTITUTE(RIGHT(PS[[#This Row],[Game]],((LEN(PS[[#This Row],[Game]]))-( FIND("*",SUBSTITUTE(PS[[#This Row],[Game]]," ","*",4))))),", $","*",1)))))-1)),"")," [Saturday Special]",""),"ger",""),"ter","") -> [45 Players] | L93: =IFERROR(IF(PS[[#This Row],[Y]]="S","",IF(IF(NOT(ISERR(FIND(".",SUBSTITUTE(MID(PS[[#This Row],[Game]],FIND(", $",PS[[#This Row],[Game]])+1,FIND(" Gtd",PS[[#This Row],[Game]])-FIND(", $",PS[[#This Row],[Game]])-1),"$","")))),1,0)=1,SUBSTITUTE(SUBSTITUTE(SUBSTITUTE(MID(PS[[#This Row],[Game]],FIND(", $",PS[[#This Row],[Game]])+1,FIND(" Gtd",PS[[#This Row],[Game]])-FIND(", $",PS[[#This Row],[Game]])-1),"$",""),".",""),"K","00"),SUBSTITUTE(SUBSTITUTE(SUBSTITUTE(MID(PS[[#This Row],[Game]],FIND(", $",PS[[#This Row],[Game]])+1,FIND(" Gtd",PS[[#This Row],[Game]])-FIND(", $",PS[[#This Row],[Game]])-1),"$",""),".",""),"K","000"))),"") ->  | M93: =IF(PS[[#This Row],[Game]]="","",IF(COUNTIF(PS[[#This Row],[Game]],"*Sit&Go*"),"S","M")) -> S | N93: =IF(PS[[#This Row],[Game]]="","",IF(OR(COUNTIF(PS[[#This Row],[Game]],"*Turbo*"),COUNTIF(PS[[#This Row],[Game]],"*Hot*")),"T",IF(COUNTIF(PS[[#This Row],[Game]],"*Bubble Rush*"),"T","R"))) -> R | O93: =IF(PS[[#This Row],[Game]]="","",IF(OR(COUNTIF(PS[[#This Row],[Game]],"*Bounty Builder*"),COUNTIF(PS[[#This Row],[Game]],"*KO*")),"K","")) ->  | P93: =IF(PS[[#This Row],[Game]]="","",IF(OR(COUNTIF(PS[[#This Row],[Game]],"*Rebuy*"),COUNTIF(PS[[#This Row],[Game]],"*+R*")),"R","")) ->  | Q93: =IF(PS[[#This Row],[Game]]="","",IF(COUNTIF(PS[[#This Row],[Game]],"*Zoom*"),"Z","")) ->  | R93: =IF(PS[[#This Row],[Date]]="","",DATE(YEAR(VALUE(PS[[#This Row],[Date]])),MONTH(VALUE(PS[[#This Row],[Date]])),DAY(VALUE(PS[[#This Row],[Date]])))) -> 2019-11-01 | S93: =IF(PS[[#This Row],[Date]]="","",TIME(HOUR(VALUE(PS[[#This Row],[Date]])),MINUTE(VALUE(PS[[#This Row],[Date]])),SECOND(PS[[#This Row],[Date]]))) -> 16:41:00 | T93: =IFERROR(VALUE(SUBSTITUTE(PS[[#This Row],[Amount]],".",",")),"") -> -0.25 | U93: =IFERROR(VALUE(SUBSTITUTE(PS[[#This Row],[Balance]],".",",")),"") -> 17.52
B94: =IF(PS[[#This Row],[Date]]="","",IFERROR(WEEKNUM(PS[[#This Row],[Date]],2),"")) -> 44 | C94: =IF(PS[[#This Row],[Date]]="","",IFERROR(CHOOSE(WEEKDAY(PS[[#This Row],[Date]],2),"понедельник","вторник","среда","четверг","пятница","суббота","воскресенье"),"")) -> пятница | D94: =IF(PS[[#This Row],[Date]]="","",TEXT(PS[[#This Row],[Date]],"mmmm")) -> ноябрь | E94: 2019/11/01 4:47 PM | F94: Tournament Registration | G94: 2726965263 | H94: NL Hold'em Sit&Go Buy-In: 0.23/0.02 $0.25 NL Hold'em [45 Players] | I94: (0.25) | J94: 17.27 | K94: =SUBSTITUTE(SUBSTITUTE(SUBSTITUTE(IFERROR(IF(PS[[#This Row],[Y]]="S",MID(PS[[#This Row],[Game]],FIND("[",PS[[#This Row],[Game]]),FIND("]",PS[[#This Row],[Game]])-FIND("[",PS[[#This Row],[Game]])+1),LEFT(LEFT(RIGHT(PS[[#This Row],[Game]],((LEN(PS[[#This Row],[Game]]))-( FIND("*",SUBSTITUTE(PS[[#This Row],[Game]]," ","*",4))))),( FIND("*",SUBSTITUTE(RIGHT(PS[[#This Row],[Game]],((LEN(PS[[#This Row],[Game]]))-( FIND("*",SUBSTITUTE(PS[[#This Row],[Game]]," ","*",4))))),", $","*",1)))),LEN(LEFT(RIGHT(PS[[#This Row],[Game]],((LEN(PS[[#This Row],[Game]]))-( FIND("*",SUBSTITUTE(PS[[#This Row],[Game]]," ","*",4))))),( FIND("*",SUBSTITUTE(RIGHT(PS[[#This Row],[Game]],((LEN(PS[[#This Row],[Game]]))-( FIND("*",SUBSTITUTE(PS[[#This Row],[Game]]," ","*",4))))),", $","*",1)))))-1)),"")," [Saturday Special]",""),"ger",""),"ter","") -> [45 Players] | L94: =IFERROR(IF(PS[[#This Row],[Y]]="S","",IF(IF(NOT(ISERR(FIND(".",SUBSTITUTE(MID(PS[[#This Row],[Game]],FIND(", $",PS[[#This Row],[Game]])+1,FIND(" Gtd",PS[[#This Row],[Game]])-FIND(", $",PS[[#This Row],[Game]])-1),"$","")))),1,0)=1,SUBSTITUTE(SUBSTITUTE(SUBSTITUTE(MID(PS[[#This Row],[Game]],FIND(", $",PS[[#This Row],[Game]])+1,FIND(" Gtd",PS[[#This Row],[Game]])-FIND(", $",PS[[#This Row],[Game]])-1),"$",""),".",""),"K","00"),SUBSTITUTE(SUBSTITUTE(SUBSTITUTE(MID(PS[[#This Row],[Game]],FIND(", $",PS[[#This Row],[Game]])+1,FIND(" Gtd",PS[[#This Row],[Game]])-FIND(", $",PS[[#This Row],[Game]])-1),"$",""),".",""),"K","000"))),"") ->  | M94: =IF(PS[[#This Row],[Game]]="","",IF(COUNTIF(PS[[#This Row],[Game]],"*Sit&Go*"),"S","M")) -> S | N94: =IF(PS[[#This Row],[Game]]="","",IF(OR(COUNTIF(PS[[#This Row],[Game]],"*Turbo*"),COUNTIF(PS[[#This Row],[Game]],"*Hot*")),"T",IF(COUNTIF(PS[[#This Row],[Game]],"*Bubble Rush*"),"T","R"))) -> R | O94: =IF(PS[[#This Row],[Game]]="","",IF(OR(COUNTIF(PS[[#This Row],[Game]],"*Bounty Builder*"),COUNTIF(PS[[#This Row],[Game]],"*KO*")),"K","")) ->  | P94: =IF(PS[[#This Row],[Game]]="","",IF(OR(COUNTIF(PS[[#This Row],[Game]],"*Rebuy*"),COUNTIF(PS[[#This Row],[Game]],"*+R*")),"R","")) ->  | Q94: =IF(PS[[#This Row],[Game]]="","",IF(COUNTIF(PS[[#This Row],[Game]],"*Zoom*"),"Z","")) ->  | R94: =IF(PS[[#This Row],[Date]]="","",DATE(YEAR(VALUE(PS[[#This Row],[Date]])),MONTH(VALUE(PS[[#This Row],[Date]])),DAY(VALUE(PS[[#This Row],[Date]])))) -> 2019-11-01 | S94: =IF(PS[[#This Row],[Date]]="","",TIME(HOUR(VALUE(PS[[#This Row],[Date]])),MINUTE(VALUE(PS[[#This Row],[Date]])),SECOND(PS[[#This Row],[Date]]))) -> 16:47:00 | T94: =IFERROR(VALUE(SUBSTITUTE(PS[[#This Row],[Amount]],".",",")),"") -> -0.25 | U94: =IFERROR(VALUE(SUBSTITUTE(PS[[#This Row],[Balance]],".",",")),"") -> 17.27
